Workbook

Sheet 2018 Legal Max
B1: FINAL | F1: Col 1 | I1: Col 2 | L1: Col 3 | P1: Col 4 | Q1: Col 5 | R1: Col 6 | S1: Col 7 | T1: Col 8 | Y1: Col 9 | Z1: Col 10 | AA1: Col 11 | AC1: Col 12 | AD1: Col 13 | AE1: Col 14 | AF1: Col 15 | AG1: Col 16 | AH1: Col 17 | AI1: Col 18 | AJ1: Col 19 | AK1: Col 20 | AM1: Col 21 | AN1: Col 22 | AO1: Col 23 | AP1: Col 24 | AQ1: Col 25 | AR1: Col 26 | AS1: Col 27 | AT1: Col 28 | AU1: Col 29 | AW1: Col 30 | AX1: Col 31 | AY1: Col 32 | AZ1: Col 33 | BA1: Col 34 | BB1: Col 35 | BG1: Col 36 | BH1: Col 37 | BI1: Col 38 | BM1: Col 39 | BN1: Col 40 | BO1: Col 41 | BP1: Col 42 | BQ1: Col 43 | BR1: Col 44 | BS1: Col 45
B2: 2018-06-20 | C2: Revised D0368 | M2: (Info Only) | N2: (Info Only) | O2: (Info Only) | AV2: (Info Only) | AW2: (Info Only) | BU2: Table I - Low & High Enrollment | CE2: Table II - Transportation | CJ2: Table III - Tax Appeal Amounts | CP2: Table IV High Density At Risk
A3: USD # | B3: County | C3: District Name | D3: FTE Enroll (excl 4yr old at-risk & KDG & virtual) 9/20/2014 | E3: FTE Enroll (excl 4yr old at-risk & KDG & virtual) 2/20/2015 | F3: FTE Enroll (excl 4yr old at-risk & KDG & virtual) 9/20/2014 2/20/2015 | G3: FTE Enroll (excl 4yr old at-risk & KDG & virtual) 9/20/2015 | H3: FTE Enroll (excl 4yr old at-risk & KDG & virtual) 2/20/2016 | I3: FTE Enroll (excl 4yr old at-risk & KDG & virtual ) 9/20/2015 2/20/2016 | J3: FTE Enroll (excl 4yr old at-risk & KDG & virtual) 9/20/2016 | K3: FTE Enroll (excl 4yr old at-risk & KDG & virtual) 2/20/2017 | L3: FTE Enroll (excl 4yr old at-risk & KDG & virtual) 9/20/2016 2/20/2017 | M3: FTE Enroll (excl 4yr old at-risk & virtual) 9/20/2017 | N3: FTE Enroll (excl 4yr old at-risk & virtual) 2/20/2018 | O3: FTE Enroll (excl 4yr old at-risk & virtual) 9/20/2017 2/20/2018 | P3: Adjusted Enrollment | Q3: 4yr Old At Risk (9/20 + 2/20) | R3: 2016-17 Kindergarten (9/20 + 2/20) | S3: Total Adjusted Enrollment (incl 4yr AR & KDG) | T3: Low and High Enrollment WTD FTE | U3: 2017-18 Bilingual Contact Hours (9/20 + 2/20) | V3: Bilingual Contact Hours WTD FTE | W3: 2017-18 Bilingual Headcount (9/20 + 2/20) | X3: Bilingual Headcount WTD FTE | Y3: Bilingual (max Hrs or Hdct) WTD FTE | Z3: 2017-18 Career /Tech Ed Contact Hours (9/20 + 2/20) | AA3: Career /Tech Ed WTD FTE | AB3: Funded Headcount (excl virtual) (9/20 + 2/20) | AC3: Free Lunch 10% (Guaranteed) | AD3: Free Lunch (9/20 + 2/20) | AE3: At-Risk (Free Lunch) WTD FTE | AF3: High Density At-Risk (USD) | AG3: High Density At-Risk (School) | AH3: High Density At-Risk WTD FTE | AI3: School Faciltiies FTE (9/20 + 2/20) | AJ3: School Facilities WTD FTE | AK3: Transportation FTE > = 2.5 Miles (9/20 + 2/20) | AL3: Current Year Transportation WTD FTE | AM3: 2017-18 Transportation Aid | AN3: 2016-17 Transportation Aid | AO3: Transportation WTD FTE | AP3: Ancillary WTD FTE | AQ3: Declining Enrollment WTD FTE | AR3: Cost of Living WTD FTE | AS3: Special Education State Aid | AT3: Special Education WTD FTE | AU3: KAMS FTE | AV3: WTD FTE (excl COLA; incl SPED) | AW3: WTD FTE (excl SPED) | AX3: Virtual Full-Time FTE | AY3: Virtual Part-Time FTE | AZ3: Virtual Credits (19yrs & Older) | BA3: Virtual State Aid | BB3: Extraordinary Need Aid | BC3: Sequence Number | BD3: Audit | BE3: Republished | BF3: Info Only General Fund (excl SPED) | BG3: Computed General Fund | BH3: Adopted General Fund | BI3: Legal Max General Fund (before reductions) | BJ3: Prior Year Budget Law Violation | BK3: Prior Year Trans Audit Adjust | BL3: Prior Year Virtual Credits Audit Adj | BM3: Prior Year Total Reductions | BN3: 2017-18 Adjusted Legal General Fund Budget | BO3: 2017-18 LOB Base General Fund | BP3: 2017-18 LOB Authorized Percent | BQ3: Computed Local Option Budget | BR3: Adopted Local Option Budget | BS3: Legal Max Local Option Budget | BT3: LOB Percent Used | BU3: 0-99.9 | BY3: 100-299.9 | CC3: 300-1621.9 | CD3: 1622 and higher | CE3: Area in Square Miles | CF3: Index | CG3: Density Cost Per Pupil | CH3: Transp Weighting Factor | CI3: Trans Weighted FTE | CJ3: Board of Tax Appeals (Ancillary) | CK3: Board of Tax Appeals (Declining Enrollment) | CL3: Form 150-Board of Tax Appeals (Cost of Living) | CM3: Cost of Living Authorized Percent | CN3: Max Computed Cost of Living | CO3: Cost of Living Authority | CP3: 2017-18 Percent of Free Lunch (Current Year) | CQ3: Ftee Lunch >=50% | CR3: Free Lunch >=35% <50% | CS3: Total WTD FTE (inc. SPED)
A4: Total | C4: STATE TOTALS | D4: =SUM(D5:D290) -> 431924.3 | E4: 577.2 | F4: 432501.5 | G4: 429972.4 | H4: 499.5 | I4: 430471.9 | J4: 429498.6 | K4: 325.5 | L4: 429824.1 | M4: 465660.3 | N4: 566.5 | O4: 466226.8 | P4: 433775.4 | Q4: 3632 | R4: 35739 | S4: 473146.4 | T4: 54671.7 | U4: 144097.3 | V4: 9485.8 | W4: 50281 | X4: 9303.6 | Y4: 10376.1 | Z4: 105477.3 | AA4: 8791.8 | AB4: 479381 | AC4: 47950 | AD4: 185419 | AE4: 90371.1 | AF4: 11949.1 | AG4: 12220.4 | AH4: 13020.1 | AI4: 15917.5 | AJ4: 3979.6 | AK4: 131961 | AL4: 21849.8 | AM4: 87530298 | AN4: 101223247 | AO4: 25464.9 | AP4: 7241.6 | AQ4: 458.1 | AR4: 5965.8 | AS4: 435999742 | AT4: 108836.8 | AU4: 39 | AV4: =SUM(AV5:AV290) -> 796397.2 | AW4: 693526.2 | AX4: 5383 | AY4: 846.1 | AZ4: 3505.75 | BA4: 30838957 | BB4: 2487558 | BF4: =SUM(BF5:BF290) -> 2811592472 | BG4: 3247592692 | BH4: 3328275421 | BI4: 3247592291 | BJ4: 0 | BK4: -1011910 | BL4: -416594 | BM4: -1428504 | BN4: 3246163787 | BO4: 3570063843 | BP4: 87.85 | BQ4: 1106726792 | BR4: 1117930432 | BS4: 1098582827 | BT4: =SUM(BT5:BT290)/296 -> 0.2929 | BU4: =SUM(BU5:BU290) -> 415.4 | BY4: =SUM(BY5:BY290) -> 9121.3 | CC4: =SUM(CC5:CC290) -> 32667.2 | CD4: 12467.8 | CE4: 82019.7 | CF4: 1375.16 | CG4: 284185.15 | CH4: 70.939 | CI4: 21849.8 | CJ4: 29009339 | CK4: 1835337 | CL4: 24103404 | CO4: =SUM(CO5:CO290) -> 23898698 | CP4: =AD5/AB5 -> 0.5047 | CQ4: =SUM(CQ5:CQ290) -> 9813.6 | CR4: =SUM(CR5:CR290) -> 2135.5 | CS4: =SUM(CS5:CS290) -> 802363
A5: 101 | B5: Neosho | C5: Erie-Galesburg | D5: 506.5 | E5: 0 | F5: =D5+E5 -> 506.5 | G5: 484.5 | H5: =IF(ISNA(VLOOKUP($CV5,'Audit Values'!$A$2:$BU$326,2,FALSE)),'Preliminary SO66'!AI4,VLOOKUP($CV5,'Audit Values'!$A$2:$BU$326,2,FALSE)) -> 0 | I5: =G5+H5 -> 484.5 | J5: 476 | K5: =IF(ISNA(VLOOKUP($CV5,'Audit Values'!$A$2:$BU$326,2,FALSE)),'Preliminary SO66'!AJ4,VLOOKUP($CV5,'Audit Values'!$A$2:$BU$326,3,FALSE)) -> 0 | L5: =J5+K5 -> 476 | M5: =IF(ISNA(VLOOKUP($CV5,'Audit Values'!$A$2:$BU$326,2,FALSE)),'Preliminary SO66'!C4,VLOOKUP($CV5,'Audit Values'!$A$2:$BU$326,73,FALSE)) -> 514.5 | N5: =IF(ISNA(VLOOKUP($CV5,'Audit Values'!$A$2:$BU$326,2,FALSE)),'Preliminary SO66'!F4,VLOOKUP($CV5,'Audit Values'!$A$2:$BU$326,4,FALSE)) -> 0 | O5: =IF(ISNA(VLOOKUP($CV5,'Audit Values'!$A$2:$BU$326,2,FALSE)),'Preliminary SO66'!AK4,VLOOKUP($CV5,'Audit Values'!$A$2:$BU$326,57,FALSE)) -> 514.5 | P5: =IF('Military Provision'!J6="YES", MAX('2018 Legal Max'!L5,'2018 Legal Max'!I5,AVERAGE('2018 Legal Max'!F5,'2018 Legal Max'!I5,'2018 Legal Max'!L5)), MAX(L5, I5)) -> 484.5 | Q5: =IF(ISNA(VLOOKUP($CV5,'Audit Values'!$A$2:$BU$326,2,FALSE)),'Preliminary SO66'!AL4,VLOOKUP($CV5,'Audit Values'!$A$2:$BU$326,58,FALSE)) -> 7 | R5: =IF(ISNA(VLOOKUP($CV5,'Audit Values'!$A$2:$BU$326,2,FALSE)),'Preliminary SO66'!AT4,VLOOKUP($CV5,'Audit Values'!$A$2:$BU$326,59,FALSE)) -> 30 | S5: =P5+Q5+R5 -> 521.5 | T5: =MAX(BU5, BY5, CC5, CD5) -> 213.3 | U5: =IF(ISNA(VLOOKUP($CV5,'Audit Values'!$A$2:$BW$294,2,FALSE)),'Preliminary SO66'!AM4,VLOOKUP($CV5,'Audit Values'!$A$2:$BW$294,62,FALSE)) -> 3.5 | V5: =(U5/6)*'Weighting Factors'!$Q$7 -> 0.2 | W5: =IF(ISNA(VLOOKUP($CV5,'Audit Values'!$A$2:$BW$294,2,FALSE)),'Preliminary SO66'!AN4,VLOOKUP($CV5,'Audit Values'!$A$2:$BW$294,61,FALSE)) -> 7 | X5: =W5*'Weighting Factors'!$Q$8 -> 1.3 | Y5: =MAX(V5,X5) -> 1.3 | Z5: =IF(ISNA(VLOOKUP($CV5,'Audit Values'!$A$2:$BW$294,2,FALSE)),'Preliminary SO66'!AO4,VLOOKUP($CV5,'Audit Values'!$A$2:$BW$294,60,FALSE)) -> 138.4 | AA5: =Z5/6*'Weighting Factors'!$Q$6 -> 11.5 | AB5: =IF(ISNA(VLOOKUP($CV5,'Audit Values'!$A$2:$BU$326,2,FALSE)),'Preliminary SO66'!AS4,VLOOKUP($CV5,'Audit Values'!$A$2:$BU$326,63,FALSE)) -> 535 | AC5: =AB5*0.1 -> 54 | AD5: =IF(ISNA(VLOOKUP($CV5,'Audit Values'!$A$2:$BU$370,2,FALSE)),'Preliminary SO66'!AP4,VLOOKUP($CV5,'Audit Values'!$A$2:$BU$370,64,FALSE)) -> 270 | AE5: =IF(A5=207, AD5,MAX(AC5,AD5))*'Weighting Factors'!$Q$9 -> 130.7 | AF5: =MAX(CQ5,CR5) -> 28.4 | AG5: =IF(ISNA(VLOOKUP($CV5,'Audit Values'!$A$2:$BW$326,2,FALSE)),'Preliminary SO66'!AG4,VLOOKUP($CV5,'Audit Values'!$A$2:$BW$326,70,FALSE)) -> 23.1 | AH5: =MAX(AF5, AG5) -> 28.4 | AI5: =IF(ISNA(VLOOKUP($CV5,'Audit Values'!$A$2:$BU$326,2,FALSE)),'Preliminary SO66'!AQ4,VLOOKUP($CV5,'Audit Values'!$A$2:$BU$326,65,FALSE)) -> 0 | AJ5: =AI5*'Weighting Factors'!$Q$10 -> 0 | AK5: =IF(ISNA(VLOOKUP($CV5,'Audit Values'!$A$2:$BU$326,2,FALSE)),'Preliminary SO66'!AR4,VLOOKUP($CV5,'Audit Values'!$A$2:$BU$326,66,FALSE)) -> 286 | AL5: =CI5 -> 66.3 | AM5: =AL5*'Weighting Factors'!$Q$5 -> 265598 | AN5: 303923 | AO5: =MAX(AM5, AN5)/'Weighting Factors'!$Q$5 -> 75.9 | AP5: =CJ5/'Weighting Factors'!$Q$5 -> 0 | AQ5: =CK5/'Weighting Factors'!$Q$5 -> 0 | AR5: =CO5/'Weighting Factors'!$Q$5 -> 0 | AS5: 624112 | AT5: =AS5/'Weighting Factors'!$Q$5 -> 155.8 | AU5: =IF(ISNA(VLOOKUP($CV5,'Audit Values'!$A$2:$BU$326,2,FALSE)),'Preliminary SO66'!X4,VLOOKUP($CV5,'Audit Values'!$A$2:$BU$326,47,FALSE)) -> 0 | AV5: =SUM(S5+T5+Y5+AA5+AE5+AH5+AJ5++AO5+AP5+AQ5+AT5+AU5) -> 1138.4 | AW5: =SUM(S5+T5+Y5+AA5+AE5+AH5+AJ5++AO5+AP5+AQ5+AR5+AU5) -> 982.6 | AX5: =IF(ISNA(VLOOKUP($CV5,'Audit Values'!$A$2:$BU$326,2,FALSE)),'Preliminary SO66'!AA4,VLOOKUP($CV5,'Audit Values'!$A$2:$BU$326,41,FALSE)) -> 0 | AY5: =IF(ISNA(VLOOKUP($CV5,'Audit Values'!$A$2:$BU$326,2,FALSE)),'Preliminary SO66'!AB4,VLOOKUP($CV5,'Audit Values'!$A$2:$BU$326,42,FALSE)) -> 0 | AZ5: 0 | BA5: =SUM(AX5*'Weighting Factors'!$T$10)+('2018 Legal Max'!AY5*'Weighting Factors'!$T$11)+('2018 Legal Max'!AZ5*'Weighting Factors'!$T$12) -> 0 | BB5: 0 | BC5: =IF(ISNA(VLOOKUP($CV5,'Audit Values'!$A$2:$BU$326,2,FALSE)),"",IF(AND('Weighting Factors'!H5>0,VLOOKUP($CV5,'Audit Values'!$A$2:$BU$326,51,FALSE)<'Weighting Factors'!H5),'Weighting Factors'!H5,VLOOKUP($CV5,'Audit Values'!$A$2:$BU$326,50,FALSE))) -> 14 | BD5: =IF(ISNA(VLOOKUP($CV5,'Audit Values'!$A$2:$BV$326,2,FALSE)),"",VLOOKUP($CV5,'Audit Values'!$A$2:$BV$326,51,FALSE)) -> A | BE5: =IF('Weighting Factors'!H5="","",IF('Weighting Factors'!J5="Pending","PX","R")) -> R | BF5: =SUM((S5+T5+Y5+AA5+AE5+AH5+AJ5++AO5+AP5+AQ5+AU5+AR5)*'Weighting Factors'!$Q$5)+'2018 Legal Max'!BA5+'2018 Legal Max'!BB5 -> 3936296 | BG5: =SUM((AV5+AR5)*'Weighting Factors'!$Q$5)+BA5+'2018 Legal Max'!BB5 -> 4560430 | BH5: =IF('Weighting Factors'!H5>0,'Weighting Factors'!H5,'Preliminary SO66'!AV4) -> 4601692 | BI5: =MIN(BG5,BH5) -> 4560430 | BK5: ='Weighting Factors'!F5 -> 0 | BL5: ='Weighting Factors'!E5 -> 0 | BM5: =SUM(BJ5:BL5) -> 0 | BN5: =BI5+BM5 -> 4560430 | BO5: =SUM((S5+T5+Y5+AA5+AE5+AH5+AJ5++AO5+AP5+AQ5+AR5)*'Weighting Factors'!Q$12)+(MAX(AS5,'Weighting Factors'!B5)) -> 5143041 | BP5: 0.3 | BQ5: =BO5*BP5 -> 1542912 | BR5: 1526344 | BS5: =MIN(BQ5,BR5) -> 1526344 | BT5: =BS5/BO5 -> 0.2968 | BU5: =ROUND(IF(S5<=99.9,(S5*1.014331),0),1) -> 0 | BV5: =AND(S5>99.9,S5<=299.9) -> FALSE | BW5: =IF(BV5=TRUE,ROUND((S5-100)*9.655,3),0) -> 0 | BX5: =IF(BV5=TRUE,ROUND(((7337-BW5)/3642.4)-1,6),0) -> 0 | BY5: =ROUND(BX5*S5,1) -> 0 | BZ5: =AND(S5>299.9,S5<=1621.9) -> TRUE | CA5: =IF(BZ5=TRUE,ROUND((S5-300)*1.2375,4),0) -> 274.1063 | CB5: =IF(BZ5=TRUE,ROUND(((5406-CA5)/3642.4)-1,6),0) -> 0.408932 | CC5: =ROUND(CB5*S5,1) -> 213.3 | CD5: =ROUND(IF(S5>=1622,(S5*0.03504),0),1) -> 0 | CE5: 325 | CF5: =AK5/CE5 -> 0.88 | CG5: =IF(ROUND(('Weighting Factors'!$T$5*CF5^'Weighting Factors'!$T$6*'Weighting Factors'!$T$8 ),2)<'Weighting Factors'!$T$7,'Weighting Factors'!$T$7,ROUND(('Weighting Factors'!$T$5*CF5^'Weighting Factors'!$T$6*'Weighting Factors'!$T$8 ),2)) -> 929.11 | CH5: =ROUND(CG5/'Weighting Factors'!$Q$5,4) -> 0.2319 | CI5: =ROUND(IF(AK5>0,CH5*AK5,0),1) -> 66.3 | CJ5: 0 | CK5: 0 | CL5: 0 | CM5: 0 | CN5: =SUM((AV5*'Weighting Factors'!$Q$5)+'2018 Legal Max'!BA5)*CM5 -> 0 | CO5: =IF(CL5>CN5,CN5,CL5) -> 0 | CP5: =AD5/AB5 -> 0.5047 | CQ5: =IF(CP5>=50%,AD5*10.5%,0) -> 28.4 | CR5: =IF(AND(CP5>35%,CP5<50%),AD5*(CP5-35%)*0.7,0) -> 0 | CS5: =AW5+AT5 -> 1138.4 | CV5: D0101
A6: 102 | B6: Gray | C6: Cimmaron-Ensign | D6: 601.7 | E6: 0 | F6: 601.7 | G6: 585 | H6: =IF(ISNA(VLOOKUP($CV6,'Audit Values'!$A$2:$BU$326,2,FALSE)),'Preliminary SO66'!AI5,VLOOKUP($CV6,'Audit Values'!$A$2:$BU$326,2,FALSE)) -> 0 | I6: 585 | J6: 598.5 | K6: =IF(ISNA(VLOOKUP($CV6,'Audit Values'!$A$2:$BU$326,2,FALSE)),'Preliminary SO66'!AJ5,VLOOKUP($CV6,'Audit Values'!$A$2:$BU$326,3,FALSE)) -> 0 | L6: 598.5 | M6: =IF(ISNA(VLOOKUP($CV6,'Audit Values'!$A$2:$BU$326,2,FALSE)),'Preliminary SO66'!C5,VLOOKUP($CV6,'Audit Values'!$A$2:$BU$326,73,FALSE)) -> 638.2 | N6: =IF(ISNA(VLOOKUP($CV6,'Audit Values'!$A$2:$BU$326,2,FALSE)),'Preliminary SO66'!F5,VLOOKUP($CV6,'Audit Values'!$A$2:$BU$326,4,FALSE)) -> 0 | O6: =IF(ISNA(VLOOKUP($CV6,'Audit Values'!$A$2:$BU$326,2,FALSE)),'Preliminary SO66'!AK5,VLOOKUP($CV6,'Audit Values'!$A$2:$BU$326,57,FALSE)) -> 638.2 | P6: =IF('Military Provision'!J7="YES", MAX('2018 Legal Max'!L6,'2018 Legal Max'!I6,AVERAGE('2018 Legal Max'!F6,'2018 Legal Max'!I6,'2018 Legal Max'!L6)), MAX(L6, I6)) -> 598.5 | Q6: =IF(ISNA(VLOOKUP($CV6,'Audit Values'!$A$2:$BU$326,2,FALSE)),'Preliminary SO66'!AL5,VLOOKUP($CV6,'Audit Values'!$A$2:$BU$326,58,FALSE)) -> 6.5 | R6: =IF(ISNA(VLOOKUP($CV6,'Audit Values'!$A$2:$BU$326,2,FALSE)),'Preliminary SO66'!AT5,VLOOKUP($CV6,'Audit Values'!$A$2:$BU$326,59,FALSE)) -> 42 | S6: 647 | T6: 237 | U6: =IF(ISNA(VLOOKUP($CV6,'Audit Values'!$A$2:$BW$294,2,FALSE)),'Preliminary SO66'!AM5,VLOOKUP($CV6,'Audit Values'!$A$2:$BW$294,62,FALSE)) -> 616.1 | V6: =(U6/6)*'Weighting Factors'!$Q$7 -> 40.6 | W6: =IF(ISNA(VLOOKUP($CV6,'Audit Values'!$A$2:$BW$294,2,FALSE)),'Preliminary SO66'!AN5,VLOOKUP($CV6,'Audit Values'!$A$2:$BW$294,61,FALSE)) -> 121 | X6: =W6*'Weighting Factors'!$Q$8 -> 22.4 | Y6: 40.6 | Z6: =IF(ISNA(VLOOKUP($CV6,'Audit Values'!$A$2:$BW$294,2,FALSE)),'Preliminary SO66'!AO5,VLOOKUP($CV6,'Audit Values'!$A$2:$BW$294,60,FALSE)) -> 196.7 | AA6: =Z6/6*'Weighting Factors'!$Q$6 -> 16.4 | AB6: =IF(ISNA(VLOOKUP($CV6,'Audit Values'!$A$2:$BU$326,2,FALSE)),'Preliminary SO66'!AS5,VLOOKUP($CV6,'Audit Values'!$A$2:$BU$326,63,FALSE)) -> 654 | AC6: 65 | AD6: =IF(ISNA(VLOOKUP($CV6,'Audit Values'!$A$2:$BU$370,2,FALSE)),'Preliminary SO66'!AP5,VLOOKUP($CV6,'Audit Values'!$A$2:$BU$370,64,FALSE)) -> 215 | AE6: =IF(A6=207, AD6,MAX(AC6,AD6))*'Weighting Factors'!$Q$9 -> 104.1 | AF6: 0 | AG6: =IF(ISNA(VLOOKUP($CV6,'Audit Values'!$A$2:$BW$326,2,FALSE)),'Preliminary SO66'!AG5,VLOOKUP($CV6,'Audit Values'!$A$2:$BW$326,70,FALSE)) -> 1.7 | AH6: 1.7 | AI6: =IF(ISNA(VLOOKUP($CV6,'Audit Values'!$A$2:$BU$326,2,FALSE)),'Preliminary SO66'!AQ5,VLOOKUP($CV6,'Audit Values'!$A$2:$BU$326,65,FALSE)) -> 0 | AJ6: =AI6*'Weighting Factors'!$Q$10 -> 0 | AK6: =IF(ISNA(VLOOKUP($CV6,'Audit Values'!$A$2:$BU$326,2,FALSE)),'Preliminary SO66'!AR5,VLOOKUP($CV6,'Audit Values'!$A$2:$BU$326,66,FALSE)) -> 95.5 | AL6: 29.9 | AM6: =AL6*'Weighting Factors'!$Q$5 -> 119779 | AN6: 154850 | AO6: =MAX(AM6, AN6)/'Weighting Factors'!$Q$5 -> 38.7 | AP6: =CJ6/'Weighting Factors'!$Q$5 -> 0 | AQ6: =CK6/'Weighting Factors'!$Q$5 -> 0 | AR6: =CO6/'Weighting Factors'!$Q$5 -> 0 | AS6: 477512 | AT6: =AS6/'Weighting Factors'!$Q$5 -> 119.2 | AU6: =IF(ISNA(VLOOKUP($CV6,'Audit Values'!$A$2:$BU$326,2,FALSE)),'Preliminary SO66'!X5,VLOOKUP($CV6,'Audit Values'!$A$2:$BU$326,47,FALSE)) -> 0 | AV6: =SUM(S6+T6+Y6+AA6+AE6+AH6+AJ6++AO6+AP6+AQ6+AT6+AU6) -> 1204.7 | AW6: =SUM(S6+T6+Y6+AA6+AE6+AH6+AJ6++AO6+AP6+AQ6+AR6+AU6) -> 1085.5 | AX6: =IF(ISNA(VLOOKUP($CV6,'Audit Values'!$A$2:$BU$326,2,FALSE)),'Preliminary SO66'!AA5,VLOOKUP($CV6,'Audit Values'!$A$2:$BU$326,41,FALSE)) -> 0 | AY6: =IF(ISNA(VLOOKUP($CV6,'Audit Values'!$A$2:$BU$326,2,FALSE)),'Preliminary SO66'!AB5,VLOOKUP($CV6,'Audit Values'!$A$2:$BU$326,42,FALSE)) -> 0 | AZ6: 0 | BA6: =SUM(AX6*'Weighting Factors'!$T$10)+('2018 Legal Max'!AY6*'Weighting Factors'!$T$11)+('2018 Legal Max'!AZ6*'Weighting Factors'!$T$12) -> 0 | BB6: 0 | BC6: =IF(ISNA(VLOOKUP($CV6,'Audit Values'!$A$2:$BU$326,2,FALSE)),"",IF(AND('Weighting Factors'!H6>0,VLOOKUP($CV6,'Audit Values'!$A$2:$BU$326,51,FALSE)<'Weighting Factors'!H6),'Weighting Factors'!H6,VLOOKUP($CV6,'Audit Values'!$A$2:$BU$326,50,FALSE))) -> 11 | BD6: =IF(ISNA(VLOOKUP($CV6,'Audit Values'!$A$2:$BV$326,2,FALSE)),"",VLOOKUP($CV6,'Audit Values'!$A$2:$BV$326,51,FALSE)) -> A | BE6: =IF('Weighting Factors'!H6="","",IF('Weighting Factors'!J6="Pending","PX","R")) ->  | BF6: =SUM((S6+T6+Y6+AA6+AE6+AH6+AJ6++AO6+AP6+AQ6+AU6+AR6)*'Weighting Factors'!$Q$5)+'2018 Legal Max'!BA6+'2018 Legal Max'!BB6 -> 4348513 | BG6: =SUM((AV6+AR6)*'Weighting Factors'!$Q$5)+BA6+'2018 Legal Max'!BB6 -> 4826028 | BH6: =IF('Weighting Factors'!H6>0,'Weighting Factors'!H6,'Preliminary SO66'!AV5) -> 4880510 | BI6: 4826028 | BK6: ='Weighting Factors'!F6 -> 0 | BL6: ='Weighting Factors'!E6 -> 0 | BM6: 0 | BN6: 4826028 | BO6: =SUM((S6+T6+Y6+AA6+AE6+AH6+AJ6++AO6+AP6+AQ6+AR6)*'Weighting Factors'!Q$12)+(MAX(AS6,'Weighting Factors'!B6)) -> 5412278 | BP6: 0.3 | BQ6: 1623683 | BR6: 1620941 | BS6: 1620941 | BT6: 0.2995 | BU6: 0 | BV6: FALSE | BW6: 0 | BX6: 0 | BY6: 0 | BZ6: TRUE | CA6: 429.4125 | CB6: 0.366294 | CC6: 237 | CD6: 0 | CE6: 538 | CF6: 0.18 | CG6: =IF(ROUND(('Weighting Factors'!$T$5*CF6^'Weighting Factors'!$T$6*'Weighting Factors'!$T$8 ),2)<'Weighting Factors'!$T$7,'Weighting Factors'!$T$7,ROUND(('Weighting Factors'!$T$5*CF6^'Weighting Factors'!$T$6*'Weighting Factors'!$T$8 ),2)) -> 1253.46 | CH6: =ROUND(CG6/'Weighting Factors'!$Q$5,4) -> 0.3129 | CI6: 29.9 | CJ6: 0 | CK6: 0 | CL6: 0 | CM6: 0 | CN6: =SUM((AV6*'Weighting Factors'!$Q$5)+'2018 Legal Max'!BA6)*CM6 -> 0 | CO6: 0 | CP6: 0.3287 | CQ6: 0 | CR6: 0 | CS6: =AW6+AT6 -> 1204.7 | CV6: D0102
A7: 103 | B7: Cheyenne | C7: Cheylin | D7: 128 | E7: 0 | F7: 128 | G7: 126 | H7: =IF(ISNA(VLOOKUP($CV7,'Audit Values'!$A$2:$BU$326,2,FALSE)),'Preliminary SO66'!AI6,VLOOKUP($CV7,'Audit Values'!$A$2:$BU$326,2,FALSE)) -> 0 | I7: 126 | J7: 117 | K7: =IF(ISNA(VLOOKUP($CV7,'Audit Values'!$A$2:$BU$326,2,FALSE)),'Preliminary SO66'!AJ6,VLOOKUP($CV7,'Audit Values'!$A$2:$BU$326,3,FALSE)) -> 0 | L7: 117 | M7: =IF(ISNA(VLOOKUP($CV7,'Audit Values'!$A$2:$BU$326,2,FALSE)),'Preliminary SO66'!C6,VLOOKUP($CV7,'Audit Values'!$A$2:$BU$326,73,FALSE)) -> 128.5 | N7: =IF(ISNA(VLOOKUP($CV7,'Audit Values'!$A$2:$BU$326,2,FALSE)),'Preliminary SO66'!F6,VLOOKUP($CV7,'Audit Values'!$A$2:$BU$326,4,FALSE)) -> 0 | O7: =IF(ISNA(VLOOKUP($CV7,'Audit Values'!$A$2:$BU$326,2,FALSE)),'Preliminary SO66'!AK6,VLOOKUP($CV7,'Audit Values'!$A$2:$BU$326,57,FALSE)) -> 128.5 | P7: =IF('Military Provision'!J8="YES", MAX('2018 Legal Max'!L7,'2018 Legal Max'!I7,AVERAGE('2018 Legal Max'!F7,'2018 Legal Max'!I7,'2018 Legal Max'!L7)), MAX(L7, I7)) -> 126 | Q7: =IF(ISNA(VLOOKUP($CV7,'Audit Values'!$A$2:$BU$326,2,FALSE)),'Preliminary SO66'!AL6,VLOOKUP($CV7,'Audit Values'!$A$2:$BU$326,58,FALSE)) -> 0 | R7: =IF(ISNA(VLOOKUP($CV7,'Audit Values'!$A$2:$BU$326,2,FALSE)),'Preliminary SO66'!AT6,VLOOKUP($CV7,'Audit Values'!$A$2:$BU$326,59,FALSE)) -> 10 | S7: 136 | T7: 125 | U7: =IF(ISNA(VLOOKUP($CV7,'Audit Values'!$A$2:$BW$294,2,FALSE)),'Preliminary SO66'!AM6,VLOOKUP($CV7,'Audit Values'!$A$2:$BW$294,62,FALSE)) -> 106.3 | V7: =(U7/6)*'Weighting Factors'!$Q$7 -> 7 | W7: =IF(ISNA(VLOOKUP($CV7,'Audit Values'!$A$2:$BW$294,2,FALSE)),'Preliminary SO66'!AN6,VLOOKUP($CV7,'Audit Values'!$A$2:$BW$294,61,FALSE)) -> 30 | X7: =W7*'Weighting Factors'!$Q$8 -> 5.6 | Y7: 7 | Z7: =IF(ISNA(VLOOKUP($CV7,'Audit Values'!$A$2:$BW$294,2,FALSE)),'Preliminary SO66'!AO6,VLOOKUP($CV7,'Audit Values'!$A$2:$BW$294,60,FALSE)) -> 65.9 | AA7: =Z7/6*'Weighting Factors'!$Q$6 -> 5.5 | AB7: =IF(ISNA(VLOOKUP($CV7,'Audit Values'!$A$2:$BU$326,2,FALSE)),'Preliminary SO66'!AS6,VLOOKUP($CV7,'Audit Values'!$A$2:$BU$326,63,FALSE)) -> 129 | AC7: 13 | AD7: =IF(ISNA(VLOOKUP($CV7,'Audit Values'!$A$2:$BU$370,2,FALSE)),'Preliminary SO66'!AP6,VLOOKUP($CV7,'Audit Values'!$A$2:$BU$370,64,FALSE)) -> 69 | AE7: =IF(A7=207, AD7,MAX(AC7,AD7))*'Weighting Factors'!$Q$9 -> 33.4 | AF7: 7.2 | AG7: =IF(ISNA(VLOOKUP($CV7,'Audit Values'!$A$2:$BW$326,2,FALSE)),'Preliminary SO66'!AG6,VLOOKUP($CV7,'Audit Values'!$A$2:$BW$326,70,FALSE)) -> 7.3 | AH7: 7.3 | AI7: =IF(ISNA(VLOOKUP($CV7,'Audit Values'!$A$2:$BU$326,2,FALSE)),'Preliminary SO66'!AQ6,VLOOKUP($CV7,'Audit Values'!$A$2:$BU$326,65,FALSE)) -> 0 | AJ7: =AI7*'Weighting Factors'!$Q$10 -> 0 | AK7: =IF(ISNA(VLOOKUP($CV7,'Audit Values'!$A$2:$BU$326,2,FALSE)),'Preliminary SO66'!AR6,VLOOKUP($CV7,'Audit Values'!$A$2:$BU$326,66,FALSE)) -> 49 | AL7: 18.3 | AM7: =AL7*'Weighting Factors'!$Q$5 -> 73310 | AN7: 105545 | AO7: =MAX(AM7, AN7)/'Weighting Factors'!$Q$5 -> 26.3 | AP7: =CJ7/'Weighting Factors'!$Q$5 -> 0 | AQ7: =CK7/'Weighting Factors'!$Q$5 -> 0 | AR7: =CO7/'Weighting Factors'!$Q$5 -> 0 | AS7: 122918 | AT7: =AS7/'Weighting Factors'!$Q$5 -> 30.7 | AU7: =IF(ISNA(VLOOKUP($CV7,'Audit Values'!$A$2:$BU$326,2,FALSE)),'Preliminary SO66'!X6,VLOOKUP($CV7,'Audit Values'!$A$2:$BU$326,47,FALSE)) -> 0 | AV7: 371.2 | AW7: 340.5 | AX7: =IF(ISNA(VLOOKUP($CV7,'Audit Values'!$A$2:$BU$326,2,FALSE)),'Preliminary SO66'!AA6,VLOOKUP($CV7,'Audit Values'!$A$2:$BU$326,41,FALSE)) -> 0 | AY7: =IF(ISNA(VLOOKUP($CV7,'Audit Values'!$A$2:$BU$326,2,FALSE)),'Preliminary SO66'!AB6,VLOOKUP($CV7,'Audit Values'!$A$2:$BU$326,42,FALSE)) -> 0 | AZ7: 0 | BA7: =SUM(AX7*'Weighting Factors'!$T$10)+('2018 Legal Max'!AY7*'Weighting Factors'!$T$11)+('2018 Legal Max'!AZ7*'Weighting Factors'!$T$12) -> 0 | BB7: 0 | BC7: =IF(ISNA(VLOOKUP($CV7,'Audit Values'!$A$2:$BU$326,2,FALSE)),"",IF(AND('Weighting Factors'!H7>0,VLOOKUP($CV7,'Audit Values'!$A$2:$BU$326,51,FALSE)<'Weighting Factors'!H7),'Weighting Factors'!H7,VLOOKUP($CV7,'Audit Values'!$A$2:$BU$326,50,FALSE))) -> 4 | BD7: =IF(ISNA(VLOOKUP($CV7,'Audit Values'!$A$2:$BV$326,2,FALSE)),"",VLOOKUP($CV7,'Audit Values'!$A$2:$BV$326,51,FALSE)) -> A | BE7: =IF('Weighting Factors'!H7="","",IF('Weighting Factors'!J7="Pending","PX","R")) ->  | BF7: =SUM((S7+T7+Y7+AA7+AE7+AH7+AJ7++AO7+AP7+AQ7+AU7+AR7)*'Weighting Factors'!$Q$5)+'2018 Legal Max'!BA7+'2018 Legal Max'!BB7 -> 1364043 | BG7: =SUM((AV7+AR7)*'Weighting Factors'!$Q$5)+BA7+'2018 Legal Max'!BB7 -> 1487027 | BH7: =IF('Weighting Factors'!H7>0,'Weighting Factors'!H7,'Preliminary SO66'!AV6) -> 1527888 | BI7: 1487027 | BK7: ='Weighting Factors'!F7 -> 0 | BL7: ='Weighting Factors'!E7 -> 0 | BM7: 0 | BN7: 1487027 | BO7: =SUM((S7+T7+Y7+AA7+AE7+AH7+AJ7++AO7+AP7+AQ7+AR7)*'Weighting Factors'!Q$12)+(MAX(AS7,'Weighting Factors'!B7)) -> 1719100 | BP7: 0.3 | BQ7: 515730 | BR7: 513575 | BS7: 513575 | BT7: 0.2987 | BU7: 0 | BV7: TRUE | BW7: 347.58 | BX7: 0.918905 | BY7: 125 | BZ7: FALSE | CA7: 0 | CB7: 0 | CC7: 0 | CD7: 0 | CE7: 688 | CF7: 0.07 | CG7: =IF(ROUND(('Weighting Factors'!$T$5*CF7^'Weighting Factors'!$T$6*'Weighting Factors'!$T$8 ),2)<'Weighting Factors'!$T$7,'Weighting Factors'!$T$7,ROUND(('Weighting Factors'!$T$5*CF7^'Weighting Factors'!$T$6*'Weighting Factors'!$T$8 ),2)) -> 1497.98 | CH7: =ROUND(CG7/'Weighting Factors'!$Q$5,4) -> 0.3739 | CI7: 18.3 | CJ7: 0 | CK7: 0 | CL7: 0 | CM7: 0 | CN7: =SUM((AV7*'Weighting Factors'!$Q$5)+'2018 Legal Max'!BA7)*CM7 -> 0 | CO7: 0 | CP7: 0.5349 | CQ7: 7.2 | CR7: 0 | CS7: 371.2 | CV7: D0103
A8: 105 | B8: Rawlins | C8: Rawlins County | D8: 309 | E8: 0 | F8: 309 | G8: 308.4 | H8: =IF(ISNA(VLOOKUP($CV8,'Audit Values'!$A$2:$BU$326,2,FALSE)),'Preliminary SO66'!AI7,VLOOKUP($CV8,'Audit Values'!$A$2:$BU$326,2,FALSE)) -> 0 | I8: 308.4 | J8: 304 | K8: =IF(ISNA(VLOOKUP($CV8,'Audit Values'!$A$2:$BU$326,2,FALSE)),'Preliminary SO66'!AJ7,VLOOKUP($CV8,'Audit Values'!$A$2:$BU$326,3,FALSE)) -> 0 | L8: 304 | M8: =IF(ISNA(VLOOKUP($CV8,'Audit Values'!$A$2:$BU$326,2,FALSE)),'Preliminary SO66'!C7,VLOOKUP($CV8,'Audit Values'!$A$2:$BU$326,73,FALSE)) -> 329.5 | N8: =IF(ISNA(VLOOKUP($CV8,'Audit Values'!$A$2:$BU$326,2,FALSE)),'Preliminary SO66'!F7,VLOOKUP($CV8,'Audit Values'!$A$2:$BU$326,4,FALSE)) -> 0 | O8: =IF(ISNA(VLOOKUP($CV8,'Audit Values'!$A$2:$BU$326,2,FALSE)),'Preliminary SO66'!AK7,VLOOKUP($CV8,'Audit Values'!$A$2:$BU$326,57,FALSE)) -> 329.5 | P8: =IF('Military Provision'!J9="YES", MAX('2018 Legal Max'!L8,'2018 Legal Max'!I8,AVERAGE('2018 Legal Max'!F8,'2018 Legal Max'!I8,'2018 Legal Max'!L8)), MAX(L8, I8)) -> 308.4 | Q8: =IF(ISNA(VLOOKUP($CV8,'Audit Values'!$A$2:$BU$326,2,FALSE)),'Preliminary SO66'!AL7,VLOOKUP($CV8,'Audit Values'!$A$2:$BU$326,58,FALSE)) -> 0 | R8: =IF(ISNA(VLOOKUP($CV8,'Audit Values'!$A$2:$BU$326,2,FALSE)),'Preliminary SO66'!AT7,VLOOKUP($CV8,'Audit Values'!$A$2:$BU$326,59,FALSE)) -> 31 | S8: 339.4 | T8: 159.8 | U8: =IF(ISNA(VLOOKUP($CV8,'Audit Values'!$A$2:$BW$294,2,FALSE)),'Preliminary SO66'!AM7,VLOOKUP($CV8,'Audit Values'!$A$2:$BW$294,62,FALSE)) -> 53 | V8: =(U8/6)*'Weighting Factors'!$Q$7 -> 3.5 | W8: =IF(ISNA(VLOOKUP($CV8,'Audit Values'!$A$2:$BW$294,2,FALSE)),'Preliminary SO66'!AN7,VLOOKUP($CV8,'Audit Values'!$A$2:$BW$294,61,FALSE)) -> 23 | X8: =W8*'Weighting Factors'!$Q$8 -> 4.3 | Y8: 4.3 | Z8: =IF(ISNA(VLOOKUP($CV8,'Audit Values'!$A$2:$BW$294,2,FALSE)),'Preliminary SO66'!AO7,VLOOKUP($CV8,'Audit Values'!$A$2:$BW$294,60,FALSE)) -> 88.2 | AA8: =Z8/6*'Weighting Factors'!$Q$6 -> 7.4 | AB8: =IF(ISNA(VLOOKUP($CV8,'Audit Values'!$A$2:$BU$326,2,FALSE)),'Preliminary SO66'!AS7,VLOOKUP($CV8,'Audit Values'!$A$2:$BU$326,63,FALSE)) -> 334 | AC8: 33 | AD8: =IF(ISNA(VLOOKUP($CV8,'Audit Values'!$A$2:$BU$370,2,FALSE)),'Preliminary SO66'!AP7,VLOOKUP($CV8,'Audit Values'!$A$2:$BU$370,64,FALSE)) -> 118 | AE8: =IF(A8=207, AD8,MAX(AC8,AD8))*'Weighting Factors'!$Q$9 -> 57.1 | AF8: 0.3 | AG8: =IF(ISNA(VLOOKUP($CV8,'Audit Values'!$A$2:$BW$326,2,FALSE)),'Preliminary SO66'!AG7,VLOOKUP($CV8,'Audit Values'!$A$2:$BW$326,70,FALSE)) -> 2.6 | AH8: 2.6 | AI8: =IF(ISNA(VLOOKUP($CV8,'Audit Values'!$A$2:$BU$326,2,FALSE)),'Preliminary SO66'!AQ7,VLOOKUP($CV8,'Audit Values'!$A$2:$BU$326,65,FALSE)) -> 0 | AJ8: =AI8*'Weighting Factors'!$Q$10 -> 0 | AK8: =IF(ISNA(VLOOKUP($CV8,'Audit Values'!$A$2:$BU$326,2,FALSE)),'Preliminary SO66'!AR7,VLOOKUP($CV8,'Audit Values'!$A$2:$BU$326,66,FALSE)) -> 117 | AL8: 37.4 | AM8: =AL8*'Weighting Factors'!$Q$5 -> 149824 | AN8: 196837 | AO8: =MAX(AM8, AN8)/'Weighting Factors'!$Q$5 -> 49.1 | AP8: =CJ8/'Weighting Factors'!$Q$5 -> 0 | AQ8: =CK8/'Weighting Factors'!$Q$5 -> 0 | AR8: =CO8/'Weighting Factors'!$Q$5 -> 0 | AS8: 287294 | AT8: =AS8/'Weighting Factors'!$Q$5 -> 71.7 | AU8: =IF(ISNA(VLOOKUP($CV8,'Audit Values'!$A$2:$BU$326,2,FALSE)),'Preliminary SO66'!X7,VLOOKUP($CV8,'Audit Values'!$A$2:$BU$326,47,FALSE)) -> 0 | AV8: 691.4 | AW8: 619.7 | AX8: =IF(ISNA(VLOOKUP($CV8,'Audit Values'!$A$2:$BU$326,2,FALSE)),'Preliminary SO66'!AA7,VLOOKUP($CV8,'Audit Values'!$A$2:$BU$326,41,FALSE)) -> 0 | AY8: =IF(ISNA(VLOOKUP($CV8,'Audit Values'!$A$2:$BU$326,2,FALSE)),'Preliminary SO66'!AB7,VLOOKUP($CV8,'Audit Values'!$A$2:$BU$326,42,FALSE)) -> 0 | AZ8: 0 | BA8: =SUM(AX8*'Weighting Factors'!$T$10)+('2018 Legal Max'!AY8*'Weighting Factors'!$T$11)+('2018 Legal Max'!AZ8*'Weighting Factors'!$T$12) -> 0 | BB8: 0 | BC8: =IF(ISNA(VLOOKUP($CV8,'Audit Values'!$A$2:$BU$326,2,FALSE)),"",IF(AND('Weighting Factors'!H8>0,VLOOKUP($CV8,'Audit Values'!$A$2:$BU$326,51,FALSE)<'Weighting Factors'!H8),'Weighting Factors'!H8,VLOOKUP($CV8,'Audit Values'!$A$2:$BU$326,50,FALSE))) -> 12 | BD8: =IF(ISNA(VLOOKUP($CV8,'Audit Values'!$A$2:$BV$326,2,FALSE)),"",VLOOKUP($CV8,'Audit Values'!$A$2:$BV$326,51,FALSE)) -> A | BE8: =IF('Weighting Factors'!H8="","",IF('Weighting Factors'!J8="Pending","PX","R")) ->  | BF8: =SUM((S8+T8+Y8+AA8+AE8+AH8+AJ8++AO8+AP8+AQ8+AU8+AR8)*'Weighting Factors'!$Q$5)+'2018 Legal Max'!BA8+'2018 Legal Max'!BB8 -> 2482518 | BG8: =SUM((AV8+AR8)*'Weighting Factors'!$Q$5)+BA8+'2018 Legal Max'!BB8 -> 2769748 | BH8: =IF('Weighting Factors'!H8>0,'Weighting Factors'!H8,'Preliminary SO66'!AV7) -> 2836248 | BI8: 2769748 | BK8: ='Weighting Factors'!F8 -> 0 | BL8: ='Weighting Factors'!E8 -> 0 | BM8: 0 | BN8: 2769748 | BO8: =SUM((S8+T8+Y8+AA8+AE8+AH8+AJ8++AO8+AP8+AQ8+AR8)*'Weighting Factors'!Q$12)+(MAX(AS8,'Weighting Factors'!B8)) -> 3116056 | BP8: 0.3 | BQ8: 934817 | BR8: 883570 | BS8: 883570 | BT8: 0.2836 | BU8: 0 | BV8: FALSE | BW8: 0 | BX8: 0 | BY8: 0 | BZ8: TRUE | CA8: 48.7575 | CB8: 0.4708 | CC8: 159.8 | CD8: 0 | CE8: 740.1 | CF8: 0.16 | CG8: =IF(ROUND(('Weighting Factors'!$T$5*CF8^'Weighting Factors'!$T$6*'Weighting Factors'!$T$8 ),2)<'Weighting Factors'!$T$7,'Weighting Factors'!$T$7,ROUND(('Weighting Factors'!$T$5*CF8^'Weighting Factors'!$T$6*'Weighting Factors'!$T$8 ),2)) -> 1281.63 | CH8: =ROUND(CG8/'Weighting Factors'!$Q$5,4) -> 0.3199 | CI8: 37.4 | CJ8: 0 | CK8: 0 | CL8: 0 | CM8: 0 | CN8: =SUM((AV8*'Weighting Factors'!$Q$5)+'2018 Legal Max'!BA8)*CM8 -> 0 | CO8: 0 | CP8: 0.3533 | CQ8: 0 | CR8: 0.3 | CS8: 691.4 | CV8: D0105
A9: 106 | B9: Ness | C9: Western Plains | D9: 113.5 | E9: 0 | F9: 113.5 | G9: 100 | H9: =IF(ISNA(VLOOKUP($CV9,'Audit Values'!$A$2:$BU$326,2,FALSE)),'Preliminary SO66'!AI8,VLOOKUP($CV9,'Audit Values'!$A$2:$BU$326,2,FALSE)) -> 0 | I9: 100 | J9: 92.8 | K9: =IF(ISNA(VLOOKUP($CV9,'Audit Values'!$A$2:$BU$326,2,FALSE)),'Preliminary SO66'!AJ8,VLOOKUP($CV9,'Audit Values'!$A$2:$BU$326,3,FALSE)) -> 0 | L9: 92.8 | M9: =IF(ISNA(VLOOKUP($CV9,'Audit Values'!$A$2:$BU$326,2,FALSE)),'Preliminary SO66'!C8,VLOOKUP($CV9,'Audit Values'!$A$2:$BU$326,73,FALSE)) -> 94.5 | N9: =IF(ISNA(VLOOKUP($CV9,'Audit Values'!$A$2:$BU$326,2,FALSE)),'Preliminary SO66'!F8,VLOOKUP($CV9,'Audit Values'!$A$2:$BU$326,4,FALSE)) -> 0 | O9: =IF(ISNA(VLOOKUP($CV9,'Audit Values'!$A$2:$BU$326,2,FALSE)),'Preliminary SO66'!AK8,VLOOKUP($CV9,'Audit Values'!$A$2:$BU$326,57,FALSE)) -> 94.5 | P9: =IF('Military Provision'!J10="YES", MAX('2018 Legal Max'!L9,'2018 Legal Max'!I9,AVERAGE('2018 Legal Max'!F9,'2018 Legal Max'!I9,'2018 Legal Max'!L9)), MAX(L9, I9)) -> 100 | Q9: =IF(ISNA(VLOOKUP($CV9,'Audit Values'!$A$2:$BU$326,2,FALSE)),'Preliminary SO66'!AL8,VLOOKUP($CV9,'Audit Values'!$A$2:$BU$326,58,FALSE)) -> 2 | R9: =IF(ISNA(VLOOKUP($CV9,'Audit Values'!$A$2:$BU$326,2,FALSE)),'Preliminary SO66'!AT8,VLOOKUP($CV9,'Audit Values'!$A$2:$BU$326,59,FALSE)) -> 13 | S9: =P9+Q9+R9 -> 115 | T9: 112.1 | U9: =IF(ISNA(VLOOKUP($CV9,'Audit Values'!$A$2:$BW$294,2,FALSE)),'Preliminary SO66'!AM8,VLOOKUP($CV9,'Audit Values'!$A$2:$BW$294,62,FALSE)) -> 19.6 | V9: =(U9/6)*'Weighting Factors'!$Q$7 -> 1.3 | W9: =IF(ISNA(VLOOKUP($CV9,'Audit Values'!$A$2:$BW$294,2,FALSE)),'Preliminary SO66'!AN8,VLOOKUP($CV9,'Audit Values'!$A$2:$BW$294,61,FALSE)) -> 28 | X9: =W9*'Weighting Factors'!$Q$8 -> 5.2 | Y9: 5.2 | Z9: =IF(ISNA(VLOOKUP($CV9,'Audit Values'!$A$2:$BW$294,2,FALSE)),'Preliminary SO66'!AO8,VLOOKUP($CV9,'Audit Values'!$A$2:$BW$294,60,FALSE)) -> 32.3 | AA9: =Z9/6*'Weighting Factors'!$Q$6 -> 2.7 | AB9: =IF(ISNA(VLOOKUP($CV9,'Audit Values'!$A$2:$BU$326,2,FALSE)),'Preliminary SO66'!AS8,VLOOKUP($CV9,'Audit Values'!$A$2:$BU$326,63,FALSE)) -> 99 | AC9: 10 | AD9: =IF(ISNA(VLOOKUP($CV9,'Audit Values'!$A$2:$BU$370,2,FALSE)),'Preliminary SO66'!AP8,VLOOKUP($CV9,'Audit Values'!$A$2:$BU$370,64,FALSE)) -> 57 | AE9: =IF(A9=207, AD9,MAX(AC9,AD9))*'Weighting Factors'!$Q$9 -> 27.6 | AF9: 6 | AG9: =IF(ISNA(VLOOKUP($CV9,'Audit Values'!$A$2:$BW$326,2,FALSE)),'Preliminary SO66'!AG8,VLOOKUP($CV9,'Audit Values'!$A$2:$BW$326,70,FALSE)) -> 5.2 | AH9: 6 | AI9: =IF(ISNA(VLOOKUP($CV9,'Audit Values'!$A$2:$BU$326,2,FALSE)),'Preliminary SO66'!AQ8,VLOOKUP($CV9,'Audit Values'!$A$2:$BU$326,65,FALSE)) -> 0 | AJ9: =AI9*'Weighting Factors'!$Q$10 -> 0 | AK9: =IF(ISNA(VLOOKUP($CV9,'Audit Values'!$A$2:$BU$326,2,FALSE)),'Preliminary SO66'!AR8,VLOOKUP($CV9,'Audit Values'!$A$2:$BU$326,66,FALSE)) -> 19 | AL9: 8.3 | AM9: =AL9*'Weighting Factors'!$Q$5 -> 33250 | AN9: 98996 | AO9: =MAX(AM9, AN9)/'Weighting Factors'!$Q$5 -> 24.7 | AP9: =CJ9/'Weighting Factors'!$Q$5 -> 0 | AQ9: =CK9/'Weighting Factors'!$Q$5 -> 0 | AR9: =CO9/'Weighting Factors'!$Q$5 -> 0 | AS9: 78839 | AT9: =AS9/'Weighting Factors'!$Q$5 -> 19.7 | AU9: =IF(ISNA(VLOOKUP($CV9,'Audit Values'!$A$2:$BU$326,2,FALSE)),'Preliminary SO66'!X8,VLOOKUP($CV9,'Audit Values'!$A$2:$BU$326,47,FALSE)) -> 0 | AV9: 313 | AW9: 293.3 | AX9: =IF(ISNA(VLOOKUP($CV9,'Audit Values'!$A$2:$BU$326,2,FALSE)),'Preliminary SO66'!AA8,VLOOKUP($CV9,'Audit Values'!$A$2:$BU$326,41,FALSE)) -> 0 | AY9: =IF(ISNA(VLOOKUP($CV9,'Audit Values'!$A$2:$BU$326,2,FALSE)),'Preliminary SO66'!AB8,VLOOKUP($CV9,'Audit Values'!$A$2:$BU$326,42,FALSE)) -> 0 | AZ9: 0 | BA9: =SUM(AX9*'Weighting Factors'!$T$10)+('2018 Legal Max'!AY9*'Weighting Factors'!$T$11)+('2018 Legal Max'!AZ9*'Weighting Factors'!$T$12) -> 0 | BB9: 0 | BC9: =IF(ISNA(VLOOKUP($CV9,'Audit Values'!$A$2:$BU$326,2,FALSE)),"",IF(AND('Weighting Factors'!H9>0,VLOOKUP($CV9,'Audit Values'!$A$2:$BU$326,51,FALSE)<'Weighting Factors'!H9),'Weighting Factors'!H9,VLOOKUP($CV9,'Audit Values'!$A$2:$BU$326,50,FALSE))) -> 22 | BD9: =IF(ISNA(VLOOKUP($CV9,'Audit Values'!$A$2:$BV$326,2,FALSE)),"",VLOOKUP($CV9,'Audit Values'!$A$2:$BV$326,51,FALSE)) -> A | BE9: =IF('Weighting Factors'!H9="","",IF('Weighting Factors'!J9="Pending","PX","R")) ->  | BF9: =SUM((S9+T9+Y9+AA9+AE9+AH9+AJ9++AO9+AP9+AQ9+AU9+AR9)*'Weighting Factors'!$Q$5)+'2018 Legal Max'!BA9+'2018 Legal Max'!BB9 -> 1174960 | BG9: =SUM((AV9+AR9)*'Weighting Factors'!$Q$5)+BA9+'2018 Legal Max'!BB9 -> 1253878 | BH9: =IF('Weighting Factors'!H9>0,'Weighting Factors'!H9,'Preliminary SO66'!AV8) -> 1342411 | BI9: 1253878 | BK9: ='Weighting Factors'!F9 -> 0 | BL9: ='Weighting Factors'!E9 -> 0 | BM9: 0 | BN9: 1253878 | BO9: =SUM((S9+T9+Y9+AA9+AE9+AH9+AJ9++AO9+AP9+AQ9+AR9)*'Weighting Factors'!Q$12)+(MAX(AS9,'Weighting Factors'!B9)) -> 1468259 | BP9: 0.33 | BQ9: 484525 | BR9: 506010 | BS9: 484525 | BT9: 0.33 | BU9: 0 | BV9: TRUE | BW9: 144.825 | BX9: 0.97457 | BY9: 112.1 | BZ9: FALSE | CA9: 0 | CB9: 0 | CC9: 0 | CD9: 0 | CE9: 601.2 | CF9: 0.03 | CG9: =IF(ROUND(('Weighting Factors'!$T$5*CF9^'Weighting Factors'!$T$6*'Weighting Factors'!$T$8 ),2)<'Weighting Factors'!$T$7,'Weighting Factors'!$T$7,ROUND(('Weighting Factors'!$T$5*CF9^'Weighting Factors'!$T$6*'Weighting Factors'!$T$8 ),2)) -> 1757.67 | CH9: =ROUND(CG9/'Weighting Factors'!$Q$5,4) -> 0.4388 | CI9: 8.3 | CJ9: 0 | CK9: 0 | CL9: 0 | CM9: 0 | CN9: =SUM((AV9*'Weighting Factors'!$Q$5)+'2018 Legal Max'!BA9)*CM9 -> 0 | CO9: 0 | CP9: 0.5758 | CQ9: 6 | CR9: 0 | CS9: 313 | CV9: D0106
A10: 107 | B10: Jewell | C10: Rock Hills | D10: 263.5 | E10: 0 | F10: 263.5 | G10: 253.5 | H10: =IF(ISNA(VLOOKUP($CV10,'Audit Values'!$A$2:$BU$326,2,FALSE)),'Preliminary SO66'!AI9,VLOOKUP($CV10,'Audit Values'!$A$2:$BU$326,2,FALSE)) -> 0 | I10: 253.5 | J10: 266 | K10: =IF(ISNA(VLOOKUP($CV10,'Audit Values'!$A$2:$BU$326,2,FALSE)),'Preliminary SO66'!AJ9,VLOOKUP($CV10,'Audit Values'!$A$2:$BU$326,3,FALSE)) -> 0 | L10: 266 | M10: =IF(ISNA(VLOOKUP($CV10,'Audit Values'!$A$2:$BU$326,2,FALSE)),'Preliminary SO66'!C9,VLOOKUP($CV10,'Audit Values'!$A$2:$BU$326,73,FALSE)) -> 302.5 | N10: =IF(ISNA(VLOOKUP($CV10,'Audit Values'!$A$2:$BU$326,2,FALSE)),'Preliminary SO66'!F9,VLOOKUP($CV10,'Audit Values'!$A$2:$BU$326,4,FALSE)) -> 0 | O10: =IF(ISNA(VLOOKUP($CV10,'Audit Values'!$A$2:$BU$326,2,FALSE)),'Preliminary SO66'!AK9,VLOOKUP($CV10,'Audit Values'!$A$2:$BU$326,57,FALSE)) -> 302.5 | P10: =IF('Military Provision'!J11="YES", MAX('2018 Legal Max'!L10,'2018 Legal Max'!I10,AVERAGE('2018 Legal Max'!F10,'2018 Legal Max'!I10,'2018 Legal Max'!L10)), MAX(L10, I10)) -> 266 | Q10: =IF(ISNA(VLOOKUP($CV10,'Audit Values'!$A$2:$BU$326,2,FALSE)),'Preliminary SO66'!AL9,VLOOKUP($CV10,'Audit Values'!$A$2:$BU$326,58,FALSE)) -> 4.5 | R10: =IF(ISNA(VLOOKUP($CV10,'Audit Values'!$A$2:$BU$326,2,FALSE)),'Preliminary SO66'!AT9,VLOOKUP($CV10,'Audit Values'!$A$2:$BU$326,59,FALSE)) -> 29 | S10: 299.5 | T10: 145.4 | U10: =IF(ISNA(VLOOKUP($CV10,'Audit Values'!$A$2:$BW$294,2,FALSE)),'Preliminary SO66'!AM9,VLOOKUP($CV10,'Audit Values'!$A$2:$BW$294,62,FALSE)) -> 0 | V10: =(U10/6)*'Weighting Factors'!$Q$7 -> 0 | W10: =IF(ISNA(VLOOKUP($CV10,'Audit Values'!$A$2:$BW$294,2,FALSE)),'Preliminary SO66'!AN9,VLOOKUP($CV10,'Audit Values'!$A$2:$BW$294,61,FALSE)) -> 0 | X10: =W10*'Weighting Factors'!$Q$8 -> 0 | Y10: 0 | Z10: =IF(ISNA(VLOOKUP($CV10,'Audit Values'!$A$2:$BW$294,2,FALSE)),'Preliminary SO66'!AO9,VLOOKUP($CV10,'Audit Values'!$A$2:$BW$294,60,FALSE)) -> 97.3 | AA10: =Z10/6*'Weighting Factors'!$Q$6 -> 8.1 | AB10: =IF(ISNA(VLOOKUP($CV10,'Audit Values'!$A$2:$BU$326,2,FALSE)),'Preliminary SO66'!AS9,VLOOKUP($CV10,'Audit Values'!$A$2:$BU$326,63,FALSE)) -> 313 | AC10: 31 | AD10: =IF(ISNA(VLOOKUP($CV10,'Audit Values'!$A$2:$BU$370,2,FALSE)),'Preliminary SO66'!AP9,VLOOKUP($CV10,'Audit Values'!$A$2:$BU$370,64,FALSE)) -> 140 | AE10: =IF(A10=207, AD10,MAX(AC10,AD10))*'Weighting Factors'!$Q$9 -> 67.8 | AF10: 9.5 | AG10: =IF(ISNA(VLOOKUP($CV10,'Audit Values'!$A$2:$BW$326,2,FALSE)),'Preliminary SO66'!AG9,VLOOKUP($CV10,'Audit Values'!$A$2:$BW$326,70,FALSE)) -> 9.8 | AH10: 9.8 | AI10: =IF(ISNA(VLOOKUP($CV10,'Audit Values'!$A$2:$BU$326,2,FALSE)),'Preliminary SO66'!AQ9,VLOOKUP($CV10,'Audit Values'!$A$2:$BU$326,65,FALSE)) -> 0 | AJ10: =AI10*'Weighting Factors'!$Q$10 -> 0 | AK10: =IF(ISNA(VLOOKUP($CV10,'Audit Values'!$A$2:$BU$326,2,FALSE)),'Preliminary SO66'!AR9,VLOOKUP($CV10,'Audit Values'!$A$2:$BU$326,66,FALSE)) -> 143.3 | AL10: 44.4 | AM10: =AL10*'Weighting Factors'!$Q$5 -> 177866 | AN10: 228038 | AO10: =MAX(AM10, AN10)/'Weighting Factors'!$Q$5 -> 56.9 | AP10: =CJ10/'Weighting Factors'!$Q$5 -> 0 | AQ10: =CK10/'Weighting Factors'!$Q$5 -> 0 | AR10: =CO10/'Weighting Factors'!$Q$5 -> 0 | AS10: 329224 | AT10: =AS10/'Weighting Factors'!$Q$5 -> 82.2 | AU10: =IF(ISNA(VLOOKUP($CV10,'Audit Values'!$A$2:$BU$326,2,FALSE)),'Preliminary SO66'!X9,VLOOKUP($CV10,'Audit Values'!$A$2:$BU$326,47,FALSE)) -> 0 | AV10: 669.7 | AW10: 587.5 | AX10: =IF(ISNA(VLOOKUP($CV10,'Audit Values'!$A$2:$BU$326,2,FALSE)),'Preliminary SO66'!AA9,VLOOKUP($CV10,'Audit Values'!$A$2:$BU$326,41,FALSE)) -> 0 | AY10: =IF(ISNA(VLOOKUP($CV10,'Audit Values'!$A$2:$BU$326,2,FALSE)),'Preliminary SO66'!AB9,VLOOKUP($CV10,'Audit Values'!$A$2:$BU$326,42,FALSE)) -> 0 | AZ10: 0 | BA10: =SUM(AX10*'Weighting Factors'!$T$10)+('2018 Legal Max'!AY10*'Weighting Factors'!$T$11)+('2018 Legal Max'!AZ10*'Weighting Factors'!$T$12) -> 0 | BB10: 0 | BC10: =IF(ISNA(VLOOKUP($CV10,'Audit Values'!$A$2:$BU$326,2,FALSE)),"",IF(AND('Weighting Factors'!H10>0,VLOOKUP($CV10,'Audit Values'!$A$2:$BU$326,51,FALSE)<'Weighting Factors'!H10),'Weighting Factors'!H10,VLOOKUP($CV10,'Audit Values'!$A$2:$BU$326,50,FALSE))) -> 13 | BD10: =IF(ISNA(VLOOKUP($CV10,'Audit Values'!$A$2:$BV$326,2,FALSE)),"",VLOOKUP($CV10,'Audit Values'!$A$2:$BV$326,51,FALSE)) -> A | BE10: =IF('Weighting Factors'!H10="","",IF('Weighting Factors'!J10="Pending","PX","R")) ->  | BF10: =SUM((S10+T10+Y10+AA10+AE10+AH10+AJ10++AO10+AP10+AQ10+AU10+AR10)*'Weighting Factors'!$Q$5)+'2018 Legal Max'!BA10+'2018 Legal Max'!BB10 -> 2353525 | BG10: =SUM((AV10+AR10)*'Weighting Factors'!$Q$5)+BA10+'2018 Legal Max'!BB10 -> 2682818 | BH10: =IF('Weighting Factors'!H10>0,'Weighting Factors'!H10,'Preliminary SO66'!AV9) -> 2859082 | BI10: 2682818 | BK10: ='Weighting Factors'!F10 -> 0 | BL10: ='Weighting Factors'!E10 -> 0 | BM10: 0 | BN10: 2682818 | BO10: =SUM((S10+T10+Y10+AA10+AE10+AH10+AJ10++AO10+AP10+AQ10+AR10)*'Weighting Factors'!Q$12)+(MAX(AS10,'Weighting Factors'!B10)) -> 2967099 | BP10: 0.3 | BQ10: 890130 | BR10: 800000 | BS10: 800000 | BT10: 0.2696 | BU10: 0 | BV10: TRUE | BW10: 1926.173 | BX10: 0.485511 | BY10: 145.4 | BZ10: FALSE | CA10: 0 | CB10: 0 | CC10: 0 | CD10: 0 | CE10: 762 | CF10: 0.19 | CG10: =IF(ROUND(('Weighting Factors'!$T$5*CF10^'Weighting Factors'!$T$6*'Weighting Factors'!$T$8 ),2)<'Weighting Factors'!$T$7,'Weighting Factors'!$T$7,ROUND(('Weighting Factors'!$T$5*CF10^'Weighting Factors'!$T$6*'Weighting Factors'!$T$8 ),2)) -> 1240.74 | CH10: =ROUND(CG10/'Weighting Factors'!$Q$5,4) -> 0.3097 | CI10: 44.4 | CJ10: 0 | CK10: 0 | CL10: 0 | CM10: 0 | CN10: =SUM((AV10*'Weighting Factors'!$Q$5)+'2018 Legal Max'!BA10)*CM10 -> 0 | CO10: 0 | CP10: 0.4473 | CQ10: 0 | CR10: 9.5 | CS10: 669.7 | CV10: D0107
A11: 108 | B11: Washington | C11: Washington Co. Schools | D11: 330.5 | E11: 0 | F11: 330.5 | G11: 323.5 | H11: =IF(ISNA(VLOOKUP($CV11,'Audit Values'!$A$2:$BU$326,2,FALSE)),'Preliminary SO66'!AI10,VLOOKUP($CV11,'Audit Values'!$A$2:$BU$326,2,FALSE)) -> 0 | I11: 323.5 | J11: 304.5 | K11: =IF(ISNA(VLOOKUP($CV11,'Audit Values'!$A$2:$BU$326,2,FALSE)),'Preliminary SO66'!AJ10,VLOOKUP($CV11,'Audit Values'!$A$2:$BU$326,3,FALSE)) -> 0 | L11: 304.5 | M11: =IF(ISNA(VLOOKUP($CV11,'Audit Values'!$A$2:$BU$326,2,FALSE)),'Preliminary SO66'!C10,VLOOKUP($CV11,'Audit Values'!$A$2:$BU$326,73,FALSE)) -> 329.2 | N11: =IF(ISNA(VLOOKUP($CV11,'Audit Values'!$A$2:$BU$326,2,FALSE)),'Preliminary SO66'!F10,VLOOKUP($CV11,'Audit Values'!$A$2:$BU$326,4,FALSE)) -> 0 | O11: =IF(ISNA(VLOOKUP($CV11,'Audit Values'!$A$2:$BU$326,2,FALSE)),'Preliminary SO66'!AK10,VLOOKUP($CV11,'Audit Values'!$A$2:$BU$326,57,FALSE)) -> 329.2 | P11: =IF('Military Provision'!J12="YES", MAX('2018 Legal Max'!L11,'2018 Legal Max'!I11,AVERAGE('2018 Legal Max'!F11,'2018 Legal Max'!I11,'2018 Legal Max'!L11)), MAX(L11, I11)) -> 323.5 | Q11: =IF(ISNA(VLOOKUP($CV11,'Audit Values'!$A$2:$BU$326,2,FALSE)),'Preliminary SO66'!AL10,VLOOKUP($CV11,'Audit Values'!$A$2:$BU$326,58,FALSE)) -> 0 | R11: =IF(ISNA(VLOOKUP($CV11,'Audit Values'!$A$2:$BU$326,2,FALSE)),'Preliminary SO66'!AT10,VLOOKUP($CV11,'Audit Values'!$A$2:$BU$326,59,FALSE)) -> 30 | S11: 353.5 | T11: 164.7 | U11: =IF(ISNA(VLOOKUP($CV11,'Audit Values'!$A$2:$BW$294,2,FALSE)),'Preliminary SO66'!AM10,VLOOKUP($CV11,'Audit Values'!$A$2:$BW$294,62,FALSE)) -> 0 | V11: =(U11/6)*'Weighting Factors'!$Q$7 -> 0 | W11: =IF(ISNA(VLOOKUP($CV11,'Audit Values'!$A$2:$BW$294,2,FALSE)),'Preliminary SO66'!AN10,VLOOKUP($CV11,'Audit Values'!$A$2:$BW$294,61,FALSE)) -> 13 | X11: =W11*'Weighting Factors'!$Q$8 -> 2.4 | Y11: 2.4 | Z11: =IF(ISNA(VLOOKUP($CV11,'Audit Values'!$A$2:$BW$294,2,FALSE)),'Preliminary SO66'!AO10,VLOOKUP($CV11,'Audit Values'!$A$2:$BW$294,60,FALSE)) -> 85.3 | AA11: =Z11/6*'Weighting Factors'!$Q$6 -> 7.1 | AB11: =IF(ISNA(VLOOKUP($CV11,'Audit Values'!$A$2:$BU$326,2,FALSE)),'Preliminary SO66'!AS10,VLOOKUP($CV11,'Audit Values'!$A$2:$BU$326,63,FALSE)) -> 333 | AC11: 33 | AD11: =IF(ISNA(VLOOKUP($CV11,'Audit Values'!$A$2:$BU$370,2,FALSE)),'Preliminary SO66'!AP10,VLOOKUP($CV11,'Audit Values'!$A$2:$BU$370,64,FALSE)) -> 127 | AE11: =IF(A11=207, AD11,MAX(AC11,AD11))*'Weighting Factors'!$Q$9 -> 61.5 | AF11: 2.8 | AG11: =IF(ISNA(VLOOKUP($CV11,'Audit Values'!$A$2:$BW$326,2,FALSE)),'Preliminary SO66'!AG10,VLOOKUP($CV11,'Audit Values'!$A$2:$BW$326,70,FALSE)) -> 6.7 | AH11: 6.7 | AI11: =IF(ISNA(VLOOKUP($CV11,'Audit Values'!$A$2:$BU$326,2,FALSE)),'Preliminary SO66'!AQ10,VLOOKUP($CV11,'Audit Values'!$A$2:$BU$326,65,FALSE)) -> 0 | AJ11: =AI11*'Weighting Factors'!$Q$10 -> 0 | AK11: =IF(ISNA(VLOOKUP($CV11,'Audit Values'!$A$2:$BU$326,2,FALSE)),'Preliminary SO66'!AR10,VLOOKUP($CV11,'Audit Values'!$A$2:$BU$326,66,FALSE)) -> 143 | AL11: 39.1 | AM11: =AL11*'Weighting Factors'!$Q$5 -> 156635 | AN11: 208778 | AO11: =MAX(AM11, AN11)/'Weighting Factors'!$Q$5 -> 52.1 | AP11: =CJ11/'Weighting Factors'!$Q$5 -> 0 | AQ11: =CK11/'Weighting Factors'!$Q$5 -> 0 | AR11: =CO11/'Weighting Factors'!$Q$5 -> 0 | AS11: 294075 | AT11: =AS11/'Weighting Factors'!$Q$5 -> 73.4 | AU11: =IF(ISNA(VLOOKUP($CV11,'Audit Values'!$A$2:$BU$326,2,FALSE)),'Preliminary SO66'!X10,VLOOKUP($CV11,'Audit Values'!$A$2:$BU$326,47,FALSE)) -> 0 | AV11: 721.4 | AW11: 648 | AX11: =IF(ISNA(VLOOKUP($CV11,'Audit Values'!$A$2:$BU$326,2,FALSE)),'Preliminary SO66'!AA10,VLOOKUP($CV11,'Audit Values'!$A$2:$BU$326,41,FALSE)) -> 0 | AY11: =IF(ISNA(VLOOKUP($CV11,'Audit Values'!$A$2:$BU$326,2,FALSE)),'Preliminary SO66'!AB10,VLOOKUP($CV11,'Audit Values'!$A$2:$BU$326,42,FALSE)) -> 0 | AZ11: 0 | BA11: =SUM(AX11*'Weighting Factors'!$T$10)+('2018 Legal Max'!AY11*'Weighting Factors'!$T$11)+('2018 Legal Max'!AZ11*'Weighting Factors'!$T$12) -> 0 | BB11: 0 | BC11: =IF(ISNA(VLOOKUP($CV11,'Audit Values'!$A$2:$BU$326,2,FALSE)),"",IF(AND('Weighting Factors'!H11>0,VLOOKUP($CV11,'Audit Values'!$A$2:$BU$326,51,FALSE)<'Weighting Factors'!H11),'Weighting Factors'!H11,VLOOKUP($CV11,'Audit Values'!$A$2:$BU$326,50,FALSE))) -> 1 | BD11: =IF(ISNA(VLOOKUP($CV11,'Audit Values'!$A$2:$BV$326,2,FALSE)),"",VLOOKUP($CV11,'Audit Values'!$A$2:$BV$326,51,FALSE)) -> A | BE11: =IF('Weighting Factors'!H11="","",IF('Weighting Factors'!J11="Pending","PX","R")) ->  | BF11: =SUM((S11+T11+Y11+AA11+AE11+AH11+AJ11++AO11+AP11+AQ11+AU11+AR11)*'Weighting Factors'!$Q$5)+'2018 Legal Max'!BA11+'2018 Legal Max'!BB11 -> 2595888 | BG11: =SUM((AV11+AR11)*'Weighting Factors'!$Q$5)+BA11+'2018 Legal Max'!BB11 -> 2889928 | BH11: =IF('Weighting Factors'!H11>0,'Weighting Factors'!H11,'Preliminary SO66'!AV10) -> 2965642 | BI11: 2889928 | BK11: ='Weighting Factors'!F11 -> 0 | BL11: ='Weighting Factors'!E11 -> 0 | BM11: 0 | BN11: 2889928 | BO11: =SUM((S11+T11+Y11+AA11+AE11+AH11+AJ11++AO11+AP11+AQ11+AR11)*'Weighting Factors'!Q$12)+(MAX(AS11,'Weighting Factors'!B11)) -> 3457851 | BP11: 0.3 | BQ11: 1037355 | BR11: 1025502 | BS11: 1025502 | BT11: 0.2966 | BU11: 0 | BV11: FALSE | BW11: 0 | BX11: 0 | BY11: 0 | BZ11: TRUE | CA11: 66.2063 | CB11: 0.46601 | CC11: 164.7 | CD11: 0 | CE11: 389 | CF11: 0.37 | CG11: =IF(ROUND(('Weighting Factors'!$T$5*CF11^'Weighting Factors'!$T$6*'Weighting Factors'!$T$8 ),2)<'Weighting Factors'!$T$7,'Weighting Factors'!$T$7,ROUND(('Weighting Factors'!$T$5*CF11^'Weighting Factors'!$T$6*'Weighting Factors'!$T$8 ),2)) -> 1094.12 | CH11: =ROUND(CG11/'Weighting Factors'!$Q$5,4) -> 0.2731 | CI11: 39.1 | CJ11: 0 | CK11: 0 | CL11: 0 | CM11: 0 | CN11: =SUM((AV11*'Weighting Factors'!$Q$5)+'2018 Legal Max'!BA11)*CM11 -> 0 | CO11: 0 | CP11: 0.3814 | CQ11: 0 | CR11: 2.8 | CS11: 721.4 | CV11: D0108
A12: 109 | B12: Republic | C12: Republic County | D12: 443.5 | E12: 0 | F12: 443.5 | G12: 437 | H12: =IF(ISNA(VLOOKUP($CV12,'Audit Values'!$A$2:$BU$326,2,FALSE)),'Preliminary SO66'!AI11,VLOOKUP($CV12,'Audit Values'!$A$2:$BU$326,2,FALSE)) -> 0 | I12: 437 | J12: 476.6 | K12: =IF(ISNA(VLOOKUP($CV12,'Audit Values'!$A$2:$BU$326,2,FALSE)),'Preliminary SO66'!AJ11,VLOOKUP($CV12,'Audit Values'!$A$2:$BU$326,3,FALSE)) -> 0 | L12: 476.6 | M12: =IF(ISNA(VLOOKUP($CV12,'Audit Values'!$A$2:$BU$326,2,FALSE)),'Preliminary SO66'!C11,VLOOKUP($CV12,'Audit Values'!$A$2:$BU$326,73,FALSE)) -> 511 | N12: =IF(ISNA(VLOOKUP($CV12,'Audit Values'!$A$2:$BU$326,2,FALSE)),'Preliminary SO66'!F11,VLOOKUP($CV12,'Audit Values'!$A$2:$BU$326,4,FALSE)) -> 0 | O12: =IF(ISNA(VLOOKUP($CV12,'Audit Values'!$A$2:$BU$326,2,FALSE)),'Preliminary SO66'!AK11,VLOOKUP($CV12,'Audit Values'!$A$2:$BU$326,57,FALSE)) -> 511 | P12: =IF('Military Provision'!J13="YES", MAX('2018 Legal Max'!L12,'2018 Legal Max'!I12,AVERAGE('2018 Legal Max'!F12,'2018 Legal Max'!I12,'2018 Legal Max'!L12)), MAX(L12, I12)) -> 476.6 | Q12: =IF(ISNA(VLOOKUP($CV12,'Audit Values'!$A$2:$BU$326,2,FALSE)),'Preliminary SO66'!AL11,VLOOKUP($CV12,'Audit Values'!$A$2:$BU$326,58,FALSE)) -> 0 | R12: =IF(ISNA(VLOOKUP($CV12,'Audit Values'!$A$2:$BU$326,2,FALSE)),'Preliminary SO66'!AT11,VLOOKUP($CV12,'Audit Values'!$A$2:$BU$326,59,FALSE)) -> 31 | S12: 507.6 | T12: 210 | U12: =IF(ISNA(VLOOKUP($CV12,'Audit Values'!$A$2:$BW$294,2,FALSE)),'Preliminary SO66'!AM11,VLOOKUP($CV12,'Audit Values'!$A$2:$BW$294,62,FALSE)) -> 0 | V12: =(U12/6)*'Weighting Factors'!$Q$7 -> 0 | W12: =IF(ISNA(VLOOKUP($CV12,'Audit Values'!$A$2:$BW$294,2,FALSE)),'Preliminary SO66'!AN11,VLOOKUP($CV12,'Audit Values'!$A$2:$BW$294,61,FALSE)) -> 2 | X12: =W12*'Weighting Factors'!$Q$8 -> 0.4 | Y12: 0.4 | Z12: =IF(ISNA(VLOOKUP($CV12,'Audit Values'!$A$2:$BW$294,2,FALSE)),'Preliminary SO66'!AO11,VLOOKUP($CV12,'Audit Values'!$A$2:$BW$294,60,FALSE)) -> 125.3 | AA12: =Z12/6*'Weighting Factors'!$Q$6 -> 10.4 | AB12: =IF(ISNA(VLOOKUP($CV12,'Audit Values'!$A$2:$BU$326,2,FALSE)),'Preliminary SO66'!AS11,VLOOKUP($CV12,'Audit Values'!$A$2:$BU$326,63,FALSE)) -> 518 | AC12: 52 | AD12: =IF(ISNA(VLOOKUP($CV12,'Audit Values'!$A$2:$BU$370,2,FALSE)),'Preliminary SO66'!AP11,VLOOKUP($CV12,'Audit Values'!$A$2:$BU$370,64,FALSE)) -> 211 | AE12: =IF(A12=207, AD12,MAX(AC12,AD12))*'Weighting Factors'!$Q$9 -> 102.1 | AF12: 8.5 | AG12: =IF(ISNA(VLOOKUP($CV12,'Audit Values'!$A$2:$BW$326,2,FALSE)),'Preliminary SO66'!AG11,VLOOKUP($CV12,'Audit Values'!$A$2:$BW$326,70,FALSE)) -> 10.7 | AH12: 10.7 | AI12: =IF(ISNA(VLOOKUP($CV12,'Audit Values'!$A$2:$BU$326,2,FALSE)),'Preliminary SO66'!AQ11,VLOOKUP($CV12,'Audit Values'!$A$2:$BU$326,65,FALSE)) -> 0 | AJ12: =AI12*'Weighting Factors'!$Q$10 -> 0 | AK12: =IF(ISNA(VLOOKUP($CV12,'Audit Values'!$A$2:$BU$326,2,FALSE)),'Preliminary SO66'!AR11,VLOOKUP($CV12,'Audit Values'!$A$2:$BU$326,66,FALSE)) -> 177 | AL12: 49.7 | AM12: =AL12*'Weighting Factors'!$Q$5 -> 199098 | AN12: 251536 | AO12: =MAX(AM12, AN12)/'Weighting Factors'!$Q$5 -> 62.8 | AP12: =CJ12/'Weighting Factors'!$Q$5 -> 0 | AQ12: =CK12/'Weighting Factors'!$Q$5 -> 0 | AR12: =CO12/'Weighting Factors'!$Q$5 -> 0 | AS12: 447250 | AT12: =AS12/'Weighting Factors'!$Q$5 -> 111.6 | AU12: =IF(ISNA(VLOOKUP($CV12,'Audit Values'!$A$2:$BU$326,2,FALSE)),'Preliminary SO66'!X11,VLOOKUP($CV12,'Audit Values'!$A$2:$BU$326,47,FALSE)) -> 0 | AV12: 1015.6 | AW12: 904 | AX12: =IF(ISNA(VLOOKUP($CV12,'Audit Values'!$A$2:$BU$326,2,FALSE)),'Preliminary SO66'!AA11,VLOOKUP($CV12,'Audit Values'!$A$2:$BU$326,41,FALSE)) -> 1 | AY12: =IF(ISNA(VLOOKUP($CV12,'Audit Values'!$A$2:$BU$326,2,FALSE)),'Preliminary SO66'!AB11,VLOOKUP($CV12,'Audit Values'!$A$2:$BU$326,42,FALSE)) -> 0 | AZ12: 0 | BA12: =SUM(AX12*'Weighting Factors'!$T$10)+('2018 Legal Max'!AY12*'Weighting Factors'!$T$11)+('2018 Legal Max'!AZ12*'Weighting Factors'!$T$12) -> 5000 | BB12: 0 | BC12: =IF(ISNA(VLOOKUP($CV12,'Audit Values'!$A$2:$BU$326,2,FALSE)),"",IF(AND('Weighting Factors'!H12>0,VLOOKUP($CV12,'Audit Values'!$A$2:$BU$326,51,FALSE)<'Weighting Factors'!H12),'Weighting Factors'!H12,VLOOKUP($CV12,'Audit Values'!$A$2:$BU$326,50,FALSE))) -> 4 | BD12: =IF(ISNA(VLOOKUP($CV12,'Audit Values'!$A$2:$BV$326,2,FALSE)),"",VLOOKUP($CV12,'Audit Values'!$A$2:$BV$326,51,FALSE)) -> A | BE12: =IF('Weighting Factors'!H12="","",IF('Weighting Factors'!J12="Pending","PX","R")) ->  | BF12: =SUM((S12+T12+Y12+AA12+AE12+AH12+AJ12++AO12+AP12+AQ12+AU12+AR12)*'Weighting Factors'!$Q$5)+'2018 Legal Max'!BA12+'2018 Legal Max'!BB12 -> 3626424 | BG12: =SUM((AV12+AR12)*'Weighting Factors'!$Q$5)+BA12+'2018 Legal Max'!BB12 -> 4073494 | BH12: =IF('Weighting Factors'!H12>0,'Weighting Factors'!H12,'Preliminary SO66'!AV11) -> 4153699 | BI12: 4073494 | BK12: ='Weighting Factors'!F12 -> 0 | BL12: ='Weighting Factors'!E12 -> 0 | BM12: 0 | BN12: 4073494 | BO12: =SUM((S12+T12+Y12+AA12+AE12+AH12+AJ12++AO12+AP12+AQ12+AR12)*'Weighting Factors'!Q$12)+(MAX(AS12,'Weighting Factors'!B12)) -> 4674220 | BP12: 0.3 | BQ12: 1402266 | BR12: 1404287 | BS12: 1402266 | BT12: 0.3 | BU12: 0 | BV12: FALSE | BW12: 0 | BX12: 0 | BY12: 0 | BZ12: TRUE | CA12: 256.905 | CB12: 0.413654 | CC12: 210 | CD12: 0 | CE12: 560 | CF12: 0.32 | CG12: =IF(ROUND(('Weighting Factors'!$T$5*CF12^'Weighting Factors'!$T$6*'Weighting Factors'!$T$8 ),2)<'Weighting Factors'!$T$7,'Weighting Factors'!$T$7,ROUND(('Weighting Factors'!$T$5*CF12^'Weighting Factors'!$T$6*'Weighting Factors'!$T$8 ),2)) -> 1124.51 | CH12: =ROUND(CG12/'Weighting Factors'!$Q$5,4) -> 0.2807 | CI12: 49.7 | CJ12: 0 | CK12: 0 | CL12: 0 | CM12: 0 | CN12: =SUM((AV12*'Weighting Factors'!$Q$5)+'2018 Legal Max'!BA12)*CM12 -> 0 | CO12: 0 | CP12: 0.4073 | CQ12: 0 | CR12: 8.5 | CS12: 1015.6 | CV12: D0109
A13: 110 | B13: Phillips | C13: Thunder Ridge Schools | D13: 207.5 | E13: 0 | F13: 207.5 | G13: 205.5 | H13: =IF(ISNA(VLOOKUP($CV13,'Audit Values'!$A$2:$BU$326,2,FALSE)),'Preliminary SO66'!AI12,VLOOKUP($CV13,'Audit Values'!$A$2:$BU$326,2,FALSE)) -> 0 | I13: 205.5 | J13: 199.5 | K13: =IF(ISNA(VLOOKUP($CV13,'Audit Values'!$A$2:$BU$326,2,FALSE)),'Preliminary SO66'!AJ12,VLOOKUP($CV13,'Audit Values'!$A$2:$BU$326,3,FALSE)) -> 0 | L13: 199.5 | M13: =IF(ISNA(VLOOKUP($CV13,'Audit Values'!$A$2:$BU$326,2,FALSE)),'Preliminary SO66'!C12,VLOOKUP($CV13,'Audit Values'!$A$2:$BU$326,73,FALSE)) -> 197.5 | N13: =IF(ISNA(VLOOKUP($CV13,'Audit Values'!$A$2:$BU$326,2,FALSE)),'Preliminary SO66'!F12,VLOOKUP($CV13,'Audit Values'!$A$2:$BU$326,4,FALSE)) -> 0 | O13: =IF(ISNA(VLOOKUP($CV13,'Audit Values'!$A$2:$BU$326,2,FALSE)),'Preliminary SO66'!AK12,VLOOKUP($CV13,'Audit Values'!$A$2:$BU$326,57,FALSE)) -> 197.5 | P13: =IF('Military Provision'!J14="YES", MAX('2018 Legal Max'!L13,'2018 Legal Max'!I13,AVERAGE('2018 Legal Max'!F13,'2018 Legal Max'!I13,'2018 Legal Max'!L13)), MAX(L13, I13)) -> 205.5 | Q13: =IF(ISNA(VLOOKUP($CV13,'Audit Values'!$A$2:$BU$326,2,FALSE)),'Preliminary SO66'!AL12,VLOOKUP($CV13,'Audit Values'!$A$2:$BU$326,58,FALSE)) -> 0 | R13: =IF(ISNA(VLOOKUP($CV13,'Audit Values'!$A$2:$BU$326,2,FALSE)),'Preliminary SO66'!AT12,VLOOKUP($CV13,'Audit Values'!$A$2:$BU$326,59,FALSE)) -> 10 | S13: 215.5 | T13: 152.6 | U13: =IF(ISNA(VLOOKUP($CV13,'Audit Values'!$A$2:$BW$294,2,FALSE)),'Preliminary SO66'!AM12,VLOOKUP($CV13,'Audit Values'!$A$2:$BW$294,62,FALSE)) -> 0 | V13: =(U13/6)*'Weighting Factors'!$Q$7 -> 0 | W13: =IF(ISNA(VLOOKUP($CV13,'Audit Values'!$A$2:$BW$294,2,FALSE)),'Preliminary SO66'!AN12,VLOOKUP($CV13,'Audit Values'!$A$2:$BW$294,61,FALSE)) -> 0 | X13: =W13*'Weighting Factors'!$Q$8 -> 0 | Y13: 0 | Z13: =IF(ISNA(VLOOKUP($CV13,'Audit Values'!$A$2:$BW$294,2,FALSE)),'Preliminary SO66'!AO12,VLOOKUP($CV13,'Audit Values'!$A$2:$BW$294,60,FALSE)) -> 51.6 | AA13: =Z13/6*'Weighting Factors'!$Q$6 -> 4.3 | AB13: =IF(ISNA(VLOOKUP($CV13,'Audit Values'!$A$2:$BU$326,2,FALSE)),'Preliminary SO66'!AS12,VLOOKUP($CV13,'Audit Values'!$A$2:$BU$326,63,FALSE)) -> 200 | AC13: 20 | AD13: =IF(ISNA(VLOOKUP($CV13,'Audit Values'!$A$2:$BU$370,2,FALSE)),'Preliminary SO66'!AP12,VLOOKUP($CV13,'Audit Values'!$A$2:$BU$370,64,FALSE)) -> 97 | AE13: =IF(A13=207, AD13,MAX(AC13,AD13))*'Weighting Factors'!$Q$9 -> 46.9 | AF13: 9.2 | AG13: =IF(ISNA(VLOOKUP($CV13,'Audit Values'!$A$2:$BW$326,2,FALSE)),'Preliminary SO66'!AG12,VLOOKUP($CV13,'Audit Values'!$A$2:$BW$326,70,FALSE)) -> 7.8 | AH13: 9.2 | AI13: =IF(ISNA(VLOOKUP($CV13,'Audit Values'!$A$2:$BU$326,2,FALSE)),'Preliminary SO66'!AQ12,VLOOKUP($CV13,'Audit Values'!$A$2:$BU$326,65,FALSE)) -> 0 | AJ13: =AI13*'Weighting Factors'!$Q$10 -> 0 | AK13: =IF(ISNA(VLOOKUP($CV13,'Audit Values'!$A$2:$BU$326,2,FALSE)),'Preliminary SO66'!AR12,VLOOKUP($CV13,'Audit Values'!$A$2:$BU$326,66,FALSE)) -> 127 | AL13: 37.1 | AM13: =AL13*'Weighting Factors'!$Q$5 -> 148623 | AN13: 214171 | AO13: =MAX(AM13, AN13)/'Weighting Factors'!$Q$5 -> 53.5 | AP13: =CJ13/'Weighting Factors'!$Q$5 -> 0 | AQ13: =CK13/'Weighting Factors'!$Q$5 -> 0 | AR13: =CO13/'Weighting Factors'!$Q$5 -> 0 | AS13: 246223 | AT13: =AS13/'Weighting Factors'!$Q$5 -> 61.5 | AU13: =IF(ISNA(VLOOKUP($CV13,'Audit Values'!$A$2:$BU$326,2,FALSE)),'Preliminary SO66'!X12,VLOOKUP($CV13,'Audit Values'!$A$2:$BU$326,47,FALSE)) -> 0 | AV13: 543.5 | AW13: 482 | AX13: =IF(ISNA(VLOOKUP($CV13,'Audit Values'!$A$2:$BU$326,2,FALSE)),'Preliminary SO66'!AA12,VLOOKUP($CV13,'Audit Values'!$A$2:$BU$326,41,FALSE)) -> 0 | AY13: =IF(ISNA(VLOOKUP($CV13,'Audit Values'!$A$2:$BU$326,2,FALSE)),'Preliminary SO66'!AB12,VLOOKUP($CV13,'Audit Values'!$A$2:$BU$326,42,FALSE)) -> 0 | AZ13: 0 | BA13: =SUM(AX13*'Weighting Factors'!$T$10)+('2018 Legal Max'!AY13*'Weighting Factors'!$T$11)+('2018 Legal Max'!AZ13*'Weighting Factors'!$T$12) -> 0 | BB13: 0 | BC13: =IF(ISNA(VLOOKUP($CV13,'Audit Values'!$A$2:$BU$326,2,FALSE)),"",IF(AND('Weighting Factors'!H13>0,VLOOKUP($CV13,'Audit Values'!$A$2:$BU$326,51,FALSE)<'Weighting Factors'!H13),'Weighting Factors'!H13,VLOOKUP($CV13,'Audit Values'!$A$2:$BU$326,50,FALSE))) -> 2 | BD13: =IF(ISNA(VLOOKUP($CV13,'Audit Values'!$A$2:$BV$326,2,FALSE)),"",VLOOKUP($CV13,'Audit Values'!$A$2:$BV$326,51,FALSE)) -> A | BE13: =IF('Weighting Factors'!H13="","",IF('Weighting Factors'!J13="Pending","PX","R")) ->  | BF13: =SUM((S13+T13+Y13+AA13+AE13+AH13+AJ13++AO13+AP13+AQ13+AU13+AR13)*'Weighting Factors'!$Q$5)+'2018 Legal Max'!BA13+'2018 Legal Max'!BB13 -> 1930892 | BG13: =SUM((AV13+AR13)*'Weighting Factors'!$Q$5)+BA13+'2018 Legal Max'!BB13 -> 2177261 | BH13: =IF('Weighting Factors'!H13>0,'Weighting Factors'!H13,'Preliminary SO66'!AV12) -> 2266595 | BI13: 2177261 | BK13: ='Weighting Factors'!F13 -> 0 | BL13: ='Weighting Factors'!E13 -> 0 | BM13: 0 | BN13: 2177261 | BO13: =SUM((S13+T13+Y13+AA13+AE13+AH13+AJ13++AO13+AP13+AQ13+AR13)*'Weighting Factors'!Q$12)+(MAX(AS13,'Weighting Factors'!B13)) -> 2498111 | BP13: 0.3 | BQ13: 749433 | BR13: 767214 | BS13: 749433 | BT13: 0.3 | BU13: 0 | BV13: TRUE | BW13: 1115.153 | BX13: 0.708172 | BY13: 152.6 | BZ13: FALSE | CA13: 0 | CB13: 0 | CC13: 0 | CD13: 0 | CE13: 491 | CF13: 0.26 | CG13: =IF(ROUND(('Weighting Factors'!$T$5*CF13^'Weighting Factors'!$T$6*'Weighting Factors'!$T$8 ),2)<'Weighting Factors'!$T$7,'Weighting Factors'!$T$7,ROUND(('Weighting Factors'!$T$5*CF13^'Weighting Factors'!$T$6*'Weighting Factors'!$T$8 ),2)) -> 1169.44 | CH13: =ROUND(CG13/'Weighting Factors'!$Q$5,4) -> 0.2919 | CI13: 37.1 | CJ13: 0 | CK13: 0 | CL13: 0 | CM13: 0 | CN13: =SUM((AV13*'Weighting Factors'!$Q$5)+'2018 Legal Max'!BA13)*CM13 -> 0 | CO13: 0 | CP13: 0.485 | CQ13: 0 | CR13: 9.2 | CS13: 543.5 | CV13: D0110
A14: 111 | B14: Doniphan | C14: Doniphan West Schools | D14: 298.5 | E14: 0 | F14: 298.5 | G14: 292.5 | H14: =IF(ISNA(VLOOKUP($CV14,'Audit Values'!$A$2:$BU$326,2,FALSE)),'Preliminary SO66'!AI13,VLOOKUP($CV14,'Audit Values'!$A$2:$BU$326,2,FALSE)) -> 0 | I14: 292.5 | J14: 284.5 | K14: =IF(ISNA(VLOOKUP($CV14,'Audit Values'!$A$2:$BU$326,2,FALSE)),'Preliminary SO66'!AJ13,VLOOKUP($CV14,'Audit Values'!$A$2:$BU$326,3,FALSE)) -> 0 | L14: 284.5 | M14: =IF(ISNA(VLOOKUP($CV14,'Audit Values'!$A$2:$BU$326,2,FALSE)),'Preliminary SO66'!C13,VLOOKUP($CV14,'Audit Values'!$A$2:$BU$326,73,FALSE)) -> 310 | N14: =IF(ISNA(VLOOKUP($CV14,'Audit Values'!$A$2:$BU$326,2,FALSE)),'Preliminary SO66'!F13,VLOOKUP($CV14,'Audit Values'!$A$2:$BU$326,4,FALSE)) -> 0 | O14: =IF(ISNA(VLOOKUP($CV14,'Audit Values'!$A$2:$BU$326,2,FALSE)),'Preliminary SO66'!AK13,VLOOKUP($CV14,'Audit Values'!$A$2:$BU$326,57,FALSE)) -> 310 | P14: =IF('Military Provision'!J15="YES", MAX('2018 Legal Max'!L14,'2018 Legal Max'!I14,AVERAGE('2018 Legal Max'!F14,'2018 Legal Max'!I14,'2018 Legal Max'!L14)), MAX(L14, I14)) -> 292.5 | Q14: =IF(ISNA(VLOOKUP($CV14,'Audit Values'!$A$2:$BU$326,2,FALSE)),'Preliminary SO66'!AL13,VLOOKUP($CV14,'Audit Values'!$A$2:$BU$326,58,FALSE)) -> 6 | R14: =IF(ISNA(VLOOKUP($CV14,'Audit Values'!$A$2:$BU$326,2,FALSE)),'Preliminary SO66'!AT13,VLOOKUP($CV14,'Audit Values'!$A$2:$BU$326,59,FALSE)) -> 39 | S14: 337.5 | T14: 159.1 | U14: =IF(ISNA(VLOOKUP($CV14,'Audit Values'!$A$2:$BW$294,2,FALSE)),'Preliminary SO66'!AM13,VLOOKUP($CV14,'Audit Values'!$A$2:$BW$294,62,FALSE)) -> 0 | V14: =(U14/6)*'Weighting Factors'!$Q$7 -> 0 | W14: =IF(ISNA(VLOOKUP($CV14,'Audit Values'!$A$2:$BW$294,2,FALSE)),'Preliminary SO66'!AN13,VLOOKUP($CV14,'Audit Values'!$A$2:$BW$294,61,FALSE)) -> 0 | X14: =W14*'Weighting Factors'!$Q$8 -> 0 | Y14: 0 | Z14: =IF(ISNA(VLOOKUP($CV14,'Audit Values'!$A$2:$BW$294,2,FALSE)),'Preliminary SO66'!AO13,VLOOKUP($CV14,'Audit Values'!$A$2:$BW$294,60,FALSE)) -> 52.3 | AA14: =Z14/6*'Weighting Factors'!$Q$6 -> 4.4 | AB14: =IF(ISNA(VLOOKUP($CV14,'Audit Values'!$A$2:$BU$326,2,FALSE)),'Preliminary SO66'!AS13,VLOOKUP($CV14,'Audit Values'!$A$2:$BU$326,63,FALSE)) -> 322 | AC14: 32 | AD14: =IF(ISNA(VLOOKUP($CV14,'Audit Values'!$A$2:$BU$370,2,FALSE)),'Preliminary SO66'!AP13,VLOOKUP($CV14,'Audit Values'!$A$2:$BU$370,64,FALSE)) -> 84 | AE14: =IF(A14=207, AD14,MAX(AC14,AD14))*'Weighting Factors'!$Q$9 -> 40.7 | AF14: 0 | AG14: =IF(ISNA(VLOOKUP($CV14,'Audit Values'!$A$2:$BW$326,2,FALSE)),'Preliminary SO66'!AG13,VLOOKUP($CV14,'Audit Values'!$A$2:$BW$326,70,FALSE)) -> 0.4 | AH14: 0.4 | AI14: =IF(ISNA(VLOOKUP($CV14,'Audit Values'!$A$2:$BU$326,2,FALSE)),'Preliminary SO66'!AQ13,VLOOKUP($CV14,'Audit Values'!$A$2:$BU$326,65,FALSE)) -> 0 | AJ14: =AI14*'Weighting Factors'!$Q$10 -> 0 | AK14: =IF(ISNA(VLOOKUP($CV14,'Audit Values'!$A$2:$BU$326,2,FALSE)),'Preliminary SO66'!AR13,VLOOKUP($CV14,'Audit Values'!$A$2:$BU$326,66,FALSE)) -> 205.5 | AL14: 47.4 | AM14: =AL14*'Weighting Factors'!$Q$5 -> 189884 | AN14: 261166 | AO14: =MAX(AM14, AN14)/'Weighting Factors'!$Q$5 -> 65.2 | AP14: =CJ14/'Weighting Factors'!$Q$5 -> 0 | AQ14: =CK14/'Weighting Factors'!$Q$5 -> 0 | AR14: =CO14/'Weighting Factors'!$Q$5 -> 0 | AS14: 302044 | AT14: =AS14/'Weighting Factors'!$Q$5 -> 75.4 | AU14: =IF(ISNA(VLOOKUP($CV14,'Audit Values'!$A$2:$BU$326,2,FALSE)),'Preliminary SO66'!X13,VLOOKUP($CV14,'Audit Values'!$A$2:$BU$326,47,FALSE)) -> 0 | AV14: 682.7 | AW14: 607.3 | AX14: =IF(ISNA(VLOOKUP($CV14,'Audit Values'!$A$2:$BU$326,2,FALSE)),'Preliminary SO66'!AA13,VLOOKUP($CV14,'Audit Values'!$A$2:$BU$326,41,FALSE)) -> 0 | AY14: =IF(ISNA(VLOOKUP($CV14,'Audit Values'!$A$2:$BU$326,2,FALSE)),'Preliminary SO66'!AB13,VLOOKUP($CV14,'Audit Values'!$A$2:$BU$326,42,FALSE)) -> 0 | AZ14: 0 | BA14: =SUM(AX14*'Weighting Factors'!$T$10)+('2018 Legal Max'!AY14*'Weighting Factors'!$T$11)+('2018 Legal Max'!AZ14*'Weighting Factors'!$T$12) -> 0 | BB14: 0 | BC14: =IF(ISNA(VLOOKUP($CV14,'Audit Values'!$A$2:$BU$326,2,FALSE)),"",IF(AND('Weighting Factors'!H14>0,VLOOKUP($CV14,'Audit Values'!$A$2:$BU$326,51,FALSE)<'Weighting Factors'!H14),'Weighting Factors'!H14,VLOOKUP($CV14,'Audit Values'!$A$2:$BU$326,50,FALSE))) -> 6 | BD14: =IF(ISNA(VLOOKUP($CV14,'Audit Values'!$A$2:$BV$326,2,FALSE)),"",VLOOKUP($CV14,'Audit Values'!$A$2:$BV$326,51,FALSE)) -> A | BE14: =IF('Weighting Factors'!H14="","",IF('Weighting Factors'!J14="Pending","PX","R")) ->  | BF14: =SUM((S14+T14+Y14+AA14+AE14+AH14+AJ14++AO14+AP14+AQ14+AU14+AR14)*'Weighting Factors'!$Q$5)+'2018 Legal Max'!BA14+'2018 Legal Max'!BB14 -> 2432844 | BG14: =SUM((AV14+AR14)*'Weighting Factors'!$Q$5)+BA14+'2018 Legal Max'!BB14 -> 2734896 | BH14: =IF('Weighting Factors'!H14>0,'Weighting Factors'!H14,'Preliminary SO66'!AV13) -> 3053774 | BI14: 2734896 | BK14: ='Weighting Factors'!F14 -> 0 | BL14: ='Weighting Factors'!E14 -> 0 | BM14: 0 | BN14: 2734896 | BO14: =SUM((S14+T14+Y14+AA14+AE14+AH14+AJ14++AO14+AP14+AQ14+AR14)*'Weighting Factors'!Q$12)+(MAX(AS14,'Weighting Factors'!B14)) -> 3281998 | BP14: 0.3 | BQ14: 984599 | BR14: 1049929 | BS14: 984599 | BT14: 0.3 | BU14: 0 | BV14: FALSE | BW14: 0 | BX14: 0 | BY14: 0 | BZ14: TRUE | CA14: 46.4063 | CB14: 0.471446 | CC14: 159.1 | CD14: 0 | CE14: 229 | CF14: 0.9 | CG14: =IF(ROUND(('Weighting Factors'!$T$5*CF14^'Weighting Factors'!$T$6*'Weighting Factors'!$T$8 ),2)<'Weighting Factors'!$T$7,'Weighting Factors'!$T$7,ROUND(('Weighting Factors'!$T$5*CF14^'Weighting Factors'!$T$6*'Weighting Factors'!$T$8 ),2)) -> 925.18 | CH14: =ROUND(CG14/'Weighting Factors'!$Q$5,4) -> 0.2309 | CI14: 47.4 | CJ14: 0 | CK14: 0 | CL14: 0 | CM14: 0 | CN14: =SUM((AV14*'Weighting Factors'!$Q$5)+'2018 Legal Max'!BA14)*CM14 -> 0 | CO14: 0 | CP14: 0.2609 | CQ14: 0 | CR14: 0 | CS14: 682.7 | CV14: D0111
A15: 112 | B15: Ellsworth | C15: Central Plains | D15: 410 | E15: 0 | F15: 410 | G15: 418 | H15: =IF(ISNA(VLOOKUP($CV15,'Audit Values'!$A$2:$BU$326,2,FALSE)),'Preliminary SO66'!AI14,VLOOKUP($CV15,'Audit Values'!$A$2:$BU$326,2,FALSE)) -> 0 | I15: 418 | J15: 453.9 | K15: =IF(ISNA(VLOOKUP($CV15,'Audit Values'!$A$2:$BU$326,2,FALSE)),'Preliminary SO66'!AJ14,VLOOKUP($CV15,'Audit Values'!$A$2:$BU$326,3,FALSE)) -> 0 | L15: 453.9 | M15: =IF(ISNA(VLOOKUP($CV15,'Audit Values'!$A$2:$BU$326,2,FALSE)),'Preliminary SO66'!C14,VLOOKUP($CV15,'Audit Values'!$A$2:$BU$326,73,FALSE)) -> 457.1 | N15: =IF(ISNA(VLOOKUP($CV15,'Audit Values'!$A$2:$BU$326,2,FALSE)),'Preliminary SO66'!F14,VLOOKUP($CV15,'Audit Values'!$A$2:$BU$326,4,FALSE)) -> 0 | O15: =IF(ISNA(VLOOKUP($CV15,'Audit Values'!$A$2:$BU$326,2,FALSE)),'Preliminary SO66'!AK14,VLOOKUP($CV15,'Audit Values'!$A$2:$BU$326,57,FALSE)) -> 457.1 | P15: =IF('Military Provision'!J16="YES", MAX('2018 Legal Max'!L15,'2018 Legal Max'!I15,AVERAGE('2018 Legal Max'!F15,'2018 Legal Max'!I15,'2018 Legal Max'!L15)), MAX(L15, I15)) -> 453.9 | Q15: =IF(ISNA(VLOOKUP($CV15,'Audit Values'!$A$2:$BU$326,2,FALSE)),'Preliminary SO66'!AL14,VLOOKUP($CV15,'Audit Values'!$A$2:$BU$326,58,FALSE)) -> 3.5 | R15: =IF(ISNA(VLOOKUP($CV15,'Audit Values'!$A$2:$BU$326,2,FALSE)),'Preliminary SO66'!AT14,VLOOKUP($CV15,'Audit Values'!$A$2:$BU$326,59,FALSE)) -> 28 | S15: 485.4 | T15: 204.4 | U15: =IF(ISNA(VLOOKUP($CV15,'Audit Values'!$A$2:$BW$294,2,FALSE)),'Preliminary SO66'!AM14,VLOOKUP($CV15,'Audit Values'!$A$2:$BW$294,62,FALSE)) -> 0 | V15: =(U15/6)*'Weighting Factors'!$Q$7 -> 0 | W15: =IF(ISNA(VLOOKUP($CV15,'Audit Values'!$A$2:$BW$294,2,FALSE)),'Preliminary SO66'!AN14,VLOOKUP($CV15,'Audit Values'!$A$2:$BW$294,61,FALSE)) -> 0 | X15: =W15*'Weighting Factors'!$Q$8 -> 0 | Y15: 0 | Z15: =IF(ISNA(VLOOKUP($CV15,'Audit Values'!$A$2:$BW$294,2,FALSE)),'Preliminary SO66'!AO14,VLOOKUP($CV15,'Audit Values'!$A$2:$BW$294,60,FALSE)) -> 153.1 | AA15: =Z15/6*'Weighting Factors'!$Q$6 -> 12.8 | AB15: =IF(ISNA(VLOOKUP($CV15,'Audit Values'!$A$2:$BU$326,2,FALSE)),'Preliminary SO66'!AS14,VLOOKUP($CV15,'Audit Values'!$A$2:$BU$326,63,FALSE)) -> 468 | AC15: 47 | AD15: =IF(ISNA(VLOOKUP($CV15,'Audit Values'!$A$2:$BU$370,2,FALSE)),'Preliminary SO66'!AP14,VLOOKUP($CV15,'Audit Values'!$A$2:$BU$370,64,FALSE)) -> 178 | AE15: =IF(A15=207, AD15,MAX(AC15,AD15))*'Weighting Factors'!$Q$9 -> 86.2 | AF15: 3.8 | AG15: =IF(ISNA(VLOOKUP($CV15,'Audit Values'!$A$2:$BW$326,2,FALSE)),'Preliminary SO66'!AG14,VLOOKUP($CV15,'Audit Values'!$A$2:$BW$326,70,FALSE)) -> 7.1 | AH15: 7.1 | AI15: =IF(ISNA(VLOOKUP($CV15,'Audit Values'!$A$2:$BU$326,2,FALSE)),'Preliminary SO66'!AQ14,VLOOKUP($CV15,'Audit Values'!$A$2:$BU$326,65,FALSE)) -> 0 | AJ15: =AI15*'Weighting Factors'!$Q$10 -> 0 | AK15: =IF(ISNA(VLOOKUP($CV15,'Audit Values'!$A$2:$BU$326,2,FALSE)),'Preliminary SO66'!AR14,VLOOKUP($CV15,'Audit Values'!$A$2:$BU$326,66,FALSE)) -> 256 | AL15: 67.7 | AM15: =AL15*'Weighting Factors'!$Q$5 -> 271206 | AN15: 303538 | AO15: =MAX(AM15, AN15)/'Weighting Factors'!$Q$5 -> 75.8 | AP15: =CJ15/'Weighting Factors'!$Q$5 -> 0 | AQ15: =CK15/'Weighting Factors'!$Q$5 -> 0 | AR15: =CO15/'Weighting Factors'!$Q$5 -> 0 | AS15: 484831 | AT15: =AS15/'Weighting Factors'!$Q$5 -> 121 | AU15: =IF(ISNA(VLOOKUP($CV15,'Audit Values'!$A$2:$BU$326,2,FALSE)),'Preliminary SO66'!X14,VLOOKUP($CV15,'Audit Values'!$A$2:$BU$326,47,FALSE)) -> 0 | AV15: 992.7 | AW15: 871.7 | AX15: =IF(ISNA(VLOOKUP($CV15,'Audit Values'!$A$2:$BU$326,2,FALSE)),'Preliminary SO66'!AA14,VLOOKUP($CV15,'Audit Values'!$A$2:$BU$326,41,FALSE)) -> 23 | AY15: =IF(ISNA(VLOOKUP($CV15,'Audit Values'!$A$2:$BU$326,2,FALSE)),'Preliminary SO66'!AB14,VLOOKUP($CV15,'Audit Values'!$A$2:$BU$326,42,FALSE)) -> 1.6 | AZ15: 28 | BA15: =SUM(AX15*'Weighting Factors'!$T$10)+('2018 Legal Max'!AY15*'Weighting Factors'!$T$11)+('2018 Legal Max'!AZ15*'Weighting Factors'!$T$12) -> 137572 | BB15: 0 | BC15: =IF(ISNA(VLOOKUP($CV15,'Audit Values'!$A$2:$BU$326,2,FALSE)),"",IF(AND('Weighting Factors'!H15>0,VLOOKUP($CV15,'Audit Values'!$A$2:$BU$326,51,FALSE)<'Weighting Factors'!H15),'Weighting Factors'!H15,VLOOKUP($CV15,'Audit Values'!$A$2:$BU$326,50,FALSE))) -> 5 | BD15: =IF(ISNA(VLOOKUP($CV15,'Audit Values'!$A$2:$BV$326,2,FALSE)),"",VLOOKUP($CV15,'Audit Values'!$A$2:$BV$326,51,FALSE)) -> A | BE15: =IF('Weighting Factors'!H15="","",IF('Weighting Factors'!J15="Pending","PX","R")) ->  | BF15: =SUM((S15+T15+Y15+AA15+AE15+AH15+AJ15++AO15+AP15+AQ15+AU15+AR15)*'Weighting Factors'!$Q$5)+'2018 Legal Max'!BA15+'2018 Legal Max'!BB15 -> 3629602 | BG15: =SUM((AV15+AR15)*'Weighting Factors'!$Q$5)+BA15+'2018 Legal Max'!BB15 -> 4114328 | BH15: =IF('Weighting Factors'!H15>0,'Weighting Factors'!H15,'Preliminary SO66'!AV14) -> 4304204 | BI15: 4114328 | BK15: ='Weighting Factors'!F15 -> 0 | BL15: ='Weighting Factors'!E15 -> -20993 | BM15: -20993 | BN15: 4093335 | BO15: =SUM((S15+T15+Y15+AA15+AE15+AH15+AJ15++AO15+AP15+AQ15+AR15)*'Weighting Factors'!Q$12)+(MAX(AS15,'Weighting Factors'!B15)) -> 4599909 | BP15: 0.3 | BQ15: 1379973 | BR15: 1412166 | BS15: 1379973 | BT15: 0.3 | BU15: 0 | BV15: FALSE | BW15: 0 | BX15: 0 | BY15: 0 | BZ15: TRUE | CA15: 229.4325 | CB15: 0.421197 | CC15: 204.4 | CD15: 0 | CE15: 582.8 | CF15: 0.44 | CG15: =IF(ROUND(('Weighting Factors'!$T$5*CF15^'Weighting Factors'!$T$6*'Weighting Factors'!$T$8 ),2)<'Weighting Factors'!$T$7,'Weighting Factors'!$T$7,ROUND(('Weighting Factors'!$T$5*CF15^'Weighting Factors'!$T$6*'Weighting Factors'!$T$8 ),2)) -> 1058.93 | CH15: =ROUND(CG15/'Weighting Factors'!$Q$5,4) -> 0.2643 | CI15: 67.7 | CJ15: 0 | CK15: 0 | CL15: 0 | CM15: 0 | CN15: =SUM((AV15*'Weighting Factors'!$Q$5)+'2018 Legal Max'!BA15)*CM15 -> 0 | CO15: 0 | CP15: 0.3803 | CQ15: 0 | CR15: 3.8 | CS15: 992.7 | CV15: D0112
A16: 113 | B16: Nemaha | C16: Prairie Hills | D16: 1034.4 | E16: 0 | F16: 1034.4 | G16: 1051.7 | H16: =IF(ISNA(VLOOKUP($CV16,'Audit Values'!$A$2:$BU$326,2,FALSE)),'Preliminary SO66'!AI15,VLOOKUP($CV16,'Audit Values'!$A$2:$BU$326,2,FALSE)) -> 0 | I16: 1051.7 | J16: 1002.8 | K16: =IF(ISNA(VLOOKUP($CV16,'Audit Values'!$A$2:$BU$326,2,FALSE)),'Preliminary SO66'!AJ15,VLOOKUP($CV16,'Audit Values'!$A$2:$BU$326,3,FALSE)) -> 0 | L16: 1002.8 | M16: =IF(ISNA(VLOOKUP($CV16,'Audit Values'!$A$2:$BU$326,2,FALSE)),'Preliminary SO66'!C15,VLOOKUP($CV16,'Audit Values'!$A$2:$BU$326,73,FALSE)) -> 1050.1 | N16: =IF(ISNA(VLOOKUP($CV16,'Audit Values'!$A$2:$BU$326,2,FALSE)),'Preliminary SO66'!F15,VLOOKUP($CV16,'Audit Values'!$A$2:$BU$326,4,FALSE)) -> 0 | O16: =IF(ISNA(VLOOKUP($CV16,'Audit Values'!$A$2:$BU$326,2,FALSE)),'Preliminary SO66'!AK15,VLOOKUP($CV16,'Audit Values'!$A$2:$BU$326,57,FALSE)) -> 1050.1 | P16: =IF('Military Provision'!J17="YES", MAX('2018 Legal Max'!L16,'2018 Legal Max'!I16,AVERAGE('2018 Legal Max'!F16,'2018 Legal Max'!I16,'2018 Legal Max'!L16)), MAX(L16, I16)) -> 1051.7 | Q16: =IF(ISNA(VLOOKUP($CV16,'Audit Values'!$A$2:$BU$326,2,FALSE)),'Preliminary SO66'!AL15,VLOOKUP($CV16,'Audit Values'!$A$2:$BU$326,58,FALSE)) -> 14 | R16: =IF(ISNA(VLOOKUP($CV16,'Audit Values'!$A$2:$BU$326,2,FALSE)),'Preliminary SO66'!AT15,VLOOKUP($CV16,'Audit Values'!$A$2:$BU$326,59,FALSE)) -> 84 | S16: 1149.7 | T16: 224.8 | U16: =IF(ISNA(VLOOKUP($CV16,'Audit Values'!$A$2:$BW$294,2,FALSE)),'Preliminary SO66'!AM15,VLOOKUP($CV16,'Audit Values'!$A$2:$BW$294,62,FALSE)) -> 0 | V16: =(U16/6)*'Weighting Factors'!$Q$7 -> 0 | W16: =IF(ISNA(VLOOKUP($CV16,'Audit Values'!$A$2:$BW$294,2,FALSE)),'Preliminary SO66'!AN15,VLOOKUP($CV16,'Audit Values'!$A$2:$BW$294,61,FALSE)) -> 2 | X16: =W16*'Weighting Factors'!$Q$8 -> 0.4 | Y16: 0.4 | Z16: =IF(ISNA(VLOOKUP($CV16,'Audit Values'!$A$2:$BW$294,2,FALSE)),'Preliminary SO66'!AO15,VLOOKUP($CV16,'Audit Values'!$A$2:$BW$294,60,FALSE)) -> 271.9 | AA16: =Z16/6*'Weighting Factors'!$Q$6 -> 22.7 | AB16: =IF(ISNA(VLOOKUP($CV16,'Audit Values'!$A$2:$BU$326,2,FALSE)),'Preliminary SO66'!AS15,VLOOKUP($CV16,'Audit Values'!$A$2:$BU$326,63,FALSE)) -> 1092 | AC16: 109 | AD16: =IF(ISNA(VLOOKUP($CV16,'Audit Values'!$A$2:$BU$370,2,FALSE)),'Preliminary SO66'!AP15,VLOOKUP($CV16,'Audit Values'!$A$2:$BU$370,64,FALSE)) -> 311 | AE16: =IF(A16=207, AD16,MAX(AC16,AD16))*'Weighting Factors'!$Q$9 -> 150.5 | AF16: 0 | AG16: =IF(ISNA(VLOOKUP($CV16,'Audit Values'!$A$2:$BW$326,2,FALSE)),'Preliminary SO66'!AG15,VLOOKUP($CV16,'Audit Values'!$A$2:$BW$326,70,FALSE)) -> 5.8 | AH16: 5.8 | AI16: =IF(ISNA(VLOOKUP($CV16,'Audit Values'!$A$2:$BU$326,2,FALSE)),'Preliminary SO66'!AQ15,VLOOKUP($CV16,'Audit Values'!$A$2:$BU$326,65,FALSE)) -> 0 | AJ16: =AI16*'Weighting Factors'!$Q$10 -> 0 | AK16: =IF(ISNA(VLOOKUP($CV16,'Audit Values'!$A$2:$BU$326,2,FALSE)),'Preliminary SO66'!AR15,VLOOKUP($CV16,'Audit Values'!$A$2:$BU$326,66,FALSE)) -> 381 | AL16: 92.3 | AM16: =AL16*'Weighting Factors'!$Q$5 -> 369754 | AN16: 458388 | AO16: =MAX(AM16, AN16)/'Weighting Factors'!$Q$5 -> 114.4 | AP16: =CJ16/'Weighting Factors'!$Q$5 -> 0 | AQ16: =CK16/'Weighting Factors'!$Q$5 -> 0 | AR16: =CO16/'Weighting Factors'!$Q$5 -> 0 | AS16: 751541 | AT16: =AS16/'Weighting Factors'!$Q$5 -> 187.6 | AU16: =IF(ISNA(VLOOKUP($CV16,'Audit Values'!$A$2:$BU$326,2,FALSE)),'Preliminary SO66'!X15,VLOOKUP($CV16,'Audit Values'!$A$2:$BU$326,47,FALSE)) -> 0 | AV16: 1855.9 | AW16: 1668.3 | AX16: =IF(ISNA(VLOOKUP($CV16,'Audit Values'!$A$2:$BU$326,2,FALSE)),'Preliminary SO66'!AA15,VLOOKUP($CV16,'Audit Values'!$A$2:$BU$326,41,FALSE)) -> 0 | AY16: =IF(ISNA(VLOOKUP($CV16,'Audit Values'!$A$2:$BU$326,2,FALSE)),'Preliminary SO66'!AB15,VLOOKUP($CV16,'Audit Values'!$A$2:$BU$326,42,FALSE)) -> 0 | AZ16: 0 | BA16: =SUM(AX16*'Weighting Factors'!$T$10)+('2018 Legal Max'!AY16*'Weighting Factors'!$T$11)+('2018 Legal Max'!AZ16*'Weighting Factors'!$T$12) -> 0 | BB16: 0 | BC16: =IF(ISNA(VLOOKUP($CV16,'Audit Values'!$A$2:$BU$326,2,FALSE)),"",IF(AND('Weighting Factors'!H16>0,VLOOKUP($CV16,'Audit Values'!$A$2:$BU$326,51,FALSE)<'Weighting Factors'!H16),'Weighting Factors'!H16,VLOOKUP($CV16,'Audit Values'!$A$2:$BU$326,50,FALSE))) -> 6 | BD16: =IF(ISNA(VLOOKUP($CV16,'Audit Values'!$A$2:$BV$326,2,FALSE)),"",VLOOKUP($CV16,'Audit Values'!$A$2:$BV$326,51,FALSE)) -> A | BE16: =IF('Weighting Factors'!H16="","",IF('Weighting Factors'!J16="Pending","PX","R")) ->  | BF16: =SUM((S16+T16+Y16+AA16+AE16+AH16+AJ16++AO16+AP16+AQ16+AU16+AR16)*'Weighting Factors'!$Q$5)+'2018 Legal Max'!BA16+'2018 Legal Max'!BB16 -> 6683210 | BG16: =SUM((AV16+AR16)*'Weighting Factors'!$Q$5)+BA16+'2018 Legal Max'!BB16 -> 7434735 | BH16: =IF('Weighting Factors'!H16>0,'Weighting Factors'!H16,'Preliminary SO66'!AV15) -> 7537690 | BI16: 7434735 | BK16: ='Weighting Factors'!F16 -> 0 | BL16: ='Weighting Factors'!E16 -> 0 | BM16: 0 | BN16: 7434735 | BO16: =SUM((S16+T16+Y16+AA16+AE16+AH16+AJ16++AO16+AP16+AQ16+AR16)*'Weighting Factors'!Q$12)+(MAX(AS16,'Weighting Factors'!B16)) -> 8591460 | BP16: 0.3 | BQ16: 2577438 | BR16: 2587002 | BS16: 2577438 | BT16: 0.3 | BU16: 0 | BV16: FALSE | BW16: 0 | BX16: 0 | BY16: 0 | BZ16: TRUE | CA16: 1051.5038 | CB16: 0.195502 | CC16: 224.8 | CD16: 0 | CE16: 543 | CF16: 0.7 | CG16: =IF(ROUND(('Weighting Factors'!$T$5*CF16^'Weighting Factors'!$T$6*'Weighting Factors'!$T$8 ),2)<'Weighting Factors'!$T$7,'Weighting Factors'!$T$7,ROUND(('Weighting Factors'!$T$5*CF16^'Weighting Factors'!$T$6*'Weighting Factors'!$T$8 ),2)) -> 970.1 | CH16: =ROUND(CG16/'Weighting Factors'!$Q$5,4) -> 0.2422 | CI16: 92.3 | CJ16: 0 | CK16: 0 | CL16: 0 | CM16: 0 | CN16: =SUM((AV16*'Weighting Factors'!$Q$5)+'2018 Legal Max'!BA16)*CM16 -> 0 | CO16: 0 | CP16: 0.2848 | CQ16: 0 | CR16: 0 | CS16: 1855.9 | CV16: D0113
A17: 114 | B17: Doniphan | C17: Riverside | D17: 603.6 | E17: 0 | F17: 603.6 | G17: 552.3 | H17: =IF(ISNA(VLOOKUP($CV17,'Audit Values'!$A$2:$BU$326,2,FALSE)),'Preliminary SO66'!AI16,VLOOKUP($CV17,'Audit Values'!$A$2:$BU$326,2,FALSE)) -> 0 | I17: 552.3 | J17: 540.7 | K17: =IF(ISNA(VLOOKUP($CV17,'Audit Values'!$A$2:$BU$326,2,FALSE)),'Preliminary SO66'!AJ16,VLOOKUP($CV17,'Audit Values'!$A$2:$BU$326,3,FALSE)) -> 0 | L17: 540.7 | M17: =IF(ISNA(VLOOKUP($CV17,'Audit Values'!$A$2:$BU$326,2,FALSE)),'Preliminary SO66'!C16,VLOOKUP($CV17,'Audit Values'!$A$2:$BU$326,73,FALSE)) -> 588.5 | N17: =IF(ISNA(VLOOKUP($CV17,'Audit Values'!$A$2:$BU$326,2,FALSE)),'Preliminary SO66'!F16,VLOOKUP($CV17,'Audit Values'!$A$2:$BU$326,4,FALSE)) -> 0 | O17: =IF(ISNA(VLOOKUP($CV17,'Audit Values'!$A$2:$BU$326,2,FALSE)),'Preliminary SO66'!AK16,VLOOKUP($CV17,'Audit Values'!$A$2:$BU$326,57,FALSE)) -> 588.5 | P17: =IF('Military Provision'!J18="YES", MAX('2018 Legal Max'!L17,'2018 Legal Max'!I17,AVERAGE('2018 Legal Max'!F17,'2018 Legal Max'!I17,'2018 Legal Max'!L17)), MAX(L17, I17)) -> 552.3 | Q17: =IF(ISNA(VLOOKUP($CV17,'Audit Values'!$A$2:$BU$326,2,FALSE)),'Preliminary SO66'!AL16,VLOOKUP($CV17,'Audit Values'!$A$2:$BU$326,58,FALSE)) -> 3.5 | R17: =IF(ISNA(VLOOKUP($CV17,'Audit Values'!$A$2:$BU$326,2,FALSE)),'Preliminary SO66'!AT16,VLOOKUP($CV17,'Audit Values'!$A$2:$BU$326,59,FALSE)) -> 44 | S17: 599.8 | T17: 229.3 | U17: =IF(ISNA(VLOOKUP($CV17,'Audit Values'!$A$2:$BW$294,2,FALSE)),'Preliminary SO66'!AM16,VLOOKUP($CV17,'Audit Values'!$A$2:$BW$294,62,FALSE)) -> 0 | V17: =(U17/6)*'Weighting Factors'!$Q$7 -> 0 | W17: =IF(ISNA(VLOOKUP($CV17,'Audit Values'!$A$2:$BW$294,2,FALSE)),'Preliminary SO66'!AN16,VLOOKUP($CV17,'Audit Values'!$A$2:$BW$294,61,FALSE)) -> 0 | X17: =W17*'Weighting Factors'!$Q$8 -> 0 | Y17: 0 | Z17: =IF(ISNA(VLOOKUP($CV17,'Audit Values'!$A$2:$BW$294,2,FALSE)),'Preliminary SO66'!AO16,VLOOKUP($CV17,'Audit Values'!$A$2:$BW$294,60,FALSE)) -> 205.8 | AA17: =Z17/6*'Weighting Factors'!$Q$6 -> 17.2 | AB17: =IF(ISNA(VLOOKUP($CV17,'Audit Values'!$A$2:$BU$326,2,FALSE)),'Preliminary SO66'!AS16,VLOOKUP($CV17,'Audit Values'!$A$2:$BU$326,63,FALSE)) -> 606 | AC17: 61 | AD17: =IF(ISNA(VLOOKUP($CV17,'Audit Values'!$A$2:$BU$370,2,FALSE)),'Preliminary SO66'!AP16,VLOOKUP($CV17,'Audit Values'!$A$2:$BU$370,64,FALSE)) -> 278 | AE17: =IF(A17=207, AD17,MAX(AC17,AD17))*'Weighting Factors'!$Q$9 -> 134.6 | AF17: 21.2 | AG17: =IF(ISNA(VLOOKUP($CV17,'Audit Values'!$A$2:$BW$326,2,FALSE)),'Preliminary SO66'!AG16,VLOOKUP($CV17,'Audit Values'!$A$2:$BW$326,70,FALSE)) -> 21.6 | AH17: 21.6 | AI17: =IF(ISNA(VLOOKUP($CV17,'Audit Values'!$A$2:$BU$326,2,FALSE)),'Preliminary SO66'!AQ16,VLOOKUP($CV17,'Audit Values'!$A$2:$BU$326,65,FALSE)) -> 0 | AJ17: =AI17*'Weighting Factors'!$Q$10 -> 0 | AK17: =IF(ISNA(VLOOKUP($CV17,'Audit Values'!$A$2:$BU$326,2,FALSE)),'Preliminary SO66'!AR16,VLOOKUP($CV17,'Audit Values'!$A$2:$BU$326,66,FALSE)) -> 285 | AL17: 51.7 | AM17: =AL17*'Weighting Factors'!$Q$5 -> 207110 | AN17: 227268 | AO17: =MAX(AM17, AN17)/'Weighting Factors'!$Q$5 -> 56.7 | AP17: =CJ17/'Weighting Factors'!$Q$5 -> 0 | AQ17: =CK17/'Weighting Factors'!$Q$5 -> 0 | AR17: =CO17/'Weighting Factors'!$Q$5 -> 0 | AS17: 569063 | AT17: =AS17/'Weighting Factors'!$Q$5 -> 142.1 | AU17: =IF(ISNA(VLOOKUP($CV17,'Audit Values'!$A$2:$BU$326,2,FALSE)),'Preliminary SO66'!X16,VLOOKUP($CV17,'Audit Values'!$A$2:$BU$326,47,FALSE)) -> 0 | AV17: 1201.3 | AW17: 1059.2 | AX17: =IF(ISNA(VLOOKUP($CV17,'Audit Values'!$A$2:$BU$326,2,FALSE)),'Preliminary SO66'!AA16,VLOOKUP($CV17,'Audit Values'!$A$2:$BU$326,41,FALSE)) -> 4 | AY17: =IF(ISNA(VLOOKUP($CV17,'Audit Values'!$A$2:$BU$326,2,FALSE)),'Preliminary SO66'!AB16,VLOOKUP($CV17,'Audit Values'!$A$2:$BU$326,42,FALSE)) -> 0 | AZ17: 2.5 | BA17: =SUM(AX17*'Weighting Factors'!$T$10)+('2018 Legal Max'!AY17*'Weighting Factors'!$T$11)+('2018 Legal Max'!AZ17*'Weighting Factors'!$T$12) -> 21773 | BB17: 100000 | BC17: =IF(ISNA(VLOOKUP($CV17,'Audit Values'!$A$2:$BU$326,2,FALSE)),"",IF(AND('Weighting Factors'!H17>0,VLOOKUP($CV17,'Audit Values'!$A$2:$BU$326,51,FALSE)<'Weighting Factors'!H17),'Weighting Factors'!H17,VLOOKUP($CV17,'Audit Values'!$A$2:$BU$326,50,FALSE))) -> 13 | BD17: =IF(ISNA(VLOOKUP($CV17,'Audit Values'!$A$2:$BV$326,2,FALSE)),"",VLOOKUP($CV17,'Audit Values'!$A$2:$BV$326,51,FALSE)) -> A | BE17: =IF('Weighting Factors'!H17="","",IF('Weighting Factors'!J17="Pending","PX","R")) ->  | BF17: =SUM((S17+T17+Y17+AA17+AE17+AH17+AJ17++AO17+AP17+AQ17+AU17+AR17)*'Weighting Factors'!$Q$5)+'2018 Legal Max'!BA17+'2018 Legal Max'!BB17 -> 4364928 | BG17: =SUM((AV17+AR17)*'Weighting Factors'!$Q$5)+BA17+'2018 Legal Max'!BB17 -> 4934181 | BH17: =IF('Weighting Factors'!H17>0,'Weighting Factors'!H17,'Preliminary SO66'!AV16) -> 5341634 | BI17: 4934181 | BK17: ='Weighting Factors'!F17 -> 0 | BL17: ='Weighting Factors'!E17 -> 0 | BM17: 0 | BN17: 4934181 | BO17: =SUM((S17+T17+Y17+AA17+AE17+AH17+AJ17++AO17+AP17+AQ17+AR17)*'Weighting Factors'!Q$12)+(MAX(AS17,'Weighting Factors'!B17)) -> 5387363 | BP17: 0.3 | BQ17: 1616209 | BR17: 1713618 | BS17: 1616209 | BT17: 0.3 | BU17: 0 | BV17: FALSE | BW17: 0 | BX17: 0 | BY17: 0 | BZ17: TRUE | CA17: 371.0025 | CB17: 0.38233 | CC17: 229.3 | CD17: 0 | CE17: 88 | CF17: 3.24 | CG17: =IF(ROUND(('Weighting Factors'!$T$5*CF17^'Weighting Factors'!$T$6*'Weighting Factors'!$T$8 ),2)<'Weighting Factors'!$T$7,'Weighting Factors'!$T$7,ROUND(('Weighting Factors'!$T$5*CF17^'Weighting Factors'!$T$6*'Weighting Factors'!$T$8 ),2)) -> 726.54 | CH17: =ROUND(CG17/'Weighting Factors'!$Q$5,4) -> 0.1814 | CI17: 51.7 | CJ17: 0 | CK17: 0 | CL17: 0 | CM17: 0 | CN17: =SUM((AV17*'Weighting Factors'!$Q$5)+'2018 Legal Max'!BA17)*CM17 -> 0 | CO17: 0 | CP17: 0.4587 | CQ17: 0 | CR17: 21.2 | CS17: 1201.3 | CV17: D0114
A18: 115 | B18: Nemaha | C18: Nemaha Central | D18: 509.7 | E18: 0 | F18: 509.7 | G18: 536.8 | H18: =IF(ISNA(VLOOKUP($CV18,'Audit Values'!$A$2:$BU$326,2,FALSE)),'Preliminary SO66'!AI17,VLOOKUP($CV18,'Audit Values'!$A$2:$BU$326,2,FALSE)) -> 0 | I18: 536.8 | J18: 534.3 | K18: =IF(ISNA(VLOOKUP($CV18,'Audit Values'!$A$2:$BU$326,2,FALSE)),'Preliminary SO66'!AJ17,VLOOKUP($CV18,'Audit Values'!$A$2:$BU$326,3,FALSE)) -> 0 | L18: 534.3 | M18: =IF(ISNA(VLOOKUP($CV18,'Audit Values'!$A$2:$BU$326,2,FALSE)),'Preliminary SO66'!C17,VLOOKUP($CV18,'Audit Values'!$A$2:$BU$326,73,FALSE)) -> 555.2 | N18: =IF(ISNA(VLOOKUP($CV18,'Audit Values'!$A$2:$BU$326,2,FALSE)),'Preliminary SO66'!F17,VLOOKUP($CV18,'Audit Values'!$A$2:$BU$326,4,FALSE)) -> 0 | O18: =IF(ISNA(VLOOKUP($CV18,'Audit Values'!$A$2:$BU$326,2,FALSE)),'Preliminary SO66'!AK17,VLOOKUP($CV18,'Audit Values'!$A$2:$BU$326,57,FALSE)) -> 555.2 | P18: =IF('Military Provision'!J19="YES", MAX('2018 Legal Max'!L18,'2018 Legal Max'!I18,AVERAGE('2018 Legal Max'!F18,'2018 Legal Max'!I18,'2018 Legal Max'!L18)), MAX(L18, I18)) -> 536.8 | Q18: =IF(ISNA(VLOOKUP($CV18,'Audit Values'!$A$2:$BU$326,2,FALSE)),'Preliminary SO66'!AL17,VLOOKUP($CV18,'Audit Values'!$A$2:$BU$326,58,FALSE)) -> 9 | R18: =IF(ISNA(VLOOKUP($CV18,'Audit Values'!$A$2:$BU$326,2,FALSE)),'Preliminary SO66'!AT17,VLOOKUP($CV18,'Audit Values'!$A$2:$BU$326,59,FALSE)) -> 26 | S18: 571.8 | T18: 224.1 | U18: =IF(ISNA(VLOOKUP($CV18,'Audit Values'!$A$2:$BW$294,2,FALSE)),'Preliminary SO66'!AM17,VLOOKUP($CV18,'Audit Values'!$A$2:$BW$294,62,FALSE)) -> 0 | V18: =(U18/6)*'Weighting Factors'!$Q$7 -> 0 | W18: =IF(ISNA(VLOOKUP($CV18,'Audit Values'!$A$2:$BW$294,2,FALSE)),'Preliminary SO66'!AN17,VLOOKUP($CV18,'Audit Values'!$A$2:$BW$294,61,FALSE)) -> 15 | X18: =W18*'Weighting Factors'!$Q$8 -> 2.8 | Y18: 2.8 | Z18: =IF(ISNA(VLOOKUP($CV18,'Audit Values'!$A$2:$BW$294,2,FALSE)),'Preliminary SO66'!AO17,VLOOKUP($CV18,'Audit Values'!$A$2:$BW$294,60,FALSE)) -> 282 | AA18: =Z18/6*'Weighting Factors'!$Q$6 -> 23.5 | AB18: =IF(ISNA(VLOOKUP($CV18,'Audit Values'!$A$2:$BU$326,2,FALSE)),'Preliminary SO66'!AS17,VLOOKUP($CV18,'Audit Values'!$A$2:$BU$326,63,FALSE)) -> 588 | AC18: 59 | AD18: =IF(ISNA(VLOOKUP($CV18,'Audit Values'!$A$2:$BU$370,2,FALSE)),'Preliminary SO66'!AP17,VLOOKUP($CV18,'Audit Values'!$A$2:$BU$370,64,FALSE)) -> 95 | AE18: =IF(A18=207, AD18,MAX(AC18,AD18))*'Weighting Factors'!$Q$9 -> 46 | AF18: 0 | AG18: =IF(ISNA(VLOOKUP($CV18,'Audit Values'!$A$2:$BW$326,2,FALSE)),'Preliminary SO66'!AG17,VLOOKUP($CV18,'Audit Values'!$A$2:$BW$326,70,FALSE)) -> 0 | AH18: 0 | AI18: =IF(ISNA(VLOOKUP($CV18,'Audit Values'!$A$2:$BU$326,2,FALSE)),'Preliminary SO66'!AQ17,VLOOKUP($CV18,'Audit Values'!$A$2:$BU$326,65,FALSE)) -> 0 | AJ18: =AI18*'Weighting Factors'!$Q$10 -> 0 | AK18: =IF(ISNA(VLOOKUP($CV18,'Audit Values'!$A$2:$BU$326,2,FALSE)),'Preliminary SO66'!AR17,VLOOKUP($CV18,'Audit Values'!$A$2:$BU$326,66,FALSE)) -> 232.5 | AL18: 52.1 | AM18: =AL18*'Weighting Factors'!$Q$5 -> 208713 | AN18: 225342 | AO18: =MAX(AM18, AN18)/'Weighting Factors'!$Q$5 -> 56.3 | AP18: =CJ18/'Weighting Factors'!$Q$5 -> 0 | AQ18: =CK18/'Weighting Factors'!$Q$5 -> 0 | AR18: =CO18/'Weighting Factors'!$Q$5 -> 0 | AS18: 373201 | AT18: =AS18/'Weighting Factors'!$Q$5 -> 93.2 | AU18: =IF(ISNA(VLOOKUP($CV18,'Audit Values'!$A$2:$BU$326,2,FALSE)),'Preliminary SO66'!X17,VLOOKUP($CV18,'Audit Values'!$A$2:$BU$326,47,FALSE)) -> 0 | AV18: 1017.7 | AW18: 924.5 | AX18: =IF(ISNA(VLOOKUP($CV18,'Audit Values'!$A$2:$BU$326,2,FALSE)),'Preliminary SO66'!AA17,VLOOKUP($CV18,'Audit Values'!$A$2:$BU$326,41,FALSE)) -> 0 | AY18: =IF(ISNA(VLOOKUP($CV18,'Audit Values'!$A$2:$BU$326,2,FALSE)),'Preliminary SO66'!AB17,VLOOKUP($CV18,'Audit Values'!$A$2:$BU$326,42,FALSE)) -> 0 | AZ18: 0 | BA18: =SUM(AX18*'Weighting Factors'!$T$10)+('2018 Legal Max'!AY18*'Weighting Factors'!$T$11)+('2018 Legal Max'!AZ18*'Weighting Factors'!$T$12) -> 0 | BB18: 0 | BC18: =IF(ISNA(VLOOKUP($CV18,'Audit Values'!$A$2:$BU$326,2,FALSE)),"",IF(AND('Weighting Factors'!H18>0,VLOOKUP($CV18,'Audit Values'!$A$2:$BU$326,51,FALSE)<'Weighting Factors'!H18),'Weighting Factors'!H18,VLOOKUP($CV18,'Audit Values'!$A$2:$BU$326,50,FALSE))) -> 2 | BD18: =IF(ISNA(VLOOKUP($CV18,'Audit Values'!$A$2:$BV$326,2,FALSE)),"",VLOOKUP($CV18,'Audit Values'!$A$2:$BV$326,51,FALSE)) -> A | BE18: =IF('Weighting Factors'!H18="","",IF('Weighting Factors'!J18="Pending","PX","R")) ->  | BF18: =SUM((S18+T18+Y18+AA18+AE18+AH18+AJ18++AO18+AP18+AQ18+AU18+AR18)*'Weighting Factors'!$Q$5)+'2018 Legal Max'!BA18+'2018 Legal Max'!BB18 -> 3703547 | BG18: =SUM((AV18+AR18)*'Weighting Factors'!$Q$5)+BA18+'2018 Legal Max'!BB18 -> 4076906 | BH18: =IF('Weighting Factors'!H18>0,'Weighting Factors'!H18,'Preliminary SO66'!AV17) -> 4419419 | BI18: 4076906 | BK18: ='Weighting Factors'!F18 -> 0 | BL18: ='Weighting Factors'!E18 -> 0 | BM18: 0 | BN18: 4076906 | BO18: =SUM((S18+T18+Y18+AA18+AE18+AH18+AJ18++AO18+AP18+AQ18+AR18)*'Weighting Factors'!Q$12)+(MAX(AS18,'Weighting Factors'!B18)) -> 4728238 | BP18: 0.3 | BQ18: 1418471 | BR18: 1210000 | BS18: 1210000 | BT18: 0.2559 | BU18: 0 | BV18: FALSE | BW18: 0 | BX18: 0 | BY18: 0 | BZ18: TRUE | CA18: 336.3525 | CB18: 0.391843 | CC18: 224.1 | CD18: 0 | CE18: 222 | CF18: 1.05 | CG18: =IF(ROUND(('Weighting Factors'!$T$5*CF18^'Weighting Factors'!$T$6*'Weighting Factors'!$T$8 ),2)<'Weighting Factors'!$T$7,'Weighting Factors'!$T$7,ROUND(('Weighting Factors'!$T$5*CF18^'Weighting Factors'!$T$6*'Weighting Factors'!$T$8 ),2)) -> 898.65 | CH18: =ROUND(CG18/'Weighting Factors'!$Q$5,4) -> 0.2243 | CI18: 52.1 | CJ18: 0 | CK18: 0 | CL18: 0 | CM18: 0 | CN18: =SUM((AV18*'Weighting Factors'!$Q$5)+'2018 Legal Max'!BA18)*CM18 -> 0 | CO18: 0 | CP18: 0.1616 | CQ18: 0 | CR18: 0 | CS18: 1017.7 | CV18: D0115
A19: 200 | B19: Greeley | C19: Greeley County Schools | D19: 224.9 | E19: 0 | F19: 224.9 | G19: 227.5 | H19: =IF(ISNA(VLOOKUP($CV19,'Audit Values'!$A$2:$BU$326,2,FALSE)),'Preliminary SO66'!AI18,VLOOKUP($CV19,'Audit Values'!$A$2:$BU$326,2,FALSE)) -> 0 | I19: 227.5 | J19: 222.3 | K19: =IF(ISNA(VLOOKUP($CV19,'Audit Values'!$A$2:$BU$326,2,FALSE)),'Preliminary SO66'!AJ18,VLOOKUP($CV19,'Audit Values'!$A$2:$BU$326,3,FALSE)) -> 0 | L19: 222.3 | M19: =IF(ISNA(VLOOKUP($CV19,'Audit Values'!$A$2:$BU$326,2,FALSE)),'Preliminary SO66'!C18,VLOOKUP($CV19,'Audit Values'!$A$2:$BU$326,73,FALSE)) -> 253.1 | N19: =IF(ISNA(VLOOKUP($CV19,'Audit Values'!$A$2:$BU$326,2,FALSE)),'Preliminary SO66'!F18,VLOOKUP($CV19,'Audit Values'!$A$2:$BU$326,4,FALSE)) -> 0 | O19: =IF(ISNA(VLOOKUP($CV19,'Audit Values'!$A$2:$BU$326,2,FALSE)),'Preliminary SO66'!AK18,VLOOKUP($CV19,'Audit Values'!$A$2:$BU$326,57,FALSE)) -> 253.1 | P19: =IF('Military Provision'!J20="YES", MAX('2018 Legal Max'!L19,'2018 Legal Max'!I19,AVERAGE('2018 Legal Max'!F19,'2018 Legal Max'!I19,'2018 Legal Max'!L19)), MAX(L19, I19)) -> 227.5 | Q19: =IF(ISNA(VLOOKUP($CV19,'Audit Values'!$A$2:$BU$326,2,FALSE)),'Preliminary SO66'!AL18,VLOOKUP($CV19,'Audit Values'!$A$2:$BU$326,58,FALSE)) -> 4 | R19: =IF(ISNA(VLOOKUP($CV19,'Audit Values'!$A$2:$BU$326,2,FALSE)),'Preliminary SO66'!AT18,VLOOKUP($CV19,'Audit Values'!$A$2:$BU$326,59,FALSE)) -> 21 | S19: 252.5 | T19: 154 | U19: =IF(ISNA(VLOOKUP($CV19,'Audit Values'!$A$2:$BW$294,2,FALSE)),'Preliminary SO66'!AM18,VLOOKUP($CV19,'Audit Values'!$A$2:$BW$294,62,FALSE)) -> 135 | V19: =(U19/6)*'Weighting Factors'!$Q$7 -> 8.9 | W19: =IF(ISNA(VLOOKUP($CV19,'Audit Values'!$A$2:$BW$294,2,FALSE)),'Preliminary SO66'!AN18,VLOOKUP($CV19,'Audit Values'!$A$2:$BW$294,61,FALSE)) -> 63 | X19: =W19*'Weighting Factors'!$Q$8 -> 11.7 | Y19: 11.7 | Z19: =IF(ISNA(VLOOKUP($CV19,'Audit Values'!$A$2:$BW$294,2,FALSE)),'Preliminary SO66'!AO18,VLOOKUP($CV19,'Audit Values'!$A$2:$BW$294,60,FALSE)) -> 27.9 | AA19: =Z19/6*'Weighting Factors'!$Q$6 -> 2.3 | AB19: =IF(ISNA(VLOOKUP($CV19,'Audit Values'!$A$2:$BU$326,2,FALSE)),'Preliminary SO66'!AS18,VLOOKUP($CV19,'Audit Values'!$A$2:$BU$326,63,FALSE)) -> 264 | AC19: 26 | AD19: =IF(ISNA(VLOOKUP($CV19,'Audit Values'!$A$2:$BU$370,2,FALSE)),'Preliminary SO66'!AP18,VLOOKUP($CV19,'Audit Values'!$A$2:$BU$370,64,FALSE)) -> 106 | AE19: =IF(A19=207, AD19,MAX(AC19,AD19))*'Weighting Factors'!$Q$9 -> 51.3 | AF19: 3.8 | AG19: =IF(ISNA(VLOOKUP($CV19,'Audit Values'!$A$2:$BW$326,2,FALSE)),'Preliminary SO66'!AG18,VLOOKUP($CV19,'Audit Values'!$A$2:$BW$326,70,FALSE)) -> 3.8 | AH19: 3.8 | AI19: =IF(ISNA(VLOOKUP($CV19,'Audit Values'!$A$2:$BU$326,2,FALSE)),'Preliminary SO66'!AQ18,VLOOKUP($CV19,'Audit Values'!$A$2:$BU$326,65,FALSE)) -> 0 | AJ19: =AI19*'Weighting Factors'!$Q$10 -> 0 | AK19: =IF(ISNA(VLOOKUP($CV19,'Audit Values'!$A$2:$BU$326,2,FALSE)),'Preliminary SO66'!AR18,VLOOKUP($CV19,'Audit Values'!$A$2:$BU$326,66,FALSE)) -> 77 | AL19: 26.9 | AM19: =AL19*'Weighting Factors'!$Q$5 -> 107761 | AN19: 124420 | AO19: =MAX(AM19, AN19)/'Weighting Factors'!$Q$5 -> 31.1 | AP19: =CJ19/'Weighting Factors'!$Q$5 -> 0 | AQ19: =CK19/'Weighting Factors'!$Q$5 -> 0 | AR19: =CO19/'Weighting Factors'!$Q$5 -> 0 | AS19: 152516 | AT19: =AS19/'Weighting Factors'!$Q$5 -> 38.1 | AU19: =IF(ISNA(VLOOKUP($CV19,'Audit Values'!$A$2:$BU$326,2,FALSE)),'Preliminary SO66'!X18,VLOOKUP($CV19,'Audit Values'!$A$2:$BU$326,47,FALSE)) -> 0 | AV19: 544.8 | AW19: 506.7 | AX19: =IF(ISNA(VLOOKUP($CV19,'Audit Values'!$A$2:$BU$326,2,FALSE)),'Preliminary SO66'!AA18,VLOOKUP($CV19,'Audit Values'!$A$2:$BU$326,41,FALSE)) -> 0 | AY19: =IF(ISNA(VLOOKUP($CV19,'Audit Values'!$A$2:$BU$326,2,FALSE)),'Preliminary SO66'!AB18,VLOOKUP($CV19,'Audit Values'!$A$2:$BU$326,42,FALSE)) -> 0 | AZ19: 0 | BA19: =SUM(AX19*'Weighting Factors'!$T$10)+('2018 Legal Max'!AY19*'Weighting Factors'!$T$11)+('2018 Legal Max'!AZ19*'Weighting Factors'!$T$12) -> 0 | BB19: 0 | BC19: =IF(ISNA(VLOOKUP($CV19,'Audit Values'!$A$2:$BU$326,2,FALSE)),"",IF(AND('Weighting Factors'!H19>0,VLOOKUP($CV19,'Audit Values'!$A$2:$BU$326,51,FALSE)<'Weighting Factors'!H19),'Weighting Factors'!H19,VLOOKUP($CV19,'Audit Values'!$A$2:$BU$326,50,FALSE))) -> 24 | BD19: =IF(ISNA(VLOOKUP($CV19,'Audit Values'!$A$2:$BV$326,2,FALSE)),"",VLOOKUP($CV19,'Audit Values'!$A$2:$BV$326,51,FALSE)) -> A | BE19: =IF('Weighting Factors'!H19="","",IF('Weighting Factors'!J19="Pending","PX","R")) ->  | BF19: =SUM((S19+T19+Y19+AA19+AE19+AH19+AJ19++AO19+AP19+AQ19+AU19+AR19)*'Weighting Factors'!$Q$5)+'2018 Legal Max'!BA19+'2018 Legal Max'!BB19 -> 2029840 | BG19: =SUM((AV19+AR19)*'Weighting Factors'!$Q$5)+BA19+'2018 Legal Max'!BB19 -> 2182469 | BH19: =IF('Weighting Factors'!H19>0,'Weighting Factors'!H19,'Preliminary SO66'!AV18) -> 2200095 | BI19: 2182469 | BK19: ='Weighting Factors'!F19 -> 0 | BL19: ='Weighting Factors'!E19 -> 0 | BM19: 0 | BN19: 2182469 | BO19: =SUM((S19+T19+Y19+AA19+AE19+AH19+AJ19++AO19+AP19+AQ19+AR19)*'Weighting Factors'!Q$12)+(MAX(AS19,'Weighting Factors'!B19)) -> 2440934 | BP19: 0.3 | BQ19: 732280 | BR19: 733762 | BS19: 732280 | BT19: 0.3 | BU19: 0 | BV19: TRUE | BW19: 1472.388 | BX19: 0.610096 | BY19: 154 | BZ19: FALSE | CA19: 0 | CB19: 0 | CC19: 0 | CD19: 0 | CE19: 780 | CF19: 0.1 | CG19: =IF(ROUND(('Weighting Factors'!$T$5*CF19^'Weighting Factors'!$T$6*'Weighting Factors'!$T$8 ),2)<'Weighting Factors'!$T$7,'Weighting Factors'!$T$7,ROUND(('Weighting Factors'!$T$5*CF19^'Weighting Factors'!$T$6*'Weighting Factors'!$T$8 ),2)) -> 1400.48 | CH19: =ROUND(CG19/'Weighting Factors'!$Q$5,4) -> 0.3496 | CI19: 26.9 | CJ19: 0 | CK19: 0 | CL19: 0 | CM19: 0 | CN19: =SUM((AV19*'Weighting Factors'!$Q$5)+'2018 Legal Max'!BA19)*CM19 -> 0 | CO19: 0 | CP19: 0.4015 | CQ19: 0 | CR19: 3.8 | CS19: 544.8 | CV19: D0200
A20: 202 | B20: Wyandotte | C20: Turner-Kansas City | D20: 3719.6 | E20: 0 | F20: 3719.6 | G20: 3687.7 | H20: =IF(ISNA(VLOOKUP($CV20,'Audit Values'!$A$2:$BU$326,2,FALSE)),'Preliminary SO66'!AI19,VLOOKUP($CV20,'Audit Values'!$A$2:$BU$326,2,FALSE)) -> 0 | I20: 3687.7 | J20: 3589.9 | K20: =IF(ISNA(VLOOKUP($CV20,'Audit Values'!$A$2:$BU$326,2,FALSE)),'Preliminary SO66'!AJ19,VLOOKUP($CV20,'Audit Values'!$A$2:$BU$326,3,FALSE)) -> 0 | L20: 3589.9 | M20: =IF(ISNA(VLOOKUP($CV20,'Audit Values'!$A$2:$BU$326,2,FALSE)),'Preliminary SO66'!C19,VLOOKUP($CV20,'Audit Values'!$A$2:$BU$326,73,FALSE)) -> 3956 | N20: =IF(ISNA(VLOOKUP($CV20,'Audit Values'!$A$2:$BU$326,2,FALSE)),'Preliminary SO66'!F19,VLOOKUP($CV20,'Audit Values'!$A$2:$BU$326,4,FALSE)) -> 0 | O20: =IF(ISNA(VLOOKUP($CV20,'Audit Values'!$A$2:$BU$326,2,FALSE)),'Preliminary SO66'!AK19,VLOOKUP($CV20,'Audit Values'!$A$2:$BU$326,57,FALSE)) -> 3956 | P20: =IF('Military Provision'!J21="YES", MAX('2018 Legal Max'!L20,'2018 Legal Max'!I20,AVERAGE('2018 Legal Max'!F20,'2018 Legal Max'!I20,'2018 Legal Max'!L20)), MAX(L20, I20)) -> 3687.7 | Q20: =IF(ISNA(VLOOKUP($CV20,'Audit Values'!$A$2:$BU$326,2,FALSE)),'Preliminary SO66'!AL19,VLOOKUP($CV20,'Audit Values'!$A$2:$BU$326,58,FALSE)) -> 81.5 | R20: =IF(ISNA(VLOOKUP($CV20,'Audit Values'!$A$2:$BU$326,2,FALSE)),'Preliminary SO66'!AT19,VLOOKUP($CV20,'Audit Values'!$A$2:$BU$326,59,FALSE)) -> 317 | S20: 4086.2 | T20: 143.2 | U20: =IF(ISNA(VLOOKUP($CV20,'Audit Values'!$A$2:$BW$294,2,FALSE)),'Preliminary SO66'!AM19,VLOOKUP($CV20,'Audit Values'!$A$2:$BW$294,62,FALSE)) -> 1541.3 | V20: =(U20/6)*'Weighting Factors'!$Q$7 -> 101.5 | W20: =IF(ISNA(VLOOKUP($CV20,'Audit Values'!$A$2:$BW$294,2,FALSE)),'Preliminary SO66'!AN19,VLOOKUP($CV20,'Audit Values'!$A$2:$BW$294,61,FALSE)) -> 914 | X20: =W20*'Weighting Factors'!$Q$8 -> 169.1 | Y20: 169.1 | Z20: =IF(ISNA(VLOOKUP($CV20,'Audit Values'!$A$2:$BW$294,2,FALSE)),'Preliminary SO66'!AO19,VLOOKUP($CV20,'Audit Values'!$A$2:$BW$294,60,FALSE)) -> 992.9 | AA20: =Z20/6*'Weighting Factors'!$Q$6 -> 82.7 | AB20: =IF(ISNA(VLOOKUP($CV20,'Audit Values'!$A$2:$BU$326,2,FALSE)),'Preliminary SO66'!AS19,VLOOKUP($CV20,'Audit Values'!$A$2:$BU$326,63,FALSE)) -> 4142 | AC20: 414 | AD20: =IF(ISNA(VLOOKUP($CV20,'Audit Values'!$A$2:$BU$370,2,FALSE)),'Preliminary SO66'!AP19,VLOOKUP($CV20,'Audit Values'!$A$2:$BU$370,64,FALSE)) -> 2529 | AE20: =IF(A20=207, AD20,MAX(AC20,AD20))*'Weighting Factors'!$Q$9 -> 1224 | AF20: 265.5 | AG20: =IF(ISNA(VLOOKUP($CV20,'Audit Values'!$A$2:$BW$326,2,FALSE)),'Preliminary SO66'!AG19,VLOOKUP($CV20,'Audit Values'!$A$2:$BW$326,70,FALSE)) -> 265.5 | AH20: 265.5 | AI20: =IF(ISNA(VLOOKUP($CV20,'Audit Values'!$A$2:$BU$326,2,FALSE)),'Preliminary SO66'!AQ19,VLOOKUP($CV20,'Audit Values'!$A$2:$BU$326,65,FALSE)) -> 0 | AJ20: =AI20*'Weighting Factors'!$Q$10 -> 0 | AK20: =IF(ISNA(VLOOKUP($CV20,'Audit Values'!$A$2:$BU$326,2,FALSE)),'Preliminary SO66'!AR19,VLOOKUP($CV20,'Audit Values'!$A$2:$BU$326,66,FALSE)) -> 1127 | AL20: 141.8 | AM20: =AL20*'Weighting Factors'!$Q$5 -> 568051 | AN20: 671789 | AO20: =MAX(AM20, AN20)/'Weighting Factors'!$Q$5 -> 167.7 | AP20: =CJ20/'Weighting Factors'!$Q$5 -> 0 | AQ20: =CK20/'Weighting Factors'!$Q$5 -> 0 | AR20: =CO20/'Weighting Factors'!$Q$5 -> 0 | AS20: 3068346 | AT20: =AS20/'Weighting Factors'!$Q$5 -> 765.9 | AU20: =IF(ISNA(VLOOKUP($CV20,'Audit Values'!$A$2:$BU$326,2,FALSE)),'Preliminary SO66'!X19,VLOOKUP($CV20,'Audit Values'!$A$2:$BU$326,47,FALSE)) -> 0 | AV20: 6904.3 | AW20: 6138.4 | AX20: =IF(ISNA(VLOOKUP($CV20,'Audit Values'!$A$2:$BU$326,2,FALSE)),'Preliminary SO66'!AA19,VLOOKUP($CV20,'Audit Values'!$A$2:$BU$326,41,FALSE)) -> 4 | AY20: =IF(ISNA(VLOOKUP($CV20,'Audit Values'!$A$2:$BU$326,2,FALSE)),'Preliminary SO66'!AB19,VLOOKUP($CV20,'Audit Values'!$A$2:$BU$326,42,FALSE)) -> 0.1 | AZ20: 161 | BA20: =SUM(AX20*'Weighting Factors'!$T$10)+('2018 Legal Max'!AY20*'Weighting Factors'!$T$11)+('2018 Legal Max'!AZ20*'Weighting Factors'!$T$12) -> 134319 | BB20: 0 | BC20: =IF(ISNA(VLOOKUP($CV20,'Audit Values'!$A$2:$BU$326,2,FALSE)),"",IF(AND('Weighting Factors'!H20>0,VLOOKUP($CV20,'Audit Values'!$A$2:$BU$326,51,FALSE)<'Weighting Factors'!H20),'Weighting Factors'!H20,VLOOKUP($CV20,'Audit Values'!$A$2:$BU$326,50,FALSE))) -> 7 | BD20: =IF(ISNA(VLOOKUP($CV20,'Audit Values'!$A$2:$BV$326,2,FALSE)),"",VLOOKUP($CV20,'Audit Values'!$A$2:$BV$326,51,FALSE)) -> A | BE20: =IF('Weighting Factors'!H20="","",IF('Weighting Factors'!J20="Pending","PX","R")) ->  | BF20: =SUM((S20+T20+Y20+AA20+AE20+AH20+AJ20++AO20+AP20+AQ20+AU20+AR20)*'Weighting Factors'!$Q$5)+'2018 Legal Max'!BA20+'2018 Legal Max'!BB20 -> 24724749 | BG20: =SUM((AV20+AR20)*'Weighting Factors'!$Q$5)+BA20+'2018 Legal Max'!BB20 -> 27792945 | BH20: =IF('Weighting Factors'!H20>0,'Weighting Factors'!H20,'Preliminary SO66'!AV19) -> 28653213 | BI20: 27792945 | BK20: ='Weighting Factors'!F20 -> 0 | BL20: ='Weighting Factors'!E20 -> -6531 | BM20: -6531 | BN20: 27786414 | BO20: =SUM((S20+T20+Y20+AA20+AE20+AH20+AJ20++AO20+AP20+AQ20+AR20)*'Weighting Factors'!Q$12)+(MAX(AS20,'Weighting Factors'!B20)) -> 30795418 | BP20: 0.3 | BQ20: 9238625 | BR20: 9443125 | BS20: 9238625 | BT20: 0.3 | BU20: 0 | BV20: FALSE | BW20: 0 | BX20: 0 | BY20: 0 | BZ20: FALSE | CA20: 0 | CB20: 0 | CC20: 0 | CD20: 143.2 | CE20: 17 | CF20: 66.29 | CG20: =IF(ROUND(('Weighting Factors'!$T$5*CF20^'Weighting Factors'!$T$6*'Weighting Factors'!$T$8 ),2)<'Weighting Factors'!$T$7,'Weighting Factors'!$T$7,ROUND(('Weighting Factors'!$T$5*CF20^'Weighting Factors'!$T$6*'Weighting Factors'!$T$8 ),2)) -> 504 | CH20: =ROUND(CG20/'Weighting Factors'!$Q$5,4) -> 0.1258 | CI20: 141.8 | CJ20: 0 | CK20: 0 | CL20: 0 | CM20: 0 | CN20: =SUM((AV20*'Weighting Factors'!$Q$5)+'2018 Legal Max'!BA20)*CM20 -> 0 | CO20: 0 | CP20: 0.6106 | CQ20: 265.5 | CR20: 0 | CS20: 6904.3 | CV20: D0202
A21: 203 | B21: Wyandotte | C21: Piper-Kansas City | D21: 1801 | E21: 0 | F21: 1801 | G21: 1876.5 | H21: =IF(ISNA(VLOOKUP($CV21,'Audit Values'!$A$2:$BU$326,2,FALSE)),'Preliminary SO66'!AI20,VLOOKUP($CV21,'Audit Values'!$A$2:$BU$326,2,FALSE)) -> 0 | I21: 1876.5 | J21: 1970.2 | K21: =IF(ISNA(VLOOKUP($CV21,'Audit Values'!$A$2:$BU$326,2,FALSE)),'Preliminary SO66'!AJ20,VLOOKUP($CV21,'Audit Values'!$A$2:$BU$326,3,FALSE)) -> 0 | L21: 1970.2 | M21: =IF(ISNA(VLOOKUP($CV21,'Audit Values'!$A$2:$BU$326,2,FALSE)),'Preliminary SO66'!C20,VLOOKUP($CV21,'Audit Values'!$A$2:$BU$326,73,FALSE)) -> 2260.3 | N21: =IF(ISNA(VLOOKUP($CV21,'Audit Values'!$A$2:$BU$326,2,FALSE)),'Preliminary SO66'!F20,VLOOKUP($CV21,'Audit Values'!$A$2:$BU$326,4,FALSE)) -> 0 | O21: =IF(ISNA(VLOOKUP($CV21,'Audit Values'!$A$2:$BU$326,2,FALSE)),'Preliminary SO66'!AK20,VLOOKUP($CV21,'Audit Values'!$A$2:$BU$326,57,FALSE)) -> 2260.3 | P21: =IF('Military Provision'!J22="YES", MAX('2018 Legal Max'!L21,'2018 Legal Max'!I21,AVERAGE('2018 Legal Max'!F21,'2018 Legal Max'!I21,'2018 Legal Max'!L21)), MAX(L21, I21)) -> 1970.2 | Q21: =IF(ISNA(VLOOKUP($CV21,'Audit Values'!$A$2:$BU$326,2,FALSE)),'Preliminary SO66'!AL20,VLOOKUP($CV21,'Audit Values'!$A$2:$BU$326,58,FALSE)) -> 5 | R21: =IF(ISNA(VLOOKUP($CV21,'Audit Values'!$A$2:$BU$326,2,FALSE)),'Preliminary SO66'!AT20,VLOOKUP($CV21,'Audit Values'!$A$2:$BU$326,59,FALSE)) -> 189 | S21: 2164.2 | T21: 75.8 | U21: =IF(ISNA(VLOOKUP($CV21,'Audit Values'!$A$2:$BW$294,2,FALSE)),'Preliminary SO66'!AM20,VLOOKUP($CV21,'Audit Values'!$A$2:$BW$294,62,FALSE)) -> 129 | V21: =(U21/6)*'Weighting Factors'!$Q$7 -> 8.5 | W21: =IF(ISNA(VLOOKUP($CV21,'Audit Values'!$A$2:$BW$294,2,FALSE)),'Preliminary SO66'!AN20,VLOOKUP($CV21,'Audit Values'!$A$2:$BW$294,61,FALSE)) -> 73 | X21: =W21*'Weighting Factors'!$Q$8 -> 13.5 | Y21: 13.5 | Z21: =IF(ISNA(VLOOKUP($CV21,'Audit Values'!$A$2:$BW$294,2,FALSE)),'Preliminary SO66'!AO20,VLOOKUP($CV21,'Audit Values'!$A$2:$BW$294,60,FALSE)) -> 515 | AA21: =Z21/6*'Weighting Factors'!$Q$6 -> 42.9 | AB21: =IF(ISNA(VLOOKUP($CV21,'Audit Values'!$A$2:$BU$326,2,FALSE)),'Preliminary SO66'!AS20,VLOOKUP($CV21,'Audit Values'!$A$2:$BU$326,63,FALSE)) -> 2280 | AC21: 228 | AD21: =IF(ISNA(VLOOKUP($CV21,'Audit Values'!$A$2:$BU$370,2,FALSE)),'Preliminary SO66'!AP20,VLOOKUP($CV21,'Audit Values'!$A$2:$BU$370,64,FALSE)) -> 356 | AE21: =IF(A21=207, AD21,MAX(AC21,AD21))*'Weighting Factors'!$Q$9 -> 172.3 | AF21: 0 | AG21: =IF(ISNA(VLOOKUP($CV21,'Audit Values'!$A$2:$BW$326,2,FALSE)),'Preliminary SO66'!AG20,VLOOKUP($CV21,'Audit Values'!$A$2:$BW$326,70,FALSE)) -> 0 | AH21: 0 | AI21: =IF(ISNA(VLOOKUP($CV21,'Audit Values'!$A$2:$BU$326,2,FALSE)),'Preliminary SO66'!AQ20,VLOOKUP($CV21,'Audit Values'!$A$2:$BU$326,65,FALSE)) -> 0 | AJ21: =AI21*'Weighting Factors'!$Q$10 -> 0 | AK21: =IF(ISNA(VLOOKUP($CV21,'Audit Values'!$A$2:$BU$326,2,FALSE)),'Preliminary SO66'!AR20,VLOOKUP($CV21,'Audit Values'!$A$2:$BU$326,66,FALSE)) -> 1248 | AL21: 157 | AM21: =AL21*'Weighting Factors'!$Q$5 -> 628942 | AN21: 608616 | AO21: =MAX(AM21, AN21)/'Weighting Factors'!$Q$5 -> 157 | AP21: =CJ21/'Weighting Factors'!$Q$5 -> 0 | AQ21: =CK21/'Weighting Factors'!$Q$5 -> 0 | AR21: =CO21/'Weighting Factors'!$Q$5 -> 0 | AS21: 2524865 | AT21: =AS21/'Weighting Factors'!$Q$5 -> 630.3 | AU21: =IF(ISNA(VLOOKUP($CV21,'Audit Values'!$A$2:$BU$326,2,FALSE)),'Preliminary SO66'!X20,VLOOKUP($CV21,'Audit Values'!$A$2:$BU$326,47,FALSE)) -> 0 | AV21: 3256 | AW21: 2625.7 | AX21: =IF(ISNA(VLOOKUP($CV21,'Audit Values'!$A$2:$BU$326,2,FALSE)),'Preliminary SO66'!AA20,VLOOKUP($CV21,'Audit Values'!$A$2:$BU$326,41,FALSE)) -> 5 | AY21: =IF(ISNA(VLOOKUP($CV21,'Audit Values'!$A$2:$BU$326,2,FALSE)),'Preliminary SO66'!AB20,VLOOKUP($CV21,'Audit Values'!$A$2:$BU$326,42,FALSE)) -> 0 | AZ21: 0 | BA21: =SUM(AX21*'Weighting Factors'!$T$10)+('2018 Legal Max'!AY21*'Weighting Factors'!$T$11)+('2018 Legal Max'!AZ21*'Weighting Factors'!$T$12) -> 25000 | BB21: 0 | BC21: =IF(ISNA(VLOOKUP($CV21,'Audit Values'!$A$2:$BU$326,2,FALSE)),"",IF(AND('Weighting Factors'!H21>0,VLOOKUP($CV21,'Audit Values'!$A$2:$BU$326,51,FALSE)<'Weighting Factors'!H21),'Weighting Factors'!H21,VLOOKUP($CV21,'Audit Values'!$A$2:$BU$326,50,FALSE))) -> 24 | BD21: =IF(ISNA(VLOOKUP($CV21,'Audit Values'!$A$2:$BV$326,2,FALSE)),"",VLOOKUP($CV21,'Audit Values'!$A$2:$BV$326,51,FALSE)) -> A | BE21: =IF('Weighting Factors'!H21="","",IF('Weighting Factors'!J21="Pending","PX","R")) -> R | BF21: =SUM((S21+T21+Y21+AA21+AE21+AH21+AJ21++AO21+AP21+AQ21+AU21+AR21)*'Weighting Factors'!$Q$5)+'2018 Legal Max'!BA21+'2018 Legal Max'!BB21 -> 10543554 | BG21: =SUM((AV21+AR21)*'Weighting Factors'!$Q$5)+BA21+'2018 Legal Max'!BB21 -> 13068536 | BH21: =IF('Weighting Factors'!H21>0,'Weighting Factors'!H21,'Preliminary SO66'!AV20) -> 13397368 | BI21: 13068536 | BK21: ='Weighting Factors'!F21 -> 0 | BL21: ='Weighting Factors'!E21 -> 0 | BM21: 0 | BN21: 13068536 | BO21: =SUM((S21+T21+Y21+AA21+AE21+AH21+AJ21++AO21+AP21+AQ21+AR21)*'Weighting Factors'!Q$12)+(MAX(AS21,'Weighting Factors'!B21)) -> 14314258 | BP21: 0.33 | BQ21: 4723705 | BR21: 4470000 | BS21: 4470000 | BT21: 0.3123 | BU21: 0 | BV21: FALSE | BW21: 0 | BX21: 0 | BY21: 0 | BZ21: FALSE | CA21: 0 | CB21: 0 | CC21: 0 | CD21: 75.8 | CE21: 31.4 | CF21: 39.75 | CG21: =IF(ROUND(('Weighting Factors'!$T$5*CF21^'Weighting Factors'!$T$6*'Weighting Factors'!$T$8 ),2)<'Weighting Factors'!$T$7,'Weighting Factors'!$T$7,ROUND(('Weighting Factors'!$T$5*CF21^'Weighting Factors'!$T$6*'Weighting Factors'!$T$8 ),2)) -> 504 | CH21: =ROUND(CG21/'Weighting Factors'!$Q$5,4) -> 0.1258 | CI21: 157 | CJ21: 0 | CK21: 0 | CL21: 0 | CM21: 0.0282 | CN21: =SUM((AV21*'Weighting Factors'!$Q$5)+'2018 Legal Max'!BA21)*CM21 -> 368533 | CO21: 0 | CP21: 0.1561 | CQ21: 0 | CR21: 0 | CS21: 3256 | CV21: D0203
A22: 204 | B22: Wyandotte | C22: Bonner Springs | D22: 2395.1 | E22: 0 | F22: 2395.1 | G22: 2464 | H22: =IF(ISNA(VLOOKUP($CV22,'Audit Values'!$A$2:$BU$326,2,FALSE)),'Preliminary SO66'!AI21,VLOOKUP($CV22,'Audit Values'!$A$2:$BU$326,2,FALSE)) -> 0 | I22: 2464 | J22: 2417.5 | K22: =IF(ISNA(VLOOKUP($CV22,'Audit Values'!$A$2:$BU$326,2,FALSE)),'Preliminary SO66'!AJ21,VLOOKUP($CV22,'Audit Values'!$A$2:$BU$326,3,FALSE)) -> 0 | L22: 2417.5 | M22: =IF(ISNA(VLOOKUP($CV22,'Audit Values'!$A$2:$BU$326,2,FALSE)),'Preliminary SO66'!C21,VLOOKUP($CV22,'Audit Values'!$A$2:$BU$326,73,FALSE)) -> 2607.7 | N22: =IF(ISNA(VLOOKUP($CV22,'Audit Values'!$A$2:$BU$326,2,FALSE)),'Preliminary SO66'!F21,VLOOKUP($CV22,'Audit Values'!$A$2:$BU$326,4,FALSE)) -> 0 | O22: =IF(ISNA(VLOOKUP($CV22,'Audit Values'!$A$2:$BU$326,2,FALSE)),'Preliminary SO66'!AK21,VLOOKUP($CV22,'Audit Values'!$A$2:$BU$326,57,FALSE)) -> 2607.7 | P22: =IF('Military Provision'!J23="YES", MAX('2018 Legal Max'!L22,'2018 Legal Max'!I22,AVERAGE('2018 Legal Max'!F22,'2018 Legal Max'!I22,'2018 Legal Max'!L22)), MAX(L22, I22)) -> 2464 | Q22: =IF(ISNA(VLOOKUP($CV22,'Audit Values'!$A$2:$BU$326,2,FALSE)),'Preliminary SO66'!AL21,VLOOKUP($CV22,'Audit Values'!$A$2:$BU$326,58,FALSE)) -> 19 | R22: =IF(ISNA(VLOOKUP($CV22,'Audit Values'!$A$2:$BU$326,2,FALSE)),'Preliminary SO66'!AT21,VLOOKUP($CV22,'Audit Values'!$A$2:$BU$326,59,FALSE)) -> 213 | S22: 2696 | T22: 94.5 | U22: =IF(ISNA(VLOOKUP($CV22,'Audit Values'!$A$2:$BW$294,2,FALSE)),'Preliminary SO66'!AM21,VLOOKUP($CV22,'Audit Values'!$A$2:$BW$294,62,FALSE)) -> 499.1 | V22: =(U22/6)*'Weighting Factors'!$Q$7 -> 32.9 | W22: =IF(ISNA(VLOOKUP($CV22,'Audit Values'!$A$2:$BW$294,2,FALSE)),'Preliminary SO66'!AN21,VLOOKUP($CV22,'Audit Values'!$A$2:$BW$294,61,FALSE)) -> 181 | X22: =W22*'Weighting Factors'!$Q$8 -> 33.5 | Y22: 33.5 | Z22: =IF(ISNA(VLOOKUP($CV22,'Audit Values'!$A$2:$BW$294,2,FALSE)),'Preliminary SO66'!AO21,VLOOKUP($CV22,'Audit Values'!$A$2:$BW$294,60,FALSE)) -> 537.2 | AA22: =Z22/6*'Weighting Factors'!$Q$6 -> 44.8 | AB22: =IF(ISNA(VLOOKUP($CV22,'Audit Values'!$A$2:$BU$326,2,FALSE)),'Preliminary SO66'!AS21,VLOOKUP($CV22,'Audit Values'!$A$2:$BU$326,63,FALSE)) -> 2661 | AC22: 266 | AD22: =IF(ISNA(VLOOKUP($CV22,'Audit Values'!$A$2:$BU$370,2,FALSE)),'Preliminary SO66'!AP21,VLOOKUP($CV22,'Audit Values'!$A$2:$BU$370,64,FALSE)) -> 987 | AE22: =IF(A22=207, AD22,MAX(AC22,AD22))*'Weighting Factors'!$Q$9 -> 477.7 | AF22: 14.4 | AG22: =IF(ISNA(VLOOKUP($CV22,'Audit Values'!$A$2:$BW$326,2,FALSE)),'Preliminary SO66'!AG21,VLOOKUP($CV22,'Audit Values'!$A$2:$BW$326,70,FALSE)) -> 22.2 | AH22: 22.2 | AI22: =IF(ISNA(VLOOKUP($CV22,'Audit Values'!$A$2:$BU$326,2,FALSE)),'Preliminary SO66'!AQ21,VLOOKUP($CV22,'Audit Values'!$A$2:$BU$326,65,FALSE)) -> 0 | AJ22: =AI22*'Weighting Factors'!$Q$10 -> 0 | AK22: =IF(ISNA(VLOOKUP($CV22,'Audit Values'!$A$2:$BU$326,2,FALSE)),'Preliminary SO66'!AR21,VLOOKUP($CV22,'Audit Values'!$A$2:$BU$326,66,FALSE)) -> 818 | AL22: 103.8 | AM22: =AL22*'Weighting Factors'!$Q$5 -> 415823 | AN22: 506538 | AO22: =MAX(AM22, AN22)/'Weighting Factors'!$Q$5 -> 126.4 | AP22: =CJ22/'Weighting Factors'!$Q$5 -> 0 | AQ22: =CK22/'Weighting Factors'!$Q$5 -> 0 | AR22: =CO22/'Weighting Factors'!$Q$5 -> 0 | AS22: 3164026 | AT22: =AS22/'Weighting Factors'!$Q$5 -> 789.8 | AU22: =IF(ISNA(VLOOKUP($CV22,'Audit Values'!$A$2:$BU$326,2,FALSE)),'Preliminary SO66'!X21,VLOOKUP($CV22,'Audit Values'!$A$2:$BU$326,47,FALSE)) -> 0 | AV22: 4284.9 | AW22: 3495.1 | AX22: =IF(ISNA(VLOOKUP($CV22,'Audit Values'!$A$2:$BU$326,2,FALSE)),'Preliminary SO66'!AA21,VLOOKUP($CV22,'Audit Values'!$A$2:$BU$326,41,FALSE)) -> 35 | AY22: =IF(ISNA(VLOOKUP($CV22,'Audit Values'!$A$2:$BU$326,2,FALSE)),'Preliminary SO66'!AB21,VLOOKUP($CV22,'Audit Values'!$A$2:$BU$326,42,FALSE)) -> 0 | AZ22: 44.5 | BA22: =SUM(AX22*'Weighting Factors'!$T$10)+('2018 Legal Max'!AY22*'Weighting Factors'!$T$11)+('2018 Legal Max'!AZ22*'Weighting Factors'!$T$12) -> 206551 | BB22: 0 | BC22: =IF(ISNA(VLOOKUP($CV22,'Audit Values'!$A$2:$BU$326,2,FALSE)),"",IF(AND('Weighting Factors'!H22>0,VLOOKUP($CV22,'Audit Values'!$A$2:$BU$326,51,FALSE)<'Weighting Factors'!H22),'Weighting Factors'!H22,VLOOKUP($CV22,'Audit Values'!$A$2:$BU$326,50,FALSE))) -> 24 | BD22: =IF(ISNA(VLOOKUP($CV22,'Audit Values'!$A$2:$BV$326,2,FALSE)),"",VLOOKUP($CV22,'Audit Values'!$A$2:$BV$326,51,FALSE)) -> A | BE22: =IF('Weighting Factors'!H22="","",IF('Weighting Factors'!J22="Pending","PX","R")) ->  | BF22: =SUM((S22+T22+Y22+AA22+AE22+AH22+AJ22++AO22+AP22+AQ22+AU22+AR22)*'Weighting Factors'!$Q$5)+'2018 Legal Max'!BA22+'2018 Legal Max'!BB22 -> 14207922 | BG22: =SUM((AV22+AR22)*'Weighting Factors'!$Q$5)+BA22+'2018 Legal Max'!BB22 -> 17371860 | BH22: =IF('Weighting Factors'!H22>0,'Weighting Factors'!H22,'Preliminary SO66'!AV21) -> 18268267 | BI22: 17371860 | BK22: ='Weighting Factors'!F22 -> 0 | BL22: ='Weighting Factors'!E22 -> 0 | BM22: 0 | BN22: 17371860 | BO22: =SUM((S22+T22+Y22+AA22+AE22+AH22+AJ22++AO22+AP22+AQ22+AR22)*'Weighting Factors'!Q$12)+(MAX(AS22,'Weighting Factors'!B22)) -> 18857025 | BP22: 0.3 | BQ22: 5657108 | BR22: 5929676 | BS22: 5657108 | BT22: 0.3 | BU22: 0 | BV22: FALSE | BW22: 0 | BX22: 0 | BY22: 0 | BZ22: FALSE | CA22: 0 | CB22: 0 | CC22: 0 | CD22: 94.5 | CE22: 38 | CF22: 21.53 | CG22: =IF(ROUND(('Weighting Factors'!$T$5*CF22^'Weighting Factors'!$T$6*'Weighting Factors'!$T$8 ),2)<'Weighting Factors'!$T$7,'Weighting Factors'!$T$7,ROUND(('Weighting Factors'!$T$5*CF22^'Weighting Factors'!$T$6*'Weighting Factors'!$T$8 ),2)) -> 508.23 | CH22: =ROUND(CG22/'Weighting Factors'!$Q$5,4) -> 0.1269 | CI22: 103.8 | CJ22: 0 | CK22: 0 | CL22: 0 | CM22: 0 | CN22: =SUM((AV22*'Weighting Factors'!$Q$5)+'2018 Legal Max'!BA22)*CM22 -> 0 | CO22: 0 | CP22: 0.3709 | CQ22: 0 | CR22: 14.4 | CS22: 4284.9 | CV22: D0204
A23: 205 | B23: Butler | C23: Bluestem | D23: 485.8 | E23: 0 | F23: 485.8 | G23: 470.3 | H23: =IF(ISNA(VLOOKUP($CV23,'Audit Values'!$A$2:$BU$326,2,FALSE)),'Preliminary SO66'!AI22,VLOOKUP($CV23,'Audit Values'!$A$2:$BU$326,2,FALSE)) -> 0 | I23: 470.3 | J23: 457 | K23: =IF(ISNA(VLOOKUP($CV23,'Audit Values'!$A$2:$BU$326,2,FALSE)),'Preliminary SO66'!AJ22,VLOOKUP($CV23,'Audit Values'!$A$2:$BU$326,3,FALSE)) -> 0 | L23: 457 | M23: =IF(ISNA(VLOOKUP($CV23,'Audit Values'!$A$2:$BU$326,2,FALSE)),'Preliminary SO66'!C22,VLOOKUP($CV23,'Audit Values'!$A$2:$BU$326,73,FALSE)) -> 475.5 | N23: =IF(ISNA(VLOOKUP($CV23,'Audit Values'!$A$2:$BU$326,2,FALSE)),'Preliminary SO66'!F22,VLOOKUP($CV23,'Audit Values'!$A$2:$BU$326,4,FALSE)) -> 0 | O23: =IF(ISNA(VLOOKUP($CV23,'Audit Values'!$A$2:$BU$326,2,FALSE)),'Preliminary SO66'!AK22,VLOOKUP($CV23,'Audit Values'!$A$2:$BU$326,57,FALSE)) -> 475.5 | P23: =IF('Military Provision'!J24="YES", MAX('2018 Legal Max'!L23,'2018 Legal Max'!I23,AVERAGE('2018 Legal Max'!F23,'2018 Legal Max'!I23,'2018 Legal Max'!L23)), MAX(L23, I23)) -> 470.3 | Q23: =IF(ISNA(VLOOKUP($CV23,'Audit Values'!$A$2:$BU$326,2,FALSE)),'Preliminary SO66'!AL22,VLOOKUP($CV23,'Audit Values'!$A$2:$BU$326,58,FALSE)) -> 0 | R23: =IF(ISNA(VLOOKUP($CV23,'Audit Values'!$A$2:$BU$326,2,FALSE)),'Preliminary SO66'!AT22,VLOOKUP($CV23,'Audit Values'!$A$2:$BU$326,59,FALSE)) -> 28 | S23: 498.3 | T23: 207.7 | U23: =IF(ISNA(VLOOKUP($CV23,'Audit Values'!$A$2:$BW$294,2,FALSE)),'Preliminary SO66'!AM22,VLOOKUP($CV23,'Audit Values'!$A$2:$BW$294,62,FALSE)) -> 0 | V23: =(U23/6)*'Weighting Factors'!$Q$7 -> 0 | W23: =IF(ISNA(VLOOKUP($CV23,'Audit Values'!$A$2:$BW$294,2,FALSE)),'Preliminary SO66'!AN22,VLOOKUP($CV23,'Audit Values'!$A$2:$BW$294,61,FALSE)) -> 4 | X23: =W23*'Weighting Factors'!$Q$8 -> 0.7 | Y23: 0.7 | Z23: =IF(ISNA(VLOOKUP($CV23,'Audit Values'!$A$2:$BW$294,2,FALSE)),'Preliminary SO66'!AO22,VLOOKUP($CV23,'Audit Values'!$A$2:$BW$294,60,FALSE)) -> 68.1 | AA23: =Z23/6*'Weighting Factors'!$Q$6 -> 5.7 | AB23: =IF(ISNA(VLOOKUP($CV23,'Audit Values'!$A$2:$BU$326,2,FALSE)),'Preliminary SO66'!AS22,VLOOKUP($CV23,'Audit Values'!$A$2:$BU$326,63,FALSE)) -> 481 | AC23: 48 | AD23: =IF(ISNA(VLOOKUP($CV23,'Audit Values'!$A$2:$BU$370,2,FALSE)),'Preliminary SO66'!AP22,VLOOKUP($CV23,'Audit Values'!$A$2:$BU$370,64,FALSE)) -> 202 | AE23: =IF(A23=207, AD23,MAX(AC23,AD23))*'Weighting Factors'!$Q$9 -> 97.8 | AF23: 9.9 | AG23: =IF(ISNA(VLOOKUP($CV23,'Audit Values'!$A$2:$BW$326,2,FALSE)),'Preliminary SO66'!AG22,VLOOKUP($CV23,'Audit Values'!$A$2:$BW$326,70,FALSE)) -> 10.1 | AH23: 10.1 | AI23: =IF(ISNA(VLOOKUP($CV23,'Audit Values'!$A$2:$BU$326,2,FALSE)),'Preliminary SO66'!AQ22,VLOOKUP($CV23,'Audit Values'!$A$2:$BU$326,65,FALSE)) -> 0 | AJ23: =AI23*'Weighting Factors'!$Q$10 -> 0 | AK23: =IF(ISNA(VLOOKUP($CV23,'Audit Values'!$A$2:$BU$326,2,FALSE)),'Preliminary SO66'!AR22,VLOOKUP($CV23,'Audit Values'!$A$2:$BU$326,66,FALSE)) -> 251 | AL23: 60.5 | AM23: =AL23*'Weighting Factors'!$Q$5 -> 242363 | AN23: 294293 | AO23: =MAX(AM23, AN23)/'Weighting Factors'!$Q$5 -> 73.5 | AP23: =CJ23/'Weighting Factors'!$Q$5 -> 0 | AQ23: =CK23/'Weighting Factors'!$Q$5 -> 0 | AR23: =CO23/'Weighting Factors'!$Q$5 -> 0 | AS23: 472528 | AT23: =AS23/'Weighting Factors'!$Q$5 -> 118 | AU23: =IF(ISNA(VLOOKUP($CV23,'Audit Values'!$A$2:$BU$326,2,FALSE)),'Preliminary SO66'!X22,VLOOKUP($CV23,'Audit Values'!$A$2:$BU$326,47,FALSE)) -> 0 | AV23: 1011.8 | AW23: 893.8 | AX23: =IF(ISNA(VLOOKUP($CV23,'Audit Values'!$A$2:$BU$326,2,FALSE)),'Preliminary SO66'!AA22,VLOOKUP($CV23,'Audit Values'!$A$2:$BU$326,41,FALSE)) -> 0 | AY23: =IF(ISNA(VLOOKUP($CV23,'Audit Values'!$A$2:$BU$326,2,FALSE)),'Preliminary SO66'!AB22,VLOOKUP($CV23,'Audit Values'!$A$2:$BU$326,42,FALSE)) -> 0 | AZ23: 0 | BA23: =SUM(AX23*'Weighting Factors'!$T$10)+('2018 Legal Max'!AY23*'Weighting Factors'!$T$11)+('2018 Legal Max'!AZ23*'Weighting Factors'!$T$12) -> 0 | BB23: 0 | BC23: =IF(ISNA(VLOOKUP($CV23,'Audit Values'!$A$2:$BU$326,2,FALSE)),"",IF(AND('Weighting Factors'!H23>0,VLOOKUP($CV23,'Audit Values'!$A$2:$BU$326,51,FALSE)<'Weighting Factors'!H23),'Weighting Factors'!H23,VLOOKUP($CV23,'Audit Values'!$A$2:$BU$326,50,FALSE))) -> 14 | BD23: =IF(ISNA(VLOOKUP($CV23,'Audit Values'!$A$2:$BV$326,2,FALSE)),"",VLOOKUP($CV23,'Audit Values'!$A$2:$BV$326,51,FALSE)) -> A | BE23: =IF('Weighting Factors'!H23="","",IF('Weighting Factors'!J23="Pending","PX","R")) ->  | BF23: =SUM((S23+T23+Y23+AA23+AE23+AH23+AJ23++AO23+AP23+AQ23+AU23+AR23)*'Weighting Factors'!$Q$5)+'2018 Legal Max'!BA23+'2018 Legal Max'!BB23 -> 3580563 | BG23: =SUM((AV23+AR23)*'Weighting Factors'!$Q$5)+BA23+'2018 Legal Max'!BB23 -> 4053271 | BH23: =IF('Weighting Factors'!H23>0,'Weighting Factors'!H23,'Preliminary SO66'!AV22) -> 4369745 | BI23: 4053271 | BK23: ='Weighting Factors'!F23 -> 0 | BL23: ='Weighting Factors'!E23 -> 0 | BM23: 0 | BN23: 4053271 | BO23: =SUM((S23+T23+Y23+AA23+AE23+AH23+AJ23++AO23+AP23+AQ23+AR23)*'Weighting Factors'!Q$12)+(MAX(AS23,'Weighting Factors'!B23)) -> 4619636 | BP23: 0.3 | BQ23: 1385891 | BR23: 1445286 | BS23: 1385891 | BT23: 0.3 | BU23: 0 | BV23: FALSE | BW23: 0 | BX23: 0 | BY23: 0 | BZ23: TRUE | CA23: 245.3963 | CB23: 0.416814 | CC23: 207.7 | CD23: 0 | CE23: 348.6 | CF23: 0.72 | CG23: =IF(ROUND(('Weighting Factors'!$T$5*CF23^'Weighting Factors'!$T$6*'Weighting Factors'!$T$8 ),2)<'Weighting Factors'!$T$7,'Weighting Factors'!$T$7,ROUND(('Weighting Factors'!$T$5*CF23^'Weighting Factors'!$T$6*'Weighting Factors'!$T$8 ),2)) -> 964.96 | CH23: =ROUND(CG23/'Weighting Factors'!$Q$5,4) -> 0.2409 | CI23: 60.5 | CJ23: 0 | CK23: 0 | CL23: 0 | CM23: 0 | CN23: =SUM((AV23*'Weighting Factors'!$Q$5)+'2018 Legal Max'!BA23)*CM23 -> 0 | CO23: 0 | CP23: 0.42 | CQ23: 0 | CR23: 9.9 | CS23: 1011.8 | CV23: D0205
A24: 206 | B24: Butler | C24: Remington-Whitewater | D24: 449.4 | E24: 0 | F24: 449.4 | G24: 472.7 | H24: =IF(ISNA(VLOOKUP($CV24,'Audit Values'!$A$2:$BU$326,2,FALSE)),'Preliminary SO66'!AI23,VLOOKUP($CV24,'Audit Values'!$A$2:$BU$326,2,FALSE)) -> 0 | I24: 472.7 | J24: 468.9 | K24: =IF(ISNA(VLOOKUP($CV24,'Audit Values'!$A$2:$BU$326,2,FALSE)),'Preliminary SO66'!AJ23,VLOOKUP($CV24,'Audit Values'!$A$2:$BU$326,3,FALSE)) -> 0 | L24: 468.9 | M24: =IF(ISNA(VLOOKUP($CV24,'Audit Values'!$A$2:$BU$326,2,FALSE)),'Preliminary SO66'!C23,VLOOKUP($CV24,'Audit Values'!$A$2:$BU$326,73,FALSE)) -> 504.7 | N24: =IF(ISNA(VLOOKUP($CV24,'Audit Values'!$A$2:$BU$326,2,FALSE)),'Preliminary SO66'!F23,VLOOKUP($CV24,'Audit Values'!$A$2:$BU$326,4,FALSE)) -> 0 | O24: =IF(ISNA(VLOOKUP($CV24,'Audit Values'!$A$2:$BU$326,2,FALSE)),'Preliminary SO66'!AK23,VLOOKUP($CV24,'Audit Values'!$A$2:$BU$326,57,FALSE)) -> 504.7 | P24: =IF('Military Provision'!J25="YES", MAX('2018 Legal Max'!L24,'2018 Legal Max'!I24,AVERAGE('2018 Legal Max'!F24,'2018 Legal Max'!I24,'2018 Legal Max'!L24)), MAX(L24, I24)) -> 472.7 | Q24: =IF(ISNA(VLOOKUP($CV24,'Audit Values'!$A$2:$BU$326,2,FALSE)),'Preliminary SO66'!AL23,VLOOKUP($CV24,'Audit Values'!$A$2:$BU$326,58,FALSE)) -> 5.5 | R24: =IF(ISNA(VLOOKUP($CV24,'Audit Values'!$A$2:$BU$326,2,FALSE)),'Preliminary SO66'!AT23,VLOOKUP($CV24,'Audit Values'!$A$2:$BU$326,59,FALSE)) -> 33 | S24: 511.2 | T24: 210.8 | U24: =IF(ISNA(VLOOKUP($CV24,'Audit Values'!$A$2:$BW$294,2,FALSE)),'Preliminary SO66'!AM23,VLOOKUP($CV24,'Audit Values'!$A$2:$BW$294,62,FALSE)) -> 57.7 | V24: =(U24/6)*'Weighting Factors'!$Q$7 -> 3.8 | W24: =IF(ISNA(VLOOKUP($CV24,'Audit Values'!$A$2:$BW$294,2,FALSE)),'Preliminary SO66'!AN23,VLOOKUP($CV24,'Audit Values'!$A$2:$BW$294,61,FALSE)) -> 24 | X24: =W24*'Weighting Factors'!$Q$8 -> 4.4 | Y24: 4.4 | Z24: =IF(ISNA(VLOOKUP($CV24,'Audit Values'!$A$2:$BW$294,2,FALSE)),'Preliminary SO66'!AO23,VLOOKUP($CV24,'Audit Values'!$A$2:$BW$294,60,FALSE)) -> 128.6 | AA24: =Z24/6*'Weighting Factors'!$Q$6 -> 10.7 | AB24: =IF(ISNA(VLOOKUP($CV24,'Audit Values'!$A$2:$BU$326,2,FALSE)),'Preliminary SO66'!AS23,VLOOKUP($CV24,'Audit Values'!$A$2:$BU$326,63,FALSE)) -> 521 | AC24: 52 | AD24: =IF(ISNA(VLOOKUP($CV24,'Audit Values'!$A$2:$BU$370,2,FALSE)),'Preliminary SO66'!AP23,VLOOKUP($CV24,'Audit Values'!$A$2:$BU$370,64,FALSE)) -> 124 | AE24: =IF(A24=207, AD24,MAX(AC24,AD24))*'Weighting Factors'!$Q$9 -> 60 | AF24: 0 | AG24: =IF(ISNA(VLOOKUP($CV24,'Audit Values'!$A$2:$BW$326,2,FALSE)),'Preliminary SO66'!AG23,VLOOKUP($CV24,'Audit Values'!$A$2:$BW$326,70,FALSE)) -> 0 | AH24: 0 | AI24: =IF(ISNA(VLOOKUP($CV24,'Audit Values'!$A$2:$BU$326,2,FALSE)),'Preliminary SO66'!AQ23,VLOOKUP($CV24,'Audit Values'!$A$2:$BU$326,65,FALSE)) -> 0 | AJ24: =AI24*'Weighting Factors'!$Q$10 -> 0 | AK24: =IF(ISNA(VLOOKUP($CV24,'Audit Values'!$A$2:$BU$326,2,FALSE)),'Preliminary SO66'!AR23,VLOOKUP($CV24,'Audit Values'!$A$2:$BU$326,66,FALSE)) -> 360 | AL24: 76.3 | AM24: =AL24*'Weighting Factors'!$Q$5 -> 305658 | AN24: 348606 | AO24: =MAX(AM24, AN24)/'Weighting Factors'!$Q$5 -> 87 | AP24: =CJ24/'Weighting Factors'!$Q$5 -> 0 | AQ24: =CK24/'Weighting Factors'!$Q$5 -> 0 | AR24: =CO24/'Weighting Factors'!$Q$5 -> 0 | AS24: 569641 | AT24: =AS24/'Weighting Factors'!$Q$5 -> 142.2 | AU24: =IF(ISNA(VLOOKUP($CV24,'Audit Values'!$A$2:$BU$326,2,FALSE)),'Preliminary SO66'!X23,VLOOKUP($CV24,'Audit Values'!$A$2:$BU$326,47,FALSE)) -> 0 | AV24: 1026.3 | AW24: 884.1 | AX24: =IF(ISNA(VLOOKUP($CV24,'Audit Values'!$A$2:$BU$326,2,FALSE)),'Preliminary SO66'!AA23,VLOOKUP($CV24,'Audit Values'!$A$2:$BU$326,41,FALSE)) -> 0 | AY24: =IF(ISNA(VLOOKUP($CV24,'Audit Values'!$A$2:$BU$326,2,FALSE)),'Preliminary SO66'!AB23,VLOOKUP($CV24,'Audit Values'!$A$2:$BU$326,42,FALSE)) -> 0 | AZ24: 0 | BA24: =SUM(AX24*'Weighting Factors'!$T$10)+('2018 Legal Max'!AY24*'Weighting Factors'!$T$11)+('2018 Legal Max'!AZ24*'Weighting Factors'!$T$12) -> 0 | BB24: 0 | BC24: =IF(ISNA(VLOOKUP($CV24,'Audit Values'!$A$2:$BU$326,2,FALSE)),"",IF(AND('Weighting Factors'!H24>0,VLOOKUP($CV24,'Audit Values'!$A$2:$BU$326,51,FALSE)<'Weighting Factors'!H24),'Weighting Factors'!H24,VLOOKUP($CV24,'Audit Values'!$A$2:$BU$326,50,FALSE))) -> 9 | BD24: =IF(ISNA(VLOOKUP($CV24,'Audit Values'!$A$2:$BV$326,2,FALSE)),"",VLOOKUP($CV24,'Audit Values'!$A$2:$BV$326,51,FALSE)) -> A | BE24: =IF('Weighting Factors'!H24="","",IF('Weighting Factors'!J24="Pending","PX","R")) ->  | BF24: =SUM((S24+T24+Y24+AA24+AE24+AH24+AJ24++AO24+AP24+AQ24+AU24+AR24)*'Weighting Factors'!$Q$5)+'2018 Legal Max'!BA24+'2018 Legal Max'!BB24 -> 3541705 | BG24: =SUM((AV24+AR24)*'Weighting Factors'!$Q$5)+BA24+'2018 Legal Max'!BB24 -> 4111358 | BH24: =IF('Weighting Factors'!H24>0,'Weighting Factors'!H24,'Preliminary SO66'!AV23) -> 4269995 | BI24: 4111358 | BK24: ='Weighting Factors'!F24 -> 0 | BL24: ='Weighting Factors'!E24 -> 0 | BM24: 0 | BN24: 4111358 | BO24: =SUM((S24+T24+Y24+AA24+AE24+AH24+AJ24++AO24+AP24+AQ24+AR24)*'Weighting Factors'!Q$12)+(MAX(AS24,'Weighting Factors'!B24)) -> 4539250 | BP24: 0.33 | BQ24: 1497953 | BR24: 1440000 | BS24: 1440000 | BT24: 0.3172 | BU24: 0 | BV24: FALSE | BW24: 0 | BX24: 0 | BY24: 0 | BZ24: TRUE | CA24: 261.36 | CB24: 0.412431 | CC24: 210.8 | CD24: 0 | CE24: 253 | CF24: 1.42 | CG24: =IF(ROUND(('Weighting Factors'!$T$5*CF24^'Weighting Factors'!$T$6*'Weighting Factors'!$T$8 ),2)<'Weighting Factors'!$T$7,'Weighting Factors'!$T$7,ROUND(('Weighting Factors'!$T$5*CF24^'Weighting Factors'!$T$6*'Weighting Factors'!$T$8 ),2)) -> 848.9 | CH24: =ROUND(CG24/'Weighting Factors'!$Q$5,4) -> 0.2119 | CI24: 76.3 | CJ24: 0 | CK24: 0 | CL24: 0 | CM24: 0 | CN24: =SUM((AV24*'Weighting Factors'!$Q$5)+'2018 Legal Max'!BA24)*CM24 -> 0 | CO24: 0 | CP24: 0.238 | CQ24: 0 | CR24: 0 | CS24: 1026.3 | CV24: D0206
A25: 207 | B25: Leavenworth | C25: Ft Leavenworth | D25: 1531.9 | E25: 69.5 | F25: 1601.4 | G25: 1469.6 | H25: =IF(ISNA(VLOOKUP($CV25,'Audit Values'!$A$2:$BU$326,2,FALSE)),'Preliminary SO66'!AI24,VLOOKUP($CV25,'Audit Values'!$A$2:$BU$326,2,FALSE)) -> 53 | I25: 1522.6 | J25: 1436.5 | K25: =IF(ISNA(VLOOKUP($CV25,'Audit Values'!$A$2:$BU$326,2,FALSE)),'Preliminary SO66'!AJ24,VLOOKUP($CV25,'Audit Values'!$A$2:$BU$326,3,FALSE)) -> 0 | L25: 1436.5 | M25: =IF(ISNA(VLOOKUP($CV25,'Audit Values'!$A$2:$BU$326,2,FALSE)),'Preliminary SO66'!C24,VLOOKUP($CV25,'Audit Values'!$A$2:$BU$326,73,FALSE)) -> 1756.6 | N25: =IF(ISNA(VLOOKUP($CV25,'Audit Values'!$A$2:$BU$326,2,FALSE)),'Preliminary SO66'!F24,VLOOKUP($CV25,'Audit Values'!$A$2:$BU$326,4,FALSE)) -> 67 | O25: =IF(ISNA(VLOOKUP($CV25,'Audit Values'!$A$2:$BU$326,2,FALSE)),'Preliminary SO66'!AK24,VLOOKUP($CV25,'Audit Values'!$A$2:$BU$326,57,FALSE)) -> 1823.6 | P25: =IF('Military Provision'!J26="YES", MAX('2018 Legal Max'!L25,'2018 Legal Max'!I25,AVERAGE('2018 Legal Max'!F25,'2018 Legal Max'!I25,'2018 Legal Max'!L25)), MAX(L25, I25)) -> 1522.6 | Q25: =IF(ISNA(VLOOKUP($CV25,'Audit Values'!$A$2:$BU$326,2,FALSE)),'Preliminary SO66'!AL24,VLOOKUP($CV25,'Audit Values'!$A$2:$BU$326,58,FALSE)) -> 0 | R25: =IF(ISNA(VLOOKUP($CV25,'Audit Values'!$A$2:$BU$326,2,FALSE)),'Preliminary SO66'!AT24,VLOOKUP($CV25,'Audit Values'!$A$2:$BU$326,59,FALSE)) -> 239 | S25: 1761.6 | T25: 61.7 | U25: =IF(ISNA(VLOOKUP($CV25,'Audit Values'!$A$2:$BW$294,2,FALSE)),'Preliminary SO66'!AM24,VLOOKUP($CV25,'Audit Values'!$A$2:$BW$294,62,FALSE)) -> 68.3 | V25: =(U25/6)*'Weighting Factors'!$Q$7 -> 4.5 | W25: =IF(ISNA(VLOOKUP($CV25,'Audit Values'!$A$2:$BW$294,2,FALSE)),'Preliminary SO66'!AN24,VLOOKUP($CV25,'Audit Values'!$A$2:$BW$294,61,FALSE)) -> 84 | X25: =W25*'Weighting Factors'!$Q$8 -> 15.5 | Y25: 15.5 | Z25: =IF(ISNA(VLOOKUP($CV25,'Audit Values'!$A$2:$BW$294,2,FALSE)),'Preliminary SO66'!AO24,VLOOKUP($CV25,'Audit Values'!$A$2:$BW$294,60,FALSE)) -> 1.2 | AA25: =Z25/6*'Weighting Factors'!$Q$6 -> 0.1 | AB25: =IF(ISNA(VLOOKUP($CV25,'Audit Values'!$A$2:$BU$326,2,FALSE)),'Preliminary SO66'!AS24,VLOOKUP($CV25,'Audit Values'!$A$2:$BU$326,63,FALSE)) -> 1844 | AC25: 184 | AD25: =IF(ISNA(VLOOKUP($CV25,'Audit Values'!$A$2:$BU$370,2,FALSE)),'Preliminary SO66'!AP24,VLOOKUP($CV25,'Audit Values'!$A$2:$BU$370,64,FALSE)) -> 70 | AE25: =IF(A25=207, AD25,MAX(AC25,AD25))*'Weighting Factors'!$Q$9 -> 33.9 | AF25: 0 | AG25: =IF(ISNA(VLOOKUP($CV25,'Audit Values'!$A$2:$BW$326,2,FALSE)),'Preliminary SO66'!AG24,VLOOKUP($CV25,'Audit Values'!$A$2:$BW$326,70,FALSE)) -> 0 | AH25: 0 | AI25: =IF(ISNA(VLOOKUP($CV25,'Audit Values'!$A$2:$BU$326,2,FALSE)),'Preliminary SO66'!AQ24,VLOOKUP($CV25,'Audit Values'!$A$2:$BU$326,65,FALSE)) -> 512.5 | AJ25: =AI25*'Weighting Factors'!$Q$10 -> 128.1 | AK25: =IF(ISNA(VLOOKUP($CV25,'Audit Values'!$A$2:$BU$326,2,FALSE)),'Preliminary SO66'!AR24,VLOOKUP($CV25,'Audit Values'!$A$2:$BU$326,66,FALSE)) -> 162 | AL25: 21 | AM25: =AL25*'Weighting Factors'!$Q$5 -> 84126 | AN25: 83974 | AO25: =MAX(AM25, AN25)/'Weighting Factors'!$Q$5 -> 21 | AP25: =CJ25/'Weighting Factors'!$Q$5 -> 0 | AQ25: =CK25/'Weighting Factors'!$Q$5 -> 0 | AR25: =CO25/'Weighting Factors'!$Q$5 -> 0 | AS25: 1378463 | AT25: =AS25/'Weighting Factors'!$Q$5 -> 344.1 | AU25: =IF(ISNA(VLOOKUP($CV25,'Audit Values'!$A$2:$BU$326,2,FALSE)),'Preliminary SO66'!X24,VLOOKUP($CV25,'Audit Values'!$A$2:$BU$326,47,FALSE)) -> 0 | AV25: 2366 | AW25: 2021.9 | AX25: =IF(ISNA(VLOOKUP($CV25,'Audit Values'!$A$2:$BU$326,2,FALSE)),'Preliminary SO66'!AA24,VLOOKUP($CV25,'Audit Values'!$A$2:$BU$326,41,FALSE)) -> 0 | AY25: =IF(ISNA(VLOOKUP($CV25,'Audit Values'!$A$2:$BU$326,2,FALSE)),'Preliminary SO66'!AB24,VLOOKUP($CV25,'Audit Values'!$A$2:$BU$326,42,FALSE)) -> 0 | AZ25: 0 | BA25: =SUM(AX25*'Weighting Factors'!$T$10)+('2018 Legal Max'!AY25*'Weighting Factors'!$T$11)+('2018 Legal Max'!AZ25*'Weighting Factors'!$T$12) -> 0 | BB25: 0 | BC25: =IF(ISNA(VLOOKUP($CV25,'Audit Values'!$A$2:$BU$326,2,FALSE)),"",IF(AND('Weighting Factors'!H25>0,VLOOKUP($CV25,'Audit Values'!$A$2:$BU$326,51,FALSE)<'Weighting Factors'!H25),'Weighting Factors'!H25,VLOOKUP($CV25,'Audit Values'!$A$2:$BU$326,50,FALSE))) -> 22 | BD25: =IF(ISNA(VLOOKUP($CV25,'Audit Values'!$A$2:$BV$326,2,FALSE)),"",VLOOKUP($CV25,'Audit Values'!$A$2:$BV$326,51,FALSE)) -> A | BE25: =IF('Weighting Factors'!H25="","",IF('Weighting Factors'!J25="Pending","PX","R")) ->  | BF25: =SUM((S25+T25+Y25+AA25+AE25+AH25+AJ25++AO25+AP25+AQ25+AU25+AR25)*'Weighting Factors'!$Q$5)+'2018 Legal Max'!BA25+'2018 Legal Max'!BB25 -> 8099731 | BG25: =SUM((AV25+AR25)*'Weighting Factors'!$Q$5)+BA25+'2018 Legal Max'!BB25 -> 9478196 | BH25: =IF('Weighting Factors'!H25>0,'Weighting Factors'!H25,'Preliminary SO66'!AV24) -> 11151502 | BI25: 9478196 | BK25: ='Weighting Factors'!F25 -> 0 | BL25: ='Weighting Factors'!E25 -> 0 | BM25: 0 | BN25: 9478196 | BO25: =SUM((S25+T25+Y25+AA25+AE25+AH25+AJ25++AO25+AP25+AQ25+AR25)*'Weighting Factors'!Q$12)+(MAX(AS25,'Weighting Factors'!B25)) -> 10456794 | BP25: 0.33 | BQ25: 3450742 | BR25: 4061340 | BS25: 3450742 | BT25: 0.33 | BU25: 0 | BV25: FALSE | BW25: 0 | BX25: 0 | BY25: 0 | BZ25: FALSE | CA25: 0 | CB25: 0 | CC25: 0 | CD25: 61.7 | CE25: 8.5 | CF25: 19.06 | CG25: =IF(ROUND(('Weighting Factors'!$T$5*CF25^'Weighting Factors'!$T$6*'Weighting Factors'!$T$8 ),2)<'Weighting Factors'!$T$7,'Weighting Factors'!$T$7,ROUND(('Weighting Factors'!$T$5*CF25^'Weighting Factors'!$T$6*'Weighting Factors'!$T$8 ),2)) -> 520.05 | CH25: =ROUND(CG25/'Weighting Factors'!$Q$5,4) -> 0.1298 | CI25: 21 | CJ25: 0 | CK25: 0 | CL25: 0 | CM25: 0 | CN25: =SUM((AV25*'Weighting Factors'!$Q$5)+'2018 Legal Max'!BA25)*CM25 -> 0 | CO25: 0 | CP25: 0.038 | CQ25: 0 | CR25: 0 | CS25: 2366 | CV25: D0207
A26: 208 | B26: Trego | C26: Wakeeney | D26: 345.8 | E26: 0 | F26: 345.8 | G26: 356 | H26: =IF(ISNA(VLOOKUP($CV26,'Audit Values'!$A$2:$BU$326,2,FALSE)),'Preliminary SO66'!AI25,VLOOKUP($CV26,'Audit Values'!$A$2:$BU$326,2,FALSE)) -> 0 | I26: 356 | J26: 347.5 | K26: =IF(ISNA(VLOOKUP($CV26,'Audit Values'!$A$2:$BU$326,2,FALSE)),'Preliminary SO66'!AJ25,VLOOKUP($CV26,'Audit Values'!$A$2:$BU$326,3,FALSE)) -> 0 | L26: 347.5 | M26: =IF(ISNA(VLOOKUP($CV26,'Audit Values'!$A$2:$BU$326,2,FALSE)),'Preliminary SO66'!C25,VLOOKUP($CV26,'Audit Values'!$A$2:$BU$326,73,FALSE)) -> 385.3 | N26: =IF(ISNA(VLOOKUP($CV26,'Audit Values'!$A$2:$BU$326,2,FALSE)),'Preliminary SO66'!F25,VLOOKUP($CV26,'Audit Values'!$A$2:$BU$326,4,FALSE)) -> 0 | O26: =IF(ISNA(VLOOKUP($CV26,'Audit Values'!$A$2:$BU$326,2,FALSE)),'Preliminary SO66'!AK25,VLOOKUP($CV26,'Audit Values'!$A$2:$BU$326,57,FALSE)) -> 385.3 | P26: =IF('Military Provision'!J27="YES", MAX('2018 Legal Max'!L26,'2018 Legal Max'!I26,AVERAGE('2018 Legal Max'!F26,'2018 Legal Max'!I26,'2018 Legal Max'!L26)), MAX(L26, I26)) -> 356 | Q26: =IF(ISNA(VLOOKUP($CV26,'Audit Values'!$A$2:$BU$326,2,FALSE)),'Preliminary SO66'!AL25,VLOOKUP($CV26,'Audit Values'!$A$2:$BU$326,58,FALSE)) -> 0 | R26: =IF(ISNA(VLOOKUP($CV26,'Audit Values'!$A$2:$BU$326,2,FALSE)),'Preliminary SO66'!AT25,VLOOKUP($CV26,'Audit Values'!$A$2:$BU$326,59,FALSE)) -> 34 | S26: 390 | T26: 176.9 | U26: =IF(ISNA(VLOOKUP($CV26,'Audit Values'!$A$2:$BW$294,2,FALSE)),'Preliminary SO66'!AM25,VLOOKUP($CV26,'Audit Values'!$A$2:$BW$294,62,FALSE)) -> 0 | V26: =(U26/6)*'Weighting Factors'!$Q$7 -> 0 | W26: =IF(ISNA(VLOOKUP($CV26,'Audit Values'!$A$2:$BW$294,2,FALSE)),'Preliminary SO66'!AN25,VLOOKUP($CV26,'Audit Values'!$A$2:$BW$294,61,FALSE)) -> 0 | X26: =W26*'Weighting Factors'!$Q$8 -> 0 | Y26: 0 | Z26: =IF(ISNA(VLOOKUP($CV26,'Audit Values'!$A$2:$BW$294,2,FALSE)),'Preliminary SO66'!AO25,VLOOKUP($CV26,'Audit Values'!$A$2:$BW$294,60,FALSE)) -> 61.3 | AA26: =Z26/6*'Weighting Factors'!$Q$6 -> 5.1 | AB26: =IF(ISNA(VLOOKUP($CV26,'Audit Values'!$A$2:$BU$326,2,FALSE)),'Preliminary SO66'!AS25,VLOOKUP($CV26,'Audit Values'!$A$2:$BU$326,63,FALSE)) -> 393 | AC26: 39 | AD26: =IF(ISNA(VLOOKUP($CV26,'Audit Values'!$A$2:$BU$370,2,FALSE)),'Preliminary SO66'!AP25,VLOOKUP($CV26,'Audit Values'!$A$2:$BU$370,64,FALSE)) -> 120 | AE26: =IF(A26=207, AD26,MAX(AC26,AD26))*'Weighting Factors'!$Q$9 -> 58.1 | AF26: 0 | AG26: =IF(ISNA(VLOOKUP($CV26,'Audit Values'!$A$2:$BW$326,2,FALSE)),'Preliminary SO66'!AG25,VLOOKUP($CV26,'Audit Values'!$A$2:$BW$326,70,FALSE)) -> 0 | AH26: 0 | AI26: =IF(ISNA(VLOOKUP($CV26,'Audit Values'!$A$2:$BU$326,2,FALSE)),'Preliminary SO66'!AQ25,VLOOKUP($CV26,'Audit Values'!$A$2:$BU$326,65,FALSE)) -> 0 | AJ26: =AI26*'Weighting Factors'!$Q$10 -> 0 | AK26: =IF(ISNA(VLOOKUP($CV26,'Audit Values'!$A$2:$BU$326,2,FALSE)),'Preliminary SO66'!AR25,VLOOKUP($CV26,'Audit Values'!$A$2:$BU$326,66,FALSE)) -> 77 | AL26: 26.4 | AM26: =AL26*'Weighting Factors'!$Q$5 -> 105758 | AN26: 131353 | AO26: =MAX(AM26, AN26)/'Weighting Factors'!$Q$5 -> 32.8 | AP26: =CJ26/'Weighting Factors'!$Q$5 -> 0 | AQ26: =CK26/'Weighting Factors'!$Q$5 -> 0 | AR26: =CO26/'Weighting Factors'!$Q$5 -> 0 | AS26: 450530 | AT26: =AS26/'Weighting Factors'!$Q$5 -> 112.5 | AU26: =IF(ISNA(VLOOKUP($CV26,'Audit Values'!$A$2:$BU$326,2,FALSE)),'Preliminary SO66'!X25,VLOOKUP($CV26,'Audit Values'!$A$2:$BU$326,47,FALSE)) -> 1 | AV26: 776.4 | AW26: 663.9 | AX26: =IF(ISNA(VLOOKUP($CV26,'Audit Values'!$A$2:$BU$326,2,FALSE)),'Preliminary SO66'!AA25,VLOOKUP($CV26,'Audit Values'!$A$2:$BU$326,41,FALSE)) -> 0 | AY26: =IF(ISNA(VLOOKUP($CV26,'Audit Values'!$A$2:$BU$326,2,FALSE)),'Preliminary SO66'!AB25,VLOOKUP($CV26,'Audit Values'!$A$2:$BU$326,42,FALSE)) -> 0 | AZ26: 0 | BA26: =SUM(AX26*'Weighting Factors'!$T$10)+('2018 Legal Max'!AY26*'Weighting Factors'!$T$11)+('2018 Legal Max'!AZ26*'Weighting Factors'!$T$12) -> 0 | BB26: 0 | BC26: =IF(ISNA(VLOOKUP($CV26,'Audit Values'!$A$2:$BU$326,2,FALSE)),"",IF(AND('Weighting Factors'!H26>0,VLOOKUP($CV26,'Audit Values'!$A$2:$BU$326,51,FALSE)<'Weighting Factors'!H26),'Weighting Factors'!H26,VLOOKUP($CV26,'Audit Values'!$A$2:$BU$326,50,FALSE))) -> 13 | BD26: =IF(ISNA(VLOOKUP($CV26,'Audit Values'!$A$2:$BV$326,2,FALSE)),"",VLOOKUP($CV26,'Audit Values'!$A$2:$BV$326,51,FALSE)) -> A | BE26: =IF('Weighting Factors'!H26="","",IF('Weighting Factors'!J26="Pending","PX","R")) -> R | BF26: =SUM((S26+T26+Y26+AA26+AE26+AH26+AJ26++AO26+AP26+AQ26+AU26+AR26)*'Weighting Factors'!$Q$5)+'2018 Legal Max'!BA26+'2018 Legal Max'!BB26 -> 2659583 | BG26: =SUM((AV26+AR26)*'Weighting Factors'!$Q$5)+BA26+'2018 Legal Max'!BB26 -> 3110258 | BH26: =IF('Weighting Factors'!H26>0,'Weighting Factors'!H26,'Preliminary SO66'!AV25) -> 3110258 | BI26: 3110258 | BK26: ='Weighting Factors'!F26 -> 0 | BL26: ='Weighting Factors'!E26 -> 0 | BM26: 0 | BN26: 3110258 | BO26: =SUM((S26+T26+Y26+AA26+AE26+AH26+AJ26++AO26+AP26+AQ26+AR26)*'Weighting Factors'!Q$12)+(MAX(AS26,'Weighting Factors'!B26)) -> 3486419 | BP26: 0.3 | BQ26: 1045926 | BR26: 1031917 | BS26: 1031917 | BT26: 0.296 | BU26: 0 | BV26: FALSE | BW26: 0 | BX26: 0 | BY26: 0 | BZ26: TRUE | CA26: 111.375 | CB26: 0.453609 | CC26: 176.9 | CD26: 0 | CE26: 706.7 | CF26: 0.11 | CG26: =IF(ROUND(('Weighting Factors'!$T$5*CF26^'Weighting Factors'!$T$6*'Weighting Factors'!$T$8 ),2)<'Weighting Factors'!$T$7,'Weighting Factors'!$T$7,ROUND(('Weighting Factors'!$T$5*CF26^'Weighting Factors'!$T$6*'Weighting Factors'!$T$8 ),2)) -> 1375.52 | CH26: =ROUND(CG26/'Weighting Factors'!$Q$5,4) -> 0.3434 | CI26: 26.4 | CJ26: 0 | CK26: 0 | CL26: 0 | CM26: 0 | CN26: =SUM((AV26*'Weighting Factors'!$Q$5)+'2018 Legal Max'!BA26)*CM26 -> 0 | CO26: 0 | CP26: 0.3053 | CQ26: 0 | CR26: 0 | CS26: 776.4 | CV26: D0208
A27: 209 | B27: Stevens | C27: Moscow Public Schools | D27: 181.2 | E27: 0 | F27: 181.2 | G27: 156.2 | H27: =IF(ISNA(VLOOKUP($CV27,'Audit Values'!$A$2:$BU$326,2,FALSE)),'Preliminary SO66'!AI26,VLOOKUP($CV27,'Audit Values'!$A$2:$BU$326,2,FALSE)) -> 0 | I27: 156.2 | J27: 157 | K27: =IF(ISNA(VLOOKUP($CV27,'Audit Values'!$A$2:$BU$326,2,FALSE)),'Preliminary SO66'!AJ26,VLOOKUP($CV27,'Audit Values'!$A$2:$BU$326,3,FALSE)) -> 0 | L27: 157 | M27: =IF(ISNA(VLOOKUP($CV27,'Audit Values'!$A$2:$BU$326,2,FALSE)),'Preliminary SO66'!C26,VLOOKUP($CV27,'Audit Values'!$A$2:$BU$326,73,FALSE)) -> 176 | N27: =IF(ISNA(VLOOKUP($CV27,'Audit Values'!$A$2:$BU$326,2,FALSE)),'Preliminary SO66'!F26,VLOOKUP($CV27,'Audit Values'!$A$2:$BU$326,4,FALSE)) -> 0 | O27: =IF(ISNA(VLOOKUP($CV27,'Audit Values'!$A$2:$BU$326,2,FALSE)),'Preliminary SO66'!AK26,VLOOKUP($CV27,'Audit Values'!$A$2:$BU$326,57,FALSE)) -> 176 | P27: =IF('Military Provision'!J28="YES", MAX('2018 Legal Max'!L27,'2018 Legal Max'!I27,AVERAGE('2018 Legal Max'!F27,'2018 Legal Max'!I27,'2018 Legal Max'!L27)), MAX(L27, I27)) -> 157 | Q27: =IF(ISNA(VLOOKUP($CV27,'Audit Values'!$A$2:$BU$326,2,FALSE)),'Preliminary SO66'!AL26,VLOOKUP($CV27,'Audit Values'!$A$2:$BU$326,58,FALSE)) -> 2.5 | R27: =IF(ISNA(VLOOKUP($CV27,'Audit Values'!$A$2:$BU$326,2,FALSE)),'Preliminary SO66'!AT26,VLOOKUP($CV27,'Audit Values'!$A$2:$BU$326,59,FALSE)) -> 14 | S27: 173.5 | T27: 142.2 | U27: =IF(ISNA(VLOOKUP($CV27,'Audit Values'!$A$2:$BW$294,2,FALSE)),'Preliminary SO66'!AM26,VLOOKUP($CV27,'Audit Values'!$A$2:$BW$294,62,FALSE)) -> 170.6 | V27: =(U27/6)*'Weighting Factors'!$Q$7 -> 11.2 | W27: =IF(ISNA(VLOOKUP($CV27,'Audit Values'!$A$2:$BW$294,2,FALSE)),'Preliminary SO66'!AN26,VLOOKUP($CV27,'Audit Values'!$A$2:$BW$294,61,FALSE)) -> 54 | X27: =W27*'Weighting Factors'!$Q$8 -> 10 | Y27: 11.2 | Z27: =IF(ISNA(VLOOKUP($CV27,'Audit Values'!$A$2:$BW$294,2,FALSE)),'Preliminary SO66'!AO26,VLOOKUP($CV27,'Audit Values'!$A$2:$BW$294,60,FALSE)) -> 0 | AA27: =Z27/6*'Weighting Factors'!$Q$6 -> 0 | AB27: =IF(ISNA(VLOOKUP($CV27,'Audit Values'!$A$2:$BU$326,2,FALSE)),'Preliminary SO66'!AS26,VLOOKUP($CV27,'Audit Values'!$A$2:$BU$326,63,FALSE)) -> 181 | AC27: 18 | AD27: =IF(ISNA(VLOOKUP($CV27,'Audit Values'!$A$2:$BU$370,2,FALSE)),'Preliminary SO66'!AP26,VLOOKUP($CV27,'Audit Values'!$A$2:$BU$370,64,FALSE)) -> 98 | AE27: =IF(A27=207, AD27,MAX(AC27,AD27))*'Weighting Factors'!$Q$9 -> 47.4 | AF27: 10.3 | AG27: =IF(ISNA(VLOOKUP($CV27,'Audit Values'!$A$2:$BW$326,2,FALSE)),'Preliminary SO66'!AG26,VLOOKUP($CV27,'Audit Values'!$A$2:$BW$326,70,FALSE)) -> 9.2 | AH27: 10.3 | AI27: =IF(ISNA(VLOOKUP($CV27,'Audit Values'!$A$2:$BU$326,2,FALSE)),'Preliminary SO66'!AQ26,VLOOKUP($CV27,'Audit Values'!$A$2:$BU$326,65,FALSE)) -> 0 | AJ27: =AI27*'Weighting Factors'!$Q$10 -> 0 | AK27: =IF(ISNA(VLOOKUP($CV27,'Audit Values'!$A$2:$BU$326,2,FALSE)),'Preliminary SO66'!AR26,VLOOKUP($CV27,'Audit Values'!$A$2:$BU$326,66,FALSE)) -> 45 | AL27: 13.8 | AM27: =AL27*'Weighting Factors'!$Q$5 -> 55283 | AN27: 69721 | AO27: =MAX(AM27, AN27)/'Weighting Factors'!$Q$5 -> 17.4 | AP27: =CJ27/'Weighting Factors'!$Q$5 -> 0 | AQ27: =CK27/'Weighting Factors'!$Q$5 -> 0 | AR27: =CO27/'Weighting Factors'!$Q$5 -> 0 | AS27: 110548 | AT27: =AS27/'Weighting Factors'!$Q$5 -> 27.6 | AU27: =IF(ISNA(VLOOKUP($CV27,'Audit Values'!$A$2:$BU$326,2,FALSE)),'Preliminary SO66'!X26,VLOOKUP($CV27,'Audit Values'!$A$2:$BU$326,47,FALSE)) -> 0 | AV27: 429.6 | AW27: 402 | AX27: =IF(ISNA(VLOOKUP($CV27,'Audit Values'!$A$2:$BU$326,2,FALSE)),'Preliminary SO66'!AA26,VLOOKUP($CV27,'Audit Values'!$A$2:$BU$326,41,FALSE)) -> 0 | AY27: =IF(ISNA(VLOOKUP($CV27,'Audit Values'!$A$2:$BU$326,2,FALSE)),'Preliminary SO66'!AB26,VLOOKUP($CV27,'Audit Values'!$A$2:$BU$326,42,FALSE)) -> 0 | AZ27: 0 | BA27: =SUM(AX27*'Weighting Factors'!$T$10)+('2018 Legal Max'!AY27*'Weighting Factors'!$T$11)+('2018 Legal Max'!AZ27*'Weighting Factors'!$T$12) -> 0 | BB27: 0 | BC27: =IF(ISNA(VLOOKUP($CV27,'Audit Values'!$A$2:$BU$326,2,FALSE)),"",IF(AND('Weighting Factors'!H27>0,VLOOKUP($CV27,'Audit Values'!$A$2:$BU$326,51,FALSE)<'Weighting Factors'!H27),'Weighting Factors'!H27,VLOOKUP($CV27,'Audit Values'!$A$2:$BU$326,50,FALSE))) -> 13 | BD27: =IF(ISNA(VLOOKUP($CV27,'Audit Values'!$A$2:$BV$326,2,FALSE)),"",VLOOKUP($CV27,'Audit Values'!$A$2:$BV$326,51,FALSE)) -> A | BE27: =IF('Weighting Factors'!H27="","",IF('Weighting Factors'!J27="Pending","PX","R")) ->  | BF27: =SUM((S27+T27+Y27+AA27+AE27+AH27+AJ27++AO27+AP27+AQ27+AU27+AR27)*'Weighting Factors'!$Q$5)+'2018 Legal Max'!BA27+'2018 Legal Max'!BB27 -> 1610412 | BG27: =SUM((AV27+AR27)*'Weighting Factors'!$Q$5)+BA27+'2018 Legal Max'!BB27 -> 1720978 | BH27: =IF('Weighting Factors'!H27>0,'Weighting Factors'!H27,'Preliminary SO66'!AV26) -> 1812314 | BI27: 1720978 | BK27: ='Weighting Factors'!F27 -> 0 | BL27: ='Weighting Factors'!E27 -> 0 | BM27: 0 | BN27: 1720978 | BO27: =SUM((S27+T27+Y27+AA27+AE27+AH27+AJ27++AO27+AP27+AQ27+AR27)*'Weighting Factors'!Q$12)+(MAX(AS27,'Weighting Factors'!B27)) -> 1943141 | BP27: 0.33 | BQ27: 641237 | BR27: 668944 | BS27: 641237 | BT27: 0.33 | BU27: 0 | BV27: TRUE | BW27: 709.643 | BX27: 0.819503 | BY27: 142.2 | BZ27: FALSE | CA27: 0 | CB27: 0 | CC27: 0 | CD27: 0 | CE27: 223 | CF27: 0.2 | CG27: =IF(ROUND(('Weighting Factors'!$T$5*CF27^'Weighting Factors'!$T$6*'Weighting Factors'!$T$8 ),2)<'Weighting Factors'!$T$7,'Weighting Factors'!$T$7,ROUND(('Weighting Factors'!$T$5*CF27^'Weighting Factors'!$T$6*'Weighting Factors'!$T$8 ),2)) -> 1228.79 | CH27: =ROUND(CG27/'Weighting Factors'!$Q$5,4) -> 0.3067 | CI27: 13.8 | CJ27: 0 | CK27: 0 | CL27: 0 | CM27: 0 | CN27: =SUM((AV27*'Weighting Factors'!$Q$5)+'2018 Legal Max'!BA27)*CM27 -> 0 | CO27: 0 | CP27: 0.5414 | CQ27: 10.3 | CR27: 0 | CS27: 429.6 | CV27: D0209
A28: 210 | B28: Stevens | C28: Hugoton Public Schools | D28: 975.8 | E28: 0 | F28: 975.8 | G28: 963.4 | H28: =IF(ISNA(VLOOKUP($CV28,'Audit Values'!$A$2:$BU$326,2,FALSE)),'Preliminary SO66'!AI27,VLOOKUP($CV28,'Audit Values'!$A$2:$BU$326,2,FALSE)) -> 0 | I28: 963.4 | J28: 896.6 | K28: =IF(ISNA(VLOOKUP($CV28,'Audit Values'!$A$2:$BU$326,2,FALSE)),'Preliminary SO66'!AJ27,VLOOKUP($CV28,'Audit Values'!$A$2:$BU$326,3,FALSE)) -> 0 | L28: 896.6 | M28: =IF(ISNA(VLOOKUP($CV28,'Audit Values'!$A$2:$BU$326,2,FALSE)),'Preliminary SO66'!C27,VLOOKUP($CV28,'Audit Values'!$A$2:$BU$326,73,FALSE)) -> 959.1 | N28: =IF(ISNA(VLOOKUP($CV28,'Audit Values'!$A$2:$BU$326,2,FALSE)),'Preliminary SO66'!F27,VLOOKUP($CV28,'Audit Values'!$A$2:$BU$326,4,FALSE)) -> 0 | O28: =IF(ISNA(VLOOKUP($CV28,'Audit Values'!$A$2:$BU$326,2,FALSE)),'Preliminary SO66'!AK27,VLOOKUP($CV28,'Audit Values'!$A$2:$BU$326,57,FALSE)) -> 959.1 | P28: =IF('Military Provision'!J29="YES", MAX('2018 Legal Max'!L28,'2018 Legal Max'!I28,AVERAGE('2018 Legal Max'!F28,'2018 Legal Max'!I28,'2018 Legal Max'!L28)), MAX(L28, I28)) -> 963.4 | Q28: =IF(ISNA(VLOOKUP($CV28,'Audit Values'!$A$2:$BU$326,2,FALSE)),'Preliminary SO66'!AL27,VLOOKUP($CV28,'Audit Values'!$A$2:$BU$326,58,FALSE)) -> 24.5 | R28: =IF(ISNA(VLOOKUP($CV28,'Audit Values'!$A$2:$BU$326,2,FALSE)),'Preliminary SO66'!AT27,VLOOKUP($CV28,'Audit Values'!$A$2:$BU$326,59,FALSE)) -> 99 | S28: 1086.9 | T28: 235.7 | U28: =IF(ISNA(VLOOKUP($CV28,'Audit Values'!$A$2:$BW$294,2,FALSE)),'Preliminary SO66'!AM27,VLOOKUP($CV28,'Audit Values'!$A$2:$BW$294,62,FALSE)) -> 1246.2 | V28: =(U28/6)*'Weighting Factors'!$Q$7 -> 82 | W28: =IF(ISNA(VLOOKUP($CV28,'Audit Values'!$A$2:$BW$294,2,FALSE)),'Preliminary SO66'!AN27,VLOOKUP($CV28,'Audit Values'!$A$2:$BW$294,61,FALSE)) -> 331 | X28: =W28*'Weighting Factors'!$Q$8 -> 61.2 | Y28: 82 | Z28: =IF(ISNA(VLOOKUP($CV28,'Audit Values'!$A$2:$BW$294,2,FALSE)),'Preliminary SO66'!AO27,VLOOKUP($CV28,'Audit Values'!$A$2:$BW$294,60,FALSE)) -> 262.2 | AA28: =Z28/6*'Weighting Factors'!$Q$6 -> 21.9 | AB28: =IF(ISNA(VLOOKUP($CV28,'Audit Values'!$A$2:$BU$326,2,FALSE)),'Preliminary SO66'!AS27,VLOOKUP($CV28,'Audit Values'!$A$2:$BU$326,63,FALSE)) -> 1021 | AC28: 102 | AD28: =IF(ISNA(VLOOKUP($CV28,'Audit Values'!$A$2:$BU$370,2,FALSE)),'Preliminary SO66'!AP27,VLOOKUP($CV28,'Audit Values'!$A$2:$BU$370,64,FALSE)) -> 479 | AE28: =IF(A28=207, AD28,MAX(AC28,AD28))*'Weighting Factors'!$Q$9 -> 231.8 | AF28: 39.9 | AG28: =IF(ISNA(VLOOKUP($CV28,'Audit Values'!$A$2:$BW$326,2,FALSE)),'Preliminary SO66'!AG27,VLOOKUP($CV28,'Audit Values'!$A$2:$BW$326,70,FALSE)) -> 42 | AH28: 42 | AI28: =IF(ISNA(VLOOKUP($CV28,'Audit Values'!$A$2:$BU$326,2,FALSE)),'Preliminary SO66'!AQ27,VLOOKUP($CV28,'Audit Values'!$A$2:$BU$326,65,FALSE)) -> 0 | AJ28: =AI28*'Weighting Factors'!$Q$10 -> 0 | AK28: =IF(ISNA(VLOOKUP($CV28,'Audit Values'!$A$2:$BU$326,2,FALSE)),'Preliminary SO66'!AR27,VLOOKUP($CV28,'Audit Values'!$A$2:$BU$326,66,FALSE)) -> 145 | AL28: 42.6 | AM28: =AL28*'Weighting Factors'!$Q$5 -> 170656 | AN28: 245372 | AO28: =MAX(AM28, AN28)/'Weighting Factors'!$Q$5 -> 61.3 | AP28: =CJ28/'Weighting Factors'!$Q$5 -> 0 | AQ28: =CK28/'Weighting Factors'!$Q$5 -> 0 | AR28: =CO28/'Weighting Factors'!$Q$5 -> 0 | AS28: 565537 | AT28: =AS28/'Weighting Factors'!$Q$5 -> 141.2 | AU28: =IF(ISNA(VLOOKUP($CV28,'Audit Values'!$A$2:$BU$326,2,FALSE)),'Preliminary SO66'!X27,VLOOKUP($CV28,'Audit Values'!$A$2:$BU$326,47,FALSE)) -> 0 | AV28: 1902.8 | AW28: 1761.6 | AX28: =IF(ISNA(VLOOKUP($CV28,'Audit Values'!$A$2:$BU$326,2,FALSE)),'Preliminary SO66'!AA27,VLOOKUP($CV28,'Audit Values'!$A$2:$BU$326,41,FALSE)) -> 2 | AY28: =IF(ISNA(VLOOKUP($CV28,'Audit Values'!$A$2:$BU$326,2,FALSE)),'Preliminary SO66'!AB27,VLOOKUP($CV28,'Audit Values'!$A$2:$BU$326,42,FALSE)) -> 0 | AZ28: 30.5 | BA28: =SUM(AX28*'Weighting Factors'!$T$10)+('2018 Legal Max'!AY28*'Weighting Factors'!$T$11)+('2018 Legal Max'!AZ28*'Weighting Factors'!$T$12) -> 31625 | BB28: 0 | BC28: =IF(ISNA(VLOOKUP($CV28,'Audit Values'!$A$2:$BU$326,2,FALSE)),"",IF(AND('Weighting Factors'!H28>0,VLOOKUP($CV28,'Audit Values'!$A$2:$BU$326,51,FALSE)<'Weighting Factors'!H28),'Weighting Factors'!H28,VLOOKUP($CV28,'Audit Values'!$A$2:$BU$326,50,FALSE))) -> 17 | BD28: =IF(ISNA(VLOOKUP($CV28,'Audit Values'!$A$2:$BV$326,2,FALSE)),"",VLOOKUP($CV28,'Audit Values'!$A$2:$BV$326,51,FALSE)) -> A | BE28: =IF('Weighting Factors'!H28="","",IF('Weighting Factors'!J28="Pending","PX","R")) ->  | BF28: =SUM((S28+T28+Y28+AA28+AE28+AH28+AJ28++AO28+AP28+AQ28+AU28+AR28)*'Weighting Factors'!$Q$5)+'2018 Legal Max'!BA28+'2018 Legal Max'!BB28 -> 7088595 | BG28: =SUM((AV28+AR28)*'Weighting Factors'!$Q$5)+BA28+'2018 Legal Max'!BB28 -> 7654242 | BH28: =IF('Weighting Factors'!H28>0,'Weighting Factors'!H28,'Preliminary SO66'!AV27) -> 7813302 | BI28: 7654242 | BK28: ='Weighting Factors'!F28 -> 0 | BL28: ='Weighting Factors'!E28 -> 0 | BM28: 0 | BN28: 7654242 | BO28: =SUM((S28+T28+Y28+AA28+AE28+AH28+AJ28++AO28+AP28+AQ28+AR28)*'Weighting Factors'!Q$12)+(MAX(AS28,'Weighting Factors'!B28)) -> 8532363 | BP28: 0.3 | BQ28: 2559709 | BR28: 2604091 | BS28: 2559709 | BT28: 0.3 | BU28: 0 | BV28: FALSE | BW28: 0 | BX28: 0 | BY28: 0 | BZ28: TRUE | CA28: 973.7888 | CB28: 0.216838 | CC28: 235.7 | CD28: 0 | CE28: 575 | CF28: 0.25 | CG28: =IF(ROUND(('Weighting Factors'!$T$5*CF28^'Weighting Factors'!$T$6*'Weighting Factors'!$T$8 ),2)<'Weighting Factors'!$T$7,'Weighting Factors'!$T$7,ROUND(('Weighting Factors'!$T$5*CF28^'Weighting Factors'!$T$6*'Weighting Factors'!$T$8 ),2)) -> 1178.12 | CH28: =ROUND(CG28/'Weighting Factors'!$Q$5,4) -> 0.2941 | CI28: 42.6 | CJ28: 0 | CK28: 0 | CL28: 0 | CM28: 0 | CN28: =SUM((AV28*'Weighting Factors'!$Q$5)+'2018 Legal Max'!BA28)*CM28 -> 0 | CO28: 0 | CP28: 0.4691 | CQ28: 0 | CR28: 39.9 | CS28: 1902.8 | CV28: D0210
A29: 211 | B29: Norton | C29: Norton Community Schools | D29: 662.1 | E29: 0 | F29: 662.1 | G29: 651.7 | H29: =IF(ISNA(VLOOKUP($CV29,'Audit Values'!$A$2:$BU$326,2,FALSE)),'Preliminary SO66'!AI28,VLOOKUP($CV29,'Audit Values'!$A$2:$BU$326,2,FALSE)) -> 0 | I29: 651.7 | J29: 604 | K29: =IF(ISNA(VLOOKUP($CV29,'Audit Values'!$A$2:$BU$326,2,FALSE)),'Preliminary SO66'!AJ28,VLOOKUP($CV29,'Audit Values'!$A$2:$BU$326,3,FALSE)) -> 0 | L29: 604 | M29: =IF(ISNA(VLOOKUP($CV29,'Audit Values'!$A$2:$BU$326,2,FALSE)),'Preliminary SO66'!C28,VLOOKUP($CV29,'Audit Values'!$A$2:$BU$326,73,FALSE)) -> 675.1 | N29: =IF(ISNA(VLOOKUP($CV29,'Audit Values'!$A$2:$BU$326,2,FALSE)),'Preliminary SO66'!F28,VLOOKUP($CV29,'Audit Values'!$A$2:$BU$326,4,FALSE)) -> 0 | O29: =IF(ISNA(VLOOKUP($CV29,'Audit Values'!$A$2:$BU$326,2,FALSE)),'Preliminary SO66'!AK28,VLOOKUP($CV29,'Audit Values'!$A$2:$BU$326,57,FALSE)) -> 675.1 | P29: =IF('Military Provision'!J30="YES", MAX('2018 Legal Max'!L29,'2018 Legal Max'!I29,AVERAGE('2018 Legal Max'!F29,'2018 Legal Max'!I29,'2018 Legal Max'!L29)), MAX(L29, I29)) -> 651.7 | Q29: =IF(ISNA(VLOOKUP($CV29,'Audit Values'!$A$2:$BU$326,2,FALSE)),'Preliminary SO66'!AL28,VLOOKUP($CV29,'Audit Values'!$A$2:$BU$326,58,FALSE)) -> 0 | R29: =IF(ISNA(VLOOKUP($CV29,'Audit Values'!$A$2:$BU$326,2,FALSE)),'Preliminary SO66'!AT28,VLOOKUP($CV29,'Audit Values'!$A$2:$BU$326,59,FALSE)) -> 55 | S29: 706.7 | T29: 244.5 | U29: =IF(ISNA(VLOOKUP($CV29,'Audit Values'!$A$2:$BW$294,2,FALSE)),'Preliminary SO66'!AM28,VLOOKUP($CV29,'Audit Values'!$A$2:$BW$294,62,FALSE)) -> 0 | V29: =(U29/6)*'Weighting Factors'!$Q$7 -> 0 | W29: =IF(ISNA(VLOOKUP($CV29,'Audit Values'!$A$2:$BW$294,2,FALSE)),'Preliminary SO66'!AN28,VLOOKUP($CV29,'Audit Values'!$A$2:$BW$294,61,FALSE)) -> 7 | X29: =W29*'Weighting Factors'!$Q$8 -> 1.3 | Y29: 1.3 | Z29: =IF(ISNA(VLOOKUP($CV29,'Audit Values'!$A$2:$BW$294,2,FALSE)),'Preliminary SO66'!AO28,VLOOKUP($CV29,'Audit Values'!$A$2:$BW$294,60,FALSE)) -> 124.1 | AA29: =Z29/6*'Weighting Factors'!$Q$6 -> 10.3 | AB29: =IF(ISNA(VLOOKUP($CV29,'Audit Values'!$A$2:$BU$326,2,FALSE)),'Preliminary SO66'!AS28,VLOOKUP($CV29,'Audit Values'!$A$2:$BU$326,63,FALSE)) -> 683 | AC29: 68 | AD29: =IF(ISNA(VLOOKUP($CV29,'Audit Values'!$A$2:$BU$370,2,FALSE)),'Preliminary SO66'!AP28,VLOOKUP($CV29,'Audit Values'!$A$2:$BU$370,64,FALSE)) -> 213 | AE29: =IF(A29=207, AD29,MAX(AC29,AD29))*'Weighting Factors'!$Q$9 -> 103.1 | AF29: 0 | AG29: =IF(ISNA(VLOOKUP($CV29,'Audit Values'!$A$2:$BW$326,2,FALSE)),'Preliminary SO66'!AG28,VLOOKUP($CV29,'Audit Values'!$A$2:$BW$326,70,FALSE)) -> 0 | AH29: 0 | AI29: =IF(ISNA(VLOOKUP($CV29,'Audit Values'!$A$2:$BU$326,2,FALSE)),'Preliminary SO66'!AQ28,VLOOKUP($CV29,'Audit Values'!$A$2:$BU$326,65,FALSE)) -> 25.6 | AJ29: =AI29*'Weighting Factors'!$Q$10 -> 6.4 | AK29: =IF(ISNA(VLOOKUP($CV29,'Audit Values'!$A$2:$BU$326,2,FALSE)),'Preliminary SO66'!AR28,VLOOKUP($CV29,'Audit Values'!$A$2:$BU$326,66,FALSE)) -> 134 | AL29: 41.1 | AM29: =AL29*'Weighting Factors'!$Q$5 -> 164647 | AN29: 220334 | AO29: =MAX(AM29, AN29)/'Weighting Factors'!$Q$5 -> 55 | AP29: =CJ29/'Weighting Factors'!$Q$5 -> 0 | AQ29: =CK29/'Weighting Factors'!$Q$5 -> 0 | AR29: =CO29/'Weighting Factors'!$Q$5 -> 0 | AS29: 763722 | AT29: =AS29/'Weighting Factors'!$Q$5 -> 190.6 | AU29: =IF(ISNA(VLOOKUP($CV29,'Audit Values'!$A$2:$BU$326,2,FALSE)),'Preliminary SO66'!X28,VLOOKUP($CV29,'Audit Values'!$A$2:$BU$326,47,FALSE)) -> 0 | AV29: 1317.9 | AW29: 1127.3 | AX29: =IF(ISNA(VLOOKUP($CV29,'Audit Values'!$A$2:$BU$326,2,FALSE)),'Preliminary SO66'!AA28,VLOOKUP($CV29,'Audit Values'!$A$2:$BU$326,41,FALSE)) -> 0 | AY29: =IF(ISNA(VLOOKUP($CV29,'Audit Values'!$A$2:$BU$326,2,FALSE)),'Preliminary SO66'!AB28,VLOOKUP($CV29,'Audit Values'!$A$2:$BU$326,42,FALSE)) -> 0 | AZ29: 0 | BA29: =SUM(AX29*'Weighting Factors'!$T$10)+('2018 Legal Max'!AY29*'Weighting Factors'!$T$11)+('2018 Legal Max'!AZ29*'Weighting Factors'!$T$12) -> 0 | BB29: 0 | BC29: =IF(ISNA(VLOOKUP($CV29,'Audit Values'!$A$2:$BU$326,2,FALSE)),"",IF(AND('Weighting Factors'!H29>0,VLOOKUP($CV29,'Audit Values'!$A$2:$BU$326,51,FALSE)<'Weighting Factors'!H29),'Weighting Factors'!H29,VLOOKUP($CV29,'Audit Values'!$A$2:$BU$326,50,FALSE))) -> 4 | BD29: =IF(ISNA(VLOOKUP($CV29,'Audit Values'!$A$2:$BV$326,2,FALSE)),"",VLOOKUP($CV29,'Audit Values'!$A$2:$BV$326,51,FALSE)) -> A | BE29: =IF('Weighting Factors'!H29="","",IF('Weighting Factors'!J29="Pending","PX","R")) ->  | BF29: =SUM((S29+T29+Y29+AA29+AE29+AH29+AJ29++AO29+AP29+AQ29+AU29+AR29)*'Weighting Factors'!$Q$5)+'2018 Legal Max'!BA29+'2018 Legal Max'!BB29 -> 4515964 | BG29: =SUM((AV29+AR29)*'Weighting Factors'!$Q$5)+BA29+'2018 Legal Max'!BB29 -> 5279507 | BH29: =IF('Weighting Factors'!H29>0,'Weighting Factors'!H29,'Preliminary SO66'!AV28) -> 5385266 | BI29: 5279507 | BK29: ='Weighting Factors'!F29 -> 0 | BL29: ='Weighting Factors'!E29 -> 0 | BM29: 0 | BN29: 5279507 | BO29: =SUM((S29+T29+Y29+AA29+AE29+AH29+AJ29++AO29+AP29+AQ29+AR29)*'Weighting Factors'!Q$12)+(MAX(AS29,'Weighting Factors'!B29)) -> 5928111 | BP29: 0.3 | BQ29: 1778433 | BR29: 1778840 | BS29: 1778433 | BT29: 0.3 | BU29: 0 | BV29: FALSE | BW29: 0 | BX29: 0 | BY29: 0 | BZ29: TRUE | CA29: 503.2913 | CB29: 0.346011 | CC29: 244.5 | CD29: 0 | CE29: 678 | CF29: 0.2 | CG29: =IF(ROUND(('Weighting Factors'!$T$5*CF29^'Weighting Factors'!$T$6*'Weighting Factors'!$T$8 ),2)<'Weighting Factors'!$T$7,'Weighting Factors'!$T$7,ROUND(('Weighting Factors'!$T$5*CF29^'Weighting Factors'!$T$6*'Weighting Factors'!$T$8 ),2)) -> 1228.79 | CH29: =ROUND(CG29/'Weighting Factors'!$Q$5,4) -> 0.3067 | CI29: 41.1 | CJ29: 0 | CK29: 0 | CL29: 0 | CM29: 0 | CN29: =SUM((AV29*'Weighting Factors'!$Q$5)+'2018 Legal Max'!BA29)*CM29 -> 0 | CO29: 0 | CP29: 0.3119 | CQ29: 0 | CR29: 0 | CS29: 1317.9 | CV29: D0211
A30: 212 | B30: Norton | C30: Northern Valley | D30: 164.5 | E30: 0 | F30: 164.5 | G30: 156.5 | H30: =IF(ISNA(VLOOKUP($CV30,'Audit Values'!$A$2:$BU$326,2,FALSE)),'Preliminary SO66'!AI29,VLOOKUP($CV30,'Audit Values'!$A$2:$BU$326,2,FALSE)) -> 0 | I30: 156.5 | J30: 138 | K30: =IF(ISNA(VLOOKUP($CV30,'Audit Values'!$A$2:$BU$326,2,FALSE)),'Preliminary SO66'!AJ29,VLOOKUP($CV30,'Audit Values'!$A$2:$BU$326,3,FALSE)) -> 0 | L30: 138 | M30: =IF(ISNA(VLOOKUP($CV30,'Audit Values'!$A$2:$BU$326,2,FALSE)),'Preliminary SO66'!C29,VLOOKUP($CV30,'Audit Values'!$A$2:$BU$326,73,FALSE)) -> 150.5 | N30: =IF(ISNA(VLOOKUP($CV30,'Audit Values'!$A$2:$BU$326,2,FALSE)),'Preliminary SO66'!F29,VLOOKUP($CV30,'Audit Values'!$A$2:$BU$326,4,FALSE)) -> 0 | O30: =IF(ISNA(VLOOKUP($CV30,'Audit Values'!$A$2:$BU$326,2,FALSE)),'Preliminary SO66'!AK29,VLOOKUP($CV30,'Audit Values'!$A$2:$BU$326,57,FALSE)) -> 150.5 | P30: =IF('Military Provision'!J31="YES", MAX('2018 Legal Max'!L30,'2018 Legal Max'!I30,AVERAGE('2018 Legal Max'!F30,'2018 Legal Max'!I30,'2018 Legal Max'!L30)), MAX(L30, I30)) -> 156.5 | Q30: =IF(ISNA(VLOOKUP($CV30,'Audit Values'!$A$2:$BU$326,2,FALSE)),'Preliminary SO66'!AL29,VLOOKUP($CV30,'Audit Values'!$A$2:$BU$326,58,FALSE)) -> 1.5 | R30: =IF(ISNA(VLOOKUP($CV30,'Audit Values'!$A$2:$BU$326,2,FALSE)),'Preliminary SO66'!AT29,VLOOKUP($CV30,'Audit Values'!$A$2:$BU$326,59,FALSE)) -> 7 | S30: 165 | T30: 138.9 | U30: =IF(ISNA(VLOOKUP($CV30,'Audit Values'!$A$2:$BW$294,2,FALSE)),'Preliminary SO66'!AM29,VLOOKUP($CV30,'Audit Values'!$A$2:$BW$294,62,FALSE)) -> 0 | V30: =(U30/6)*'Weighting Factors'!$Q$7 -> 0 | W30: =IF(ISNA(VLOOKUP($CV30,'Audit Values'!$A$2:$BW$294,2,FALSE)),'Preliminary SO66'!AN29,VLOOKUP($CV30,'Audit Values'!$A$2:$BW$294,61,FALSE)) -> 0 | X30: =W30*'Weighting Factors'!$Q$8 -> 0 | Y30: 0 | Z30: =IF(ISNA(VLOOKUP($CV30,'Audit Values'!$A$2:$BW$294,2,FALSE)),'Preliminary SO66'!AO29,VLOOKUP($CV30,'Audit Values'!$A$2:$BW$294,60,FALSE)) -> 77.7 | AA30: =Z30/6*'Weighting Factors'!$Q$6 -> 6.5 | AB30: =IF(ISNA(VLOOKUP($CV30,'Audit Values'!$A$2:$BU$326,2,FALSE)),'Preliminary SO66'!AS29,VLOOKUP($CV30,'Audit Values'!$A$2:$BU$326,63,FALSE)) -> 158 | AC30: 16 | AD30: =IF(ISNA(VLOOKUP($CV30,'Audit Values'!$A$2:$BU$370,2,FALSE)),'Preliminary SO66'!AP29,VLOOKUP($CV30,'Audit Values'!$A$2:$BU$370,64,FALSE)) -> 81 | AE30: =IF(A30=207, AD30,MAX(AC30,AD30))*'Weighting Factors'!$Q$9 -> 39.2 | AF30: 8.5 | AG30: =IF(ISNA(VLOOKUP($CV30,'Audit Values'!$A$2:$BW$326,2,FALSE)),'Preliminary SO66'!AG29,VLOOKUP($CV30,'Audit Values'!$A$2:$BW$326,70,FALSE)) -> 7.2 | AH30: 8.5 | AI30: =IF(ISNA(VLOOKUP($CV30,'Audit Values'!$A$2:$BU$326,2,FALSE)),'Preliminary SO66'!AQ29,VLOOKUP($CV30,'Audit Values'!$A$2:$BU$326,65,FALSE)) -> 0 | AJ30: =AI30*'Weighting Factors'!$Q$10 -> 0 | AK30: =IF(ISNA(VLOOKUP($CV30,'Audit Values'!$A$2:$BU$326,2,FALSE)),'Preliminary SO66'!AR29,VLOOKUP($CV30,'Audit Values'!$A$2:$BU$326,66,FALSE)) -> 46 | AL30: 14.5 | AM30: =AL30*'Weighting Factors'!$Q$5 -> 58087 | AN30: 124805 | AO30: =MAX(AM30, AN30)/'Weighting Factors'!$Q$5 -> 31.2 | AP30: =CJ30/'Weighting Factors'!$Q$5 -> 0 | AQ30: =CK30/'Weighting Factors'!$Q$5 -> 0 | AR30: =CO30/'Weighting Factors'!$Q$5 -> 0 | AS30: 171585 | AT30: =AS30/'Weighting Factors'!$Q$5 -> 42.8 | AU30: =IF(ISNA(VLOOKUP($CV30,'Audit Values'!$A$2:$BU$326,2,FALSE)),'Preliminary SO66'!X29,VLOOKUP($CV30,'Audit Values'!$A$2:$BU$326,47,FALSE)) -> 0 | AV30: 432.1 | AW30: 389.3 | AX30: =IF(ISNA(VLOOKUP($CV30,'Audit Values'!$A$2:$BU$326,2,FALSE)),'Preliminary SO66'!AA29,VLOOKUP($CV30,'Audit Values'!$A$2:$BU$326,41,FALSE)) -> 1 | AY30: =IF(ISNA(VLOOKUP($CV30,'Audit Values'!$A$2:$BU$326,2,FALSE)),'Preliminary SO66'!AB29,VLOOKUP($CV30,'Audit Values'!$A$2:$BU$326,42,FALSE)) -> 0 | AZ30: 3 | BA30: =SUM(AX30*'Weighting Factors'!$T$10)+('2018 Legal Max'!AY30*'Weighting Factors'!$T$11)+('2018 Legal Max'!AZ30*'Weighting Factors'!$T$12) -> 7127 | BB30: 0 | BC30: =IF(ISNA(VLOOKUP($CV30,'Audit Values'!$A$2:$BU$326,2,FALSE)),"",IF(AND('Weighting Factors'!H30>0,VLOOKUP($CV30,'Audit Values'!$A$2:$BU$326,51,FALSE)<'Weighting Factors'!H30),'Weighting Factors'!H30,VLOOKUP($CV30,'Audit Values'!$A$2:$BU$326,50,FALSE))) -> 4 | BD30: =IF(ISNA(VLOOKUP($CV30,'Audit Values'!$A$2:$BV$326,2,FALSE)),"",VLOOKUP($CV30,'Audit Values'!$A$2:$BV$326,51,FALSE)) -> A | BE30: =IF('Weighting Factors'!H30="","",IF('Weighting Factors'!J30="Pending","PX","R")) -> R | BF30: =SUM((S30+T30+Y30+AA30+AE30+AH30+AJ30++AO30+AP30+AQ30+AU30+AR30)*'Weighting Factors'!$Q$5)+'2018 Legal Max'!BA30+'2018 Legal Max'!BB30 -> 1566663 | BG30: =SUM((AV30+AR30)*'Weighting Factors'!$Q$5)+BA30+'2018 Legal Max'!BB30 -> 1738120 | BH30: =IF('Weighting Factors'!H30>0,'Weighting Factors'!H30,'Preliminary SO66'!AV29) -> 1775059 | BI30: 1738120 | BK30: ='Weighting Factors'!F30 -> 0 | BL30: ='Weighting Factors'!E30 -> 0 | BM30: 0 | BN30: 1738120 | BO30: =SUM((S30+T30+Y30+AA30+AE30+AH30+AJ30++AO30+AP30+AQ30+AR30)*'Weighting Factors'!Q$12)+(MAX(AS30,'Weighting Factors'!B30)) -> 1995057 | BP30: 0.3 | BQ30: 598517 | BR30: 588953 | BS30: 588953 | BT30: 0.2952 | BU30: 0 | BV30: TRUE | BW30: 627.575 | BX30: 0.842034 | BY30: 138.9 | BZ30: FALSE | CA30: 0 | CB30: 0 | CC30: 0 | CD30: 0 | CE30: 263 | CF30: 0.17 | CG30: =IF(ROUND(('Weighting Factors'!$T$5*CF30^'Weighting Factors'!$T$6*'Weighting Factors'!$T$8 ),2)<'Weighting Factors'!$T$7,'Weighting Factors'!$T$7,ROUND(('Weighting Factors'!$T$5*CF30^'Weighting Factors'!$T$6*'Weighting Factors'!$T$8 ),2)) -> 1267.05 | CH30: =ROUND(CG30/'Weighting Factors'!$Q$5,4) -> 0.3163 | CI30: 14.5 | CJ30: 0 | CK30: 0 | CL30: 0 | CM30: 0 | CN30: =SUM((AV30*'Weighting Factors'!$Q$5)+'2018 Legal Max'!BA30)*CM30 -> 0 | CO30: 0 | CP30: 0.5127 | CQ30: 8.5 | CR30: 0 | CS30: 432.1 | CV30: D0212
A31: 214 | B31: Grant | C31: Ulysses | D31: 1588.8 | E31: 0 | F31: 1588.8 | G31: 1549.5 | H31: =IF(ISNA(VLOOKUP($CV31,'Audit Values'!$A$2:$BU$326,2,FALSE)),'Preliminary SO66'!AI30,VLOOKUP($CV31,'Audit Values'!$A$2:$BU$326,2,FALSE)) -> 0 | I31: 1549.5 | J31: 1507 | K31: =IF(ISNA(VLOOKUP($CV31,'Audit Values'!$A$2:$BU$326,2,FALSE)),'Preliminary SO66'!AJ30,VLOOKUP($CV31,'Audit Values'!$A$2:$BU$326,3,FALSE)) -> 0 | L31: 1507 | M31: =IF(ISNA(VLOOKUP($CV31,'Audit Values'!$A$2:$BU$326,2,FALSE)),'Preliminary SO66'!C30,VLOOKUP($CV31,'Audit Values'!$A$2:$BU$326,73,FALSE)) -> 1599.7 | N31: =IF(ISNA(VLOOKUP($CV31,'Audit Values'!$A$2:$BU$326,2,FALSE)),'Preliminary SO66'!F30,VLOOKUP($CV31,'Audit Values'!$A$2:$BU$326,4,FALSE)) -> 0 | O31: =IF(ISNA(VLOOKUP($CV31,'Audit Values'!$A$2:$BU$326,2,FALSE)),'Preliminary SO66'!AK30,VLOOKUP($CV31,'Audit Values'!$A$2:$BU$326,57,FALSE)) -> 1599.7 | P31: =IF('Military Provision'!J32="YES", MAX('2018 Legal Max'!L31,'2018 Legal Max'!I31,AVERAGE('2018 Legal Max'!F31,'2018 Legal Max'!I31,'2018 Legal Max'!L31)), MAX(L31, I31)) -> 1549.5 | Q31: =IF(ISNA(VLOOKUP($CV31,'Audit Values'!$A$2:$BU$326,2,FALSE)),'Preliminary SO66'!AL30,VLOOKUP($CV31,'Audit Values'!$A$2:$BU$326,58,FALSE)) -> 18.5 | R31: =IF(ISNA(VLOOKUP($CV31,'Audit Values'!$A$2:$BU$326,2,FALSE)),'Preliminary SO66'!AT30,VLOOKUP($CV31,'Audit Values'!$A$2:$BU$326,59,FALSE)) -> 126 | S31: 1694 | T31: 59.4 | U31: =IF(ISNA(VLOOKUP($CV31,'Audit Values'!$A$2:$BW$294,2,FALSE)),'Preliminary SO66'!AM30,VLOOKUP($CV31,'Audit Values'!$A$2:$BW$294,62,FALSE)) -> 1756.5 | V31: =(U31/6)*'Weighting Factors'!$Q$7 -> 115.6 | W31: =IF(ISNA(VLOOKUP($CV31,'Audit Values'!$A$2:$BW$294,2,FALSE)),'Preliminary SO66'!AN30,VLOOKUP($CV31,'Audit Values'!$A$2:$BW$294,61,FALSE)) -> 569 | X31: =W31*'Weighting Factors'!$Q$8 -> 105.3 | Y31: 115.6 | Z31: =IF(ISNA(VLOOKUP($CV31,'Audit Values'!$A$2:$BW$294,2,FALSE)),'Preliminary SO66'!AO30,VLOOKUP($CV31,'Audit Values'!$A$2:$BW$294,60,FALSE)) -> 645.2 | AA31: =Z31/6*'Weighting Factors'!$Q$6 -> 53.8 | AB31: =IF(ISNA(VLOOKUP($CV31,'Audit Values'!$A$2:$BU$326,2,FALSE)),'Preliminary SO66'!AS30,VLOOKUP($CV31,'Audit Values'!$A$2:$BU$326,63,FALSE)) -> 1645 | AC31: 165 | AD31: =IF(ISNA(VLOOKUP($CV31,'Audit Values'!$A$2:$BU$370,2,FALSE)),'Preliminary SO66'!AP30,VLOOKUP($CV31,'Audit Values'!$A$2:$BU$370,64,FALSE)) -> 816 | AE31: =IF(A31=207, AD31,MAX(AC31,AD31))*'Weighting Factors'!$Q$9 -> 394.9 | AF31: 83.4 | AG31: =IF(ISNA(VLOOKUP($CV31,'Audit Values'!$A$2:$BW$326,2,FALSE)),'Preliminary SO66'!AG30,VLOOKUP($CV31,'Audit Values'!$A$2:$BW$326,70,FALSE)) -> 75.2 | AH31: 83.4 | AI31: =IF(ISNA(VLOOKUP($CV31,'Audit Values'!$A$2:$BU$326,2,FALSE)),'Preliminary SO66'!AQ30,VLOOKUP($CV31,'Audit Values'!$A$2:$BU$326,65,FALSE)) -> 0 | AJ31: =AI31*'Weighting Factors'!$Q$10 -> 0 | AK31: =IF(ISNA(VLOOKUP($CV31,'Audit Values'!$A$2:$BU$326,2,FALSE)),'Preliminary SO66'!AR30,VLOOKUP($CV31,'Audit Values'!$A$2:$BU$326,66,FALSE)) -> 123 | AL31: 36.5 | AM31: =AL31*'Weighting Factors'!$Q$5 -> 146219 | AN31: 263477 | AO31: =MAX(AM31, AN31)/'Weighting Factors'!$Q$5 -> 65.8 | AP31: =CJ31/'Weighting Factors'!$Q$5 -> 0 | AQ31: =CK31/'Weighting Factors'!$Q$5 -> 0 | AR31: =CO31/'Weighting Factors'!$Q$5 -> 0 | AS31: 920606 | AT31: =AS31/'Weighting Factors'!$Q$5 -> 229.8 | AU31: =IF(ISNA(VLOOKUP($CV31,'Audit Values'!$A$2:$BU$326,2,FALSE)),'Preliminary SO66'!X30,VLOOKUP($CV31,'Audit Values'!$A$2:$BU$326,47,FALSE)) -> 0 | AV31: 2696.7 | AW31: 2466.9 | AX31: =IF(ISNA(VLOOKUP($CV31,'Audit Values'!$A$2:$BU$326,2,FALSE)),'Preliminary SO66'!AA30,VLOOKUP($CV31,'Audit Values'!$A$2:$BU$326,41,FALSE)) -> 6 | AY31: =IF(ISNA(VLOOKUP($CV31,'Audit Values'!$A$2:$BU$326,2,FALSE)),'Preliminary SO66'!AB30,VLOOKUP($CV31,'Audit Values'!$A$2:$BU$326,42,FALSE)) -> 2.2 | AZ31: 58 | BA31: =SUM(AX31*'Weighting Factors'!$T$10)+('2018 Legal Max'!AY31*'Weighting Factors'!$T$11)+('2018 Legal Max'!AZ31*'Weighting Factors'!$T$12) -> 74862 | BB31: 0 | BC31: =IF(ISNA(VLOOKUP($CV31,'Audit Values'!$A$2:$BU$326,2,FALSE)),"",IF(AND('Weighting Factors'!H31>0,VLOOKUP($CV31,'Audit Values'!$A$2:$BU$326,51,FALSE)<'Weighting Factors'!H31),'Weighting Factors'!H31,VLOOKUP($CV31,'Audit Values'!$A$2:$BU$326,50,FALSE))) -> 19 | BD31: =IF(ISNA(VLOOKUP($CV31,'Audit Values'!$A$2:$BV$326,2,FALSE)),"",VLOOKUP($CV31,'Audit Values'!$A$2:$BV$326,51,FALSE)) -> A | BE31: =IF('Weighting Factors'!H31="","",IF('Weighting Factors'!J31="Pending","PX","R")) ->  | BF31: =SUM((S31+T31+Y31+AA31+AE31+AH31+AJ31++AO31+AP31+AQ31+AU31+AR31)*'Weighting Factors'!$Q$5)+'2018 Legal Max'!BA31+'2018 Legal Max'!BB31 -> 9957263 | BG31: =SUM((AV31+AR31)*'Weighting Factors'!$Q$5)+BA31+'2018 Legal Max'!BB31 -> 10877842 | BH31: =IF('Weighting Factors'!H31>0,'Weighting Factors'!H31,'Preliminary SO66'!AV30) -> 11266704 | BI31: 10877842 | BK31: ='Weighting Factors'!F31 -> 0 | BL31: ='Weighting Factors'!E31 -> -13529 | BM31: -13529 | BN31: 10864313 | BO31: =SUM((S31+T31+Y31+AA31+AE31+AH31+AJ31++AO31+AP31+AQ31+AR31)*'Weighting Factors'!Q$12)+(MAX(AS31,'Weighting Factors'!B31)) -> 12070611 | BP31: 0.3 | BQ31: 3621183 | BR31: 3704865 | BS31: 3621183 | BT31: 0.3 | BU31: 0 | BV31: FALSE | BW31: 0 | BX31: 0 | BY31: 0 | BZ31: FALSE | CA31: 0 | CB31: 0 | CC31: 0 | CD31: 59.4 | CE31: 517 | CF31: 0.24 | CG31: =IF(ROUND(('Weighting Factors'!$T$5*CF31^'Weighting Factors'!$T$6*'Weighting Factors'!$T$8 ),2)<'Weighting Factors'!$T$7,'Weighting Factors'!$T$7,ROUND(('Weighting Factors'!$T$5*CF31^'Weighting Factors'!$T$6*'Weighting Factors'!$T$8 ),2)) -> 1187.23 | CH31: =ROUND(CG31/'Weighting Factors'!$Q$5,4) -> 0.2964 | CI31: 36.5 | CJ31: 0 | CK31: 0 | CL31: 0 | CM31: 0 | CN31: =SUM((AV31*'Weighting Factors'!$Q$5)+'2018 Legal Max'!BA31)*CM31 -> 0 | CO31: 0 | CP31: 0.496 | CQ31: 0 | CR31: 83.4 | CS31: 2696.7 | CV31: D0214
A32: 215 | B32: Kearny | C32: Lakin | D32: 605.1 | E32: 0 | F32: 605.1 | G32: 553.5 | H32: =IF(ISNA(VLOOKUP($CV32,'Audit Values'!$A$2:$BU$326,2,FALSE)),'Preliminary SO66'!AI31,VLOOKUP($CV32,'Audit Values'!$A$2:$BU$326,2,FALSE)) -> 0 | I32: 553.5 | J32: 564 | K32: =IF(ISNA(VLOOKUP($CV32,'Audit Values'!$A$2:$BU$326,2,FALSE)),'Preliminary SO66'!AJ31,VLOOKUP($CV32,'Audit Values'!$A$2:$BU$326,3,FALSE)) -> 0 | L32: 564 | M32: =IF(ISNA(VLOOKUP($CV32,'Audit Values'!$A$2:$BU$326,2,FALSE)),'Preliminary SO66'!C31,VLOOKUP($CV32,'Audit Values'!$A$2:$BU$326,73,FALSE)) -> 639 | N32: =IF(ISNA(VLOOKUP($CV32,'Audit Values'!$A$2:$BU$326,2,FALSE)),'Preliminary SO66'!F31,VLOOKUP($CV32,'Audit Values'!$A$2:$BU$326,4,FALSE)) -> 0 | O32: =IF(ISNA(VLOOKUP($CV32,'Audit Values'!$A$2:$BU$326,2,FALSE)),'Preliminary SO66'!AK31,VLOOKUP($CV32,'Audit Values'!$A$2:$BU$326,57,FALSE)) -> 639 | P32: =IF('Military Provision'!J33="YES", MAX('2018 Legal Max'!L32,'2018 Legal Max'!I32,AVERAGE('2018 Legal Max'!F32,'2018 Legal Max'!I32,'2018 Legal Max'!L32)), MAX(L32, I32)) -> 564 | Q32: =IF(ISNA(VLOOKUP($CV32,'Audit Values'!$A$2:$BU$326,2,FALSE)),'Preliminary SO66'!AL31,VLOOKUP($CV32,'Audit Values'!$A$2:$BU$326,58,FALSE)) -> 6.5 | R32: =IF(ISNA(VLOOKUP($CV32,'Audit Values'!$A$2:$BU$326,2,FALSE)),'Preliminary SO66'!AT31,VLOOKUP($CV32,'Audit Values'!$A$2:$BU$326,59,FALSE)) -> 53 | S32: 623.5 | T32: 233.4 | U32: =IF(ISNA(VLOOKUP($CV32,'Audit Values'!$A$2:$BW$294,2,FALSE)),'Preliminary SO66'!AM31,VLOOKUP($CV32,'Audit Values'!$A$2:$BW$294,62,FALSE)) -> 415.1 | V32: =(U32/6)*'Weighting Factors'!$Q$7 -> 27.3 | W32: =IF(ISNA(VLOOKUP($CV32,'Audit Values'!$A$2:$BW$294,2,FALSE)),'Preliminary SO66'!AN31,VLOOKUP($CV32,'Audit Values'!$A$2:$BW$294,61,FALSE)) -> 123 | X32: =W32*'Weighting Factors'!$Q$8 -> 22.8 | Y32: 27.3 | Z32: =IF(ISNA(VLOOKUP($CV32,'Audit Values'!$A$2:$BW$294,2,FALSE)),'Preliminary SO66'!AO31,VLOOKUP($CV32,'Audit Values'!$A$2:$BW$294,60,FALSE)) -> 54.6 | AA32: =Z32/6*'Weighting Factors'!$Q$6 -> 4.6 | AB32: =IF(ISNA(VLOOKUP($CV32,'Audit Values'!$A$2:$BU$326,2,FALSE)),'Preliminary SO66'!AS31,VLOOKUP($CV32,'Audit Values'!$A$2:$BU$326,63,FALSE)) -> 657 | AC32: 66 | AD32: =IF(ISNA(VLOOKUP($CV32,'Audit Values'!$A$2:$BU$370,2,FALSE)),'Preliminary SO66'!AP31,VLOOKUP($CV32,'Audit Values'!$A$2:$BU$370,64,FALSE)) -> 287 | AE32: =IF(A32=207, AD32,MAX(AC32,AD32))*'Weighting Factors'!$Q$9 -> 138.9 | AF32: 17.4 | AG32: =IF(ISNA(VLOOKUP($CV32,'Audit Values'!$A$2:$BW$326,2,FALSE)),'Preliminary SO66'!AG31,VLOOKUP($CV32,'Audit Values'!$A$2:$BW$326,70,FALSE)) -> 18.1 | AH32: 18.1 | AI32: =IF(ISNA(VLOOKUP($CV32,'Audit Values'!$A$2:$BU$326,2,FALSE)),'Preliminary SO66'!AQ31,VLOOKUP($CV32,'Audit Values'!$A$2:$BU$326,65,FALSE)) -> 0 | AJ32: =AI32*'Weighting Factors'!$Q$10 -> 0 | AK32: =IF(ISNA(VLOOKUP($CV32,'Audit Values'!$A$2:$BU$326,2,FALSE)),'Preliminary SO66'!AR31,VLOOKUP($CV32,'Audit Values'!$A$2:$BU$326,66,FALSE)) -> 72 | AL32: 24.7 | AM32: =AL32*'Weighting Factors'!$Q$5 -> 98948 | AN32: 141754 | AO32: =MAX(AM32, AN32)/'Weighting Factors'!$Q$5 -> 35.4 | AP32: =CJ32/'Weighting Factors'!$Q$5 -> 0 | AQ32: =CK32/'Weighting Factors'!$Q$5 -> 0 | AR32: =CO32/'Weighting Factors'!$Q$5 -> 0 | AS32: 341370 | AT32: =AS32/'Weighting Factors'!$Q$5 -> 85.2 | AU32: =IF(ISNA(VLOOKUP($CV32,'Audit Values'!$A$2:$BU$326,2,FALSE)),'Preliminary SO66'!X31,VLOOKUP($CV32,'Audit Values'!$A$2:$BU$326,47,FALSE)) -> 0 | AV32: 1166.4 | AW32: 1081.2 | AX32: =IF(ISNA(VLOOKUP($CV32,'Audit Values'!$A$2:$BU$326,2,FALSE)),'Preliminary SO66'!AA31,VLOOKUP($CV32,'Audit Values'!$A$2:$BU$326,41,FALSE)) -> 0 | AY32: =IF(ISNA(VLOOKUP($CV32,'Audit Values'!$A$2:$BU$326,2,FALSE)),'Preliminary SO66'!AB31,VLOOKUP($CV32,'Audit Values'!$A$2:$BU$326,42,FALSE)) -> 0 | AZ32: 116 | BA32: =SUM(AX32*'Weighting Factors'!$T$10)+('2018 Legal Max'!AY32*'Weighting Factors'!$T$11)+('2018 Legal Max'!AZ32*'Weighting Factors'!$T$12) -> 82244 | BB32: 0 | BC32: =IF(ISNA(VLOOKUP($CV32,'Audit Values'!$A$2:$BU$326,2,FALSE)),"",IF(AND('Weighting Factors'!H32>0,VLOOKUP($CV32,'Audit Values'!$A$2:$BU$326,51,FALSE)<'Weighting Factors'!H32),'Weighting Factors'!H32,VLOOKUP($CV32,'Audit Values'!$A$2:$BU$326,50,FALSE))) -> 11 | BD32: =IF(ISNA(VLOOKUP($CV32,'Audit Values'!$A$2:$BV$326,2,FALSE)),"",VLOOKUP($CV32,'Audit Values'!$A$2:$BV$326,51,FALSE)) -> A | BE32: =IF('Weighting Factors'!H32="","",IF('Weighting Factors'!J32="Pending","PX","R")) ->  | BF32: =SUM((S32+T32+Y32+AA32+AE32+AH32+AJ32++AO32+AP32+AQ32+AU32+AR32)*'Weighting Factors'!$Q$5)+'2018 Legal Max'!BA32+'2018 Legal Max'!BB32 -> 4413531 | BG32: =SUM((AV32+AR32)*'Weighting Factors'!$Q$5)+BA32+'2018 Legal Max'!BB32 -> 4754842 | BH32: =IF('Weighting Factors'!H32>0,'Weighting Factors'!H32,'Preliminary SO66'!AV31) -> 4874284 | BI32: 4754842 | BK32: ='Weighting Factors'!F32 -> 0 | BL32: ='Weighting Factors'!E32 -> -5598 | BM32: -5598 | BN32: 4749244 | BO32: =SUM((S32+T32+Y32+AA32+AE32+AH32+AJ32++AO32+AP32+AQ32+AR32)*'Weighting Factors'!Q$12)+(MAX(AS32,'Weighting Factors'!B32)) -> 5251139 | BP32: 0.3 | BQ32: 1575342 | BR32: 1574668 | BS32: 1574668 | BT32: 0.2999 | BU32: 0 | BV32: FALSE | BW32: 0 | BX32: 0 | BY32: 0 | BZ32: TRUE | CA32: 400.3313 | CB32: 0.374278 | CC32: 233.4 | CD32: 0 | CE32: 646 | CF32: 0.11 | CG32: =IF(ROUND(('Weighting Factors'!$T$5*CF32^'Weighting Factors'!$T$6*'Weighting Factors'!$T$8 ),2)<'Weighting Factors'!$T$7,'Weighting Factors'!$T$7,ROUND(('Weighting Factors'!$T$5*CF32^'Weighting Factors'!$T$6*'Weighting Factors'!$T$8 ),2)) -> 1375.52 | CH32: =ROUND(CG32/'Weighting Factors'!$Q$5,4) -> 0.3434 | CI32: 24.7 | CJ32: 0 | CK32: 0 | CL32: 0 | CM32: 0 | CN32: =SUM((AV32*'Weighting Factors'!$Q$5)+'2018 Legal Max'!BA32)*CM32 -> 0 | CO32: 0 | CP32: 0.4368 | CQ32: 0 | CR32: 17.4 | CS32: 1166.4 | CV32: D0215
A33: 216 | B33: Kearny | C33: Deerfield | D33: 183.5 | E33: 0 | F33: 183.5 | G33: 168 | H33: =IF(ISNA(VLOOKUP($CV33,'Audit Values'!$A$2:$BU$326,2,FALSE)),'Preliminary SO66'!AI32,VLOOKUP($CV33,'Audit Values'!$A$2:$BU$326,2,FALSE)) -> 0 | I33: 168 | J33: 179.5 | K33: =IF(ISNA(VLOOKUP($CV33,'Audit Values'!$A$2:$BU$326,2,FALSE)),'Preliminary SO66'!AJ32,VLOOKUP($CV33,'Audit Values'!$A$2:$BU$326,3,FALSE)) -> 0 | L33: 179.5 | M33: =IF(ISNA(VLOOKUP($CV33,'Audit Values'!$A$2:$BU$326,2,FALSE)),'Preliminary SO66'!C32,VLOOKUP($CV33,'Audit Values'!$A$2:$BU$326,73,FALSE)) -> 180 | N33: =IF(ISNA(VLOOKUP($CV33,'Audit Values'!$A$2:$BU$326,2,FALSE)),'Preliminary SO66'!F32,VLOOKUP($CV33,'Audit Values'!$A$2:$BU$326,4,FALSE)) -> 0 | O33: =IF(ISNA(VLOOKUP($CV33,'Audit Values'!$A$2:$BU$326,2,FALSE)),'Preliminary SO66'!AK32,VLOOKUP($CV33,'Audit Values'!$A$2:$BU$326,57,FALSE)) -> 180 | P33: =IF('Military Provision'!J34="YES", MAX('2018 Legal Max'!L33,'2018 Legal Max'!I33,AVERAGE('2018 Legal Max'!F33,'2018 Legal Max'!I33,'2018 Legal Max'!L33)), MAX(L33, I33)) -> 179.5 | Q33: =IF(ISNA(VLOOKUP($CV33,'Audit Values'!$A$2:$BU$326,2,FALSE)),'Preliminary SO66'!AL32,VLOOKUP($CV33,'Audit Values'!$A$2:$BU$326,58,FALSE)) -> 7.5 | R33: =IF(ISNA(VLOOKUP($CV33,'Audit Values'!$A$2:$BU$326,2,FALSE)),'Preliminary SO66'!AT32,VLOOKUP($CV33,'Audit Values'!$A$2:$BU$326,59,FALSE)) -> 17 | S33: 204 | T33: 150.7 | U33: =IF(ISNA(VLOOKUP($CV33,'Audit Values'!$A$2:$BW$294,2,FALSE)),'Preliminary SO66'!AM32,VLOOKUP($CV33,'Audit Values'!$A$2:$BW$294,62,FALSE)) -> 422.1 | V33: =(U33/6)*'Weighting Factors'!$Q$7 -> 27.8 | W33: =IF(ISNA(VLOOKUP($CV33,'Audit Values'!$A$2:$BW$294,2,FALSE)),'Preliminary SO66'!AN32,VLOOKUP($CV33,'Audit Values'!$A$2:$BW$294,61,FALSE)) -> 77 | X33: =W33*'Weighting Factors'!$Q$8 -> 14.2 | Y33: 27.8 | Z33: =IF(ISNA(VLOOKUP($CV33,'Audit Values'!$A$2:$BW$294,2,FALSE)),'Preliminary SO66'!AO32,VLOOKUP($CV33,'Audit Values'!$A$2:$BW$294,60,FALSE)) -> 86.9 | AA33: =Z33/6*'Weighting Factors'!$Q$6 -> 7.2 | AB33: =IF(ISNA(VLOOKUP($CV33,'Audit Values'!$A$2:$BU$326,2,FALSE)),'Preliminary SO66'!AS32,VLOOKUP($CV33,'Audit Values'!$A$2:$BU$326,63,FALSE)) -> 196 | AC33: 20 | AD33: =IF(ISNA(VLOOKUP($CV33,'Audit Values'!$A$2:$BU$370,2,FALSE)),'Preliminary SO66'!AP32,VLOOKUP($CV33,'Audit Values'!$A$2:$BU$370,64,FALSE)) -> 118 | AE33: =IF(A33=207, AD33,MAX(AC33,AD33))*'Weighting Factors'!$Q$9 -> 57.1 | AF33: 12.4 | AG33: =IF(ISNA(VLOOKUP($CV33,'Audit Values'!$A$2:$BW$326,2,FALSE)),'Preliminary SO66'!AG32,VLOOKUP($CV33,'Audit Values'!$A$2:$BW$326,70,FALSE)) -> 12.4 | AH33: 12.4 | AI33: =IF(ISNA(VLOOKUP($CV33,'Audit Values'!$A$2:$BU$326,2,FALSE)),'Preliminary SO66'!AQ32,VLOOKUP($CV33,'Audit Values'!$A$2:$BU$326,65,FALSE)) -> 0 | AJ33: =AI33*'Weighting Factors'!$Q$10 -> 0 | AK33: =IF(ISNA(VLOOKUP($CV33,'Audit Values'!$A$2:$BU$326,2,FALSE)),'Preliminary SO66'!AR32,VLOOKUP($CV33,'Audit Values'!$A$2:$BU$326,66,FALSE)) -> 14 | AL33: 5.4 | AM33: =AL33*'Weighting Factors'!$Q$5 -> 21632 | AN33: 24268 | AO33: =MAX(AM33, AN33)/'Weighting Factors'!$Q$5 -> 6.1 | AP33: =CJ33/'Weighting Factors'!$Q$5 -> 0 | AQ33: =CK33/'Weighting Factors'!$Q$5 -> 0 | AR33: =CO33/'Weighting Factors'!$Q$5 -> 0 | AS33: 128719 | AT33: =AS33/'Weighting Factors'!$Q$5 -> 32.1 | AU33: =IF(ISNA(VLOOKUP($CV33,'Audit Values'!$A$2:$BU$326,2,FALSE)),'Preliminary SO66'!X32,VLOOKUP($CV33,'Audit Values'!$A$2:$BU$326,47,FALSE)) -> 0 | AV33: 497.4 | AW33: 465.3 | AX33: =IF(ISNA(VLOOKUP($CV33,'Audit Values'!$A$2:$BU$326,2,FALSE)),'Preliminary SO66'!AA32,VLOOKUP($CV33,'Audit Values'!$A$2:$BU$326,41,FALSE)) -> 0 | AY33: =IF(ISNA(VLOOKUP($CV33,'Audit Values'!$A$2:$BU$326,2,FALSE)),'Preliminary SO66'!AB32,VLOOKUP($CV33,'Audit Values'!$A$2:$BU$326,42,FALSE)) -> 0 | AZ33: 0 | BA33: =SUM(AX33*'Weighting Factors'!$T$10)+('2018 Legal Max'!AY33*'Weighting Factors'!$T$11)+('2018 Legal Max'!AZ33*'Weighting Factors'!$T$12) -> 0 | BB33: 0 | BC33: =IF(ISNA(VLOOKUP($CV33,'Audit Values'!$A$2:$BU$326,2,FALSE)),"",IF(AND('Weighting Factors'!H33>0,VLOOKUP($CV33,'Audit Values'!$A$2:$BU$326,51,FALSE)<'Weighting Factors'!H33),'Weighting Factors'!H33,VLOOKUP($CV33,'Audit Values'!$A$2:$BU$326,50,FALSE))) -> 12 | BD33: =IF(ISNA(VLOOKUP($CV33,'Audit Values'!$A$2:$BV$326,2,FALSE)),"",VLOOKUP($CV33,'Audit Values'!$A$2:$BV$326,51,FALSE)) -> A | BE33: =IF('Weighting Factors'!H33="","",IF('Weighting Factors'!J33="Pending","PX","R")) ->  | BF33: =SUM((S33+T33+Y33+AA33+AE33+AH33+AJ33++AO33+AP33+AQ33+AU33+AR33)*'Weighting Factors'!$Q$5)+'2018 Legal Max'!BA33+'2018 Legal Max'!BB33 -> 1863992 | BG33: =SUM((AV33+AR33)*'Weighting Factors'!$Q$5)+BA33+'2018 Legal Max'!BB33 -> 1992584 | BH33: =IF('Weighting Factors'!H33>0,'Weighting Factors'!H33,'Preliminary SO66'!AV32) -> 2169249 | BI33: 1992584 | BK33: ='Weighting Factors'!F33 -> 0 | BL33: ='Weighting Factors'!E33 -> 0 | BM33: 0 | BN33: 1992584 | BO33: =SUM((S33+T33+Y33+AA33+AE33+AH33+AJ33++AO33+AP33+AQ33+AR33)*'Weighting Factors'!Q$12)+(MAX(AS33,'Weighting Factors'!B33)) -> 2295086 | BP33: 0.3 | BQ33: 688526 | BR33: 741059 | BS33: 688526 | BT33: 0.3 | BU33: 0 | BV33: TRUE | BW33: 1004.12 | BX33: 0.738656 | BY33: 150.7 | BZ33: FALSE | CA33: 0 | CB33: 0 | CC33: 0 | CD33: 0 | CE33: 216 | CF33: 0.06 | CG33: =IF(ROUND(('Weighting Factors'!$T$5*CF33^'Weighting Factors'!$T$6*'Weighting Factors'!$T$8 ),2)<'Weighting Factors'!$T$7,'Weighting Factors'!$T$7,ROUND(('Weighting Factors'!$T$5*CF33^'Weighting Factors'!$T$6*'Weighting Factors'!$T$8 ),2)) -> 1542.19 | CH33: =ROUND(CG33/'Weighting Factors'!$Q$5,4) -> 0.385 | CI33: 5.4 | CJ33: 0 | CK33: 0 | CL33: 0 | CM33: 0 | CN33: =SUM((AV33*'Weighting Factors'!$Q$5)+'2018 Legal Max'!BA33)*CM33 -> 0 | CO33: 0 | CP33: 0.602 | CQ33: 12.4 | CR33: 0 | CS33: 497.4 | CV33: D0216
A34: 217 | B34: Morton | C34: Rolla | D34: 174.6 | E34: 0 | F34: 174.6 | G34: 157.5 | H34: =IF(ISNA(VLOOKUP($CV34,'Audit Values'!$A$2:$BU$326,2,FALSE)),'Preliminary SO66'!AI33,VLOOKUP($CV34,'Audit Values'!$A$2:$BU$326,2,FALSE)) -> 0 | I34: 157.5 | J34: 127.5 | K34: =IF(ISNA(VLOOKUP($CV34,'Audit Values'!$A$2:$BU$326,2,FALSE)),'Preliminary SO66'!AJ33,VLOOKUP($CV34,'Audit Values'!$A$2:$BU$326,3,FALSE)) -> 0 | L34: 127.5 | M34: =IF(ISNA(VLOOKUP($CV34,'Audit Values'!$A$2:$BU$326,2,FALSE)),'Preliminary SO66'!C33,VLOOKUP($CV34,'Audit Values'!$A$2:$BU$326,73,FALSE)) -> 115 | N34: =IF(ISNA(VLOOKUP($CV34,'Audit Values'!$A$2:$BU$326,2,FALSE)),'Preliminary SO66'!F33,VLOOKUP($CV34,'Audit Values'!$A$2:$BU$326,4,FALSE)) -> 0 | O34: =IF(ISNA(VLOOKUP($CV34,'Audit Values'!$A$2:$BU$326,2,FALSE)),'Preliminary SO66'!AK33,VLOOKUP($CV34,'Audit Values'!$A$2:$BU$326,57,FALSE)) -> 115 | P34: =IF('Military Provision'!J35="YES", MAX('2018 Legal Max'!L34,'2018 Legal Max'!I34,AVERAGE('2018 Legal Max'!F34,'2018 Legal Max'!I34,'2018 Legal Max'!L34)), MAX(L34, I34)) -> 157.5 | Q34: =IF(ISNA(VLOOKUP($CV34,'Audit Values'!$A$2:$BU$326,2,FALSE)),'Preliminary SO66'!AL33,VLOOKUP($CV34,'Audit Values'!$A$2:$BU$326,58,FALSE)) -> 0 | R34: =IF(ISNA(VLOOKUP($CV34,'Audit Values'!$A$2:$BU$326,2,FALSE)),'Preliminary SO66'!AT33,VLOOKUP($CV34,'Audit Values'!$A$2:$BU$326,59,FALSE)) -> 5 | S34: 162.5 | T34: 137.9 | U34: =IF(ISNA(VLOOKUP($CV34,'Audit Values'!$A$2:$BW$294,2,FALSE)),'Preliminary SO66'!AM33,VLOOKUP($CV34,'Audit Values'!$A$2:$BW$294,62,FALSE)) -> 125 | V34: =(U34/6)*'Weighting Factors'!$Q$7 -> 8.2 | W34: =IF(ISNA(VLOOKUP($CV34,'Audit Values'!$A$2:$BW$294,2,FALSE)),'Preliminary SO66'!AN33,VLOOKUP($CV34,'Audit Values'!$A$2:$BW$294,61,FALSE)) -> 28 | X34: =W34*'Weighting Factors'!$Q$8 -> 5.2 | Y34: 8.2 | Z34: =IF(ISNA(VLOOKUP($CV34,'Audit Values'!$A$2:$BW$294,2,FALSE)),'Preliminary SO66'!AO33,VLOOKUP($CV34,'Audit Values'!$A$2:$BW$294,60,FALSE)) -> 59.4 | AA34: =Z34/6*'Weighting Factors'!$Q$6 -> 5 | AB34: =IF(ISNA(VLOOKUP($CV34,'Audit Values'!$A$2:$BU$326,2,FALSE)),'Preliminary SO66'!AS33,VLOOKUP($CV34,'Audit Values'!$A$2:$BU$326,63,FALSE)) -> 115 | AC34: 12 | AD34: =IF(ISNA(VLOOKUP($CV34,'Audit Values'!$A$2:$BU$370,2,FALSE)),'Preliminary SO66'!AP33,VLOOKUP($CV34,'Audit Values'!$A$2:$BU$370,64,FALSE)) -> 39 | AE34: =IF(A34=207, AD34,MAX(AC34,AD34))*'Weighting Factors'!$Q$9 -> 18.9 | AF34: 0 | AG34: =IF(ISNA(VLOOKUP($CV34,'Audit Values'!$A$2:$BW$326,2,FALSE)),'Preliminary SO66'!AG33,VLOOKUP($CV34,'Audit Values'!$A$2:$BW$326,70,FALSE)) -> 0.6 | AH34: 0.6 | AI34: =IF(ISNA(VLOOKUP($CV34,'Audit Values'!$A$2:$BU$326,2,FALSE)),'Preliminary SO66'!AQ33,VLOOKUP($CV34,'Audit Values'!$A$2:$BU$326,65,FALSE)) -> 0 | AJ34: =AI34*'Weighting Factors'!$Q$10 -> 0 | AK34: =IF(ISNA(VLOOKUP($CV34,'Audit Values'!$A$2:$BU$326,2,FALSE)),'Preliminary SO66'!AR33,VLOOKUP($CV34,'Audit Values'!$A$2:$BU$326,66,FALSE)) -> 21 | AL34: 7.7 | AM34: =AL34*'Weighting Factors'!$Q$5 -> 30846 | AN34: 51617 | AO34: =MAX(AM34, AN34)/'Weighting Factors'!$Q$5 -> 12.9 | AP34: =CJ34/'Weighting Factors'!$Q$5 -> 0 | AQ34: =CK34/'Weighting Factors'!$Q$5 -> 0 | AR34: =CO34/'Weighting Factors'!$Q$5 -> 0 | AS34: 111059 | AT34: =AS34/'Weighting Factors'!$Q$5 -> 27.7 | AU34: =IF(ISNA(VLOOKUP($CV34,'Audit Values'!$A$2:$BU$326,2,FALSE)),'Preliminary SO66'!X33,VLOOKUP($CV34,'Audit Values'!$A$2:$BU$326,47,FALSE)) -> 0 | AV34: 373.7 | AW34: 346 | AX34: =IF(ISNA(VLOOKUP($CV34,'Audit Values'!$A$2:$BU$326,2,FALSE)),'Preliminary SO66'!AA33,VLOOKUP($CV34,'Audit Values'!$A$2:$BU$326,41,FALSE)) -> 0 | AY34: =IF(ISNA(VLOOKUP($CV34,'Audit Values'!$A$2:$BU$326,2,FALSE)),'Preliminary SO66'!AB33,VLOOKUP($CV34,'Audit Values'!$A$2:$BU$326,42,FALSE)) -> 0 | AZ34: 0 | BA34: =SUM(AX34*'Weighting Factors'!$T$10)+('2018 Legal Max'!AY34*'Weighting Factors'!$T$11)+('2018 Legal Max'!AZ34*'Weighting Factors'!$T$12) -> 0 | BB34: 79689 | BC34: =IF(ISNA(VLOOKUP($CV34,'Audit Values'!$A$2:$BU$326,2,FALSE)),"",IF(AND('Weighting Factors'!H34>0,VLOOKUP($CV34,'Audit Values'!$A$2:$BU$326,51,FALSE)<'Weighting Factors'!H34),'Weighting Factors'!H34,VLOOKUP($CV34,'Audit Values'!$A$2:$BU$326,50,FALSE))) -> 11 | BD34: =IF(ISNA(VLOOKUP($CV34,'Audit Values'!$A$2:$BV$326,2,FALSE)),"",VLOOKUP($CV34,'Audit Values'!$A$2:$BV$326,51,FALSE)) -> A | BE34: =IF('Weighting Factors'!H34="","",IF('Weighting Factors'!J34="Pending","PX","R")) ->  | BF34: =SUM((S34+T34+Y34+AA34+AE34+AH34+AJ34++AO34+AP34+AQ34+AU34+AR34)*'Weighting Factors'!$Q$5)+'2018 Legal Max'!BA34+'2018 Legal Max'!BB34 -> 1465765 | BG34: =SUM((AV34+AR34)*'Weighting Factors'!$Q$5)+BA34+'2018 Legal Max'!BB34 -> 1576731 | BH34: =IF('Weighting Factors'!H34>0,'Weighting Factors'!H34,'Preliminary SO66'!AV33) -> 1602370 | BI34: 1576731 | BK34: ='Weighting Factors'!F34 -> 0 | BL34: ='Weighting Factors'!E34 -> 0 | BM34: 0 | BN34: 1576731 | BO34: =SUM((S34+T34+Y34+AA34+AE34+AH34+AJ34++AO34+AP34+AQ34+AR34)*'Weighting Factors'!Q$12)+(MAX(AS34,'Weighting Factors'!B34)) -> 1699880 | BP34: 0.33 | BQ34: 560960 | BR34: 566887 | BS34: 560960 | BT34: 0.33 | BU34: 0 | BV34: TRUE | BW34: 603.438 | BX34: 0.848661 | BY34: 137.9 | BZ34: FALSE | CA34: 0 | CB34: 0 | CC34: 0 | CD34: 0 | CE34: 252 | CF34: 0.08 | CG34: =IF(ROUND(('Weighting Factors'!$T$5*CF34^'Weighting Factors'!$T$6*'Weighting Factors'!$T$8 ),2)<'Weighting Factors'!$T$7,'Weighting Factors'!$T$7,ROUND(('Weighting Factors'!$T$5*CF34^'Weighting Factors'!$T$6*'Weighting Factors'!$T$8 ),2)) -> 1460.71 | CH34: =ROUND(CG34/'Weighting Factors'!$Q$5,4) -> 0.3646 | CI34: 7.7 | CJ34: 0 | CK34: 0 | CL34: 0 | CM34: 0 | CN34: =SUM((AV34*'Weighting Factors'!$Q$5)+'2018 Legal Max'!BA34)*CM34 -> 0 | CO34: 0 | CP34: 0.3391 | CQ34: 0 | CR34: 0 | CS34: 373.7 | CV34: D0217
A35: 218 | B35: Morton | C35: Elkhart | D35: 438 | E35: 0 | F35: 438 | G35: 421.9 | H35: =IF(ISNA(VLOOKUP($CV35,'Audit Values'!$A$2:$BU$326,2,FALSE)),'Preliminary SO66'!AI34,VLOOKUP($CV35,'Audit Values'!$A$2:$BU$326,2,FALSE)) -> 0 | I35: 421.9 | J35: 404.9 | K35: =IF(ISNA(VLOOKUP($CV35,'Audit Values'!$A$2:$BU$326,2,FALSE)),'Preliminary SO66'!AJ34,VLOOKUP($CV35,'Audit Values'!$A$2:$BU$326,3,FALSE)) -> 0 | L35: 404.9 | M35: =IF(ISNA(VLOOKUP($CV35,'Audit Values'!$A$2:$BU$326,2,FALSE)),'Preliminary SO66'!C34,VLOOKUP($CV35,'Audit Values'!$A$2:$BU$326,73,FALSE)) -> 420.2 | N35: =IF(ISNA(VLOOKUP($CV35,'Audit Values'!$A$2:$BU$326,2,FALSE)),'Preliminary SO66'!F34,VLOOKUP($CV35,'Audit Values'!$A$2:$BU$326,4,FALSE)) -> 0 | O35: =IF(ISNA(VLOOKUP($CV35,'Audit Values'!$A$2:$BU$326,2,FALSE)),'Preliminary SO66'!AK34,VLOOKUP($CV35,'Audit Values'!$A$2:$BU$326,57,FALSE)) -> 420.2 | P35: =IF('Military Provision'!J36="YES", MAX('2018 Legal Max'!L35,'2018 Legal Max'!I35,AVERAGE('2018 Legal Max'!F35,'2018 Legal Max'!I35,'2018 Legal Max'!L35)), MAX(L35, I35)) -> 421.9 | Q35: =IF(ISNA(VLOOKUP($CV35,'Audit Values'!$A$2:$BU$326,2,FALSE)),'Preliminary SO66'!AL34,VLOOKUP($CV35,'Audit Values'!$A$2:$BU$326,58,FALSE)) -> 7.5 | R35: =IF(ISNA(VLOOKUP($CV35,'Audit Values'!$A$2:$BU$326,2,FALSE)),'Preliminary SO66'!AT34,VLOOKUP($CV35,'Audit Values'!$A$2:$BU$326,59,FALSE)) -> 49 | S35: 478.4 | T35: 202.6 | U35: =IF(ISNA(VLOOKUP($CV35,'Audit Values'!$A$2:$BW$294,2,FALSE)),'Preliminary SO66'!AM34,VLOOKUP($CV35,'Audit Values'!$A$2:$BW$294,62,FALSE)) -> 326.1 | V35: =(U35/6)*'Weighting Factors'!$Q$7 -> 21.5 | W35: =IF(ISNA(VLOOKUP($CV35,'Audit Values'!$A$2:$BW$294,2,FALSE)),'Preliminary SO66'!AN34,VLOOKUP($CV35,'Audit Values'!$A$2:$BW$294,61,FALSE)) -> 74 | X35: =W35*'Weighting Factors'!$Q$8 -> 13.7 | Y35: 21.5 | Z35: =IF(ISNA(VLOOKUP($CV35,'Audit Values'!$A$2:$BW$294,2,FALSE)),'Preliminary SO66'!AO34,VLOOKUP($CV35,'Audit Values'!$A$2:$BW$294,60,FALSE)) -> 99.3 | AA35: =Z35/6*'Weighting Factors'!$Q$6 -> 8.3 | AB35: =IF(ISNA(VLOOKUP($CV35,'Audit Values'!$A$2:$BU$326,2,FALSE)),'Preliminary SO66'!AS34,VLOOKUP($CV35,'Audit Values'!$A$2:$BU$326,63,FALSE)) -> 450 | AC35: 45 | AD35: =IF(ISNA(VLOOKUP($CV35,'Audit Values'!$A$2:$BU$370,2,FALSE)),'Preliminary SO66'!AP34,VLOOKUP($CV35,'Audit Values'!$A$2:$BU$370,64,FALSE)) -> 181 | AE35: =IF(A35=207, AD35,MAX(AC35,AD35))*'Weighting Factors'!$Q$9 -> 87.6 | AF35: 6.6 | AG35: =IF(ISNA(VLOOKUP($CV35,'Audit Values'!$A$2:$BW$326,2,FALSE)),'Preliminary SO66'!AG34,VLOOKUP($CV35,'Audit Values'!$A$2:$BW$326,70,FALSE)) -> 10.5 | AH35: 10.5 | AI35: =IF(ISNA(VLOOKUP($CV35,'Audit Values'!$A$2:$BU$326,2,FALSE)),'Preliminary SO66'!AQ34,VLOOKUP($CV35,'Audit Values'!$A$2:$BU$326,65,FALSE)) -> 0 | AJ35: =AI35*'Weighting Factors'!$Q$10 -> 0 | AK35: =IF(ISNA(VLOOKUP($CV35,'Audit Values'!$A$2:$BU$326,2,FALSE)),'Preliminary SO66'!AR34,VLOOKUP($CV35,'Audit Values'!$A$2:$BU$326,66,FALSE)) -> 32 | AL35: 11.4 | AM35: =AL35*'Weighting Factors'!$Q$5 -> 45668 | AN35: 68180 | AO35: =MAX(AM35, AN35)/'Weighting Factors'!$Q$5 -> 17 | AP35: =CJ35/'Weighting Factors'!$Q$5 -> 0 | AQ35: =CK35/'Weighting Factors'!$Q$5 -> 0 | AR35: =CO35/'Weighting Factors'!$Q$5 -> 0 | AS35: 298038 | AT35: =AS35/'Weighting Factors'!$Q$5 -> 74.4 | AU35: =IF(ISNA(VLOOKUP($CV35,'Audit Values'!$A$2:$BU$326,2,FALSE)),'Preliminary SO66'!X34,VLOOKUP($CV35,'Audit Values'!$A$2:$BU$326,47,FALSE)) -> 0 | AV35: 900.3 | AW35: 825.9 | AX35: =IF(ISNA(VLOOKUP($CV35,'Audit Values'!$A$2:$BU$326,2,FALSE)),'Preliminary SO66'!AA34,VLOOKUP($CV35,'Audit Values'!$A$2:$BU$326,41,FALSE)) -> 753 | AY35: =IF(ISNA(VLOOKUP($CV35,'Audit Values'!$A$2:$BU$326,2,FALSE)),'Preliminary SO66'!AB34,VLOOKUP($CV35,'Audit Values'!$A$2:$BU$326,42,FALSE)) -> 18.6 | AZ35: 4 | BA35: =SUM(AX35*'Weighting Factors'!$T$10)+('2018 Legal Max'!AY35*'Weighting Factors'!$T$11)+('2018 Legal Max'!AZ35*'Weighting Factors'!$T$12) -> 3799456 | BB35: 0 | BC35: =IF(ISNA(VLOOKUP($CV35,'Audit Values'!$A$2:$BU$326,2,FALSE)),"",IF(AND('Weighting Factors'!H35>0,VLOOKUP($CV35,'Audit Values'!$A$2:$BU$326,51,FALSE)<'Weighting Factors'!H35),'Weighting Factors'!H35,VLOOKUP($CV35,'Audit Values'!$A$2:$BU$326,50,FALSE))) -> 11 | BD35: =IF(ISNA(VLOOKUP($CV35,'Audit Values'!$A$2:$BV$326,2,FALSE)),"",VLOOKUP($CV35,'Audit Values'!$A$2:$BV$326,51,FALSE)) -> A | BE35: =IF('Weighting Factors'!H35="","",IF('Weighting Factors'!J35="Pending","PX","R")) -> R | BF35: =SUM((S35+T35+Y35+AA35+AE35+AH35+AJ35++AO35+AP35+AQ35+AU35+AR35)*'Weighting Factors'!$Q$5)+'2018 Legal Max'!BA35+'2018 Legal Max'!BB35 -> 7108011 | BG35: =SUM((AV35+AR35)*'Weighting Factors'!$Q$5)+BA35+'2018 Legal Max'!BB35 -> 7406058 | BH35: =IF('Weighting Factors'!H35>0,'Weighting Factors'!H35,'Preliminary SO66'!AV34) -> 7564429 | BI35: 7406058 | BK35: ='Weighting Factors'!F35 -> 0 | BL35: ='Weighting Factors'!E35 -> 0 | BM35: 0 | BN35: 7406058 | BO35: =SUM((S35+T35+Y35+AA35+AE35+AH35+AJ35++AO35+AP35+AQ35+AR35)*'Weighting Factors'!Q$12)+(MAX(AS35,'Weighting Factors'!B35)) -> 4099080 | BP35: 0.3 | BQ35: 1229724 | BR35: 1251411 | BS35: 1229724 | BT35: 0.3 | BU35: 0 | BV35: FALSE | BW35: 0 | BX35: 0 | BY35: 0 | BZ35: TRUE | CA35: 220.77 | CB35: 0.423575 | CC35: 202.6 | CD35: 0 | CE35: 376 | CF35: 0.09 | CG35: =IF(ROUND(('Weighting Factors'!$T$5*CF35^'Weighting Factors'!$T$6*'Weighting Factors'!$T$8 ),2)<'Weighting Factors'!$T$7,'Weighting Factors'!$T$7,ROUND(('Weighting Factors'!$T$5*CF35^'Weighting Factors'!$T$6*'Weighting Factors'!$T$8 ),2)) -> 1428.6 | CH35: =ROUND(CG35/'Weighting Factors'!$Q$5,4) -> 0.3566 | CI35: 11.4 | CJ35: 0 | CK35: 0 | CL35: 0 | CM35: 0 | CN35: =SUM((AV35*'Weighting Factors'!$Q$5)+'2018 Legal Max'!BA35)*CM35 -> 0 | CO35: 0 | CP35: 0.4022 | CQ35: 0 | CR35: 6.6 | CS35: 900.3 | CV35: D0218
A36: 219 | B36: Clark | C36: Minneola | D36: 235.5 | E36: 0 | F36: 235.5 | G36: 223.2 | H36: =IF(ISNA(VLOOKUP($CV36,'Audit Values'!$A$2:$BU$326,2,FALSE)),'Preliminary SO66'!AI35,VLOOKUP($CV36,'Audit Values'!$A$2:$BU$326,2,FALSE)) -> 0 | I36: 223.2 | J36: 225.5 | K36: =IF(ISNA(VLOOKUP($CV36,'Audit Values'!$A$2:$BU$326,2,FALSE)),'Preliminary SO66'!AJ35,VLOOKUP($CV36,'Audit Values'!$A$2:$BU$326,3,FALSE)) -> 0 | L36: 225.5 | M36: =IF(ISNA(VLOOKUP($CV36,'Audit Values'!$A$2:$BU$326,2,FALSE)),'Preliminary SO66'!C35,VLOOKUP($CV36,'Audit Values'!$A$2:$BU$326,73,FALSE)) -> 236.5 | N36: =IF(ISNA(VLOOKUP($CV36,'Audit Values'!$A$2:$BU$326,2,FALSE)),'Preliminary SO66'!F35,VLOOKUP($CV36,'Audit Values'!$A$2:$BU$326,4,FALSE)) -> 0 | O36: =IF(ISNA(VLOOKUP($CV36,'Audit Values'!$A$2:$BU$326,2,FALSE)),'Preliminary SO66'!AK35,VLOOKUP($CV36,'Audit Values'!$A$2:$BU$326,57,FALSE)) -> 236.5 | P36: =IF('Military Provision'!J37="YES", MAX('2018 Legal Max'!L36,'2018 Legal Max'!I36,AVERAGE('2018 Legal Max'!F36,'2018 Legal Max'!I36,'2018 Legal Max'!L36)), MAX(L36, I36)) -> 225.5 | Q36: =IF(ISNA(VLOOKUP($CV36,'Audit Values'!$A$2:$BU$326,2,FALSE)),'Preliminary SO66'!AL35,VLOOKUP($CV36,'Audit Values'!$A$2:$BU$326,58,FALSE)) -> 0 | R36: =IF(ISNA(VLOOKUP($CV36,'Audit Values'!$A$2:$BU$326,2,FALSE)),'Preliminary SO66'!AT35,VLOOKUP($CV36,'Audit Values'!$A$2:$BU$326,59,FALSE)) -> 18 | S36: 243.5 | T36: 154.4 | U36: =IF(ISNA(VLOOKUP($CV36,'Audit Values'!$A$2:$BW$294,2,FALSE)),'Preliminary SO66'!AM35,VLOOKUP($CV36,'Audit Values'!$A$2:$BW$294,62,FALSE)) -> 0 | V36: =(U36/6)*'Weighting Factors'!$Q$7 -> 0 | W36: =IF(ISNA(VLOOKUP($CV36,'Audit Values'!$A$2:$BW$294,2,FALSE)),'Preliminary SO66'!AN35,VLOOKUP($CV36,'Audit Values'!$A$2:$BW$294,61,FALSE)) -> 7 | X36: =W36*'Weighting Factors'!$Q$8 -> 1.3 | Y36: 1.3 | Z36: =IF(ISNA(VLOOKUP($CV36,'Audit Values'!$A$2:$BW$294,2,FALSE)),'Preliminary SO66'!AO35,VLOOKUP($CV36,'Audit Values'!$A$2:$BW$294,60,FALSE)) -> 0 | AA36: =Z36/6*'Weighting Factors'!$Q$6 -> 0 | AB36: =IF(ISNA(VLOOKUP($CV36,'Audit Values'!$A$2:$BU$326,2,FALSE)),'Preliminary SO66'!AS35,VLOOKUP($CV36,'Audit Values'!$A$2:$BU$326,63,FALSE)) -> 237 | AC36: 24 | AD36: =IF(ISNA(VLOOKUP($CV36,'Audit Values'!$A$2:$BU$370,2,FALSE)),'Preliminary SO66'!AP35,VLOOKUP($CV36,'Audit Values'!$A$2:$BU$370,64,FALSE)) -> 84 | AE36: =IF(A36=207, AD36,MAX(AC36,AD36))*'Weighting Factors'!$Q$9 -> 40.7 | AF36: 0.3 | AG36: =IF(ISNA(VLOOKUP($CV36,'Audit Values'!$A$2:$BW$326,2,FALSE)),'Preliminary SO66'!AG35,VLOOKUP($CV36,'Audit Values'!$A$2:$BW$326,70,FALSE)) -> 2 | AH36: 2 | AI36: =IF(ISNA(VLOOKUP($CV36,'Audit Values'!$A$2:$BU$326,2,FALSE)),'Preliminary SO66'!AQ35,VLOOKUP($CV36,'Audit Values'!$A$2:$BU$326,65,FALSE)) -> 0 | AJ36: =AI36*'Weighting Factors'!$Q$10 -> 0 | AK36: =IF(ISNA(VLOOKUP($CV36,'Audit Values'!$A$2:$BU$326,2,FALSE)),'Preliminary SO66'!AR35,VLOOKUP($CV36,'Audit Values'!$A$2:$BU$326,66,FALSE)) -> 46 | AL36: 14.7 | AM36: =AL36*'Weighting Factors'!$Q$5 -> 58888 | AN36: 70106 | AO36: =MAX(AM36, AN36)/'Weighting Factors'!$Q$5 -> 17.5 | AP36: =CJ36/'Weighting Factors'!$Q$5 -> 0 | AQ36: =CK36/'Weighting Factors'!$Q$5 -> 0 | AR36: =CO36/'Weighting Factors'!$Q$5 -> 0 | AS36: 180161 | AT36: =AS36/'Weighting Factors'!$Q$5 -> 45 | AU36: =IF(ISNA(VLOOKUP($CV36,'Audit Values'!$A$2:$BU$326,2,FALSE)),'Preliminary SO66'!X35,VLOOKUP($CV36,'Audit Values'!$A$2:$BU$326,47,FALSE)) -> 0 | AV36: 504.4 | AW36: 459.4 | AX36: =IF(ISNA(VLOOKUP($CV36,'Audit Values'!$A$2:$BU$326,2,FALSE)),'Preliminary SO66'!AA35,VLOOKUP($CV36,'Audit Values'!$A$2:$BU$326,41,FALSE)) -> 0 | AY36: =IF(ISNA(VLOOKUP($CV36,'Audit Values'!$A$2:$BU$326,2,FALSE)),'Preliminary SO66'!AB35,VLOOKUP($CV36,'Audit Values'!$A$2:$BU$326,42,FALSE)) -> 0 | AZ36: 0 | BA36: =SUM(AX36*'Weighting Factors'!$T$10)+('2018 Legal Max'!AY36*'Weighting Factors'!$T$11)+('2018 Legal Max'!AZ36*'Weighting Factors'!$T$12) -> 0 | BB36: 0 | BC36: =IF(ISNA(VLOOKUP($CV36,'Audit Values'!$A$2:$BU$326,2,FALSE)),"",IF(AND('Weighting Factors'!H36>0,VLOOKUP($CV36,'Audit Values'!$A$2:$BU$326,51,FALSE)<'Weighting Factors'!H36),'Weighting Factors'!H36,VLOOKUP($CV36,'Audit Values'!$A$2:$BU$326,50,FALSE))) -> 4 | BD36: =IF(ISNA(VLOOKUP($CV36,'Audit Values'!$A$2:$BV$326,2,FALSE)),"",VLOOKUP($CV36,'Audit Values'!$A$2:$BV$326,51,FALSE)) -> A | BE36: =IF('Weighting Factors'!H36="","",IF('Weighting Factors'!J36="Pending","PX","R")) ->  | BF36: =SUM((S36+T36+Y36+AA36+AE36+AH36+AJ36++AO36+AP36+AQ36+AU36+AR36)*'Weighting Factors'!$Q$5)+'2018 Legal Max'!BA36+'2018 Legal Max'!BB36 -> 1840356 | BG36: =SUM((AV36+AR36)*'Weighting Factors'!$Q$5)+BA36+'2018 Legal Max'!BB36 -> 2020626 | BH36: =IF('Weighting Factors'!H36>0,'Weighting Factors'!H36,'Preliminary SO66'!AV35) -> 2160035 | BI36: 2020626 | BK36: ='Weighting Factors'!F36 -> 0 | BL36: ='Weighting Factors'!E36 -> 0 | BM36: 0 | BN36: 2020626 | BO36: =SUM((S36+T36+Y36+AA36+AE36+AH36+AJ36++AO36+AP36+AQ36+AR36)*'Weighting Factors'!Q$12)+(MAX(AS36,'Weighting Factors'!B36)) -> 2310529 | BP36: 0.3 | BQ36: 693159 | BR36: 722389 | BS36: 693159 | BT36: 0.3 | BU36: 0 | BV36: TRUE | BW36: 1385.493 | BX36: 0.633952 | BY36: 154.4 | BZ36: FALSE | CA36: 0 | CB36: 0 | CC36: 0 | CD36: 0 | CE36: 292 | CF36: 0.16 | CG36: =IF(ROUND(('Weighting Factors'!$T$5*CF36^'Weighting Factors'!$T$6*'Weighting Factors'!$T$8 ),2)<'Weighting Factors'!$T$7,'Weighting Factors'!$T$7,ROUND(('Weighting Factors'!$T$5*CF36^'Weighting Factors'!$T$6*'Weighting Factors'!$T$8 ),2)) -> 1281.63 | CH36: =ROUND(CG36/'Weighting Factors'!$Q$5,4) -> 0.3199 | CI36: 14.7 | CJ36: 0 | CK36: 0 | CL36: 0 | CM36: 0 | CN36: =SUM((AV36*'Weighting Factors'!$Q$5)+'2018 Legal Max'!BA36)*CM36 -> 0 | CO36: 0 | CP36: 0.3544 | CQ36: 0 | CR36: 0.3 | CS36: 504.4 | CV36: D0219
A37: 220 | B37: Clark | C37: Ashland | D37: 183.6 | E37: 0 | F37: 183.6 | G37: 183.9 | H37: =IF(ISNA(VLOOKUP($CV37,'Audit Values'!$A$2:$BU$326,2,FALSE)),'Preliminary SO66'!AI36,VLOOKUP($CV37,'Audit Values'!$A$2:$BU$326,2,FALSE)) -> 0 | I37: 183.9 | J37: 174.6 | K37: =IF(ISNA(VLOOKUP($CV37,'Audit Values'!$A$2:$BU$326,2,FALSE)),'Preliminary SO66'!AJ36,VLOOKUP($CV37,'Audit Values'!$A$2:$BU$326,3,FALSE)) -> 0 | L37: 174.6 | M37: =IF(ISNA(VLOOKUP($CV37,'Audit Values'!$A$2:$BU$326,2,FALSE)),'Preliminary SO66'!C36,VLOOKUP($CV37,'Audit Values'!$A$2:$BU$326,73,FALSE)) -> 208 | N37: =IF(ISNA(VLOOKUP($CV37,'Audit Values'!$A$2:$BU$326,2,FALSE)),'Preliminary SO66'!F36,VLOOKUP($CV37,'Audit Values'!$A$2:$BU$326,4,FALSE)) -> 0 | O37: =IF(ISNA(VLOOKUP($CV37,'Audit Values'!$A$2:$BU$326,2,FALSE)),'Preliminary SO66'!AK36,VLOOKUP($CV37,'Audit Values'!$A$2:$BU$326,57,FALSE)) -> 208 | P37: =IF('Military Provision'!J38="YES", MAX('2018 Legal Max'!L37,'2018 Legal Max'!I37,AVERAGE('2018 Legal Max'!F37,'2018 Legal Max'!I37,'2018 Legal Max'!L37)), MAX(L37, I37)) -> 183.9 | Q37: =IF(ISNA(VLOOKUP($CV37,'Audit Values'!$A$2:$BU$326,2,FALSE)),'Preliminary SO66'!AL36,VLOOKUP($CV37,'Audit Values'!$A$2:$BU$326,58,FALSE)) -> 2.5 | R37: =IF(ISNA(VLOOKUP($CV37,'Audit Values'!$A$2:$BU$326,2,FALSE)),'Preliminary SO66'!AT36,VLOOKUP($CV37,'Audit Values'!$A$2:$BU$326,59,FALSE)) -> 17 | S37: 203.4 | T37: 150.6 | U37: =IF(ISNA(VLOOKUP($CV37,'Audit Values'!$A$2:$BW$294,2,FALSE)),'Preliminary SO66'!AM36,VLOOKUP($CV37,'Audit Values'!$A$2:$BW$294,62,FALSE)) -> 23.4 | V37: =(U37/6)*'Weighting Factors'!$Q$7 -> 1.5 | W37: =IF(ISNA(VLOOKUP($CV37,'Audit Values'!$A$2:$BW$294,2,FALSE)),'Preliminary SO66'!AN36,VLOOKUP($CV37,'Audit Values'!$A$2:$BW$294,61,FALSE)) -> 24 | X37: =W37*'Weighting Factors'!$Q$8 -> 4.4 | Y37: 4.4 | Z37: =IF(ISNA(VLOOKUP($CV37,'Audit Values'!$A$2:$BW$294,2,FALSE)),'Preliminary SO66'!AO36,VLOOKUP($CV37,'Audit Values'!$A$2:$BW$294,60,FALSE)) -> 34.5 | AA37: =Z37/6*'Weighting Factors'!$Q$6 -> 2.9 | AB37: =IF(ISNA(VLOOKUP($CV37,'Audit Values'!$A$2:$BU$326,2,FALSE)),'Preliminary SO66'!AS36,VLOOKUP($CV37,'Audit Values'!$A$2:$BU$326,63,FALSE)) -> 214 | AC37: 21 | AD37: =IF(ISNA(VLOOKUP($CV37,'Audit Values'!$A$2:$BU$370,2,FALSE)),'Preliminary SO66'!AP36,VLOOKUP($CV37,'Audit Values'!$A$2:$BU$370,64,FALSE)) -> 85 | AE37: =IF(A37=207, AD37,MAX(AC37,AD37))*'Weighting Factors'!$Q$9 -> 41.1 | AF37: 2.8 | AG37: =IF(ISNA(VLOOKUP($CV37,'Audit Values'!$A$2:$BW$326,2,FALSE)),'Preliminary SO66'!AG36,VLOOKUP($CV37,'Audit Values'!$A$2:$BW$326,70,FALSE)) -> 6 | AH37: 6 | AI37: =IF(ISNA(VLOOKUP($CV37,'Audit Values'!$A$2:$BU$326,2,FALSE)),'Preliminary SO66'!AQ36,VLOOKUP($CV37,'Audit Values'!$A$2:$BU$326,65,FALSE)) -> 0 | AJ37: =AI37*'Weighting Factors'!$Q$10 -> 0 | AK37: =IF(ISNA(VLOOKUP($CV37,'Audit Values'!$A$2:$BU$326,2,FALSE)),'Preliminary SO66'!AR36,VLOOKUP($CV37,'Audit Values'!$A$2:$BU$326,66,FALSE)) -> 48.5 | AL37: 18.1 | AM37: =AL37*'Weighting Factors'!$Q$5 -> 72509 | AN37: 91292 | AO37: =MAX(AM37, AN37)/'Weighting Factors'!$Q$5 -> 22.8 | AP37: =CJ37/'Weighting Factors'!$Q$5 -> 0 | AQ37: =CK37/'Weighting Factors'!$Q$5 -> 0 | AR37: =CO37/'Weighting Factors'!$Q$5 -> 0 | AS37: 155831 | AT37: =AS37/'Weighting Factors'!$Q$5 -> 38.9 | AU37: =IF(ISNA(VLOOKUP($CV37,'Audit Values'!$A$2:$BU$326,2,FALSE)),'Preliminary SO66'!X36,VLOOKUP($CV37,'Audit Values'!$A$2:$BU$326,47,FALSE)) -> 0 | AV37: 470.1 | AW37: 431.2 | AX37: =IF(ISNA(VLOOKUP($CV37,'Audit Values'!$A$2:$BU$326,2,FALSE)),'Preliminary SO66'!AA36,VLOOKUP($CV37,'Audit Values'!$A$2:$BU$326,41,FALSE)) -> 0 | AY37: =IF(ISNA(VLOOKUP($CV37,'Audit Values'!$A$2:$BU$326,2,FALSE)),'Preliminary SO66'!AB36,VLOOKUP($CV37,'Audit Values'!$A$2:$BU$326,42,FALSE)) -> 0 | AZ37: 0 | BA37: =SUM(AX37*'Weighting Factors'!$T$10)+('2018 Legal Max'!AY37*'Weighting Factors'!$T$11)+('2018 Legal Max'!AZ37*'Weighting Factors'!$T$12) -> 0 | BB37: 0 | BC37: =IF(ISNA(VLOOKUP($CV37,'Audit Values'!$A$2:$BU$326,2,FALSE)),"",IF(AND('Weighting Factors'!H37>0,VLOOKUP($CV37,'Audit Values'!$A$2:$BU$326,51,FALSE)<'Weighting Factors'!H37),'Weighting Factors'!H37,VLOOKUP($CV37,'Audit Values'!$A$2:$BU$326,50,FALSE))) -> 9 | BD37: =IF(ISNA(VLOOKUP($CV37,'Audit Values'!$A$2:$BV$326,2,FALSE)),"",VLOOKUP($CV37,'Audit Values'!$A$2:$BV$326,51,FALSE)) -> A | BE37: =IF('Weighting Factors'!H37="","",IF('Weighting Factors'!J37="Pending","PX","R")) ->  | BF37: =SUM((S37+T37+Y37+AA37+AE37+AH37+AJ37++AO37+AP37+AQ37+AU37+AR37)*'Weighting Factors'!$Q$5)+'2018 Legal Max'!BA37+'2018 Legal Max'!BB37 -> 1727387 | BG37: =SUM((AV37+AR37)*'Weighting Factors'!$Q$5)+BA37+'2018 Legal Max'!BB37 -> 1883221 | BH37: =IF('Weighting Factors'!H37>0,'Weighting Factors'!H37,'Preliminary SO66'!AV36) -> 1914467 | BI37: 1883221 | BK37: ='Weighting Factors'!F37 -> 0 | BL37: ='Weighting Factors'!E37 -> 0 | BM37: 0 | BN37: 1883221 | BO37: =SUM((S37+T37+Y37+AA37+AE37+AH37+AJ37++AO37+AP37+AQ37+AR37)*'Weighting Factors'!Q$12)+(MAX(AS37,'Weighting Factors'!B37)) -> 2134769 | BP37: 0.3 | BQ37: 640431 | BR37: 637602 | BS37: 637602 | BT37: 0.2987 | BU37: 0 | BV37: TRUE | BW37: 998.327 | BX37: 0.740246 | BY37: 150.6 | BZ37: FALSE | CA37: 0 | CB37: 0 | CC37: 0 | CD37: 0 | CE37: 660 | CF37: 0.07 | CG37: =IF(ROUND(('Weighting Factors'!$T$5*CF37^'Weighting Factors'!$T$6*'Weighting Factors'!$T$8 ),2)<'Weighting Factors'!$T$7,'Weighting Factors'!$T$7,ROUND(('Weighting Factors'!$T$5*CF37^'Weighting Factors'!$T$6*'Weighting Factors'!$T$8 ),2)) -> 1497.98 | CH37: =ROUND(CG37/'Weighting Factors'!$Q$5,4) -> 0.3739 | CI37: 18.1 | CJ37: 0 | CK37: 0 | CL37: 0 | CM37: 0 | CN37: =SUM((AV37*'Weighting Factors'!$Q$5)+'2018 Legal Max'!BA37)*CM37 -> 0 | CO37: 0 | CP37: 0.3972 | CQ37: 0 | CR37: 2.8 | CS37: 470.1 | CV37: D0220
A38: 223 | B38: Washington | C38: Barnes | D38: 322 | E38: 0 | F38: 322 | G38: 324.9 | H38: =IF(ISNA(VLOOKUP($CV38,'Audit Values'!$A$2:$BU$326,2,FALSE)),'Preliminary SO66'!AI37,VLOOKUP($CV38,'Audit Values'!$A$2:$BU$326,2,FALSE)) -> 0 | I38: 324.9 | J38: 332.4 | K38: =IF(ISNA(VLOOKUP($CV38,'Audit Values'!$A$2:$BU$326,2,FALSE)),'Preliminary SO66'!AJ37,VLOOKUP($CV38,'Audit Values'!$A$2:$BU$326,3,FALSE)) -> 0 | L38: 332.4 | M38: =IF(ISNA(VLOOKUP($CV38,'Audit Values'!$A$2:$BU$326,2,FALSE)),'Preliminary SO66'!C37,VLOOKUP($CV38,'Audit Values'!$A$2:$BU$326,73,FALSE)) -> 368.8 | N38: =IF(ISNA(VLOOKUP($CV38,'Audit Values'!$A$2:$BU$326,2,FALSE)),'Preliminary SO66'!F37,VLOOKUP($CV38,'Audit Values'!$A$2:$BU$326,4,FALSE)) -> 0 | O38: =IF(ISNA(VLOOKUP($CV38,'Audit Values'!$A$2:$BU$326,2,FALSE)),'Preliminary SO66'!AK37,VLOOKUP($CV38,'Audit Values'!$A$2:$BU$326,57,FALSE)) -> 368.8 | P38: =IF('Military Provision'!J39="YES", MAX('2018 Legal Max'!L38,'2018 Legal Max'!I38,AVERAGE('2018 Legal Max'!F38,'2018 Legal Max'!I38,'2018 Legal Max'!L38)), MAX(L38, I38)) -> 332.4 | Q38: =IF(ISNA(VLOOKUP($CV38,'Audit Values'!$A$2:$BU$326,2,FALSE)),'Preliminary SO66'!AL37,VLOOKUP($CV38,'Audit Values'!$A$2:$BU$326,58,FALSE)) -> 0 | R38: =IF(ISNA(VLOOKUP($CV38,'Audit Values'!$A$2:$BU$326,2,FALSE)),'Preliminary SO66'!AT37,VLOOKUP($CV38,'Audit Values'!$A$2:$BU$326,59,FALSE)) -> 35 | S38: 367.4 | T38: 169.5 | U38: =IF(ISNA(VLOOKUP($CV38,'Audit Values'!$A$2:$BW$294,2,FALSE)),'Preliminary SO66'!AM37,VLOOKUP($CV38,'Audit Values'!$A$2:$BW$294,62,FALSE)) -> 72.6 | V38: =(U38/6)*'Weighting Factors'!$Q$7 -> 4.8 | W38: =IF(ISNA(VLOOKUP($CV38,'Audit Values'!$A$2:$BW$294,2,FALSE)),'Preliminary SO66'!AN37,VLOOKUP($CV38,'Audit Values'!$A$2:$BW$294,61,FALSE)) -> 31 | X38: =W38*'Weighting Factors'!$Q$8 -> 5.7 | Y38: 5.7 | Z38: =IF(ISNA(VLOOKUP($CV38,'Audit Values'!$A$2:$BW$294,2,FALSE)),'Preliminary SO66'!AO37,VLOOKUP($CV38,'Audit Values'!$A$2:$BW$294,60,FALSE)) -> 133.1 | AA38: =Z38/6*'Weighting Factors'!$Q$6 -> 11.1 | AB38: =IF(ISNA(VLOOKUP($CV38,'Audit Values'!$A$2:$BU$326,2,FALSE)),'Preliminary SO66'!AS37,VLOOKUP($CV38,'Audit Values'!$A$2:$BU$326,63,FALSE)) -> 444 | AC38: 44 | AD38: =IF(ISNA(VLOOKUP($CV38,'Audit Values'!$A$2:$BU$370,2,FALSE)),'Preliminary SO66'!AP37,VLOOKUP($CV38,'Audit Values'!$A$2:$BU$370,64,FALSE)) -> 98 | AE38: =IF(A38=207, AD38,MAX(AC38,AD38))*'Weighting Factors'!$Q$9 -> 47.4 | AF38: 0 | AG38: =IF(ISNA(VLOOKUP($CV38,'Audit Values'!$A$2:$BW$326,2,FALSE)),'Preliminary SO66'!AG37,VLOOKUP($CV38,'Audit Values'!$A$2:$BW$326,70,FALSE)) -> 0 | AH38: 0 | AI38: =IF(ISNA(VLOOKUP($CV38,'Audit Values'!$A$2:$BU$326,2,FALSE)),'Preliminary SO66'!AQ37,VLOOKUP($CV38,'Audit Values'!$A$2:$BU$326,65,FALSE)) -> 0 | AJ38: =AI38*'Weighting Factors'!$Q$10 -> 0 | AK38: =IF(ISNA(VLOOKUP($CV38,'Audit Values'!$A$2:$BU$326,2,FALSE)),'Preliminary SO66'!AR37,VLOOKUP($CV38,'Audit Values'!$A$2:$BU$326,66,FALSE)) -> 143 | AL38: 38.9 | AM38: =AL38*'Weighting Factors'!$Q$5 -> 155833 | AN38: 178348 | AO38: =MAX(AM38, AN38)/'Weighting Factors'!$Q$5 -> 44.5 | AP38: =CJ38/'Weighting Factors'!$Q$5 -> 0 | AQ38: =CK38/'Weighting Factors'!$Q$5 -> 0 | AR38: =CO38/'Weighting Factors'!$Q$5 -> 0 | AS38: 442927 | AT38: =AS38/'Weighting Factors'!$Q$5 -> 110.6 | AU38: =IF(ISNA(VLOOKUP($CV38,'Audit Values'!$A$2:$BU$326,2,FALSE)),'Preliminary SO66'!X37,VLOOKUP($CV38,'Audit Values'!$A$2:$BU$326,47,FALSE)) -> 0 | AV38: 756.2 | AW38: 645.6 | AX38: =IF(ISNA(VLOOKUP($CV38,'Audit Values'!$A$2:$BU$326,2,FALSE)),'Preliminary SO66'!AA37,VLOOKUP($CV38,'Audit Values'!$A$2:$BU$326,41,FALSE)) -> 0 | AY38: =IF(ISNA(VLOOKUP($CV38,'Audit Values'!$A$2:$BU$326,2,FALSE)),'Preliminary SO66'!AB37,VLOOKUP($CV38,'Audit Values'!$A$2:$BU$326,42,FALSE)) -> 0 | AZ38: 0 | BA38: =SUM(AX38*'Weighting Factors'!$T$10)+('2018 Legal Max'!AY38*'Weighting Factors'!$T$11)+('2018 Legal Max'!AZ38*'Weighting Factors'!$T$12) -> 0 | BB38: 0 | BC38: =IF(ISNA(VLOOKUP($CV38,'Audit Values'!$A$2:$BU$326,2,FALSE)),"",IF(AND('Weighting Factors'!H38>0,VLOOKUP($CV38,'Audit Values'!$A$2:$BU$326,51,FALSE)<'Weighting Factors'!H38),'Weighting Factors'!H38,VLOOKUP($CV38,'Audit Values'!$A$2:$BU$326,50,FALSE))) -> 2 | BD38: =IF(ISNA(VLOOKUP($CV38,'Audit Values'!$A$2:$BV$326,2,FALSE)),"",VLOOKUP($CV38,'Audit Values'!$A$2:$BV$326,51,FALSE)) -> A | BE38: =IF('Weighting Factors'!H38="","",IF('Weighting Factors'!J38="Pending","PX","R")) ->  | BF38: =SUM((S38+T38+Y38+AA38+AE38+AH38+AJ38++AO38+AP38+AQ38+AU38+AR38)*'Weighting Factors'!$Q$5)+'2018 Legal Max'!BA38+'2018 Legal Max'!BB38 -> 2586274 | BG38: =SUM((AV38+AR38)*'Weighting Factors'!$Q$5)+BA38+'2018 Legal Max'!BB38 -> 3029337 | BH38: =IF('Weighting Factors'!H38>0,'Weighting Factors'!H38,'Preliminary SO66'!AV37) -> 3096237 | BI38: 3029337 | BK38: ='Weighting Factors'!F38 -> 0 | BL38: ='Weighting Factors'!E38 -> 0 | BM38: 0 | BN38: 3029337 | BO38: =SUM((S38+T38+Y38+AA38+AE38+AH38+AJ38++AO38+AP38+AQ38+AR38)*'Weighting Factors'!Q$12)+(MAX(AS38,'Weighting Factors'!B38)) -> 3341671 | BP38: 0.3 | BQ38: 1002501 | BR38: 1023181 | BS38: 1002501 | BT38: 0.3 | BU38: 0 | BV38: FALSE | BW38: 0 | BX38: 0 | BY38: 0 | BZ38: TRUE | CA38: 83.4075 | CB38: 0.461287 | CC38: 169.5 | CD38: 0 | CE38: 378 | CF38: 0.38 | CG38: =IF(ROUND(('Weighting Factors'!$T$5*CF38^'Weighting Factors'!$T$6*'Weighting Factors'!$T$8 ),2)<'Weighting Factors'!$T$7,'Weighting Factors'!$T$7,ROUND(('Weighting Factors'!$T$5*CF38^'Weighting Factors'!$T$6*'Weighting Factors'!$T$8 ),2)) -> 1088.63 | CH38: =ROUND(CG38/'Weighting Factors'!$Q$5,4) -> 0.2717 | CI38: 38.9 | CJ38: 0 | CK38: 0 | CL38: 0 | CM38: 0 | CN38: =SUM((AV38*'Weighting Factors'!$Q$5)+'2018 Legal Max'!BA38)*CM38 -> 0 | CO38: 0 | CP38: 0.2207 | CQ38: 0 | CR38: 0 | CS38: 756.2 | CV38: D0223
A39: 224 | B39: Washington | C39: Clifton-Clyde | D39: 298 | E39: 0 | F39: 298 | G39: 295.5 | H39: =IF(ISNA(VLOOKUP($CV39,'Audit Values'!$A$2:$BU$326,2,FALSE)),'Preliminary SO66'!AI38,VLOOKUP($CV39,'Audit Values'!$A$2:$BU$326,2,FALSE)) -> 0 | I39: 295.5 | J39: 292.5 | K39: =IF(ISNA(VLOOKUP($CV39,'Audit Values'!$A$2:$BU$326,2,FALSE)),'Preliminary SO66'!AJ38,VLOOKUP($CV39,'Audit Values'!$A$2:$BU$326,3,FALSE)) -> 0 | L39: 292.5 | M39: =IF(ISNA(VLOOKUP($CV39,'Audit Values'!$A$2:$BU$326,2,FALSE)),'Preliminary SO66'!C38,VLOOKUP($CV39,'Audit Values'!$A$2:$BU$326,73,FALSE)) -> 300 | N39: =IF(ISNA(VLOOKUP($CV39,'Audit Values'!$A$2:$BU$326,2,FALSE)),'Preliminary SO66'!F38,VLOOKUP($CV39,'Audit Values'!$A$2:$BU$326,4,FALSE)) -> 0 | O39: =IF(ISNA(VLOOKUP($CV39,'Audit Values'!$A$2:$BU$326,2,FALSE)),'Preliminary SO66'!AK38,VLOOKUP($CV39,'Audit Values'!$A$2:$BU$326,57,FALSE)) -> 300 | P39: =IF('Military Provision'!J40="YES", MAX('2018 Legal Max'!L39,'2018 Legal Max'!I39,AVERAGE('2018 Legal Max'!F39,'2018 Legal Max'!I39,'2018 Legal Max'!L39)), MAX(L39, I39)) -> 295.5 | Q39: =IF(ISNA(VLOOKUP($CV39,'Audit Values'!$A$2:$BU$326,2,FALSE)),'Preliminary SO66'!AL38,VLOOKUP($CV39,'Audit Values'!$A$2:$BU$326,58,FALSE)) -> 1.5 | R39: =IF(ISNA(VLOOKUP($CV39,'Audit Values'!$A$2:$BU$326,2,FALSE)),'Preliminary SO66'!AT38,VLOOKUP($CV39,'Audit Values'!$A$2:$BU$326,59,FALSE)) -> 21 | S39: 318 | T39: 152 | U39: =IF(ISNA(VLOOKUP($CV39,'Audit Values'!$A$2:$BW$294,2,FALSE)),'Preliminary SO66'!AM38,VLOOKUP($CV39,'Audit Values'!$A$2:$BW$294,62,FALSE)) -> 0 | V39: =(U39/6)*'Weighting Factors'!$Q$7 -> 0 | W39: =IF(ISNA(VLOOKUP($CV39,'Audit Values'!$A$2:$BW$294,2,FALSE)),'Preliminary SO66'!AN38,VLOOKUP($CV39,'Audit Values'!$A$2:$BW$294,61,FALSE)) -> 0 | X39: =W39*'Weighting Factors'!$Q$8 -> 0 | Y39: 0 | Z39: =IF(ISNA(VLOOKUP($CV39,'Audit Values'!$A$2:$BW$294,2,FALSE)),'Preliminary SO66'!AO38,VLOOKUP($CV39,'Audit Values'!$A$2:$BW$294,60,FALSE)) -> 122.6 | AA39: =Z39/6*'Weighting Factors'!$Q$6 -> 10.2 | AB39: =IF(ISNA(VLOOKUP($CV39,'Audit Values'!$A$2:$BU$326,2,FALSE)),'Preliminary SO66'!AS38,VLOOKUP($CV39,'Audit Values'!$A$2:$BU$326,63,FALSE)) -> 304 | AC39: 30 | AD39: =IF(ISNA(VLOOKUP($CV39,'Audit Values'!$A$2:$BU$370,2,FALSE)),'Preliminary SO66'!AP38,VLOOKUP($CV39,'Audit Values'!$A$2:$BU$370,64,FALSE)) -> 79 | AE39: =IF(A39=207, AD39,MAX(AC39,AD39))*'Weighting Factors'!$Q$9 -> 38.2 | AF39: 0 | AG39: =IF(ISNA(VLOOKUP($CV39,'Audit Values'!$A$2:$BW$326,2,FALSE)),'Preliminary SO66'!AG38,VLOOKUP($CV39,'Audit Values'!$A$2:$BW$326,70,FALSE)) -> 0 | AH39: 0 | AI39: =IF(ISNA(VLOOKUP($CV39,'Audit Values'!$A$2:$BU$326,2,FALSE)),'Preliminary SO66'!AQ38,VLOOKUP($CV39,'Audit Values'!$A$2:$BU$326,65,FALSE)) -> 0 | AJ39: =AI39*'Weighting Factors'!$Q$10 -> 0 | AK39: =IF(ISNA(VLOOKUP($CV39,'Audit Values'!$A$2:$BU$326,2,FALSE)),'Preliminary SO66'!AR38,VLOOKUP($CV39,'Audit Values'!$A$2:$BU$326,66,FALSE)) -> 153 | AL39: 38.1 | AM39: =AL39*'Weighting Factors'!$Q$5 -> 152629 | AN39: 211475 | AO39: =MAX(AM39, AN39)/'Weighting Factors'!$Q$5 -> 52.8 | AP39: =CJ39/'Weighting Factors'!$Q$5 -> 0 | AQ39: =CK39/'Weighting Factors'!$Q$5 -> 0 | AR39: =CO39/'Weighting Factors'!$Q$5 -> 0 | AS39: 270851 | AT39: =AS39/'Weighting Factors'!$Q$5 -> 67.6 | AU39: =IF(ISNA(VLOOKUP($CV39,'Audit Values'!$A$2:$BU$326,2,FALSE)),'Preliminary SO66'!X38,VLOOKUP($CV39,'Audit Values'!$A$2:$BU$326,47,FALSE)) -> 0 | AV39: 638.8 | AW39: 571.2 | AX39: =IF(ISNA(VLOOKUP($CV39,'Audit Values'!$A$2:$BU$326,2,FALSE)),'Preliminary SO66'!AA38,VLOOKUP($CV39,'Audit Values'!$A$2:$BU$326,41,FALSE)) -> 0 | AY39: =IF(ISNA(VLOOKUP($CV39,'Audit Values'!$A$2:$BU$326,2,FALSE)),'Preliminary SO66'!AB38,VLOOKUP($CV39,'Audit Values'!$A$2:$BU$326,42,FALSE)) -> 0 | AZ39: 0 | BA39: =SUM(AX39*'Weighting Factors'!$T$10)+('2018 Legal Max'!AY39*'Weighting Factors'!$T$11)+('2018 Legal Max'!AZ39*'Weighting Factors'!$T$12) -> 0 | BB39: 0 | BC39: =IF(ISNA(VLOOKUP($CV39,'Audit Values'!$A$2:$BU$326,2,FALSE)),"",IF(AND('Weighting Factors'!H39>0,VLOOKUP($CV39,'Audit Values'!$A$2:$BU$326,51,FALSE)<'Weighting Factors'!H39),'Weighting Factors'!H39,VLOOKUP($CV39,'Audit Values'!$A$2:$BU$326,50,FALSE))) -> 13 | BD39: =IF(ISNA(VLOOKUP($CV39,'Audit Values'!$A$2:$BV$326,2,FALSE)),"",VLOOKUP($CV39,'Audit Values'!$A$2:$BV$326,51,FALSE)) -> A | BE39: =IF('Weighting Factors'!H39="","",IF('Weighting Factors'!J39="Pending","PX","R")) ->  | BF39: =SUM((S39+T39+Y39+AA39+AE39+AH39+AJ39++AO39+AP39+AQ39+AU39+AR39)*'Weighting Factors'!$Q$5)+'2018 Legal Max'!BA39+'2018 Legal Max'!BB39 -> 2288227 | BG39: =SUM((AV39+AR39)*'Weighting Factors'!$Q$5)+BA39+'2018 Legal Max'!BB39 -> 2559033 | BH39: =IF('Weighting Factors'!H39>0,'Weighting Factors'!H39,'Preliminary SO66'!AV38) -> 2647165 | BI39: 2559033 | BK39: ='Weighting Factors'!F39 -> 0 | BL39: ='Weighting Factors'!E39 -> 0 | BM39: 0 | BN39: 2559033 | BO39: =SUM((S39+T39+Y39+AA39+AE39+AH39+AJ39++AO39+AP39+AQ39+AR39)*'Weighting Factors'!Q$12)+(MAX(AS39,'Weighting Factors'!B39)) -> 2912546 | BP39: 0.3 | BQ39: 873764 | BR39: 890871 | BS39: 873764 | BT39: 0.3 | BU39: 0 | BV39: FALSE | BW39: 0 | BX39: 0 | BY39: 0 | BZ39: TRUE | CA39: 22.275 | CB39: 0.478071 | CC39: 152 | CD39: 0 | CE39: 255 | CF39: 0.6 | CG39: =IF(ROUND(('Weighting Factors'!$T$5*CF39^'Weighting Factors'!$T$6*'Weighting Factors'!$T$8 ),2)<'Weighting Factors'!$T$7,'Weighting Factors'!$T$7,ROUND(('Weighting Factors'!$T$5*CF39^'Weighting Factors'!$T$6*'Weighting Factors'!$T$8 ),2)) -> 998.74 | CH39: =ROUND(CG39/'Weighting Factors'!$Q$5,4) -> 0.2493 | CI39: 38.1 | CJ39: 0 | CK39: 0 | CL39: 0 | CM39: 0 | CN39: =SUM((AV39*'Weighting Factors'!$Q$5)+'2018 Legal Max'!BA39)*CM39 -> 0 | CO39: 0 | CP39: 0.2599 | CQ39: 0 | CR39: 0 | CS39: 638.8 | CV39: D0224
A40: 225 | B40: Meade | C40: Fowler | D40: 145.5 | E40: 0 | F40: 145.5 | G40: 125.5 | H40: =IF(ISNA(VLOOKUP($CV40,'Audit Values'!$A$2:$BU$326,2,FALSE)),'Preliminary SO66'!AI39,VLOOKUP($CV40,'Audit Values'!$A$2:$BU$326,2,FALSE)) -> 0 | I40: 125.5 | J40: 134.5 | K40: =IF(ISNA(VLOOKUP($CV40,'Audit Values'!$A$2:$BU$326,2,FALSE)),'Preliminary SO66'!AJ39,VLOOKUP($CV40,'Audit Values'!$A$2:$BU$326,3,FALSE)) -> 0 | L40: 134.5 | M40: =IF(ISNA(VLOOKUP($CV40,'Audit Values'!$A$2:$BU$326,2,FALSE)),'Preliminary SO66'!C39,VLOOKUP($CV40,'Audit Values'!$A$2:$BU$326,73,FALSE)) -> 132 | N40: =IF(ISNA(VLOOKUP($CV40,'Audit Values'!$A$2:$BU$326,2,FALSE)),'Preliminary SO66'!F39,VLOOKUP($CV40,'Audit Values'!$A$2:$BU$326,4,FALSE)) -> 0 | O40: =IF(ISNA(VLOOKUP($CV40,'Audit Values'!$A$2:$BU$326,2,FALSE)),'Preliminary SO66'!AK39,VLOOKUP($CV40,'Audit Values'!$A$2:$BU$326,57,FALSE)) -> 132 | P40: =IF('Military Provision'!J41="YES", MAX('2018 Legal Max'!L40,'2018 Legal Max'!I40,AVERAGE('2018 Legal Max'!F40,'2018 Legal Max'!I40,'2018 Legal Max'!L40)), MAX(L40, I40)) -> 134.5 | Q40: =IF(ISNA(VLOOKUP($CV40,'Audit Values'!$A$2:$BU$326,2,FALSE)),'Preliminary SO66'!AL39,VLOOKUP($CV40,'Audit Values'!$A$2:$BU$326,58,FALSE)) -> 1.5 | R40: =IF(ISNA(VLOOKUP($CV40,'Audit Values'!$A$2:$BU$326,2,FALSE)),'Preliminary SO66'!AT39,VLOOKUP($CV40,'Audit Values'!$A$2:$BU$326,59,FALSE)) -> 7 | S40: 143 | T40: 128.8 | U40: =IF(ISNA(VLOOKUP($CV40,'Audit Values'!$A$2:$BW$294,2,FALSE)),'Preliminary SO66'!AM39,VLOOKUP($CV40,'Audit Values'!$A$2:$BW$294,62,FALSE)) -> 3.7 | V40: =(U40/6)*'Weighting Factors'!$Q$7 -> 0.2 | W40: =IF(ISNA(VLOOKUP($CV40,'Audit Values'!$A$2:$BW$294,2,FALSE)),'Preliminary SO66'!AN39,VLOOKUP($CV40,'Audit Values'!$A$2:$BW$294,61,FALSE)) -> 5 | X40: =W40*'Weighting Factors'!$Q$8 -> 0.9 | Y40: 0.9 | Z40: =IF(ISNA(VLOOKUP($CV40,'Audit Values'!$A$2:$BW$294,2,FALSE)),'Preliminary SO66'!AO39,VLOOKUP($CV40,'Audit Values'!$A$2:$BW$294,60,FALSE)) -> 31.5 | AA40: =Z40/6*'Weighting Factors'!$Q$6 -> 2.6 | AB40: =IF(ISNA(VLOOKUP($CV40,'Audit Values'!$A$2:$BU$326,2,FALSE)),'Preliminary SO66'!AS39,VLOOKUP($CV40,'Audit Values'!$A$2:$BU$326,63,FALSE)) -> 136 | AC40: 14 | AD40: =IF(ISNA(VLOOKUP($CV40,'Audit Values'!$A$2:$BU$370,2,FALSE)),'Preliminary SO66'!AP39,VLOOKUP($CV40,'Audit Values'!$A$2:$BU$370,64,FALSE)) -> 62 | AE40: =IF(A40=207, AD40,MAX(AC40,AD40))*'Weighting Factors'!$Q$9 -> 30 | AF40: 4.6 | AG40: =IF(ISNA(VLOOKUP($CV40,'Audit Values'!$A$2:$BW$326,2,FALSE)),'Preliminary SO66'!AG39,VLOOKUP($CV40,'Audit Values'!$A$2:$BW$326,70,FALSE)) -> 4.6 | AH40: 4.6 | AI40: =IF(ISNA(VLOOKUP($CV40,'Audit Values'!$A$2:$BU$326,2,FALSE)),'Preliminary SO66'!AQ39,VLOOKUP($CV40,'Audit Values'!$A$2:$BU$326,65,FALSE)) -> 0 | AJ40: =AI40*'Weighting Factors'!$Q$10 -> 0 | AK40: =IF(ISNA(VLOOKUP($CV40,'Audit Values'!$A$2:$BU$326,2,FALSE)),'Preliminary SO66'!AR39,VLOOKUP($CV40,'Audit Values'!$A$2:$BU$326,66,FALSE)) -> 16 | AL40: 6.2 | AM40: =AL40*'Weighting Factors'!$Q$5 -> 24837 | AN40: 40831 | AO40: =MAX(AM40, AN40)/'Weighting Factors'!$Q$5 -> 10.2 | AP40: =CJ40/'Weighting Factors'!$Q$5 -> 0 | AQ40: =CK40/'Weighting Factors'!$Q$5 -> 0 | AR40: =CO40/'Weighting Factors'!$Q$5 -> 0 | AS40: 114344 | AT40: =AS40/'Weighting Factors'!$Q$5 -> 28.5 | AU40: =IF(ISNA(VLOOKUP($CV40,'Audit Values'!$A$2:$BU$326,2,FALSE)),'Preliminary SO66'!X39,VLOOKUP($CV40,'Audit Values'!$A$2:$BU$326,47,FALSE)) -> 0 | AV40: 348.6 | AW40: 320.1 | AX40: =IF(ISNA(VLOOKUP($CV40,'Audit Values'!$A$2:$BU$326,2,FALSE)),'Preliminary SO66'!AA39,VLOOKUP($CV40,'Audit Values'!$A$2:$BU$326,41,FALSE)) -> 0 | AY40: =IF(ISNA(VLOOKUP($CV40,'Audit Values'!$A$2:$BU$326,2,FALSE)),'Preliminary SO66'!AB39,VLOOKUP($CV40,'Audit Values'!$A$2:$BU$326,42,FALSE)) -> 0 | AZ40: 0 | BA40: =SUM(AX40*'Weighting Factors'!$T$10)+('2018 Legal Max'!AY40*'Weighting Factors'!$T$11)+('2018 Legal Max'!AZ40*'Weighting Factors'!$T$12) -> 0 | BB40: 101946 | BC40: =IF(ISNA(VLOOKUP($CV40,'Audit Values'!$A$2:$BU$326,2,FALSE)),"",IF(AND('Weighting Factors'!H40>0,VLOOKUP($CV40,'Audit Values'!$A$2:$BU$326,51,FALSE)<'Weighting Factors'!H40),'Weighting Factors'!H40,VLOOKUP($CV40,'Audit Values'!$A$2:$BU$326,50,FALSE))) -> 14 | BD40: =IF(ISNA(VLOOKUP($CV40,'Audit Values'!$A$2:$BV$326,2,FALSE)),"",VLOOKUP($CV40,'Audit Values'!$A$2:$BV$326,51,FALSE)) -> A | BE40: =IF('Weighting Factors'!H40="","",IF('Weighting Factors'!J40="Pending","PX","R")) ->  | BF40: =SUM((S40+T40+Y40+AA40+AE40+AH40+AJ40++AO40+AP40+AQ40+AU40+AR40)*'Weighting Factors'!$Q$5)+'2018 Legal Max'!BA40+'2018 Legal Max'!BB40 -> 1384267 | BG40: =SUM((AV40+AR40)*'Weighting Factors'!$Q$5)+BA40+'2018 Legal Max'!BB40 -> 1498438 | BH40: =IF('Weighting Factors'!H40>0,'Weighting Factors'!H40,'Preliminary SO66'!AV39) -> 1520871 | BI40: 1498438 | BK40: ='Weighting Factors'!F40 -> 0 | BL40: ='Weighting Factors'!E40 -> 0 | BM40: 0 | BN40: 1498438 | BO40: =SUM((S40+T40+Y40+AA40+AE40+AH40+AJ40++AO40+AP40+AQ40+AR40)*'Weighting Factors'!Q$12)+(MAX(AS40,'Weighting Factors'!B40)) -> 1590036 | BP40: 0.33 | BQ40: 524712 | BR40: 527675 | BS40: 524712 | BT40: 0.33 | BU40: 0 | BV40: TRUE | BW40: 415.165 | BX40: 0.90035 | BY40: 128.8 | BZ40: FALSE | CA40: 0 | CB40: 0 | CC40: 0 | CD40: 0 | CE40: 281 | CF40: 0.06 | CG40: =IF(ROUND(('Weighting Factors'!$T$5*CF40^'Weighting Factors'!$T$6*'Weighting Factors'!$T$8 ),2)<'Weighting Factors'!$T$7,'Weighting Factors'!$T$7,ROUND(('Weighting Factors'!$T$5*CF40^'Weighting Factors'!$T$6*'Weighting Factors'!$T$8 ),2)) -> 1542.19 | CH40: =ROUND(CG40/'Weighting Factors'!$Q$5,4) -> 0.385 | CI40: 6.2 | CJ40: 0 | CK40: 0 | CL40: 0 | CM40: 0 | CN40: =SUM((AV40*'Weighting Factors'!$Q$5)+'2018 Legal Max'!BA40)*CM40 -> 0 | CO40: 0 | CP40: 0.4559 | CQ40: 0 | CR40: 4.6 | CS40: 348.6 | CV40: D0225
A41: 226 | B41: Meade | C41: Meade | D41: 367.2 | E41: 0 | F41: 367.2 | G41: 356 | H41: =IF(ISNA(VLOOKUP($CV41,'Audit Values'!$A$2:$BU$326,2,FALSE)),'Preliminary SO66'!AI40,VLOOKUP($CV41,'Audit Values'!$A$2:$BU$326,2,FALSE)) -> 0 | I41: 356 | J41: 351.9 | K41: =IF(ISNA(VLOOKUP($CV41,'Audit Values'!$A$2:$BU$326,2,FALSE)),'Preliminary SO66'!AJ40,VLOOKUP($CV41,'Audit Values'!$A$2:$BU$326,3,FALSE)) -> 0 | L41: 351.9 | M41: =IF(ISNA(VLOOKUP($CV41,'Audit Values'!$A$2:$BU$326,2,FALSE)),'Preliminary SO66'!C40,VLOOKUP($CV41,'Audit Values'!$A$2:$BU$326,73,FALSE)) -> 412.1 | N41: =IF(ISNA(VLOOKUP($CV41,'Audit Values'!$A$2:$BU$326,2,FALSE)),'Preliminary SO66'!F40,VLOOKUP($CV41,'Audit Values'!$A$2:$BU$326,4,FALSE)) -> 0 | O41: =IF(ISNA(VLOOKUP($CV41,'Audit Values'!$A$2:$BU$326,2,FALSE)),'Preliminary SO66'!AK40,VLOOKUP($CV41,'Audit Values'!$A$2:$BU$326,57,FALSE)) -> 412.1 | P41: =IF('Military Provision'!J42="YES", MAX('2018 Legal Max'!L41,'2018 Legal Max'!I41,AVERAGE('2018 Legal Max'!F41,'2018 Legal Max'!I41,'2018 Legal Max'!L41)), MAX(L41, I41)) -> 356 | Q41: =IF(ISNA(VLOOKUP($CV41,'Audit Values'!$A$2:$BU$326,2,FALSE)),'Preliminary SO66'!AL40,VLOOKUP($CV41,'Audit Values'!$A$2:$BU$326,58,FALSE)) -> 4.5 | R41: =IF(ISNA(VLOOKUP($CV41,'Audit Values'!$A$2:$BU$326,2,FALSE)),'Preliminary SO66'!AT40,VLOOKUP($CV41,'Audit Values'!$A$2:$BU$326,59,FALSE)) -> 37 | S41: 397.5 | T41: 179.3 | U41: =IF(ISNA(VLOOKUP($CV41,'Audit Values'!$A$2:$BW$294,2,FALSE)),'Preliminary SO66'!AM40,VLOOKUP($CV41,'Audit Values'!$A$2:$BW$294,62,FALSE)) -> 38 | V41: =(U41/6)*'Weighting Factors'!$Q$7 -> 2.5 | W41: =IF(ISNA(VLOOKUP($CV41,'Audit Values'!$A$2:$BW$294,2,FALSE)),'Preliminary SO66'!AN40,VLOOKUP($CV41,'Audit Values'!$A$2:$BW$294,61,FALSE)) -> 22 | X41: =W41*'Weighting Factors'!$Q$8 -> 4.1 | Y41: 4.1 | Z41: =IF(ISNA(VLOOKUP($CV41,'Audit Values'!$A$2:$BW$294,2,FALSE)),'Preliminary SO66'!AO40,VLOOKUP($CV41,'Audit Values'!$A$2:$BW$294,60,FALSE)) -> 149.4 | AA41: =Z41/6*'Weighting Factors'!$Q$6 -> 12.5 | AB41: =IF(ISNA(VLOOKUP($CV41,'Audit Values'!$A$2:$BU$326,2,FALSE)),'Preliminary SO66'!AS40,VLOOKUP($CV41,'Audit Values'!$A$2:$BU$326,63,FALSE)) -> 433 | AC41: 43 | AD41: =IF(ISNA(VLOOKUP($CV41,'Audit Values'!$A$2:$BU$370,2,FALSE)),'Preliminary SO66'!AP40,VLOOKUP($CV41,'Audit Values'!$A$2:$BU$370,64,FALSE)) -> 142 | AE41: =IF(A41=207, AD41,MAX(AC41,AD41))*'Weighting Factors'!$Q$9 -> 68.7 | AF41: 0 | AG41: =IF(ISNA(VLOOKUP($CV41,'Audit Values'!$A$2:$BW$326,2,FALSE)),'Preliminary SO66'!AG40,VLOOKUP($CV41,'Audit Values'!$A$2:$BW$326,70,FALSE)) -> 2.3 | AH41: 2.3 | AI41: =IF(ISNA(VLOOKUP($CV41,'Audit Values'!$A$2:$BU$326,2,FALSE)),'Preliminary SO66'!AQ40,VLOOKUP($CV41,'Audit Values'!$A$2:$BU$326,65,FALSE)) -> 0 | AJ41: =AI41*'Weighting Factors'!$Q$10 -> 0 | AK41: =IF(ISNA(VLOOKUP($CV41,'Audit Values'!$A$2:$BU$326,2,FALSE)),'Preliminary SO66'!AR40,VLOOKUP($CV41,'Audit Values'!$A$2:$BU$326,66,FALSE)) -> 43 | AL41: 15 | AM41: =AL41*'Weighting Factors'!$Q$5 -> 60090 | AN41: 103619 | AO41: =MAX(AM41, AN41)/'Weighting Factors'!$Q$5 -> 25.9 | AP41: =CJ41/'Weighting Factors'!$Q$5 -> 0 | AQ41: =CK41/'Weighting Factors'!$Q$5 -> 0 | AR41: =CO41/'Weighting Factors'!$Q$5 -> 0 | AS41: 288424 | AT41: =AS41/'Weighting Factors'!$Q$5 -> 72 | AU41: =IF(ISNA(VLOOKUP($CV41,'Audit Values'!$A$2:$BU$326,2,FALSE)),'Preliminary SO66'!X40,VLOOKUP($CV41,'Audit Values'!$A$2:$BU$326,47,FALSE)) -> 0 | AV41: 762.3 | AW41: 690.3 | AX41: =IF(ISNA(VLOOKUP($CV41,'Audit Values'!$A$2:$BU$326,2,FALSE)),'Preliminary SO66'!AA40,VLOOKUP($CV41,'Audit Values'!$A$2:$BU$326,41,FALSE)) -> 0 | AY41: =IF(ISNA(VLOOKUP($CV41,'Audit Values'!$A$2:$BU$326,2,FALSE)),'Preliminary SO66'!AB40,VLOOKUP($CV41,'Audit Values'!$A$2:$BU$326,42,FALSE)) -> 0 | AZ41: 0 | BA41: =SUM(AX41*'Weighting Factors'!$T$10)+('2018 Legal Max'!AY41*'Weighting Factors'!$T$11)+('2018 Legal Max'!AZ41*'Weighting Factors'!$T$12) -> 0 | BB41: 0 | BC41: =IF(ISNA(VLOOKUP($CV41,'Audit Values'!$A$2:$BU$326,2,FALSE)),"",IF(AND('Weighting Factors'!H41>0,VLOOKUP($CV41,'Audit Values'!$A$2:$BU$326,51,FALSE)<'Weighting Factors'!H41),'Weighting Factors'!H41,VLOOKUP($CV41,'Audit Values'!$A$2:$BU$326,50,FALSE))) -> 11 | BD41: =IF(ISNA(VLOOKUP($CV41,'Audit Values'!$A$2:$BV$326,2,FALSE)),"",VLOOKUP($CV41,'Audit Values'!$A$2:$BV$326,51,FALSE)) -> A | BE41: =IF('Weighting Factors'!H41="","",IF('Weighting Factors'!J41="Pending","PX","R")) -> R | BF41: =SUM((S41+T41+Y41+AA41+AE41+AH41+AJ41++AO41+AP41+AQ41+AU41+AR41)*'Weighting Factors'!$Q$5)+'2018 Legal Max'!BA41+'2018 Legal Max'!BB41 -> 2765342 | BG41: =SUM((AV41+AR41)*'Weighting Factors'!$Q$5)+BA41+'2018 Legal Max'!BB41 -> 3053774 | BH41: =IF('Weighting Factors'!H41>0,'Weighting Factors'!H41,'Preliminary SO66'!AV40) -> 3095036 | BI41: 3053774 | BK41: ='Weighting Factors'!F41 -> 0 | BL41: ='Weighting Factors'!E41 -> 0 | BM41: 0 | BN41: 3053774 | BO41: =SUM((S41+T41+Y41+AA41+AE41+AH41+AJ41++AO41+AP41+AQ41+AR41)*'Weighting Factors'!Q$12)+(MAX(AS41,'Weighting Factors'!B41)) -> 3493041 | BP41: 0.33 | BQ41: 1152704 | BR41: 1113883 | BS41: 1113883 | BT41: 0.3189 | BU41: 0 | BV41: FALSE | BW41: 0 | BX41: 0 | BY41: 0 | BZ41: TRUE | CA41: 120.6563 | CB41: 0.451061 | CC41: 179.3 | CD41: 0 | CE41: 440 | CF41: 0.1 | CG41: =IF(ROUND(('Weighting Factors'!$T$5*CF41^'Weighting Factors'!$T$6*'Weighting Factors'!$T$8 ),2)<'Weighting Factors'!$T$7,'Weighting Factors'!$T$7,ROUND(('Weighting Factors'!$T$5*CF41^'Weighting Factors'!$T$6*'Weighting Factors'!$T$8 ),2)) -> 1400.48 | CH41: =ROUND(CG41/'Weighting Factors'!$Q$5,4) -> 0.3496 | CI41: 15 | CJ41: 0 | CK41: 0 | CL41: 0 | CM41: 0 | CN41: =SUM((AV41*'Weighting Factors'!$Q$5)+'2018 Legal Max'!BA41)*CM41 -> 0 | CO41: 0 | CP41: 0.3279 | CQ41: 0 | CR41: 0 | CS41: 762.3 | CV41: D0226
A42: 227 | B42: Hodgeman | C42: Hodgeman County Schools | D42: 275.5 | E42: 0 | F42: 275.5 | G42: 274 | H42: =IF(ISNA(VLOOKUP($CV42,'Audit Values'!$A$2:$BU$326,2,FALSE)),'Preliminary SO66'!AI41,VLOOKUP($CV42,'Audit Values'!$A$2:$BU$326,2,FALSE)) -> 0 | I42: 274 | J42: 263 | K42: =IF(ISNA(VLOOKUP($CV42,'Audit Values'!$A$2:$BU$326,2,FALSE)),'Preliminary SO66'!AJ41,VLOOKUP($CV42,'Audit Values'!$A$2:$BU$326,3,FALSE)) -> 0 | L42: 263 | M42: =IF(ISNA(VLOOKUP($CV42,'Audit Values'!$A$2:$BU$326,2,FALSE)),'Preliminary SO66'!C41,VLOOKUP($CV42,'Audit Values'!$A$2:$BU$326,73,FALSE)) -> 296.5 | N42: =IF(ISNA(VLOOKUP($CV42,'Audit Values'!$A$2:$BU$326,2,FALSE)),'Preliminary SO66'!F41,VLOOKUP($CV42,'Audit Values'!$A$2:$BU$326,4,FALSE)) -> 0 | O42: =IF(ISNA(VLOOKUP($CV42,'Audit Values'!$A$2:$BU$326,2,FALSE)),'Preliminary SO66'!AK41,VLOOKUP($CV42,'Audit Values'!$A$2:$BU$326,57,FALSE)) -> 296.5 | P42: =IF('Military Provision'!J43="YES", MAX('2018 Legal Max'!L42,'2018 Legal Max'!I42,AVERAGE('2018 Legal Max'!F42,'2018 Legal Max'!I42,'2018 Legal Max'!L42)), MAX(L42, I42)) -> 274 | Q42: =IF(ISNA(VLOOKUP($CV42,'Audit Values'!$A$2:$BU$326,2,FALSE)),'Preliminary SO66'!AL41,VLOOKUP($CV42,'Audit Values'!$A$2:$BU$326,58,FALSE)) -> 0 | R42: =IF(ISNA(VLOOKUP($CV42,'Audit Values'!$A$2:$BU$326,2,FALSE)),'Preliminary SO66'!AT41,VLOOKUP($CV42,'Audit Values'!$A$2:$BU$326,59,FALSE)) -> 24 | S42: 298 | T42: 145.9 | U42: =IF(ISNA(VLOOKUP($CV42,'Audit Values'!$A$2:$BW$294,2,FALSE)),'Preliminary SO66'!AM41,VLOOKUP($CV42,'Audit Values'!$A$2:$BW$294,62,FALSE)) -> 12.8 | V42: =(U42/6)*'Weighting Factors'!$Q$7 -> 0.8 | W42: =IF(ISNA(VLOOKUP($CV42,'Audit Values'!$A$2:$BW$294,2,FALSE)),'Preliminary SO66'!AN41,VLOOKUP($CV42,'Audit Values'!$A$2:$BW$294,61,FALSE)) -> 13 | X42: =W42*'Weighting Factors'!$Q$8 -> 2.4 | Y42: 2.4 | Z42: =IF(ISNA(VLOOKUP($CV42,'Audit Values'!$A$2:$BW$294,2,FALSE)),'Preliminary SO66'!AO41,VLOOKUP($CV42,'Audit Values'!$A$2:$BW$294,60,FALSE)) -> 41.1 | AA42: =Z42/6*'Weighting Factors'!$Q$6 -> 3.4 | AB42: =IF(ISNA(VLOOKUP($CV42,'Audit Values'!$A$2:$BU$326,2,FALSE)),'Preliminary SO66'!AS41,VLOOKUP($CV42,'Audit Values'!$A$2:$BU$326,63,FALSE)) -> 304 | AC42: 30 | AD42: =IF(ISNA(VLOOKUP($CV42,'Audit Values'!$A$2:$BU$370,2,FALSE)),'Preliminary SO66'!AP41,VLOOKUP($CV42,'Audit Values'!$A$2:$BU$370,64,FALSE)) -> 81 | AE42: =IF(A42=207, AD42,MAX(AC42,AD42))*'Weighting Factors'!$Q$9 -> 39.2 | AF42: 0 | AG42: =IF(ISNA(VLOOKUP($CV42,'Audit Values'!$A$2:$BW$326,2,FALSE)),'Preliminary SO66'!AG41,VLOOKUP($CV42,'Audit Values'!$A$2:$BW$326,70,FALSE)) -> 0 | AH42: 0 | AI42: =IF(ISNA(VLOOKUP($CV42,'Audit Values'!$A$2:$BU$326,2,FALSE)),'Preliminary SO66'!AQ41,VLOOKUP($CV42,'Audit Values'!$A$2:$BU$326,65,FALSE)) -> 0 | AJ42: =AI42*'Weighting Factors'!$Q$10 -> 0 | AK42: =IF(ISNA(VLOOKUP($CV42,'Audit Values'!$A$2:$BU$326,2,FALSE)),'Preliminary SO66'!AR41,VLOOKUP($CV42,'Audit Values'!$A$2:$BU$326,66,FALSE)) -> 132 | AL42: 42.2 | AM42: =AL42*'Weighting Factors'!$Q$5 -> 169053 | AN42: 203771 | AO42: =MAX(AM42, AN42)/'Weighting Factors'!$Q$5 -> 50.9 | AP42: =CJ42/'Weighting Factors'!$Q$5 -> 0 | AQ42: =CK42/'Weighting Factors'!$Q$5 -> 0 | AR42: =CO42/'Weighting Factors'!$Q$5 -> 0 | AS42: 209462 | AT42: =AS42/'Weighting Factors'!$Q$5 -> 52.3 | AU42: =IF(ISNA(VLOOKUP($CV42,'Audit Values'!$A$2:$BU$326,2,FALSE)),'Preliminary SO66'!X41,VLOOKUP($CV42,'Audit Values'!$A$2:$BU$326,47,FALSE)) -> 0 | AV42: 592.1 | AW42: 539.8 | AX42: =IF(ISNA(VLOOKUP($CV42,'Audit Values'!$A$2:$BU$326,2,FALSE)),'Preliminary SO66'!AA41,VLOOKUP($CV42,'Audit Values'!$A$2:$BU$326,41,FALSE)) -> 0 | AY42: =IF(ISNA(VLOOKUP($CV42,'Audit Values'!$A$2:$BU$326,2,FALSE)),'Preliminary SO66'!AB41,VLOOKUP($CV42,'Audit Values'!$A$2:$BU$326,42,FALSE)) -> 0 | AZ42: 0 | BA42: =SUM(AX42*'Weighting Factors'!$T$10)+('2018 Legal Max'!AY42*'Weighting Factors'!$T$11)+('2018 Legal Max'!AZ42*'Weighting Factors'!$T$12) -> 0 | BB42: 0 | BC42: =IF(ISNA(VLOOKUP($CV42,'Audit Values'!$A$2:$BU$326,2,FALSE)),"",IF(AND('Weighting Factors'!H42>0,VLOOKUP($CV42,'Audit Values'!$A$2:$BU$326,51,FALSE)<'Weighting Factors'!H42),'Weighting Factors'!H42,VLOOKUP($CV42,'Audit Values'!$A$2:$BU$326,50,FALSE))) -> 14 | BD42: =IF(ISNA(VLOOKUP($CV42,'Audit Values'!$A$2:$BV$326,2,FALSE)),"",VLOOKUP($CV42,'Audit Values'!$A$2:$BV$326,51,FALSE)) -> A | BE42: =IF('Weighting Factors'!H42="","",IF('Weighting Factors'!J42="Pending","PX","R")) ->  | BF42: =SUM((S42+T42+Y42+AA42+AE42+AH42+AJ42++AO42+AP42+AQ42+AU42+AR42)*'Weighting Factors'!$Q$5)+'2018 Legal Max'!BA42+'2018 Legal Max'!BB42 -> 2162439 | BG42: =SUM((AV42+AR42)*'Weighting Factors'!$Q$5)+BA42+'2018 Legal Max'!BB42 -> 2371953 | BH42: =IF('Weighting Factors'!H42>0,'Weighting Factors'!H42,'Preliminary SO66'!AV41) -> 2404802 | BI42: 2371953 | BK42: ='Weighting Factors'!F42 -> 0 | BL42: ='Weighting Factors'!E42 -> 0 | BM42: 0 | BN42: 2371953 | BO42: =SUM((S42+T42+Y42+AA42+AE42+AH42+AJ42++AO42+AP42+AQ42+AR42)*'Weighting Factors'!Q$12)+(MAX(AS42,'Weighting Factors'!B42)) -> 2744354 | BP42: 0.3 | BQ42: 823306 | BR42: 823576 | BS42: 823306 | BT42: 0.3 | BU42: 0 | BV42: TRUE | BW42: 1911.69 | BX42: 0.489488 | BY42: 145.9 | BZ42: FALSE | CA42: 0 | CB42: 0 | CC42: 0 | CD42: 0 | CE42: 807.5 | CF42: 0.16 | CG42: =IF(ROUND(('Weighting Factors'!$T$5*CF42^'Weighting Factors'!$T$6*'Weighting Factors'!$T$8 ),2)<'Weighting Factors'!$T$7,'Weighting Factors'!$T$7,ROUND(('Weighting Factors'!$T$5*CF42^'Weighting Factors'!$T$6*'Weighting Factors'!$T$8 ),2)) -> 1281.63 | CH42: =ROUND(CG42/'Weighting Factors'!$Q$5,4) -> 0.3199 | CI42: 42.2 | CJ42: 0 | CK42: 0 | CL42: 0 | CM42: 0 | CN42: =SUM((AV42*'Weighting Factors'!$Q$5)+'2018 Legal Max'!BA42)*CM42 -> 0 | CO42: 0 | CP42: 0.2664 | CQ42: 0 | CR42: 0 | CS42: 592.1 | CV42: D0227
A43: 229 | B43: Johnson | C43: Blue Valley | D43: 20621.9 | E43: 0 | F43: 20621.9 | G43: 20767.2 | H43: =IF(ISNA(VLOOKUP($CV43,'Audit Values'!$A$2:$BU$326,2,FALSE)),'Preliminary SO66'!AI42,VLOOKUP($CV43,'Audit Values'!$A$2:$BU$326,2,FALSE)) -> 0 | I43: 20767.2 | J43: 20804.3 | K43: =IF(ISNA(VLOOKUP($CV43,'Audit Values'!$A$2:$BU$326,2,FALSE)),'Preliminary SO66'!AJ42,VLOOKUP($CV43,'Audit Values'!$A$2:$BU$326,3,FALSE)) -> 0 | L43: 20804.3 | M43: =IF(ISNA(VLOOKUP($CV43,'Audit Values'!$A$2:$BU$326,2,FALSE)),'Preliminary SO66'!C42,VLOOKUP($CV43,'Audit Values'!$A$2:$BU$326,73,FALSE)) -> 22315.9 | N43: =IF(ISNA(VLOOKUP($CV43,'Audit Values'!$A$2:$BU$326,2,FALSE)),'Preliminary SO66'!F42,VLOOKUP($CV43,'Audit Values'!$A$2:$BU$326,4,FALSE)) -> 0 | O43: =IF(ISNA(VLOOKUP($CV43,'Audit Values'!$A$2:$BU$326,2,FALSE)),'Preliminary SO66'!AK42,VLOOKUP($CV43,'Audit Values'!$A$2:$BU$326,57,FALSE)) -> 22315.9 | P43: =IF('Military Provision'!J44="YES", MAX('2018 Legal Max'!L43,'2018 Legal Max'!I43,AVERAGE('2018 Legal Max'!F43,'2018 Legal Max'!I43,'2018 Legal Max'!L43)), MAX(L43, I43)) -> 20804.3 | Q43: =IF(ISNA(VLOOKUP($CV43,'Audit Values'!$A$2:$BU$326,2,FALSE)),'Preliminary SO66'!AL42,VLOOKUP($CV43,'Audit Values'!$A$2:$BU$326,58,FALSE)) -> 0 | R43: =IF(ISNA(VLOOKUP($CV43,'Audit Values'!$A$2:$BU$326,2,FALSE)),'Preliminary SO66'!AT42,VLOOKUP($CV43,'Audit Values'!$A$2:$BU$326,59,FALSE)) -> 1437 | S43: 22241.3 | T43: 779.3 | U43: =IF(ISNA(VLOOKUP($CV43,'Audit Values'!$A$2:$BW$294,2,FALSE)),'Preliminary SO66'!AM42,VLOOKUP($CV43,'Audit Values'!$A$2:$BW$294,62,FALSE)) -> 1130 | V43: =(U43/6)*'Weighting Factors'!$Q$7 -> 74.4 | W43: =IF(ISNA(VLOOKUP($CV43,'Audit Values'!$A$2:$BW$294,2,FALSE)),'Preliminary SO66'!AN42,VLOOKUP($CV43,'Audit Values'!$A$2:$BW$294,61,FALSE)) -> 557 | X43: =W43*'Weighting Factors'!$Q$8 -> 103 | Y43: 103 | Z43: =IF(ISNA(VLOOKUP($CV43,'Audit Values'!$A$2:$BW$294,2,FALSE)),'Preliminary SO66'!AO42,VLOOKUP($CV43,'Audit Values'!$A$2:$BW$294,60,FALSE)) -> 4825.6 | AA43: =Z43/6*'Weighting Factors'!$Q$6 -> 402.1 | AB43: =IF(ISNA(VLOOKUP($CV43,'Audit Values'!$A$2:$BU$326,2,FALSE)),'Preliminary SO66'!AS42,VLOOKUP($CV43,'Audit Values'!$A$2:$BU$326,63,FALSE)) -> 22525 | AC43: 2253 | AD43: =IF(ISNA(VLOOKUP($CV43,'Audit Values'!$A$2:$BU$370,2,FALSE)),'Preliminary SO66'!AP42,VLOOKUP($CV43,'Audit Values'!$A$2:$BU$370,64,FALSE)) -> 1143 | AE43: =IF(A43=207, AD43,MAX(AC43,AD43))*'Weighting Factors'!$Q$9 -> 1090.5 | AF43: 0 | AG43: =IF(ISNA(VLOOKUP($CV43,'Audit Values'!$A$2:$BW$326,2,FALSE)),'Preliminary SO66'!AG42,VLOOKUP($CV43,'Audit Values'!$A$2:$BW$326,70,FALSE)) -> 0 | AH43: 0 | AI43: =IF(ISNA(VLOOKUP($CV43,'Audit Values'!$A$2:$BU$326,2,FALSE)),'Preliminary SO66'!AQ42,VLOOKUP($CV43,'Audit Values'!$A$2:$BU$326,65,FALSE)) -> 309.6 | AJ43: =AI43*'Weighting Factors'!$Q$10 -> 77.4 | AK43: =IF(ISNA(VLOOKUP($CV43,'Audit Values'!$A$2:$BU$326,2,FALSE)),'Preliminary SO66'!AR42,VLOOKUP($CV43,'Audit Values'!$A$2:$BU$326,66,FALSE)) -> 4624 | AL43: 581.7 | AM43: =AL43*'Weighting Factors'!$Q$5 -> 2330290 | AN43: 2553876 | AO43: =MAX(AM43, AN43)/'Weighting Factors'!$Q$5 -> 637.5 | AP43: =CJ43/'Weighting Factors'!$Q$5 -> 2627 | AQ43: =CK43/'Weighting Factors'!$Q$5 -> 0 | AR43: =CO43/'Weighting Factors'!$Q$5 -> 1670.5 | AS43: 21801651 | AT43: =AS43/'Weighting Factors'!$Q$5 -> 5442.2 | AU43: =IF(ISNA(VLOOKUP($CV43,'Audit Values'!$A$2:$BU$326,2,FALSE)),'Preliminary SO66'!X42,VLOOKUP($CV43,'Audit Values'!$A$2:$BU$326,47,FALSE)) -> 0 | AV43: 33400.3 | AW43: 29628.6 | AX43: =IF(ISNA(VLOOKUP($CV43,'Audit Values'!$A$2:$BU$326,2,FALSE)),'Preliminary SO66'!AA42,VLOOKUP($CV43,'Audit Values'!$A$2:$BU$326,41,FALSE)) -> 0 | AY43: =IF(ISNA(VLOOKUP($CV43,'Audit Values'!$A$2:$BU$326,2,FALSE)),'Preliminary SO66'!AB42,VLOOKUP($CV43,'Audit Values'!$A$2:$BU$326,42,FALSE)) -> 21.7 | AZ43: 0 | BA43: =SUM(AX43*'Weighting Factors'!$T$10)+('2018 Legal Max'!AY43*'Weighting Factors'!$T$11)+('2018 Legal Max'!AZ43*'Weighting Factors'!$T$12) -> 36890 | BB43: 0 | BC43: =IF(ISNA(VLOOKUP($CV43,'Audit Values'!$A$2:$BU$326,2,FALSE)),"",IF(AND('Weighting Factors'!H43>0,VLOOKUP($CV43,'Audit Values'!$A$2:$BU$326,51,FALSE)<'Weighting Factors'!H43),'Weighting Factors'!H43,VLOOKUP($CV43,'Audit Values'!$A$2:$BU$326,50,FALSE))) -> 24 | BD43: =IF(ISNA(VLOOKUP($CV43,'Audit Values'!$A$2:$BV$326,2,FALSE)),"",VLOOKUP($CV43,'Audit Values'!$A$2:$BV$326,51,FALSE)) -> A | BE43: =IF('Weighting Factors'!H43="","",IF('Weighting Factors'!J43="Pending","PX","R")) ->  | BF43: =SUM((S43+T43+Y43+AA43+AE43+AH43+AJ43++AO43+AP43+AQ43+AU43+AR43)*'Weighting Factors'!$Q$5)+'2018 Legal Max'!BA43+'2018 Legal Max'!BB43 -> 118729062 | BG43: =SUM((AV43+AR43)*'Weighting Factors'!$Q$5)+BA43+'2018 Legal Max'!BB43 -> 140530515 | BH43: =IF('Weighting Factors'!H43>0,'Weighting Factors'!H43,'Preliminary SO66'!AV42) -> 141616346 | BI43: 140530515 | BK43: ='Weighting Factors'!F43 -> 0 | BL43: ='Weighting Factors'!E43 -> 0 | BM43: 0 | BN43: 140530515 | BO43: =SUM((S43+T43+Y43+AA43+AE43+AH43+AJ43++AO43+AP43+AQ43+AR43)*'Weighting Factors'!Q$12)+(MAX(AS43,'Weighting Factors'!B43)) -> 154834065 | BP43: 0.33 | BQ43: 51095241 | BR43: 51456901 | BS43: 51095241 | BT43: 0.33 | BU43: 0 | BV43: FALSE | BW43: 0 | BX43: 0 | BY43: 0 | BZ43: FALSE | CA43: 0 | CB43: 0 | CC43: 0 | CD43: 779.3 | CE43: 91 | CF43: 50.81 | CG43: =IF(ROUND(('Weighting Factors'!$T$5*CF43^'Weighting Factors'!$T$6*'Weighting Factors'!$T$8 ),2)<'Weighting Factors'!$T$7,'Weighting Factors'!$T$7,ROUND(('Weighting Factors'!$T$5*CF43^'Weighting Factors'!$T$6*'Weighting Factors'!$T$8 ),2)) -> 504 | CH43: =ROUND(CG43/'Weighting Factors'!$Q$5,4) -> 0.1258 | CI43: 581.7 | CJ43: 10523689 | CK43: 0 | CL43: 6743632 | CM43: 0.05 | CN43: =SUM((AV43*'Weighting Factors'!$Q$5)+'2018 Legal Max'!BA43)*CM43 -> 6691925 | CO43: 6691925 | CP43: 0.0507 | CQ43: 0 | CR43: 0 | CS43: 35070.8 | CV43: D0229
A44: 230 | B44: Johnson | C44: Spring Hill | D44: 2234.5 | E44: 0 | F44: 2234.5 | G44: 2337.9 | H44: =IF(ISNA(VLOOKUP($CV44,'Audit Values'!$A$2:$BU$326,2,FALSE)),'Preliminary SO66'!AI43,VLOOKUP($CV44,'Audit Values'!$A$2:$BU$326,2,FALSE)) -> 0 | I44: 2337.9 | J44: 2474.6 | K44: =IF(ISNA(VLOOKUP($CV44,'Audit Values'!$A$2:$BU$326,2,FALSE)),'Preliminary SO66'!AJ43,VLOOKUP($CV44,'Audit Values'!$A$2:$BU$326,3,FALSE)) -> 0 | L44: 2474.6 | M44: =IF(ISNA(VLOOKUP($CV44,'Audit Values'!$A$2:$BU$326,2,FALSE)),'Preliminary SO66'!C43,VLOOKUP($CV44,'Audit Values'!$A$2:$BU$326,73,FALSE)) -> 2882.9 | N44: =IF(ISNA(VLOOKUP($CV44,'Audit Values'!$A$2:$BU$326,2,FALSE)),'Preliminary SO66'!F43,VLOOKUP($CV44,'Audit Values'!$A$2:$BU$326,4,FALSE)) -> 0 | O44: =IF(ISNA(VLOOKUP($CV44,'Audit Values'!$A$2:$BU$326,2,FALSE)),'Preliminary SO66'!AK43,VLOOKUP($CV44,'Audit Values'!$A$2:$BU$326,57,FALSE)) -> 2882.9 | P44: =IF('Military Provision'!J45="YES", MAX('2018 Legal Max'!L44,'2018 Legal Max'!I44,AVERAGE('2018 Legal Max'!F44,'2018 Legal Max'!I44,'2018 Legal Max'!L44)), MAX(L44, I44)) -> 2474.6 | Q44: =IF(ISNA(VLOOKUP($CV44,'Audit Values'!$A$2:$BU$326,2,FALSE)),'Preliminary SO66'!AL43,VLOOKUP($CV44,'Audit Values'!$A$2:$BU$326,58,FALSE)) -> 7.5 | R44: =IF(ISNA(VLOOKUP($CV44,'Audit Values'!$A$2:$BU$326,2,FALSE)),'Preliminary SO66'!AT43,VLOOKUP($CV44,'Audit Values'!$A$2:$BU$326,59,FALSE)) -> 261 | S44: 2743.1 | T44: 96.1 | U44: =IF(ISNA(VLOOKUP($CV44,'Audit Values'!$A$2:$BW$294,2,FALSE)),'Preliminary SO66'!AM43,VLOOKUP($CV44,'Audit Values'!$A$2:$BW$294,62,FALSE)) -> 10.1 | V44: =(U44/6)*'Weighting Factors'!$Q$7 -> 0.7 | W44: =IF(ISNA(VLOOKUP($CV44,'Audit Values'!$A$2:$BW$294,2,FALSE)),'Preliminary SO66'!AN43,VLOOKUP($CV44,'Audit Values'!$A$2:$BW$294,61,FALSE)) -> 35 | X44: =W44*'Weighting Factors'!$Q$8 -> 6.5 | Y44: 6.5 | Z44: =IF(ISNA(VLOOKUP($CV44,'Audit Values'!$A$2:$BW$294,2,FALSE)),'Preliminary SO66'!AO43,VLOOKUP($CV44,'Audit Values'!$A$2:$BW$294,60,FALSE)) -> 495.3 | AA44: =Z44/6*'Weighting Factors'!$Q$6 -> 41.3 | AB44: =IF(ISNA(VLOOKUP($CV44,'Audit Values'!$A$2:$BU$326,2,FALSE)),'Preliminary SO66'!AS43,VLOOKUP($CV44,'Audit Values'!$A$2:$BU$326,63,FALSE)) -> 2928 | AC44: 293 | AD44: =IF(ISNA(VLOOKUP($CV44,'Audit Values'!$A$2:$BU$370,2,FALSE)),'Preliminary SO66'!AP43,VLOOKUP($CV44,'Audit Values'!$A$2:$BU$370,64,FALSE)) -> 390 | AE44: =IF(A44=207, AD44,MAX(AC44,AD44))*'Weighting Factors'!$Q$9 -> 188.8 | AF44: 0 | AG44: =IF(ISNA(VLOOKUP($CV44,'Audit Values'!$A$2:$BW$326,2,FALSE)),'Preliminary SO66'!AG43,VLOOKUP($CV44,'Audit Values'!$A$2:$BW$326,70,FALSE)) -> 0 | AH44: 0 | AI44: =IF(ISNA(VLOOKUP($CV44,'Audit Values'!$A$2:$BU$326,2,FALSE)),'Preliminary SO66'!AQ43,VLOOKUP($CV44,'Audit Values'!$A$2:$BU$326,65,FALSE)) -> 0 | AJ44: =AI44*'Weighting Factors'!$Q$10 -> 0 | AK44: =IF(ISNA(VLOOKUP($CV44,'Audit Values'!$A$2:$BU$326,2,FALSE)),'Preliminary SO66'!AR43,VLOOKUP($CV44,'Audit Values'!$A$2:$BU$326,66,FALSE)) -> 1136 | AL44: 152.5 | AM44: =AL44*'Weighting Factors'!$Q$5 -> 610915 | AN44: 689123 | AO44: =MAX(AM44, AN44)/'Weighting Factors'!$Q$5 -> 172 | AP44: =CJ44/'Weighting Factors'!$Q$5 -> 607.7 | AQ44: =CK44/'Weighting Factors'!$Q$5 -> 0 | AR44: =CO44/'Weighting Factors'!$Q$5 -> 0 | AS44: 2774488 | AT44: =AS44/'Weighting Factors'!$Q$5 -> 692.6 | AU44: =IF(ISNA(VLOOKUP($CV44,'Audit Values'!$A$2:$BU$326,2,FALSE)),'Preliminary SO66'!X43,VLOOKUP($CV44,'Audit Values'!$A$2:$BU$326,47,FALSE)) -> 1 | AV44: 4549.1 | AW44: 3856.5 | AX44: =IF(ISNA(VLOOKUP($CV44,'Audit Values'!$A$2:$BU$326,2,FALSE)),'Preliminary SO66'!AA43,VLOOKUP($CV44,'Audit Values'!$A$2:$BU$326,41,FALSE)) -> 943 | AY44: =IF(ISNA(VLOOKUP($CV44,'Audit Values'!$A$2:$BU$326,2,FALSE)),'Preliminary SO66'!AB43,VLOOKUP($CV44,'Audit Values'!$A$2:$BU$326,42,FALSE)) -> 24 | AZ44: 207.5 | BA44: =SUM(AX44*'Weighting Factors'!$T$10)+('2018 Legal Max'!AY44*'Weighting Factors'!$T$11)+('2018 Legal Max'!AZ44*'Weighting Factors'!$T$12) -> 4902918 | BB44: 0 | BC44: =IF(ISNA(VLOOKUP($CV44,'Audit Values'!$A$2:$BU$326,2,FALSE)),"",IF(AND('Weighting Factors'!H44>0,VLOOKUP($CV44,'Audit Values'!$A$2:$BU$326,51,FALSE)<'Weighting Factors'!H44),'Weighting Factors'!H44,VLOOKUP($CV44,'Audit Values'!$A$2:$BU$326,50,FALSE))) -> 17 | BD44: =IF(ISNA(VLOOKUP($CV44,'Audit Values'!$A$2:$BV$326,2,FALSE)),"",VLOOKUP($CV44,'Audit Values'!$A$2:$BV$326,51,FALSE)) -> A | BE44: =IF('Weighting Factors'!H44="","",IF('Weighting Factors'!J44="Pending","PX","R")) ->  | BF44: =SUM((S44+T44+Y44+AA44+AE44+AH44+AJ44++AO44+AP44+AQ44+AU44+AR44)*'Weighting Factors'!$Q$5)+'2018 Legal Max'!BA44+'2018 Legal Max'!BB44 -> 20352057 | BG44: =SUM((AV44+AR44)*'Weighting Factors'!$Q$5)+BA44+'2018 Legal Max'!BB44 -> 23126613 | BH44: =IF('Weighting Factors'!H44>0,'Weighting Factors'!H44,'Preliminary SO66'!AV43) -> 24492719 | BI44: 23126613 | BK44: ='Weighting Factors'!F44 -> 0 | BL44: ='Weighting Factors'!E44 -> -1866 | BM44: -1866 | BN44: 23124747 | BO44: =SUM((S44+T44+Y44+AA44+AE44+AH44+AJ44++AO44+AP44+AQ44+AR44)*'Weighting Factors'!Q$12)+(MAX(AS44,'Weighting Factors'!B44)) -> 20085683 | BP44: 0.33 | BQ44: 6628275 | BR44: 6923158 | BS44: 6628275 | BT44: 0.33 | BU44: 0 | BV44: FALSE | BW44: 0 | BX44: 0 | BY44: 0 | BZ44: FALSE | CA44: 0 | CB44: 0 | CC44: 0 | CD44: 96.1 | CE44: 71 | CF44: 16 | CG44: =IF(ROUND(('Weighting Factors'!$T$5*CF44^'Weighting Factors'!$T$6*'Weighting Factors'!$T$8 ),2)<'Weighting Factors'!$T$7,'Weighting Factors'!$T$7,ROUND(('Weighting Factors'!$T$5*CF44^'Weighting Factors'!$T$6*'Weighting Factors'!$T$8 ),2)) -> 537.51 | CH44: =ROUND(CG44/'Weighting Factors'!$Q$5,4) -> 0.1342 | CI44: 152.5 | CJ44: 2434260 | CK44: 0 | CL44: 0 | CM44: 0.0413 | CN44: =SUM((AV44*'Weighting Factors'!$Q$5)+'2018 Legal Max'!BA44)*CM44 -> 955129 | CO44: 0 | CP44: 0.1332 | CQ44: 0 | CR44: 0 | CS44: 4549.1 | CV44: D0230
A45: 231 | B45: Johnson | C45: Gardner Edgerton | D45: 5087 | E45: 0 | F45: 5087 | G45: 5180.2 | H45: =IF(ISNA(VLOOKUP($CV45,'Audit Values'!$A$2:$BU$326,2,FALSE)),'Preliminary SO66'!AI44,VLOOKUP($CV45,'Audit Values'!$A$2:$BU$326,2,FALSE)) -> 0 | I45: 5180.2 | J45: 5356.5 | K45: =IF(ISNA(VLOOKUP($CV45,'Audit Values'!$A$2:$BU$326,2,FALSE)),'Preliminary SO66'!AJ44,VLOOKUP($CV45,'Audit Values'!$A$2:$BU$326,3,FALSE)) -> 0 | L45: 5356.5 | M45: =IF(ISNA(VLOOKUP($CV45,'Audit Values'!$A$2:$BU$326,2,FALSE)),'Preliminary SO66'!C44,VLOOKUP($CV45,'Audit Values'!$A$2:$BU$326,73,FALSE)) -> 5888.9 | N45: =IF(ISNA(VLOOKUP($CV45,'Audit Values'!$A$2:$BU$326,2,FALSE)),'Preliminary SO66'!F44,VLOOKUP($CV45,'Audit Values'!$A$2:$BU$326,4,FALSE)) -> 0 | O45: =IF(ISNA(VLOOKUP($CV45,'Audit Values'!$A$2:$BU$326,2,FALSE)),'Preliminary SO66'!AK44,VLOOKUP($CV45,'Audit Values'!$A$2:$BU$326,57,FALSE)) -> 5888.9 | P45: =IF('Military Provision'!J46="YES", MAX('2018 Legal Max'!L45,'2018 Legal Max'!I45,AVERAGE('2018 Legal Max'!F45,'2018 Legal Max'!I45,'2018 Legal Max'!L45)), MAX(L45, I45)) -> 5356.5 | Q45: =IF(ISNA(VLOOKUP($CV45,'Audit Values'!$A$2:$BU$326,2,FALSE)),'Preliminary SO66'!AL44,VLOOKUP($CV45,'Audit Values'!$A$2:$BU$326,58,FALSE)) -> 9 | R45: =IF(ISNA(VLOOKUP($CV45,'Audit Values'!$A$2:$BU$326,2,FALSE)),'Preliminary SO66'!AT44,VLOOKUP($CV45,'Audit Values'!$A$2:$BU$326,59,FALSE)) -> 453 | S45: 5818.5 | T45: 203.9 | U45: =IF(ISNA(VLOOKUP($CV45,'Audit Values'!$A$2:$BW$294,2,FALSE)),'Preliminary SO66'!AM44,VLOOKUP($CV45,'Audit Values'!$A$2:$BW$294,62,FALSE)) -> 358.9 | V45: =(U45/6)*'Weighting Factors'!$Q$7 -> 23.6 | W45: =IF(ISNA(VLOOKUP($CV45,'Audit Values'!$A$2:$BW$294,2,FALSE)),'Preliminary SO66'!AN44,VLOOKUP($CV45,'Audit Values'!$A$2:$BW$294,61,FALSE)) -> 134 | X45: =W45*'Weighting Factors'!$Q$8 -> 24.8 | Y45: 24.8 | Z45: =IF(ISNA(VLOOKUP($CV45,'Audit Values'!$A$2:$BW$294,2,FALSE)),'Preliminary SO66'!AO44,VLOOKUP($CV45,'Audit Values'!$A$2:$BW$294,60,FALSE)) -> 973.9 | AA45: =Z45/6*'Weighting Factors'!$Q$6 -> 81.2 | AB45: =IF(ISNA(VLOOKUP($CV45,'Audit Values'!$A$2:$BU$326,2,FALSE)),'Preliminary SO66'!AS44,VLOOKUP($CV45,'Audit Values'!$A$2:$BU$326,63,FALSE)) -> 5983 | AC45: 598 | AD45: =IF(ISNA(VLOOKUP($CV45,'Audit Values'!$A$2:$BU$370,2,FALSE)),'Preliminary SO66'!AP44,VLOOKUP($CV45,'Audit Values'!$A$2:$BU$370,64,FALSE)) -> 1215 | AE45: =IF(A45=207, AD45,MAX(AC45,AD45))*'Weighting Factors'!$Q$9 -> 588.1 | AF45: 0 | AG45: =IF(ISNA(VLOOKUP($CV45,'Audit Values'!$A$2:$BW$326,2,FALSE)),'Preliminary SO66'!AG44,VLOOKUP($CV45,'Audit Values'!$A$2:$BW$326,70,FALSE)) -> 0 | AH45: 0 | AI45: =IF(ISNA(VLOOKUP($CV45,'Audit Values'!$A$2:$BU$326,2,FALSE)),'Preliminary SO66'!AQ44,VLOOKUP($CV45,'Audit Values'!$A$2:$BU$326,65,FALSE)) -> 0 | AJ45: =AI45*'Weighting Factors'!$Q$10 -> 0 | AK45: =IF(ISNA(VLOOKUP($CV45,'Audit Values'!$A$2:$BU$326,2,FALSE)),'Preliminary SO66'!AR44,VLOOKUP($CV45,'Audit Values'!$A$2:$BU$326,66,FALSE)) -> 1226 | AL45: 174 | AM45: =AL45*'Weighting Factors'!$Q$5 -> 697044 | AN45: 744592 | AO45: =MAX(AM45, AN45)/'Weighting Factors'!$Q$5 -> 185.9 | AP45: =CJ45/'Weighting Factors'!$Q$5 -> 384.5 | AQ45: =CK45/'Weighting Factors'!$Q$5 -> 0 | AR45: =CO45/'Weighting Factors'!$Q$5 -> 50.2 | AS45: 6115307 | AT45: =AS45/'Weighting Factors'!$Q$5 -> 1526.5 | AU45: =IF(ISNA(VLOOKUP($CV45,'Audit Values'!$A$2:$BU$326,2,FALSE)),'Preliminary SO66'!X44,VLOOKUP($CV45,'Audit Values'!$A$2:$BU$326,47,FALSE)) -> 1 | AV45: 8814.4 | AW45: 7338.1 | AX45: =IF(ISNA(VLOOKUP($CV45,'Audit Values'!$A$2:$BU$326,2,FALSE)),'Preliminary SO66'!AA44,VLOOKUP($CV45,'Audit Values'!$A$2:$BU$326,41,FALSE)) -> 0 | AY45: =IF(ISNA(VLOOKUP($CV45,'Audit Values'!$A$2:$BU$326,2,FALSE)),'Preliminary SO66'!AB44,VLOOKUP($CV45,'Audit Values'!$A$2:$BU$326,42,FALSE)) -> 0 | AZ45: 0 | BA45: =SUM(AX45*'Weighting Factors'!$T$10)+('2018 Legal Max'!AY45*'Weighting Factors'!$T$11)+('2018 Legal Max'!AZ45*'Weighting Factors'!$T$12) -> 0 | BB45: 0 | BC45: =IF(ISNA(VLOOKUP($CV45,'Audit Values'!$A$2:$BU$326,2,FALSE)),"",IF(AND('Weighting Factors'!H45>0,VLOOKUP($CV45,'Audit Values'!$A$2:$BU$326,51,FALSE)<'Weighting Factors'!H45),'Weighting Factors'!H45,VLOOKUP($CV45,'Audit Values'!$A$2:$BU$326,50,FALSE))) -> 13 | BD45: =IF(ISNA(VLOOKUP($CV45,'Audit Values'!$A$2:$BV$326,2,FALSE)),"",VLOOKUP($CV45,'Audit Values'!$A$2:$BV$326,51,FALSE)) -> A | BE45: =IF('Weighting Factors'!H45="","",IF('Weighting Factors'!J45="Pending","PX","R")) ->  | BF45: =SUM((S45+T45+Y45+AA45+AE45+AH45+AJ45++AO45+AP45+AQ45+AU45+AR45)*'Weighting Factors'!$Q$5)+'2018 Legal Max'!BA45+'2018 Legal Max'!BB45 -> 29396429 | BG45: =SUM((AV45+AR45)*'Weighting Factors'!$Q$5)+BA45+'2018 Legal Max'!BB45 -> 35511588 | BH45: =IF('Weighting Factors'!H45>0,'Weighting Factors'!H45,'Preliminary SO66'!AV44) -> 36865215 | BI45: 35511588 | BK45: ='Weighting Factors'!F45 -> 0 | BL45: ='Weighting Factors'!E45 -> 0 | BM45: 0 | BN45: 35511588 | BO45: =SUM((S45+T45+Y45+AA45+AE45+AH45+AJ45++AO45+AP45+AQ45+AR45)*'Weighting Factors'!Q$12)+(MAX(AS45,'Weighting Factors'!B45)) -> 39058886 | BP45: 0.33 | BQ45: 12889432 | BR45: 13372065 | BS45: 12889432 | BT45: 0.33 | BU45: 0 | BV45: FALSE | BW45: 0 | BX45: 0 | BY45: 0 | BZ45: FALSE | CA45: 0 | CB45: 0 | CC45: 0 | CD45: 203.9 | CE45: 103 | CF45: 11.9 | CG45: =IF(ROUND(('Weighting Factors'!$T$5*CF45^'Weighting Factors'!$T$6*'Weighting Factors'!$T$8 ),2)<'Weighting Factors'!$T$7,'Weighting Factors'!$T$7,ROUND(('Weighting Factors'!$T$5*CF45^'Weighting Factors'!$T$6*'Weighting Factors'!$T$8 ),2)) -> 568.39 | CH45: =ROUND(CG45/'Weighting Factors'!$Q$5,4) -> 0.1419 | CI45: 174 | CJ45: 1540199 | CK45: 0 | CL45: 208940 | CM45: 0.0057 | CN45: =SUM((AV45*'Weighting Factors'!$Q$5)+'2018 Legal Max'!BA45)*CM45 -> 201270 | CO45: 201270 | CP45: 0.2031 | CQ45: 0 | CR45: 0 | CS45: 8864.6 | CV45: D0231
A46: 232 | B46: Johnson | C46: De Soto | D46: 6483.6 | E46: 0 | F46: 6483.6 | G46: 6469.1 | H46: =IF(ISNA(VLOOKUP($CV46,'Audit Values'!$A$2:$BU$326,2,FALSE)),'Preliminary SO66'!AI45,VLOOKUP($CV46,'Audit Values'!$A$2:$BU$326,2,FALSE)) -> 0 | I46: 6469.1 | J46: 6598.6 | K46: =IF(ISNA(VLOOKUP($CV46,'Audit Values'!$A$2:$BU$326,2,FALSE)),'Preliminary SO66'!AJ45,VLOOKUP($CV46,'Audit Values'!$A$2:$BU$326,3,FALSE)) -> 0 | L46: 6598.6 | M46: =IF(ISNA(VLOOKUP($CV46,'Audit Values'!$A$2:$BU$326,2,FALSE)),'Preliminary SO66'!C45,VLOOKUP($CV46,'Audit Values'!$A$2:$BU$326,73,FALSE)) -> 7202.5 | N46: =IF(ISNA(VLOOKUP($CV46,'Audit Values'!$A$2:$BU$326,2,FALSE)),'Preliminary SO66'!F45,VLOOKUP($CV46,'Audit Values'!$A$2:$BU$326,4,FALSE)) -> 0 | O46: =IF(ISNA(VLOOKUP($CV46,'Audit Values'!$A$2:$BU$326,2,FALSE)),'Preliminary SO66'!AK45,VLOOKUP($CV46,'Audit Values'!$A$2:$BU$326,57,FALSE)) -> 7202.5 | P46: =IF('Military Provision'!J47="YES", MAX('2018 Legal Max'!L46,'2018 Legal Max'!I46,AVERAGE('2018 Legal Max'!F46,'2018 Legal Max'!I46,'2018 Legal Max'!L46)), MAX(L46, I46)) -> 6598.6 | Q46: =IF(ISNA(VLOOKUP($CV46,'Audit Values'!$A$2:$BU$326,2,FALSE)),'Preliminary SO66'!AL45,VLOOKUP($CV46,'Audit Values'!$A$2:$BU$326,58,FALSE)) -> 12 | R46: =IF(ISNA(VLOOKUP($CV46,'Audit Values'!$A$2:$BU$326,2,FALSE)),'Preliminary SO66'!AT45,VLOOKUP($CV46,'Audit Values'!$A$2:$BU$326,59,FALSE)) -> 474 | S46: 7084.6 | T46: 248.2 | U46: =IF(ISNA(VLOOKUP($CV46,'Audit Values'!$A$2:$BW$294,2,FALSE)),'Preliminary SO66'!AM45,VLOOKUP($CV46,'Audit Values'!$A$2:$BW$294,62,FALSE)) -> 858.9 | V46: =(U46/6)*'Weighting Factors'!$Q$7 -> 56.5 | W46: =IF(ISNA(VLOOKUP($CV46,'Audit Values'!$A$2:$BW$294,2,FALSE)),'Preliminary SO66'!AN45,VLOOKUP($CV46,'Audit Values'!$A$2:$BW$294,61,FALSE)) -> 212 | X46: =W46*'Weighting Factors'!$Q$8 -> 39.2 | Y46: 56.5 | Z46: =IF(ISNA(VLOOKUP($CV46,'Audit Values'!$A$2:$BW$294,2,FALSE)),'Preliminary SO66'!AO45,VLOOKUP($CV46,'Audit Values'!$A$2:$BW$294,60,FALSE)) -> 1893.5 | AA46: =Z46/6*'Weighting Factors'!$Q$6 -> 157.8 | AB46: =IF(ISNA(VLOOKUP($CV46,'Audit Values'!$A$2:$BU$326,2,FALSE)),'Preliminary SO66'!AS45,VLOOKUP($CV46,'Audit Values'!$A$2:$BU$326,63,FALSE)) -> 7288 | AC46: 729 | AD46: =IF(ISNA(VLOOKUP($CV46,'Audit Values'!$A$2:$BU$370,2,FALSE)),'Preliminary SO66'!AP45,VLOOKUP($CV46,'Audit Values'!$A$2:$BU$370,64,FALSE)) -> 566 | AE46: =IF(A46=207, AD46,MAX(AC46,AD46))*'Weighting Factors'!$Q$9 -> 352.8 | AF46: 0 | AG46: =IF(ISNA(VLOOKUP($CV46,'Audit Values'!$A$2:$BW$326,2,FALSE)),'Preliminary SO66'!AG45,VLOOKUP($CV46,'Audit Values'!$A$2:$BW$326,70,FALSE)) -> 0 | AH46: 0 | AI46: =IF(ISNA(VLOOKUP($CV46,'Audit Values'!$A$2:$BU$326,2,FALSE)),'Preliminary SO66'!AQ45,VLOOKUP($CV46,'Audit Values'!$A$2:$BU$326,65,FALSE)) -> 549 | AJ46: =AI46*'Weighting Factors'!$Q$10 -> 137.3 | AK46: =IF(ISNA(VLOOKUP($CV46,'Audit Values'!$A$2:$BU$326,2,FALSE)),'Preliminary SO66'!AR45,VLOOKUP($CV46,'Audit Values'!$A$2:$BU$326,66,FALSE)) -> 1896 | AL46: 246.3 | AM46: =AL46*'Weighting Factors'!$Q$5 -> 986678 | AN46: 1077790 | AO46: =MAX(AM46, AN46)/'Weighting Factors'!$Q$5 -> 269 | AP46: =CJ46/'Weighting Factors'!$Q$5 -> 0.8 | AQ46: =CK46/'Weighting Factors'!$Q$5 -> 0 | AR46: =CO46/'Weighting Factors'!$Q$5 -> 476.1 | AS46: 4858841 | AT46: =AS46/'Weighting Factors'!$Q$5 -> 1212.9 | AU46: =IF(ISNA(VLOOKUP($CV46,'Audit Values'!$A$2:$BU$326,2,FALSE)),'Preliminary SO66'!X45,VLOOKUP($CV46,'Audit Values'!$A$2:$BU$326,47,FALSE)) -> 0 | AV46: 9519.9 | AW46: 8783.1 | AX46: =IF(ISNA(VLOOKUP($CV46,'Audit Values'!$A$2:$BU$326,2,FALSE)),'Preliminary SO66'!AA45,VLOOKUP($CV46,'Audit Values'!$A$2:$BU$326,41,FALSE)) -> 0 | AY46: =IF(ISNA(VLOOKUP($CV46,'Audit Values'!$A$2:$BU$326,2,FALSE)),'Preliminary SO66'!AB45,VLOOKUP($CV46,'Audit Values'!$A$2:$BU$326,42,FALSE)) -> 3.3 | AZ46: 0 | BA46: =SUM(AX46*'Weighting Factors'!$T$10)+('2018 Legal Max'!AY46*'Weighting Factors'!$T$11)+('2018 Legal Max'!AZ46*'Weighting Factors'!$T$12) -> 5610 | BB46: 0 | BC46: =IF(ISNA(VLOOKUP($CV46,'Audit Values'!$A$2:$BU$326,2,FALSE)),"",IF(AND('Weighting Factors'!H46>0,VLOOKUP($CV46,'Audit Values'!$A$2:$BU$326,51,FALSE)<'Weighting Factors'!H46),'Weighting Factors'!H46,VLOOKUP($CV46,'Audit Values'!$A$2:$BU$326,50,FALSE))) -> 23 | BD46: =IF(ISNA(VLOOKUP($CV46,'Audit Values'!$A$2:$BV$326,2,FALSE)),"",VLOOKUP($CV46,'Audit Values'!$A$2:$BV$326,51,FALSE)) -> A | BE46: =IF('Weighting Factors'!H46="","",IF('Weighting Factors'!J46="Pending","PX","R")) -> R | BF46: =SUM((S46+T46+Y46+AA46+AE46+AH46+AJ46++AO46+AP46+AQ46+AU46+AR46)*'Weighting Factors'!$Q$5)+'2018 Legal Max'!BA46+'2018 Legal Max'!BB46 -> 35190709 | BG46: =SUM((AV46+AR46)*'Weighting Factors'!$Q$5)+BA46+'2018 Legal Max'!BB46 -> 40049586 | BH46: =IF('Weighting Factors'!H46>0,'Weighting Factors'!H46,'Preliminary SO66'!AV45) -> 40560858 | BI46: 40049586 | BK46: ='Weighting Factors'!F46 -> 0 | BL46: ='Weighting Factors'!E46 -> 0 | BM46: 0 | BN46: 40049586 | BO46: =SUM((S46+T46+Y46+AA46+AE46+AH46+AJ46++AO46+AP46+AQ46+AR46)*'Weighting Factors'!Q$12)+(MAX(AS46,'Weighting Factors'!B46)) -> 44294960 | BP46: 0.33 | BQ46: 14617337 | BR46: 14710698 | BS46: 14617337 | BT46: 0.33 | BU46: 0 | BV46: FALSE | BW46: 0 | BX46: 0 | BY46: 0 | BZ46: FALSE | CA46: 0 | CB46: 0 | CC46: 0 | CD46: 248.2 | CE46: 100 | CF46: 18.96 | CG46: =IF(ROUND(('Weighting Factors'!$T$5*CF46^'Weighting Factors'!$T$6*'Weighting Factors'!$T$8 ),2)<'Weighting Factors'!$T$7,'Weighting Factors'!$T$7,ROUND(('Weighting Factors'!$T$5*CF46^'Weighting Factors'!$T$6*'Weighting Factors'!$T$8 ),2)) -> 520.57 | CH46: =ROUND(CG46/'Weighting Factors'!$Q$5,4) -> 0.1299 | CI46: 246.3 | CJ46: 3185 | CK46: 0 | CL46: 1923346 | CM46: 0.05 | CN46: =SUM((AV46*'Weighting Factors'!$Q$5)+'2018 Legal Max'!BA46)*CM46 -> 1907116 | CO46: 1907116 | CP46: 0.0777 | CQ46: 0 | CR46: 0 | CS46: 9996 | CV46: D0232
A47: 233 | B47: Johnson | C47: Olathe | D47: 26421.4 | E47: 0 | F47: 26421.4 | G47: 26608.1 | H47: =IF(ISNA(VLOOKUP($CV47,'Audit Values'!$A$2:$BU$326,2,FALSE)),'Preliminary SO66'!AI46,VLOOKUP($CV47,'Audit Values'!$A$2:$BU$326,2,FALSE)) -> 0 | I47: 26608.1 | J47: 26701.2 | K47: =IF(ISNA(VLOOKUP($CV47,'Audit Values'!$A$2:$BU$326,2,FALSE)),'Preliminary SO66'!AJ46,VLOOKUP($CV47,'Audit Values'!$A$2:$BU$326,3,FALSE)) -> 0 | L47: 26701.2 | M47: =IF(ISNA(VLOOKUP($CV47,'Audit Values'!$A$2:$BU$326,2,FALSE)),'Preliminary SO66'!C46,VLOOKUP($CV47,'Audit Values'!$A$2:$BU$326,73,FALSE)) -> 29074.1 | N47: =IF(ISNA(VLOOKUP($CV47,'Audit Values'!$A$2:$BU$326,2,FALSE)),'Preliminary SO66'!F46,VLOOKUP($CV47,'Audit Values'!$A$2:$BU$326,4,FALSE)) -> 0 | O47: =IF(ISNA(VLOOKUP($CV47,'Audit Values'!$A$2:$BU$326,2,FALSE)),'Preliminary SO66'!AK46,VLOOKUP($CV47,'Audit Values'!$A$2:$BU$326,57,FALSE)) -> 29074.1 | P47: =IF('Military Provision'!J48="YES", MAX('2018 Legal Max'!L47,'2018 Legal Max'!I47,AVERAGE('2018 Legal Max'!F47,'2018 Legal Max'!I47,'2018 Legal Max'!L47)), MAX(L47, I47)) -> 26701.2 | Q47: =IF(ISNA(VLOOKUP($CV47,'Audit Values'!$A$2:$BU$326,2,FALSE)),'Preliminary SO66'!AL46,VLOOKUP($CV47,'Audit Values'!$A$2:$BU$326,58,FALSE)) -> 38.5 | R47: =IF(ISNA(VLOOKUP($CV47,'Audit Values'!$A$2:$BU$326,2,FALSE)),'Preliminary SO66'!AT46,VLOOKUP($CV47,'Audit Values'!$A$2:$BU$326,59,FALSE)) -> 2033 | S47: 28772.7 | T47: 1008.2 | U47: =IF(ISNA(VLOOKUP($CV47,'Audit Values'!$A$2:$BW$294,2,FALSE)),'Preliminary SO66'!AM46,VLOOKUP($CV47,'Audit Values'!$A$2:$BW$294,62,FALSE)) -> 6126.3 | V47: =(U47/6)*'Weighting Factors'!$Q$7 -> 403.3 | W47: =IF(ISNA(VLOOKUP($CV47,'Audit Values'!$A$2:$BW$294,2,FALSE)),'Preliminary SO66'!AN46,VLOOKUP($CV47,'Audit Values'!$A$2:$BW$294,61,FALSE)) -> 2948 | X47: =W47*'Weighting Factors'!$Q$8 -> 545.4 | Y47: 545.4 | Z47: =IF(ISNA(VLOOKUP($CV47,'Audit Values'!$A$2:$BW$294,2,FALSE)),'Preliminary SO66'!AO46,VLOOKUP($CV47,'Audit Values'!$A$2:$BW$294,60,FALSE)) -> 5458.1 | AA47: =Z47/6*'Weighting Factors'!$Q$6 -> 454.8 | AB47: =IF(ISNA(VLOOKUP($CV47,'Audit Values'!$A$2:$BU$326,2,FALSE)),'Preliminary SO66'!AS46,VLOOKUP($CV47,'Audit Values'!$A$2:$BU$326,63,FALSE)) -> 29399 | AC47: 2940 | AD47: =IF(ISNA(VLOOKUP($CV47,'Audit Values'!$A$2:$BU$370,2,FALSE)),'Preliminary SO66'!AP46,VLOOKUP($CV47,'Audit Values'!$A$2:$BU$370,64,FALSE)) -> 5898 | AE47: =IF(A47=207, AD47,MAX(AC47,AD47))*'Weighting Factors'!$Q$9 -> 2854.6 | AF47: 0 | AG47: =IF(ISNA(VLOOKUP($CV47,'Audit Values'!$A$2:$BW$326,2,FALSE)),'Preliminary SO66'!AG46,VLOOKUP($CV47,'Audit Values'!$A$2:$BW$326,70,FALSE)) -> 171.1 | AH47: 171.1 | AI47: =IF(ISNA(VLOOKUP($CV47,'Audit Values'!$A$2:$BU$326,2,FALSE)),'Preliminary SO66'!AQ46,VLOOKUP($CV47,'Audit Values'!$A$2:$BU$326,65,FALSE)) -> 927.8 | AJ47: =AI47*'Weighting Factors'!$Q$10 -> 232 | AK47: =IF(ISNA(VLOOKUP($CV47,'Audit Values'!$A$2:$BU$326,2,FALSE)),'Preliminary SO66'!AR46,VLOOKUP($CV47,'Audit Values'!$A$2:$BU$326,66,FALSE)) -> 5027 | AL47: 632.4 | AM47: =AL47*'Weighting Factors'!$Q$5 -> 2533394 | AN47: 3241458 | AO47: =MAX(AM47, AN47)/'Weighting Factors'!$Q$5 -> 809.2 | AP47: =CJ47/'Weighting Factors'!$Q$5 -> 3621.6 | AQ47: =CK47/'Weighting Factors'!$Q$5 -> 0 | AR47: =CO47/'Weighting Factors'!$Q$5 -> 1902.1 | AS47: 27800879 | AT47: =AS47/'Weighting Factors'!$Q$5 -> 6939.8 | AU47: =IF(ISNA(VLOOKUP($CV47,'Audit Values'!$A$2:$BU$326,2,FALSE)),'Preliminary SO66'!X46,VLOOKUP($CV47,'Audit Values'!$A$2:$BU$326,47,FALSE)) -> 0 | AV47: 45409.4 | AW47: 40371.7 | AX47: =IF(ISNA(VLOOKUP($CV47,'Audit Values'!$A$2:$BU$326,2,FALSE)),'Preliminary SO66'!AA46,VLOOKUP($CV47,'Audit Values'!$A$2:$BU$326,41,FALSE)) -> 0 | AY47: =IF(ISNA(VLOOKUP($CV47,'Audit Values'!$A$2:$BU$326,2,FALSE)),'Preliminary SO66'!AB46,VLOOKUP($CV47,'Audit Values'!$A$2:$BU$326,42,FALSE)) -> 0 | AZ47: 0 | BA47: =SUM(AX47*'Weighting Factors'!$T$10)+('2018 Legal Max'!AY47*'Weighting Factors'!$T$11)+('2018 Legal Max'!AZ47*'Weighting Factors'!$T$12) -> 0 | BB47: 0 | BC47: =IF(ISNA(VLOOKUP($CV47,'Audit Values'!$A$2:$BU$326,2,FALSE)),"",IF(AND('Weighting Factors'!H47>0,VLOOKUP($CV47,'Audit Values'!$A$2:$BU$326,51,FALSE)<'Weighting Factors'!H47),'Weighting Factors'!H47,VLOOKUP($CV47,'Audit Values'!$A$2:$BU$326,50,FALSE))) -> 24 | BD47: =IF(ISNA(VLOOKUP($CV47,'Audit Values'!$A$2:$BV$326,2,FALSE)),"",VLOOKUP($CV47,'Audit Values'!$A$2:$BV$326,51,FALSE)) -> A | BE47: =IF('Weighting Factors'!H47="","",IF('Weighting Factors'!J47="Pending","PX","R")) ->  | BF47: =SUM((S47+T47+Y47+AA47+AE47+AH47+AJ47++AO47+AP47+AQ47+AU47+AR47)*'Weighting Factors'!$Q$5)+'2018 Legal Max'!BA47+'2018 Legal Max'!BB47 -> 161729030 | BG47: =SUM((AV47+AR47)*'Weighting Factors'!$Q$5)+BA47+'2018 Legal Max'!BB47 -> 189529869 | BH47: =IF('Weighting Factors'!H47>0,'Weighting Factors'!H47,'Preliminary SO66'!AV46) -> 191898216 | BI47: 189529869 | BK47: ='Weighting Factors'!F47 -> 0 | BL47: ='Weighting Factors'!E47 -> 0 | BM47: 0 | BN47: 189529869 | BO47: =SUM((S47+T47+Y47+AA47+AE47+AH47+AJ47++AO47+AP47+AQ47+AR47)*'Weighting Factors'!Q$12)+(MAX(AS47,'Weighting Factors'!B47)) -> 209069812 | BP47: 0.33 | BQ47: 68993038 | BR47: 69817416 | BS47: 68993038 | BT47: 0.33 | BU47: 0 | BV47: FALSE | BW47: 0 | BX47: 0 | BY47: 0 | BZ47: FALSE | CA47: 0 | CB47: 0 | CC47: 0 | CD47: 1008.2 | CE47: 75.3 | CF47: 66.76 | CG47: =IF(ROUND(('Weighting Factors'!$T$5*CF47^'Weighting Factors'!$T$6*'Weighting Factors'!$T$8 ),2)<'Weighting Factors'!$T$7,'Weighting Factors'!$T$7,ROUND(('Weighting Factors'!$T$5*CF47^'Weighting Factors'!$T$6*'Weighting Factors'!$T$8 ),2)) -> 504 | CH47: =ROUND(CG47/'Weighting Factors'!$Q$5,4) -> 0.1258 | CI47: 632.4 | CJ47: 14508006 | CK47: 0 | CL47: 7619704 | CM47: 0.0426 | CN47: =SUM((AV47*'Weighting Factors'!$Q$5)+'2018 Legal Max'!BA47)*CM47 -> 7749368 | CO47: 7619704 | CP47: 0.2006 | CQ47: 0 | CR47: 0 | CS47: 47311.5 | CV47: D0233
A48: 234 | B48: Bourbon | C48: Fort Scott | D48: 1727.6 | E48: 0 | F48: 1727.6 | G48: 1710.1 | H48: =IF(ISNA(VLOOKUP($CV48,'Audit Values'!$A$2:$BU$326,2,FALSE)),'Preliminary SO66'!AI47,VLOOKUP($CV48,'Audit Values'!$A$2:$BU$326,2,FALSE)) -> 0 | I48: 1710.1 | J48: 1705.5 | K48: =IF(ISNA(VLOOKUP($CV48,'Audit Values'!$A$2:$BU$326,2,FALSE)),'Preliminary SO66'!AJ47,VLOOKUP($CV48,'Audit Values'!$A$2:$BU$326,3,FALSE)) -> 0 | L48: 1705.5 | M48: =IF(ISNA(VLOOKUP($CV48,'Audit Values'!$A$2:$BU$326,2,FALSE)),'Preliminary SO66'!C47,VLOOKUP($CV48,'Audit Values'!$A$2:$BU$326,73,FALSE)) -> 1844 | N48: =IF(ISNA(VLOOKUP($CV48,'Audit Values'!$A$2:$BU$326,2,FALSE)),'Preliminary SO66'!F47,VLOOKUP($CV48,'Audit Values'!$A$2:$BU$326,4,FALSE)) -> 0 | O48: =IF(ISNA(VLOOKUP($CV48,'Audit Values'!$A$2:$BU$326,2,FALSE)),'Preliminary SO66'!AK47,VLOOKUP($CV48,'Audit Values'!$A$2:$BU$326,57,FALSE)) -> 1844 | P48: =IF('Military Provision'!J49="YES", MAX('2018 Legal Max'!L48,'2018 Legal Max'!I48,AVERAGE('2018 Legal Max'!F48,'2018 Legal Max'!I48,'2018 Legal Max'!L48)), MAX(L48, I48)) -> 1710.1 | Q48: =IF(ISNA(VLOOKUP($CV48,'Audit Values'!$A$2:$BU$326,2,FALSE)),'Preliminary SO66'!AL47,VLOOKUP($CV48,'Audit Values'!$A$2:$BU$326,58,FALSE)) -> 14.5 | R48: =IF(ISNA(VLOOKUP($CV48,'Audit Values'!$A$2:$BU$326,2,FALSE)),'Preliminary SO66'!AT47,VLOOKUP($CV48,'Audit Values'!$A$2:$BU$326,59,FALSE)) -> 127 | S48: 1851.6 | T48: 64.9 | U48: =IF(ISNA(VLOOKUP($CV48,'Audit Values'!$A$2:$BW$294,2,FALSE)),'Preliminary SO66'!AM47,VLOOKUP($CV48,'Audit Values'!$A$2:$BW$294,62,FALSE)) -> 7.2 | V48: =(U48/6)*'Weighting Factors'!$Q$7 -> 0.5 | W48: =IF(ISNA(VLOOKUP($CV48,'Audit Values'!$A$2:$BW$294,2,FALSE)),'Preliminary SO66'!AN47,VLOOKUP($CV48,'Audit Values'!$A$2:$BW$294,61,FALSE)) -> 10 | X48: =W48*'Weighting Factors'!$Q$8 -> 1.9 | Y48: 1.9 | Z48: =IF(ISNA(VLOOKUP($CV48,'Audit Values'!$A$2:$BW$294,2,FALSE)),'Preliminary SO66'!AO47,VLOOKUP($CV48,'Audit Values'!$A$2:$BW$294,60,FALSE)) -> 418 | AA48: =Z48/6*'Weighting Factors'!$Q$6 -> 34.8 | AB48: =IF(ISNA(VLOOKUP($CV48,'Audit Values'!$A$2:$BU$326,2,FALSE)),'Preliminary SO66'!AS47,VLOOKUP($CV48,'Audit Values'!$A$2:$BU$326,63,FALSE)) -> 1897 | AC48: 190 | AD48: =IF(ISNA(VLOOKUP($CV48,'Audit Values'!$A$2:$BU$370,2,FALSE)),'Preliminary SO66'!AP47,VLOOKUP($CV48,'Audit Values'!$A$2:$BU$370,64,FALSE)) -> 923 | AE48: =IF(A48=207, AD48,MAX(AC48,AD48))*'Weighting Factors'!$Q$9 -> 446.7 | AF48: 88.3 | AG48: =IF(ISNA(VLOOKUP($CV48,'Audit Values'!$A$2:$BW$326,2,FALSE)),'Preliminary SO66'!AG47,VLOOKUP($CV48,'Audit Values'!$A$2:$BW$326,70,FALSE)) -> 77.9 | AH48: 88.3 | AI48: =IF(ISNA(VLOOKUP($CV48,'Audit Values'!$A$2:$BU$326,2,FALSE)),'Preliminary SO66'!AQ47,VLOOKUP($CV48,'Audit Values'!$A$2:$BU$326,65,FALSE)) -> 0 | AJ48: =AI48*'Weighting Factors'!$Q$10 -> 0 | AK48: =IF(ISNA(VLOOKUP($CV48,'Audit Values'!$A$2:$BU$326,2,FALSE)),'Preliminary SO66'!AR47,VLOOKUP($CV48,'Audit Values'!$A$2:$BU$326,66,FALSE)) -> 511 | AL48: 104.7 | AM48: =AL48*'Weighting Factors'!$Q$5 -> 419428 | AN48: 522331 | AO48: =MAX(AM48, AN48)/'Weighting Factors'!$Q$5 -> 130.4 | AP48: =CJ48/'Weighting Factors'!$Q$5 -> 0 | AQ48: =CK48/'Weighting Factors'!$Q$5 -> 0 | AR48: =CO48/'Weighting Factors'!$Q$5 -> 0 | AS48: 1275135 | AT48: =AS48/'Weighting Factors'!$Q$5 -> 318.3 | AU48: =IF(ISNA(VLOOKUP($CV48,'Audit Values'!$A$2:$BU$326,2,FALSE)),'Preliminary SO66'!X47,VLOOKUP($CV48,'Audit Values'!$A$2:$BU$326,47,FALSE)) -> 0 | AV48: 2936.9 | AW48: 2618.6 | AX48: =IF(ISNA(VLOOKUP($CV48,'Audit Values'!$A$2:$BU$326,2,FALSE)),'Preliminary SO66'!AA47,VLOOKUP($CV48,'Audit Values'!$A$2:$BU$326,41,FALSE)) -> 4 | AY48: =IF(ISNA(VLOOKUP($CV48,'Audit Values'!$A$2:$BU$326,2,FALSE)),'Preliminary SO66'!AB47,VLOOKUP($CV48,'Audit Values'!$A$2:$BU$326,42,FALSE)) -> 0.9 | AZ48: 3.5 | BA48: =SUM(AX48*'Weighting Factors'!$T$10)+('2018 Legal Max'!AY48*'Weighting Factors'!$T$11)+('2018 Legal Max'!AZ48*'Weighting Factors'!$T$12) -> 24012 | BB48: 0 | BC48: =IF(ISNA(VLOOKUP($CV48,'Audit Values'!$A$2:$BU$326,2,FALSE)),"",IF(AND('Weighting Factors'!H48>0,VLOOKUP($CV48,'Audit Values'!$A$2:$BU$326,51,FALSE)<'Weighting Factors'!H48),'Weighting Factors'!H48,VLOOKUP($CV48,'Audit Values'!$A$2:$BU$326,50,FALSE))) -> 4 | BD48: =IF(ISNA(VLOOKUP($CV48,'Audit Values'!$A$2:$BV$326,2,FALSE)),"",VLOOKUP($CV48,'Audit Values'!$A$2:$BV$326,51,FALSE)) -> A | BE48: =IF('Weighting Factors'!H48="","",IF('Weighting Factors'!J48="Pending","PX","R")) ->  | BF48: =SUM((S48+T48+Y48+AA48+AE48+AH48+AJ48++AO48+AP48+AQ48+AU48+AR48)*'Weighting Factors'!$Q$5)+'2018 Legal Max'!BA48+'2018 Legal Max'!BB48 -> 10514124 | BG48: =SUM((AV48+AR48)*'Weighting Factors'!$Q$5)+BA48+'2018 Legal Max'!BB48 -> 11789233 | BH48: =IF('Weighting Factors'!H48>0,'Weighting Factors'!H48,'Preliminary SO66'!AV47) -> 11904961 | BI48: 11789233 | BK48: ='Weighting Factors'!F48 -> 0 | BL48: ='Weighting Factors'!E48 -> 0 | BM48: 0 | BN48: 11789233 | BO48: =SUM((S48+T48+Y48+AA48+AE48+AH48+AJ48++AO48+AP48+AQ48+AR48)*'Weighting Factors'!Q$12)+(MAX(AS48,'Weighting Factors'!B48)) -> 13032649 | BP48: 0.3 | BQ48: 3909795 | BR48: 3948089 | BS48: 3909795 | BT48: 0.3 | BU48: 0 | BV48: FALSE | BW48: 0 | BX48: 0 | BY48: 0 | BZ48: FALSE | CA48: 0 | CB48: 0 | CC48: 0 | CD48: 64.9 | CE48: 300 | CF48: 1.7 | CG48: =IF(ROUND(('Weighting Factors'!$T$5*CF48^'Weighting Factors'!$T$6*'Weighting Factors'!$T$8 ),2)<'Weighting Factors'!$T$7,'Weighting Factors'!$T$7,ROUND(('Weighting Factors'!$T$5*CF48^'Weighting Factors'!$T$6*'Weighting Factors'!$T$8 ),2)) -> 820.56 | CH48: =ROUND(CG48/'Weighting Factors'!$Q$5,4) -> 0.2048 | CI48: 104.7 | CJ48: 0 | CK48: 0 | CL48: 0 | CM48: 0 | CN48: =SUM((AV48*'Weighting Factors'!$Q$5)+'2018 Legal Max'!BA48)*CM48 -> 0 | CO48: 0 | CP48: 0.4866 | CQ48: 0 | CR48: 88.3 | CS48: 2936.9 | CV48: D0234
A49: 235 | B49: Bourbon | C49: Uniontown | D49: 408.5 | E49: 0 | F49: 408.5 | G49: 402.5 | H49: =IF(ISNA(VLOOKUP($CV49,'Audit Values'!$A$2:$BU$326,2,FALSE)),'Preliminary SO66'!AI48,VLOOKUP($CV49,'Audit Values'!$A$2:$BU$326,2,FALSE)) -> 0 | I49: 402.5 | J49: 393 | K49: =IF(ISNA(VLOOKUP($CV49,'Audit Values'!$A$2:$BU$326,2,FALSE)),'Preliminary SO66'!AJ48,VLOOKUP($CV49,'Audit Values'!$A$2:$BU$326,3,FALSE)) -> 0 | L49: 393 | M49: =IF(ISNA(VLOOKUP($CV49,'Audit Values'!$A$2:$BU$326,2,FALSE)),'Preliminary SO66'!C48,VLOOKUP($CV49,'Audit Values'!$A$2:$BU$326,73,FALSE)) -> 429.5 | N49: =IF(ISNA(VLOOKUP($CV49,'Audit Values'!$A$2:$BU$326,2,FALSE)),'Preliminary SO66'!F48,VLOOKUP($CV49,'Audit Values'!$A$2:$BU$326,4,FALSE)) -> 0 | O49: =IF(ISNA(VLOOKUP($CV49,'Audit Values'!$A$2:$BU$326,2,FALSE)),'Preliminary SO66'!AK48,VLOOKUP($CV49,'Audit Values'!$A$2:$BU$326,57,FALSE)) -> 429.5 | P49: =IF('Military Provision'!J50="YES", MAX('2018 Legal Max'!L49,'2018 Legal Max'!I49,AVERAGE('2018 Legal Max'!F49,'2018 Legal Max'!I49,'2018 Legal Max'!L49)), MAX(L49, I49)) -> 402.5 | Q49: =IF(ISNA(VLOOKUP($CV49,'Audit Values'!$A$2:$BU$326,2,FALSE)),'Preliminary SO66'!AL48,VLOOKUP($CV49,'Audit Values'!$A$2:$BU$326,58,FALSE)) -> 7 | R49: =IF(ISNA(VLOOKUP($CV49,'Audit Values'!$A$2:$BU$326,2,FALSE)),'Preliminary SO66'!AT48,VLOOKUP($CV49,'Audit Values'!$A$2:$BU$326,59,FALSE)) -> 35 | S49: 444.5 | T49: 193.4 | U49: =IF(ISNA(VLOOKUP($CV49,'Audit Values'!$A$2:$BW$294,2,FALSE)),'Preliminary SO66'!AM48,VLOOKUP($CV49,'Audit Values'!$A$2:$BW$294,62,FALSE)) -> 0 | V49: =(U49/6)*'Weighting Factors'!$Q$7 -> 0 | W49: =IF(ISNA(VLOOKUP($CV49,'Audit Values'!$A$2:$BW$294,2,FALSE)),'Preliminary SO66'!AN48,VLOOKUP($CV49,'Audit Values'!$A$2:$BW$294,61,FALSE)) -> 0 | X49: =W49*'Weighting Factors'!$Q$8 -> 0 | Y49: 0 | Z49: =IF(ISNA(VLOOKUP($CV49,'Audit Values'!$A$2:$BW$294,2,FALSE)),'Preliminary SO66'!AO48,VLOOKUP($CV49,'Audit Values'!$A$2:$BW$294,60,FALSE)) -> 114.6 | AA49: =Z49/6*'Weighting Factors'!$Q$6 -> 9.6 | AB49: =IF(ISNA(VLOOKUP($CV49,'Audit Values'!$A$2:$BU$326,2,FALSE)),'Preliminary SO66'!AS48,VLOOKUP($CV49,'Audit Values'!$A$2:$BU$326,63,FALSE)) -> 447 | AC49: 45 | AD49: =IF(ISNA(VLOOKUP($CV49,'Audit Values'!$A$2:$BU$370,2,FALSE)),'Preliminary SO66'!AP48,VLOOKUP($CV49,'Audit Values'!$A$2:$BU$370,64,FALSE)) -> 173 | AE49: =IF(A49=207, AD49,MAX(AC49,AD49))*'Weighting Factors'!$Q$9 -> 83.7 | AF49: 4.5 | AG49: =IF(ISNA(VLOOKUP($CV49,'Audit Values'!$A$2:$BW$326,2,FALSE)),'Preliminary SO66'!AG48,VLOOKUP($CV49,'Audit Values'!$A$2:$BW$326,70,FALSE)) -> 9.7 | AH49: 9.7 | AI49: =IF(ISNA(VLOOKUP($CV49,'Audit Values'!$A$2:$BU$326,2,FALSE)),'Preliminary SO66'!AQ48,VLOOKUP($CV49,'Audit Values'!$A$2:$BU$326,65,FALSE)) -> 0 | AJ49: =AI49*'Weighting Factors'!$Q$10 -> 0 | AK49: =IF(ISNA(VLOOKUP($CV49,'Audit Values'!$A$2:$BU$326,2,FALSE)),'Preliminary SO66'!AR48,VLOOKUP($CV49,'Audit Values'!$A$2:$BU$326,66,FALSE)) -> 287 | AL49: 65.9 | AM49: =AL49*'Weighting Factors'!$Q$5 -> 263995 | AN49: 316249 | AO49: =MAX(AM49, AN49)/'Weighting Factors'!$Q$5 -> 78.9 | AP49: =CJ49/'Weighting Factors'!$Q$5 -> 0 | AQ49: =CK49/'Weighting Factors'!$Q$5 -> 0 | AR49: =CO49/'Weighting Factors'!$Q$5 -> 0 | AS49: 400282 | AT49: =AS49/'Weighting Factors'!$Q$5 -> 99.9 | AU49: =IF(ISNA(VLOOKUP($CV49,'Audit Values'!$A$2:$BU$326,2,FALSE)),'Preliminary SO66'!X48,VLOOKUP($CV49,'Audit Values'!$A$2:$BU$326,47,FALSE)) -> 0 | AV49: 919.7 | AW49: 819.8 | AX49: =IF(ISNA(VLOOKUP($CV49,'Audit Values'!$A$2:$BU$326,2,FALSE)),'Preliminary SO66'!AA48,VLOOKUP($CV49,'Audit Values'!$A$2:$BU$326,41,FALSE)) -> 0 | AY49: =IF(ISNA(VLOOKUP($CV49,'Audit Values'!$A$2:$BU$326,2,FALSE)),'Preliminary SO66'!AB48,VLOOKUP($CV49,'Audit Values'!$A$2:$BU$326,42,FALSE)) -> 0 | AZ49: 0 | BA49: =SUM(AX49*'Weighting Factors'!$T$10)+('2018 Legal Max'!AY49*'Weighting Factors'!$T$11)+('2018 Legal Max'!AZ49*'Weighting Factors'!$T$12) -> 0 | BB49: 0 | BC49: =IF(ISNA(VLOOKUP($CV49,'Audit Values'!$A$2:$BU$326,2,FALSE)),"",IF(AND('Weighting Factors'!H49>0,VLOOKUP($CV49,'Audit Values'!$A$2:$BU$326,51,FALSE)<'Weighting Factors'!H49),'Weighting Factors'!H49,VLOOKUP($CV49,'Audit Values'!$A$2:$BU$326,50,FALSE))) -> 18 | BD49: =IF(ISNA(VLOOKUP($CV49,'Audit Values'!$A$2:$BV$326,2,FALSE)),"",VLOOKUP($CV49,'Audit Values'!$A$2:$BV$326,51,FALSE)) -> A | BE49: =IF('Weighting Factors'!H49="","",IF('Weighting Factors'!J49="Pending","PX","R")) ->  | BF49: =SUM((S49+T49+Y49+AA49+AE49+AH49+AJ49++AO49+AP49+AQ49+AU49+AR49)*'Weighting Factors'!$Q$5)+'2018 Legal Max'!BA49+'2018 Legal Max'!BB49 -> 3284119 | BG49: =SUM((AV49+AR49)*'Weighting Factors'!$Q$5)+BA49+'2018 Legal Max'!BB49 -> 3684318 | BH49: =IF('Weighting Factors'!H49>0,'Weighting Factors'!H49,'Preliminary SO66'!AV48) -> 3810908 | BI49: 3684318 | BK49: ='Weighting Factors'!F49 -> 0 | BL49: ='Weighting Factors'!E49 -> 0 | BM49: 0 | BN49: 3684318 | BO49: =SUM((S49+T49+Y49+AA49+AE49+AH49+AJ49++AO49+AP49+AQ49+AR49)*'Weighting Factors'!Q$12)+(MAX(AS49,'Weighting Factors'!B49)) -> 4081184 | BP49: 0.3 | BQ49: 1224355 | BR49: 1265582 | BS49: 1224355 | BT49: 0.3 | BU49: 0 | BV49: FALSE | BW49: 0 | BX49: 0 | BY49: 0 | BZ49: TRUE | CA49: 178.8188 | CB49: 0.435093 | CC49: 193.4 | CD49: 0 | CE49: 309 | CF49: 0.93 | CG49: =IF(ROUND(('Weighting Factors'!$T$5*CF49^'Weighting Factors'!$T$6*'Weighting Factors'!$T$8 ),2)<'Weighting Factors'!$T$7,'Weighting Factors'!$T$7,ROUND(('Weighting Factors'!$T$5*CF49^'Weighting Factors'!$T$6*'Weighting Factors'!$T$8 ),2)) -> 919.47 | CH49: =ROUND(CG49/'Weighting Factors'!$Q$5,4) -> 0.2295 | CI49: 65.9 | CJ49: 0 | CK49: 0 | CL49: 0 | CM49: 0 | CN49: =SUM((AV49*'Weighting Factors'!$Q$5)+'2018 Legal Max'!BA49)*CM49 -> 0 | CO49: 0 | CP49: 0.387 | CQ49: 0 | CR49: 4.5 | CS49: 919.7 | CV49: D0235
A50: 237 | B50: Smith | C50: Smith Center | D50: 362.8 | E50: 0 | F50: 362.8 | G50: 348 | H50: =IF(ISNA(VLOOKUP($CV50,'Audit Values'!$A$2:$BU$326,2,FALSE)),'Preliminary SO66'!AI49,VLOOKUP($CV50,'Audit Values'!$A$2:$BU$326,2,FALSE)) -> 0 | I50: 348 | J50: 363 | K50: =IF(ISNA(VLOOKUP($CV50,'Audit Values'!$A$2:$BU$326,2,FALSE)),'Preliminary SO66'!AJ49,VLOOKUP($CV50,'Audit Values'!$A$2:$BU$326,3,FALSE)) -> 0 | L50: 363 | M50: =IF(ISNA(VLOOKUP($CV50,'Audit Values'!$A$2:$BU$326,2,FALSE)),'Preliminary SO66'!C49,VLOOKUP($CV50,'Audit Values'!$A$2:$BU$326,73,FALSE)) -> 396 | N50: =IF(ISNA(VLOOKUP($CV50,'Audit Values'!$A$2:$BU$326,2,FALSE)),'Preliminary SO66'!F49,VLOOKUP($CV50,'Audit Values'!$A$2:$BU$326,4,FALSE)) -> 0 | O50: =IF(ISNA(VLOOKUP($CV50,'Audit Values'!$A$2:$BU$326,2,FALSE)),'Preliminary SO66'!AK49,VLOOKUP($CV50,'Audit Values'!$A$2:$BU$326,57,FALSE)) -> 396 | P50: =IF('Military Provision'!J51="YES", MAX('2018 Legal Max'!L50,'2018 Legal Max'!I50,AVERAGE('2018 Legal Max'!F50,'2018 Legal Max'!I50,'2018 Legal Max'!L50)), MAX(L50, I50)) -> 363 | Q50: =IF(ISNA(VLOOKUP($CV50,'Audit Values'!$A$2:$BU$326,2,FALSE)),'Preliminary SO66'!AL49,VLOOKUP($CV50,'Audit Values'!$A$2:$BU$326,58,FALSE)) -> 0 | R50: =IF(ISNA(VLOOKUP($CV50,'Audit Values'!$A$2:$BU$326,2,FALSE)),'Preliminary SO66'!AT49,VLOOKUP($CV50,'Audit Values'!$A$2:$BU$326,59,FALSE)) -> 32 | S50: 395 | T50: 178.5 | U50: =IF(ISNA(VLOOKUP($CV50,'Audit Values'!$A$2:$BW$294,2,FALSE)),'Preliminary SO66'!AM49,VLOOKUP($CV50,'Audit Values'!$A$2:$BW$294,62,FALSE)) -> 0 | V50: =(U50/6)*'Weighting Factors'!$Q$7 -> 0 | W50: =IF(ISNA(VLOOKUP($CV50,'Audit Values'!$A$2:$BW$294,2,FALSE)),'Preliminary SO66'!AN49,VLOOKUP($CV50,'Audit Values'!$A$2:$BW$294,61,FALSE)) -> 2 | X50: =W50*'Weighting Factors'!$Q$8 -> 0.4 | Y50: 0.4 | Z50: =IF(ISNA(VLOOKUP($CV50,'Audit Values'!$A$2:$BW$294,2,FALSE)),'Preliminary SO66'!AO49,VLOOKUP($CV50,'Audit Values'!$A$2:$BW$294,60,FALSE)) -> 124.3 | AA50: =Z50/6*'Weighting Factors'!$Q$6 -> 10.4 | AB50: =IF(ISNA(VLOOKUP($CV50,'Audit Values'!$A$2:$BU$326,2,FALSE)),'Preliminary SO66'!AS49,VLOOKUP($CV50,'Audit Values'!$A$2:$BU$326,63,FALSE)) -> 399 | AC50: 40 | AD50: =IF(ISNA(VLOOKUP($CV50,'Audit Values'!$A$2:$BU$370,2,FALSE)),'Preliminary SO66'!AP49,VLOOKUP($CV50,'Audit Values'!$A$2:$BU$370,64,FALSE)) -> 141 | AE50: =IF(A50=207, AD50,MAX(AC50,AD50))*'Weighting Factors'!$Q$9 -> 68.2 | AF50: 0.3 | AG50: =IF(ISNA(VLOOKUP($CV50,'Audit Values'!$A$2:$BW$326,2,FALSE)),'Preliminary SO66'!AG49,VLOOKUP($CV50,'Audit Values'!$A$2:$BW$326,70,FALSE)) -> 2.1 | AH50: 2.1 | AI50: =IF(ISNA(VLOOKUP($CV50,'Audit Values'!$A$2:$BU$326,2,FALSE)),'Preliminary SO66'!AQ49,VLOOKUP($CV50,'Audit Values'!$A$2:$BU$326,65,FALSE)) -> 0 | AJ50: =AI50*'Weighting Factors'!$Q$10 -> 0 | AK50: =IF(ISNA(VLOOKUP($CV50,'Audit Values'!$A$2:$BU$326,2,FALSE)),'Preliminary SO66'!AR49,VLOOKUP($CV50,'Audit Values'!$A$2:$BU$326,66,FALSE)) -> 133 | AL50: 40.1 | AM50: =AL50*'Weighting Factors'!$Q$5 -> 160641 | AN50: 192215 | AO50: =MAX(AM50, AN50)/'Weighting Factors'!$Q$5 -> 48 | AP50: =CJ50/'Weighting Factors'!$Q$5 -> 0 | AQ50: =CK50/'Weighting Factors'!$Q$5 -> 0 | AR50: =CO50/'Weighting Factors'!$Q$5 -> 0 | AS50: 490021 | AT50: =AS50/'Weighting Factors'!$Q$5 -> 122.3 | AU50: =IF(ISNA(VLOOKUP($CV50,'Audit Values'!$A$2:$BU$326,2,FALSE)),'Preliminary SO66'!X49,VLOOKUP($CV50,'Audit Values'!$A$2:$BU$326,47,FALSE)) -> 0 | AV50: 824.9 | AW50: 702.6 | AX50: =IF(ISNA(VLOOKUP($CV50,'Audit Values'!$A$2:$BU$326,2,FALSE)),'Preliminary SO66'!AA49,VLOOKUP($CV50,'Audit Values'!$A$2:$BU$326,41,FALSE)) -> 0 | AY50: =IF(ISNA(VLOOKUP($CV50,'Audit Values'!$A$2:$BU$326,2,FALSE)),'Preliminary SO66'!AB49,VLOOKUP($CV50,'Audit Values'!$A$2:$BU$326,42,FALSE)) -> 0 | AZ50: 0 | BA50: =SUM(AX50*'Weighting Factors'!$T$10)+('2018 Legal Max'!AY50*'Weighting Factors'!$T$11)+('2018 Legal Max'!AZ50*'Weighting Factors'!$T$12) -> 0 | BB50: 0 | BC50: =IF(ISNA(VLOOKUP($CV50,'Audit Values'!$A$2:$BU$326,2,FALSE)),"",IF(AND('Weighting Factors'!H50>0,VLOOKUP($CV50,'Audit Values'!$A$2:$BU$326,51,FALSE)<'Weighting Factors'!H50),'Weighting Factors'!H50,VLOOKUP($CV50,'Audit Values'!$A$2:$BU$326,50,FALSE))) -> 4 | BD50: =IF(ISNA(VLOOKUP($CV50,'Audit Values'!$A$2:$BV$326,2,FALSE)),"",VLOOKUP($CV50,'Audit Values'!$A$2:$BV$326,51,FALSE)) -> A | BE50: =IF('Weighting Factors'!H50="","",IF('Weighting Factors'!J50="Pending","PX","R")) ->  | BF50: =SUM((S50+T50+Y50+AA50+AE50+AH50+AJ50++AO50+AP50+AQ50+AU50+AR50)*'Weighting Factors'!$Q$5)+'2018 Legal Max'!BA50+'2018 Legal Max'!BB50 -> 2814616 | BG50: =SUM((AV50+AR50)*'Weighting Factors'!$Q$5)+BA50+'2018 Legal Max'!BB50 -> 3304549 | BH50: =IF('Weighting Factors'!H50>0,'Weighting Factors'!H50,'Preliminary SO66'!AV49) -> 3394684 | BI50: 3304549 | BK50: ='Weighting Factors'!F50 -> 0 | BL50: ='Weighting Factors'!E50 -> 0 | BM50: 0 | BN50: 3304549 | BO50: =SUM((S50+T50+Y50+AA50+AE50+AH50+AJ50++AO50+AP50+AQ50+AR50)*'Weighting Factors'!Q$12)+(MAX(AS50,'Weighting Factors'!B50)) -> 3740709 | BP50: 0.33 | BQ50: 1234434 | BR50: 1242731 | BS50: 1234434 | BT50: 0.33 | BU50: 0 | BV50: FALSE | BW50: 0 | BX50: 0 | BY50: 0 | BZ50: TRUE | CA50: 117.5625 | CB50: 0.45191 | CC50: 178.5 | CD50: 0 | CE50: 599 | CF50: 0.22 | CG50: =IF(ROUND(('Weighting Factors'!$T$5*CF50^'Weighting Factors'!$T$6*'Weighting Factors'!$T$8 ),2)<'Weighting Factors'!$T$7,'Weighting Factors'!$T$7,ROUND(('Weighting Factors'!$T$5*CF50^'Weighting Factors'!$T$6*'Weighting Factors'!$T$8 ),2)) -> 1206.89 | CH50: =ROUND(CG50/'Weighting Factors'!$Q$5,4) -> 0.3013 | CI50: 40.1 | CJ50: 0 | CK50: 0 | CL50: 0 | CM50: 0 | CN50: =SUM((AV50*'Weighting Factors'!$Q$5)+'2018 Legal Max'!BA50)*CM50 -> 0 | CO50: 0 | CP50: 0.3534 | CQ50: 0 | CR50: 0.3 | CS50: 824.9 | CV50: D0237
A51: 239 | B51: Ottawa | C51: North Ottawa County | D51: 581.3 | E51: 0 | F51: 581.3 | G51: 576.4 | H51: =IF(ISNA(VLOOKUP($CV51,'Audit Values'!$A$2:$BU$326,2,FALSE)),'Preliminary SO66'!AI50,VLOOKUP($CV51,'Audit Values'!$A$2:$BU$326,2,FALSE)) -> 0 | I51: 576.4 | J51: 568.2 | K51: =IF(ISNA(VLOOKUP($CV51,'Audit Values'!$A$2:$BU$326,2,FALSE)),'Preliminary SO66'!AJ50,VLOOKUP($CV51,'Audit Values'!$A$2:$BU$326,3,FALSE)) -> 0 | L51: 568.2 | M51: =IF(ISNA(VLOOKUP($CV51,'Audit Values'!$A$2:$BU$326,2,FALSE)),'Preliminary SO66'!C50,VLOOKUP($CV51,'Audit Values'!$A$2:$BU$326,73,FALSE)) -> 606 | N51: =IF(ISNA(VLOOKUP($CV51,'Audit Values'!$A$2:$BU$326,2,FALSE)),'Preliminary SO66'!F50,VLOOKUP($CV51,'Audit Values'!$A$2:$BU$326,4,FALSE)) -> 0 | O51: =IF(ISNA(VLOOKUP($CV51,'Audit Values'!$A$2:$BU$326,2,FALSE)),'Preliminary SO66'!AK50,VLOOKUP($CV51,'Audit Values'!$A$2:$BU$326,57,FALSE)) -> 606 | P51: =IF('Military Provision'!J52="YES", MAX('2018 Legal Max'!L51,'2018 Legal Max'!I51,AVERAGE('2018 Legal Max'!F51,'2018 Legal Max'!I51,'2018 Legal Max'!L51)), MAX(L51, I51)) -> 576.4 | Q51: =IF(ISNA(VLOOKUP($CV51,'Audit Values'!$A$2:$BU$326,2,FALSE)),'Preliminary SO66'!AL50,VLOOKUP($CV51,'Audit Values'!$A$2:$BU$326,58,FALSE)) -> 0 | R51: =IF(ISNA(VLOOKUP($CV51,'Audit Values'!$A$2:$BU$326,2,FALSE)),'Preliminary SO66'!AT50,VLOOKUP($CV51,'Audit Values'!$A$2:$BU$326,59,FALSE)) -> 43 | S51: 619.4 | T51: 232.7 | U51: =IF(ISNA(VLOOKUP($CV51,'Audit Values'!$A$2:$BW$294,2,FALSE)),'Preliminary SO66'!AM50,VLOOKUP($CV51,'Audit Values'!$A$2:$BW$294,62,FALSE)) -> 0 | V51: =(U51/6)*'Weighting Factors'!$Q$7 -> 0 | W51: =IF(ISNA(VLOOKUP($CV51,'Audit Values'!$A$2:$BW$294,2,FALSE)),'Preliminary SO66'!AN50,VLOOKUP($CV51,'Audit Values'!$A$2:$BW$294,61,FALSE)) -> 0 | X51: =W51*'Weighting Factors'!$Q$8 -> 0 | Y51: 0 | Z51: =IF(ISNA(VLOOKUP($CV51,'Audit Values'!$A$2:$BW$294,2,FALSE)),'Preliminary SO66'!AO50,VLOOKUP($CV51,'Audit Values'!$A$2:$BW$294,60,FALSE)) -> 154.5 | AA51: =Z51/6*'Weighting Factors'!$Q$6 -> 12.9 | AB51: =IF(ISNA(VLOOKUP($CV51,'Audit Values'!$A$2:$BU$326,2,FALSE)),'Preliminary SO66'!AS50,VLOOKUP($CV51,'Audit Values'!$A$2:$BU$326,63,FALSE)) -> 613 | AC51: 61 | AD51: =IF(ISNA(VLOOKUP($CV51,'Audit Values'!$A$2:$BU$370,2,FALSE)),'Preliminary SO66'!AP50,VLOOKUP($CV51,'Audit Values'!$A$2:$BU$370,64,FALSE)) -> 182 | AE51: =IF(A51=207, AD51,MAX(AC51,AD51))*'Weighting Factors'!$Q$9 -> 88.1 | AF51: 0 | AG51: =IF(ISNA(VLOOKUP($CV51,'Audit Values'!$A$2:$BW$326,2,FALSE)),'Preliminary SO66'!AG50,VLOOKUP($CV51,'Audit Values'!$A$2:$BW$326,70,FALSE)) -> 0 | AH51: 0 | AI51: =IF(ISNA(VLOOKUP($CV51,'Audit Values'!$A$2:$BU$326,2,FALSE)),'Preliminary SO66'!AQ50,VLOOKUP($CV51,'Audit Values'!$A$2:$BU$326,65,FALSE)) -> 112.8 | AJ51: =AI51*'Weighting Factors'!$Q$10 -> 28.2 | AK51: =IF(ISNA(VLOOKUP($CV51,'Audit Values'!$A$2:$BU$326,2,FALSE)),'Preliminary SO66'!AR50,VLOOKUP($CV51,'Audit Values'!$A$2:$BU$326,66,FALSE)) -> 176 | AL51: 46.9 | AM51: =AL51*'Weighting Factors'!$Q$5 -> 187881 | AN51: 234202 | AO51: =MAX(AM51, AN51)/'Weighting Factors'!$Q$5 -> 58.5 | AP51: =CJ51/'Weighting Factors'!$Q$5 -> 0 | AQ51: =CK51/'Weighting Factors'!$Q$5 -> 0 | AR51: =CO51/'Weighting Factors'!$Q$5 -> 0 | AS51: 666055 | AT51: =AS51/'Weighting Factors'!$Q$5 -> 166.3 | AU51: =IF(ISNA(VLOOKUP($CV51,'Audit Values'!$A$2:$BU$326,2,FALSE)),'Preliminary SO66'!X50,VLOOKUP($CV51,'Audit Values'!$A$2:$BU$326,47,FALSE)) -> 0 | AV51: 1206.1 | AW51: 1039.8 | AX51: =IF(ISNA(VLOOKUP($CV51,'Audit Values'!$A$2:$BU$326,2,FALSE)),'Preliminary SO66'!AA50,VLOOKUP($CV51,'Audit Values'!$A$2:$BU$326,41,FALSE)) -> 0 | AY51: =IF(ISNA(VLOOKUP($CV51,'Audit Values'!$A$2:$BU$326,2,FALSE)),'Preliminary SO66'!AB50,VLOOKUP($CV51,'Audit Values'!$A$2:$BU$326,42,FALSE)) -> 0 | AZ51: 0 | BA51: =SUM(AX51*'Weighting Factors'!$T$10)+('2018 Legal Max'!AY51*'Weighting Factors'!$T$11)+('2018 Legal Max'!AZ51*'Weighting Factors'!$T$12) -> 0 | BB51: 0 | BC51: =IF(ISNA(VLOOKUP($CV51,'Audit Values'!$A$2:$BU$326,2,FALSE)),"",IF(AND('Weighting Factors'!H51>0,VLOOKUP($CV51,'Audit Values'!$A$2:$BU$326,51,FALSE)<'Weighting Factors'!H51),'Weighting Factors'!H51,VLOOKUP($CV51,'Audit Values'!$A$2:$BU$326,50,FALSE))) -> 11 | BD51: =IF(ISNA(VLOOKUP($CV51,'Audit Values'!$A$2:$BV$326,2,FALSE)),"",VLOOKUP($CV51,'Audit Values'!$A$2:$BV$326,51,FALSE)) -> A | BE51: =IF('Weighting Factors'!H51="","",IF('Weighting Factors'!J51="Pending","PX","R")) ->  | BF51: =SUM((S51+T51+Y51+AA51+AE51+AH51+AJ51++AO51+AP51+AQ51+AU51+AR51)*'Weighting Factors'!$Q$5)+'2018 Legal Max'!BA51+'2018 Legal Max'!BB51 -> 4165439 | BG51: =SUM((AV51+AR51)*'Weighting Factors'!$Q$5)+BA51+'2018 Legal Max'!BB51 -> 4831637 | BH51: =IF('Weighting Factors'!H51>0,'Weighting Factors'!H51,'Preliminary SO66'!AV50) -> 4886519 | BI51: 4831637 | BK51: ='Weighting Factors'!F51 -> 0 | BL51: ='Weighting Factors'!E51 -> 0 | BM51: 0 | BN51: 4831637 | BO51: =SUM((S51+T51+Y51+AA51+AE51+AH51+AJ51++AO51+AP51+AQ51+AR51)*'Weighting Factors'!Q$12)+(MAX(AS51,'Weighting Factors'!B51)) -> 5334757 | BP51: 0.33 | BQ51: 1760470 | BR51: 1700000 | BS51: 1700000 | BT51: 0.3187 | BU51: 0 | BV51: FALSE | BW51: 0 | BX51: 0 | BY51: 0 | BZ51: TRUE | CA51: 395.2575 | CB51: 0.375671 | CC51: 232.7 | CD51: 0 | CE51: 418.5 | CF51: 0.42 | CG51: =IF(ROUND(('Weighting Factors'!$T$5*CF51^'Weighting Factors'!$T$6*'Weighting Factors'!$T$8 ),2)<'Weighting Factors'!$T$7,'Weighting Factors'!$T$7,ROUND(('Weighting Factors'!$T$5*CF51^'Weighting Factors'!$T$6*'Weighting Factors'!$T$8 ),2)) -> 1068.26 | CH51: =ROUND(CG51/'Weighting Factors'!$Q$5,4) -> 0.2667 | CI51: 46.9 | CJ51: 0 | CK51: 0 | CL51: 0 | CM51: 0 | CN51: =SUM((AV51*'Weighting Factors'!$Q$5)+'2018 Legal Max'!BA51)*CM51 -> 0 | CO51: 0 | CP51: 0.2969 | CQ51: 0 | CR51: 0 | CS51: 1206.1 | CV51: D0239
A52: 240 | B52: Ottawa | C52: Twin Valley | D52: 548.5 | E52: 0 | F52: 548.5 | G52: 538.2 | H52: =IF(ISNA(VLOOKUP($CV52,'Audit Values'!$A$2:$BU$326,2,FALSE)),'Preliminary SO66'!AI51,VLOOKUP($CV52,'Audit Values'!$A$2:$BU$326,2,FALSE)) -> 0 | I52: 538.2 | J52: 538.5 | K52: =IF(ISNA(VLOOKUP($CV52,'Audit Values'!$A$2:$BU$326,2,FALSE)),'Preliminary SO66'!AJ51,VLOOKUP($CV52,'Audit Values'!$A$2:$BU$326,3,FALSE)) -> 0 | L52: 538.5 | M52: =IF(ISNA(VLOOKUP($CV52,'Audit Values'!$A$2:$BU$326,2,FALSE)),'Preliminary SO66'!C51,VLOOKUP($CV52,'Audit Values'!$A$2:$BU$326,73,FALSE)) -> 582.6 | N52: =IF(ISNA(VLOOKUP($CV52,'Audit Values'!$A$2:$BU$326,2,FALSE)),'Preliminary SO66'!F51,VLOOKUP($CV52,'Audit Values'!$A$2:$BU$326,4,FALSE)) -> 0 | O52: =IF(ISNA(VLOOKUP($CV52,'Audit Values'!$A$2:$BU$326,2,FALSE)),'Preliminary SO66'!AK51,VLOOKUP($CV52,'Audit Values'!$A$2:$BU$326,57,FALSE)) -> 582.6 | P52: =IF('Military Provision'!J53="YES", MAX('2018 Legal Max'!L52,'2018 Legal Max'!I52,AVERAGE('2018 Legal Max'!F52,'2018 Legal Max'!I52,'2018 Legal Max'!L52)), MAX(L52, I52)) -> 538.5 | Q52: =IF(ISNA(VLOOKUP($CV52,'Audit Values'!$A$2:$BU$326,2,FALSE)),'Preliminary SO66'!AL51,VLOOKUP($CV52,'Audit Values'!$A$2:$BU$326,58,FALSE)) -> 8.5 | R52: =IF(ISNA(VLOOKUP($CV52,'Audit Values'!$A$2:$BU$326,2,FALSE)),'Preliminary SO66'!AT51,VLOOKUP($CV52,'Audit Values'!$A$2:$BU$326,59,FALSE)) -> 41 | S52: 588 | T52: 227.2 | U52: =IF(ISNA(VLOOKUP($CV52,'Audit Values'!$A$2:$BW$294,2,FALSE)),'Preliminary SO66'!AM51,VLOOKUP($CV52,'Audit Values'!$A$2:$BW$294,62,FALSE)) -> 0 | V52: =(U52/6)*'Weighting Factors'!$Q$7 -> 0 | W52: =IF(ISNA(VLOOKUP($CV52,'Audit Values'!$A$2:$BW$294,2,FALSE)),'Preliminary SO66'!AN51,VLOOKUP($CV52,'Audit Values'!$A$2:$BW$294,61,FALSE)) -> 0 | X52: =W52*'Weighting Factors'!$Q$8 -> 0 | Y52: 0 | Z52: =IF(ISNA(VLOOKUP($CV52,'Audit Values'!$A$2:$BW$294,2,FALSE)),'Preliminary SO66'!AO51,VLOOKUP($CV52,'Audit Values'!$A$2:$BW$294,60,FALSE)) -> 232.1 | AA52: =Z52/6*'Weighting Factors'!$Q$6 -> 19.3 | AB52: =IF(ISNA(VLOOKUP($CV52,'Audit Values'!$A$2:$BU$326,2,FALSE)),'Preliminary SO66'!AS51,VLOOKUP($CV52,'Audit Values'!$A$2:$BU$326,63,FALSE)) -> 606 | AC52: 61 | AD52: =IF(ISNA(VLOOKUP($CV52,'Audit Values'!$A$2:$BU$370,2,FALSE)),'Preliminary SO66'!AP51,VLOOKUP($CV52,'Audit Values'!$A$2:$BU$370,64,FALSE)) -> 228 | AE52: =IF(A52=207, AD52,MAX(AC52,AD52))*'Weighting Factors'!$Q$9 -> 110.4 | AF52: 4.2 | AG52: =IF(ISNA(VLOOKUP($CV52,'Audit Values'!$A$2:$BW$326,2,FALSE)),'Preliminary SO66'!AG51,VLOOKUP($CV52,'Audit Values'!$A$2:$BW$326,70,FALSE)) -> 9.6 | AH52: 9.6 | AI52: =IF(ISNA(VLOOKUP($CV52,'Audit Values'!$A$2:$BU$326,2,FALSE)),'Preliminary SO66'!AQ51,VLOOKUP($CV52,'Audit Values'!$A$2:$BU$326,65,FALSE)) -> 0 | AJ52: =AI52*'Weighting Factors'!$Q$10 -> 0 | AK52: =IF(ISNA(VLOOKUP($CV52,'Audit Values'!$A$2:$BU$326,2,FALSE)),'Preliminary SO66'!AR51,VLOOKUP($CV52,'Audit Values'!$A$2:$BU$326,66,FALSE)) -> 182 | AL52: 44.3 | AM52: =AL52*'Weighting Factors'!$Q$5 -> 177466 | AN52: 209549 | AO52: =MAX(AM52, AN52)/'Weighting Factors'!$Q$5 -> 52.3 | AP52: =CJ52/'Weighting Factors'!$Q$5 -> 0 | AQ52: =CK52/'Weighting Factors'!$Q$5 -> 0 | AR52: =CO52/'Weighting Factors'!$Q$5 -> 0 | AS52: 540409 | AT52: =AS52/'Weighting Factors'!$Q$5 -> 134.9 | AU52: =IF(ISNA(VLOOKUP($CV52,'Audit Values'!$A$2:$BU$326,2,FALSE)),'Preliminary SO66'!X51,VLOOKUP($CV52,'Audit Values'!$A$2:$BU$326,47,FALSE)) -> 0 | AV52: 1141.7 | AW52: 1006.8 | AX52: =IF(ISNA(VLOOKUP($CV52,'Audit Values'!$A$2:$BU$326,2,FALSE)),'Preliminary SO66'!AA51,VLOOKUP($CV52,'Audit Values'!$A$2:$BU$326,41,FALSE)) -> 0 | AY52: =IF(ISNA(VLOOKUP($CV52,'Audit Values'!$A$2:$BU$326,2,FALSE)),'Preliminary SO66'!AB51,VLOOKUP($CV52,'Audit Values'!$A$2:$BU$326,42,FALSE)) -> 0 | AZ52: 0 | BA52: =SUM(AX52*'Weighting Factors'!$T$10)+('2018 Legal Max'!AY52*'Weighting Factors'!$T$11)+('2018 Legal Max'!AZ52*'Weighting Factors'!$T$12) -> 0 | BB52: 0 | BC52: =IF(ISNA(VLOOKUP($CV52,'Audit Values'!$A$2:$BU$326,2,FALSE)),"",IF(AND('Weighting Factors'!H52>0,VLOOKUP($CV52,'Audit Values'!$A$2:$BU$326,51,FALSE)<'Weighting Factors'!H52),'Weighting Factors'!H52,VLOOKUP($CV52,'Audit Values'!$A$2:$BU$326,50,FALSE))) -> 4 | BD52: =IF(ISNA(VLOOKUP($CV52,'Audit Values'!$A$2:$BV$326,2,FALSE)),"",VLOOKUP($CV52,'Audit Values'!$A$2:$BV$326,51,FALSE)) -> A | BE52: P | BF52: =SUM((S52+T52+Y52+AA52+AE52+AH52+AJ52++AO52+AP52+AQ52+AU52+AR52)*'Weighting Factors'!$Q$5)+'2018 Legal Max'!BA52+'2018 Legal Max'!BB52 -> 4033241 | BG52: =SUM((AV52+AR52)*'Weighting Factors'!$Q$5)+BA52+'2018 Legal Max'!BB52 -> 4573650 | BH52: =IF('Weighting Factors'!H52>0,'Weighting Factors'!H52,'Preliminary SO66'!AV51) -> 4573650 | BI52: 4573650 | BK52: ='Weighting Factors'!F52 -> 0 | BL52: ='Weighting Factors'!E52 -> 0 | BM52: 0 | BN52: 4573650 | BO52: =SUM((S52+T52+Y52+AA52+AE52+AH52+AJ52++AO52+AP52+AQ52+AR52)*'Weighting Factors'!Q$12)+(MAX(AS52,'Weighting Factors'!B52)) -> 5114616 | BP52: 0.33 | BQ52: 1687823 | BR52: 1662486 | BS52: 1662486 | BT52: 0.325 | BU52: 0 | BV52: FALSE | BW52: 0 | BX52: 0 | BY52: 0 | BZ52: TRUE | CA52: 356.4 | CB52: 0.386339 | CC52: 227.2 | CD52: 0 | CE52: 269.3 | CF52: 0.68 | CG52: =IF(ROUND(('Weighting Factors'!$T$5*CF52^'Weighting Factors'!$T$6*'Weighting Factors'!$T$8 ),2)<'Weighting Factors'!$T$7,'Weighting Factors'!$T$7,ROUND(('Weighting Factors'!$T$5*CF52^'Weighting Factors'!$T$6*'Weighting Factors'!$T$8 ),2)) -> 975.42 | CH52: =ROUND(CG52/'Weighting Factors'!$Q$5,4) -> 0.2435 | CI52: 44.3 | CJ52: 0 | CK52: 0 | CL52: 0 | CM52: 0 | CN52: =SUM((AV52*'Weighting Factors'!$Q$5)+'2018 Legal Max'!BA52)*CM52 -> 0 | CO52: 0 | CP52: 0.3762 | CQ52: 0 | CR52: 4.2 | CS52: 1141.7 | CV52: D0240
A53: 241 | B53: Wallace | C53: Wallace County Schools | D53: 175 | E53: 0 | F53: 175 | G53: 167 | H53: =IF(ISNA(VLOOKUP($CV53,'Audit Values'!$A$2:$BU$326,2,FALSE)),'Preliminary SO66'!AI52,VLOOKUP($CV53,'Audit Values'!$A$2:$BU$326,2,FALSE)) -> 0 | I53: 167 | J53: 180.5 | K53: =IF(ISNA(VLOOKUP($CV53,'Audit Values'!$A$2:$BU$326,2,FALSE)),'Preliminary SO66'!AJ52,VLOOKUP($CV53,'Audit Values'!$A$2:$BU$326,3,FALSE)) -> 0 | L53: 180.5 | M53: =IF(ISNA(VLOOKUP($CV53,'Audit Values'!$A$2:$BU$326,2,FALSE)),'Preliminary SO66'!C52,VLOOKUP($CV53,'Audit Values'!$A$2:$BU$326,73,FALSE)) -> 199.5 | N53: =IF(ISNA(VLOOKUP($CV53,'Audit Values'!$A$2:$BU$326,2,FALSE)),'Preliminary SO66'!F52,VLOOKUP($CV53,'Audit Values'!$A$2:$BU$326,4,FALSE)) -> 0 | O53: =IF(ISNA(VLOOKUP($CV53,'Audit Values'!$A$2:$BU$326,2,FALSE)),'Preliminary SO66'!AK52,VLOOKUP($CV53,'Audit Values'!$A$2:$BU$326,57,FALSE)) -> 199.5 | P53: =IF('Military Provision'!J54="YES", MAX('2018 Legal Max'!L53,'2018 Legal Max'!I53,AVERAGE('2018 Legal Max'!F53,'2018 Legal Max'!I53,'2018 Legal Max'!L53)), MAX(L53, I53)) -> 180.5 | Q53: =IF(ISNA(VLOOKUP($CV53,'Audit Values'!$A$2:$BU$326,2,FALSE)),'Preliminary SO66'!AL52,VLOOKUP($CV53,'Audit Values'!$A$2:$BU$326,58,FALSE)) -> 0 | R53: =IF(ISNA(VLOOKUP($CV53,'Audit Values'!$A$2:$BU$326,2,FALSE)),'Preliminary SO66'!AT52,VLOOKUP($CV53,'Audit Values'!$A$2:$BU$326,59,FALSE)) -> 20 | S53: 200.5 | T53: 150 | U53: =IF(ISNA(VLOOKUP($CV53,'Audit Values'!$A$2:$BW$294,2,FALSE)),'Preliminary SO66'!AM52,VLOOKUP($CV53,'Audit Values'!$A$2:$BW$294,62,FALSE)) -> 0 | V53: =(U53/6)*'Weighting Factors'!$Q$7 -> 0 | W53: =IF(ISNA(VLOOKUP($CV53,'Audit Values'!$A$2:$BW$294,2,FALSE)),'Preliminary SO66'!AN52,VLOOKUP($CV53,'Audit Values'!$A$2:$BW$294,61,FALSE)) -> 4 | X53: =W53*'Weighting Factors'!$Q$8 -> 0.7 | Y53: 0.7 | Z53: =IF(ISNA(VLOOKUP($CV53,'Audit Values'!$A$2:$BW$294,2,FALSE)),'Preliminary SO66'!AO52,VLOOKUP($CV53,'Audit Values'!$A$2:$BW$294,60,FALSE)) -> 0 | AA53: =Z53/6*'Weighting Factors'!$Q$6 -> 0 | AB53: =IF(ISNA(VLOOKUP($CV53,'Audit Values'!$A$2:$BU$326,2,FALSE)),'Preliminary SO66'!AS52,VLOOKUP($CV53,'Audit Values'!$A$2:$BU$326,63,FALSE)) -> 200 | AC53: 20 | AD53: =IF(ISNA(VLOOKUP($CV53,'Audit Values'!$A$2:$BU$370,2,FALSE)),'Preliminary SO66'!AP52,VLOOKUP($CV53,'Audit Values'!$A$2:$BU$370,64,FALSE)) -> 70 | AE53: =IF(A53=207, AD53,MAX(AC53,AD53))*'Weighting Factors'!$Q$9 -> 33.9 | AF53: 0 | AG53: =IF(ISNA(VLOOKUP($CV53,'Audit Values'!$A$2:$BW$326,2,FALSE)),'Preliminary SO66'!AG52,VLOOKUP($CV53,'Audit Values'!$A$2:$BW$326,70,FALSE)) -> 1.3 | AH53: 1.3 | AI53: =IF(ISNA(VLOOKUP($CV53,'Audit Values'!$A$2:$BU$326,2,FALSE)),'Preliminary SO66'!AQ52,VLOOKUP($CV53,'Audit Values'!$A$2:$BU$326,65,FALSE)) -> 0 | AJ53: =AI53*'Weighting Factors'!$Q$10 -> 0 | AK53: =IF(ISNA(VLOOKUP($CV53,'Audit Values'!$A$2:$BU$326,2,FALSE)),'Preliminary SO66'!AR52,VLOOKUP($CV53,'Audit Values'!$A$2:$BU$326,66,FALSE)) -> 58 | AL53: 20.7 | AM53: =AL53*'Weighting Factors'!$Q$5 -> 82924 | AN53: 107471 | AO53: =MAX(AM53, AN53)/'Weighting Factors'!$Q$5 -> 26.8 | AP53: =CJ53/'Weighting Factors'!$Q$5 -> 0 | AQ53: =CK53/'Weighting Factors'!$Q$5 -> 0 | AR53: =CO53/'Weighting Factors'!$Q$5 -> 0 | AS53: 142257 | AT53: =AS53/'Weighting Factors'!$Q$5 -> 35.5 | AU53: =IF(ISNA(VLOOKUP($CV53,'Audit Values'!$A$2:$BU$326,2,FALSE)),'Preliminary SO66'!X52,VLOOKUP($CV53,'Audit Values'!$A$2:$BU$326,47,FALSE)) -> 0 | AV53: 448.7 | AW53: 413.2 | AX53: =IF(ISNA(VLOOKUP($CV53,'Audit Values'!$A$2:$BU$326,2,FALSE)),'Preliminary SO66'!AA52,VLOOKUP($CV53,'Audit Values'!$A$2:$BU$326,41,FALSE)) -> 0 | AY53: =IF(ISNA(VLOOKUP($CV53,'Audit Values'!$A$2:$BU$326,2,FALSE)),'Preliminary SO66'!AB52,VLOOKUP($CV53,'Audit Values'!$A$2:$BU$326,42,FALSE)) -> 0 | AZ53: 0 | BA53: =SUM(AX53*'Weighting Factors'!$T$10)+('2018 Legal Max'!AY53*'Weighting Factors'!$T$11)+('2018 Legal Max'!AZ53*'Weighting Factors'!$T$12) -> 0 | BB53: 0 | BC53: =IF(ISNA(VLOOKUP($CV53,'Audit Values'!$A$2:$BU$326,2,FALSE)),"",IF(AND('Weighting Factors'!H53>0,VLOOKUP($CV53,'Audit Values'!$A$2:$BU$326,51,FALSE)<'Weighting Factors'!H53),'Weighting Factors'!H53,VLOOKUP($CV53,'Audit Values'!$A$2:$BU$326,50,FALSE))) -> 13 | BD53: =IF(ISNA(VLOOKUP($CV53,'Audit Values'!$A$2:$BV$326,2,FALSE)),"",VLOOKUP($CV53,'Audit Values'!$A$2:$BV$326,51,FALSE)) -> A | BE53: P | BF53: =SUM((S53+T53+Y53+AA53+AE53+AH53+AJ53++AO53+AP53+AQ53+AU53+AR53)*'Weighting Factors'!$Q$5)+'2018 Legal Max'!BA53+'2018 Legal Max'!BB53 -> 1655279 | BG53: =SUM((AV53+AR53)*'Weighting Factors'!$Q$5)+BA53+'2018 Legal Max'!BB53 -> 1797492 | BH53: =IF('Weighting Factors'!H53>0,'Weighting Factors'!H53,'Preliminary SO66'!AV52) -> 1797492 | BI53: 1797492 | BK53: ='Weighting Factors'!F53 -> 0 | BL53: ='Weighting Factors'!E53 -> 0 | BM53: 0 | BN53: 1797492 | BO53: =SUM((S53+T53+Y53+AA53+AE53+AH53+AJ53++AO53+AP53+AQ53+AR53)*'Weighting Factors'!Q$12)+(MAX(AS53,'Weighting Factors'!B53)) -> 2012042 | BP53: 0.3 | BQ53: 603613 | BR53: 592433 | BS53: 592433 | BT53: 0.2944 | BU53: 0 | BV53: TRUE | BW53: 970.328 | BX53: 0.747933 | BY53: 150 | BZ53: FALSE | CA53: 0 | CB53: 0 | CC53: 0 | CD53: 0 | CE53: 681.5 | CF53: 0.09 | CG53: =IF(ROUND(('Weighting Factors'!$T$5*CF53^'Weighting Factors'!$T$6*'Weighting Factors'!$T$8 ),2)<'Weighting Factors'!$T$7,'Weighting Factors'!$T$7,ROUND(('Weighting Factors'!$T$5*CF53^'Weighting Factors'!$T$6*'Weighting Factors'!$T$8 ),2)) -> 1428.6 | CH53: =ROUND(CG53/'Weighting Factors'!$Q$5,4) -> 0.3566 | CI53: 20.7 | CJ53: 0 | CK53: 0 | CL53: 0 | CM53: 0 | CN53: =SUM((AV53*'Weighting Factors'!$Q$5)+'2018 Legal Max'!BA53)*CM53 -> 0 | CO53: 0 | CP53: 0.35 | CQ53: 0 | CR53: 0 | CS53: 448.7 | CV53: D0241
A54: 242 | B54: Wallace | C54: Weskan | D54: 91.2 | E54: 0 | F54: 91.2 | G54: 91 | H54: =IF(ISNA(VLOOKUP($CV54,'Audit Values'!$A$2:$BU$326,2,FALSE)),'Preliminary SO66'!AI53,VLOOKUP($CV54,'Audit Values'!$A$2:$BU$326,2,FALSE)) -> 0 | I54: 91 | J54: 90.5 | K54: =IF(ISNA(VLOOKUP($CV54,'Audit Values'!$A$2:$BU$326,2,FALSE)),'Preliminary SO66'!AJ53,VLOOKUP($CV54,'Audit Values'!$A$2:$BU$326,3,FALSE)) -> 0 | L54: 90.5 | M54: =IF(ISNA(VLOOKUP($CV54,'Audit Values'!$A$2:$BU$326,2,FALSE)),'Preliminary SO66'!C53,VLOOKUP($CV54,'Audit Values'!$A$2:$BU$326,73,FALSE)) -> 103.5 | N54: =IF(ISNA(VLOOKUP($CV54,'Audit Values'!$A$2:$BU$326,2,FALSE)),'Preliminary SO66'!F53,VLOOKUP($CV54,'Audit Values'!$A$2:$BU$326,4,FALSE)) -> 0 | O54: =IF(ISNA(VLOOKUP($CV54,'Audit Values'!$A$2:$BU$326,2,FALSE)),'Preliminary SO66'!AK53,VLOOKUP($CV54,'Audit Values'!$A$2:$BU$326,57,FALSE)) -> 103.5 | P54: =IF('Military Provision'!J55="YES", MAX('2018 Legal Max'!L54,'2018 Legal Max'!I54,AVERAGE('2018 Legal Max'!F54,'2018 Legal Max'!I54,'2018 Legal Max'!L54)), MAX(L54, I54)) -> 91 | Q54: =IF(ISNA(VLOOKUP($CV54,'Audit Values'!$A$2:$BU$326,2,FALSE)),'Preliminary SO66'!AL53,VLOOKUP($CV54,'Audit Values'!$A$2:$BU$326,58,FALSE)) -> 0 | R54: =IF(ISNA(VLOOKUP($CV54,'Audit Values'!$A$2:$BU$326,2,FALSE)),'Preliminary SO66'!AT53,VLOOKUP($CV54,'Audit Values'!$A$2:$BU$326,59,FALSE)) -> 12 | S54: 103 | T54: 103.7 | U54: =IF(ISNA(VLOOKUP($CV54,'Audit Values'!$A$2:$BW$294,2,FALSE)),'Preliminary SO66'!AM53,VLOOKUP($CV54,'Audit Values'!$A$2:$BW$294,62,FALSE)) -> 6.9 | V54: =(U54/6)*'Weighting Factors'!$Q$7 -> 0.5 | W54: =IF(ISNA(VLOOKUP($CV54,'Audit Values'!$A$2:$BW$294,2,FALSE)),'Preliminary SO66'!AN53,VLOOKUP($CV54,'Audit Values'!$A$2:$BW$294,61,FALSE)) -> 6 | X54: =W54*'Weighting Factors'!$Q$8 -> 1.1 | Y54: 1.1 | Z54: =IF(ISNA(VLOOKUP($CV54,'Audit Values'!$A$2:$BW$294,2,FALSE)),'Preliminary SO66'!AO53,VLOOKUP($CV54,'Audit Values'!$A$2:$BW$294,60,FALSE)) -> 26.4 | AA54: =Z54/6*'Weighting Factors'!$Q$6 -> 2.2 | AB54: =IF(ISNA(VLOOKUP($CV54,'Audit Values'!$A$2:$BU$326,2,FALSE)),'Preliminary SO66'!AS53,VLOOKUP($CV54,'Audit Values'!$A$2:$BU$326,63,FALSE)) -> 104 | AC54: 10 | AD54: =IF(ISNA(VLOOKUP($CV54,'Audit Values'!$A$2:$BU$370,2,FALSE)),'Preliminary SO66'!AP53,VLOOKUP($CV54,'Audit Values'!$A$2:$BU$370,64,FALSE)) -> 27 | AE54: =IF(A54=207, AD54,MAX(AC54,AD54))*'Weighting Factors'!$Q$9 -> 13.1 | AF54: 0 | AG54: =IF(ISNA(VLOOKUP($CV54,'Audit Values'!$A$2:$BW$326,2,FALSE)),'Preliminary SO66'!AG53,VLOOKUP($CV54,'Audit Values'!$A$2:$BW$326,70,FALSE)) -> 0 | AH54: 0 | AI54: =IF(ISNA(VLOOKUP($CV54,'Audit Values'!$A$2:$BU$326,2,FALSE)),'Preliminary SO66'!AQ53,VLOOKUP($CV54,'Audit Values'!$A$2:$BU$326,65,FALSE)) -> 0 | AJ54: =AI54*'Weighting Factors'!$Q$10 -> 0 | AK54: =IF(ISNA(VLOOKUP($CV54,'Audit Values'!$A$2:$BU$326,2,FALSE)),'Preliminary SO66'!AR53,VLOOKUP($CV54,'Audit Values'!$A$2:$BU$326,66,FALSE)) -> 29 | AL54: 9.8 | AM54: =AL54*'Weighting Factors'!$Q$5 -> 39259 | AN54: 53158 | AO54: =MAX(AM54, AN54)/'Weighting Factors'!$Q$5 -> 13.3 | AP54: =CJ54/'Weighting Factors'!$Q$5 -> 0 | AQ54: =CK54/'Weighting Factors'!$Q$5 -> 0 | AR54: =CO54/'Weighting Factors'!$Q$5 -> 0 | AS54: 107928 | AT54: =AS54/'Weighting Factors'!$Q$5 -> 26.9 | AU54: =IF(ISNA(VLOOKUP($CV54,'Audit Values'!$A$2:$BU$326,2,FALSE)),'Preliminary SO66'!X53,VLOOKUP($CV54,'Audit Values'!$A$2:$BU$326,47,FALSE)) -> 0 | AV54: 263.3 | AW54: 236.4 | AX54: =IF(ISNA(VLOOKUP($CV54,'Audit Values'!$A$2:$BU$326,2,FALSE)),'Preliminary SO66'!AA53,VLOOKUP($CV54,'Audit Values'!$A$2:$BU$326,41,FALSE)) -> 0 | AY54: =IF(ISNA(VLOOKUP($CV54,'Audit Values'!$A$2:$BU$326,2,FALSE)),'Preliminary SO66'!AB53,VLOOKUP($CV54,'Audit Values'!$A$2:$BU$326,42,FALSE)) -> 0 | AZ54: 0 | BA54: =SUM(AX54*'Weighting Factors'!$T$10)+('2018 Legal Max'!AY54*'Weighting Factors'!$T$11)+('2018 Legal Max'!AZ54*'Weighting Factors'!$T$12) -> 0 | BB54: 0 | BC54: =IF(ISNA(VLOOKUP($CV54,'Audit Values'!$A$2:$BU$326,2,FALSE)),"",IF(AND('Weighting Factors'!H54>0,VLOOKUP($CV54,'Audit Values'!$A$2:$BU$326,51,FALSE)<'Weighting Factors'!H54),'Weighting Factors'!H54,VLOOKUP($CV54,'Audit Values'!$A$2:$BU$326,50,FALSE))) -> 13 | BD54: =IF(ISNA(VLOOKUP($CV54,'Audit Values'!$A$2:$BV$326,2,FALSE)),"",VLOOKUP($CV54,'Audit Values'!$A$2:$BV$326,51,FALSE)) -> A | BE54: =IF('Weighting Factors'!H54="","",IF('Weighting Factors'!J54="Pending","PX","R")) ->  | BF54: =SUM((S54+T54+Y54+AA54+AE54+AH54+AJ54++AO54+AP54+AQ54+AU54+AR54)*'Weighting Factors'!$Q$5)+'2018 Legal Max'!BA54+'2018 Legal Max'!BB54 -> 947018 | BG54: =SUM((AV54+AR54)*'Weighting Factors'!$Q$5)+BA54+'2018 Legal Max'!BB54 -> 1054780 | BH54: =IF('Weighting Factors'!H54>0,'Weighting Factors'!H54,'Preliminary SO66'!AV53) -> 1078015 | BI54: 1054780 | BK54: ='Weighting Factors'!F54 -> 0 | BL54: ='Weighting Factors'!E54 -> 0 | BM54: 0 | BN54: 1054780 | BO54: =SUM((S54+T54+Y54+AA54+AE54+AH54+AJ54++AO54+AP54+AQ54+AR54)*'Weighting Factors'!Q$12)+(MAX(AS54,'Weighting Factors'!B54)) -> 1169364 | BP54: 0.33 | BQ54: 385890 | BR54: 393781 | BS54: 385890 | BT54: 0.33 | BU54: 0 | BV54: TRUE | BW54: 28.965 | BX54: 1.006379 | BY54: 103.7 | BZ54: FALSE | CA54: 0 | CB54: 0 | CC54: 0 | CD54: 0 | CE54: 243 | CF54: 0.12 | CG54: =IF(ROUND(('Weighting Factors'!$T$5*CF54^'Weighting Factors'!$T$6*'Weighting Factors'!$T$8 ),2)<'Weighting Factors'!$T$7,'Weighting Factors'!$T$7,ROUND(('Weighting Factors'!$T$5*CF54^'Weighting Factors'!$T$6*'Weighting Factors'!$T$8 ),2)) -> 1353.12 | CH54: =ROUND(CG54/'Weighting Factors'!$Q$5,4) -> 0.3378 | CI54: 9.8 | CJ54: 0 | CK54: 0 | CL54: 0 | CM54: 0 | CN54: =SUM((AV54*'Weighting Factors'!$Q$5)+'2018 Legal Max'!BA54)*CM54 -> 0 | CO54: 0 | CP54: 0.2596 | CQ54: 0 | CR54: 0 | CS54: 263.3 | CV54: D0242
A55: 243 | B55: Coffey | C55: Lebo-Waverly | D55: 434 | E55: 0 | F55: 434 | G55: 396.7 | H55: =IF(ISNA(VLOOKUP($CV55,'Audit Values'!$A$2:$BU$326,2,FALSE)),'Preliminary SO66'!AI54,VLOOKUP($CV55,'Audit Values'!$A$2:$BU$326,2,FALSE)) -> 0 | I55: 396.7 | J55: 383 | K55: =IF(ISNA(VLOOKUP($CV55,'Audit Values'!$A$2:$BU$326,2,FALSE)),'Preliminary SO66'!AJ54,VLOOKUP($CV55,'Audit Values'!$A$2:$BU$326,3,FALSE)) -> 0 | L55: 383 | M55: =IF(ISNA(VLOOKUP($CV55,'Audit Values'!$A$2:$BU$326,2,FALSE)),'Preliminary SO66'!C54,VLOOKUP($CV55,'Audit Values'!$A$2:$BU$326,73,FALSE)) -> 415.5 | N55: =IF(ISNA(VLOOKUP($CV55,'Audit Values'!$A$2:$BU$326,2,FALSE)),'Preliminary SO66'!F54,VLOOKUP($CV55,'Audit Values'!$A$2:$BU$326,4,FALSE)) -> 0 | O55: =IF(ISNA(VLOOKUP($CV55,'Audit Values'!$A$2:$BU$326,2,FALSE)),'Preliminary SO66'!AK54,VLOOKUP($CV55,'Audit Values'!$A$2:$BU$326,57,FALSE)) -> 415.5 | P55: =IF('Military Provision'!J56="YES", MAX('2018 Legal Max'!L55,'2018 Legal Max'!I55,AVERAGE('2018 Legal Max'!F55,'2018 Legal Max'!I55,'2018 Legal Max'!L55)), MAX(L55, I55)) -> 396.7 | Q55: =IF(ISNA(VLOOKUP($CV55,'Audit Values'!$A$2:$BU$326,2,FALSE)),'Preliminary SO66'!AL54,VLOOKUP($CV55,'Audit Values'!$A$2:$BU$326,58,FALSE)) -> 0 | R55: =IF(ISNA(VLOOKUP($CV55,'Audit Values'!$A$2:$BU$326,2,FALSE)),'Preliminary SO66'!AT54,VLOOKUP($CV55,'Audit Values'!$A$2:$BU$326,59,FALSE)) -> 40 | S55: 436.7 | T55: 191.2 | U55: =IF(ISNA(VLOOKUP($CV55,'Audit Values'!$A$2:$BW$294,2,FALSE)),'Preliminary SO66'!AM54,VLOOKUP($CV55,'Audit Values'!$A$2:$BW$294,62,FALSE)) -> 0 | V55: =(U55/6)*'Weighting Factors'!$Q$7 -> 0 | W55: =IF(ISNA(VLOOKUP($CV55,'Audit Values'!$A$2:$BW$294,2,FALSE)),'Preliminary SO66'!AN54,VLOOKUP($CV55,'Audit Values'!$A$2:$BW$294,61,FALSE)) -> 4 | X55: =W55*'Weighting Factors'!$Q$8 -> 0.7 | Y55: 0.7 | Z55: =IF(ISNA(VLOOKUP($CV55,'Audit Values'!$A$2:$BW$294,2,FALSE)),'Preliminary SO66'!AO54,VLOOKUP($CV55,'Audit Values'!$A$2:$BW$294,60,FALSE)) -> 192.3 | AA55: =Z55/6*'Weighting Factors'!$Q$6 -> 16 | AB55: =IF(ISNA(VLOOKUP($CV55,'Audit Values'!$A$2:$BU$326,2,FALSE)),'Preliminary SO66'!AS54,VLOOKUP($CV55,'Audit Values'!$A$2:$BU$326,63,FALSE)) -> 423 | AC55: 42 | AD55: =IF(ISNA(VLOOKUP($CV55,'Audit Values'!$A$2:$BU$370,2,FALSE)),'Preliminary SO66'!AP54,VLOOKUP($CV55,'Audit Values'!$A$2:$BU$370,64,FALSE)) -> 137 | AE55: =IF(A55=207, AD55,MAX(AC55,AD55))*'Weighting Factors'!$Q$9 -> 66.3 | AF55: 0 | AG55: =IF(ISNA(VLOOKUP($CV55,'Audit Values'!$A$2:$BW$326,2,FALSE)),'Preliminary SO66'!AG54,VLOOKUP($CV55,'Audit Values'!$A$2:$BW$326,70,FALSE)) -> 0.6 | AH55: 0.6 | AI55: =IF(ISNA(VLOOKUP($CV55,'Audit Values'!$A$2:$BU$326,2,FALSE)),'Preliminary SO66'!AQ54,VLOOKUP($CV55,'Audit Values'!$A$2:$BU$326,65,FALSE)) -> 0 | AJ55: =AI55*'Weighting Factors'!$Q$10 -> 0 | AK55: =IF(ISNA(VLOOKUP($CV55,'Audit Values'!$A$2:$BU$326,2,FALSE)),'Preliminary SO66'!AR54,VLOOKUP($CV55,'Audit Values'!$A$2:$BU$326,66,FALSE)) -> 108 | AL55: 28.5 | AM55: =AL55*'Weighting Factors'!$Q$5 -> 114171 | AN55: 146376 | AO55: =MAX(AM55, AN55)/'Weighting Factors'!$Q$5 -> 36.5 | AP55: =CJ55/'Weighting Factors'!$Q$5 -> 0 | AQ55: =CK55/'Weighting Factors'!$Q$5 -> 0 | AR55: =CO55/'Weighting Factors'!$Q$5 -> 0 | AS55: 447201 | AT55: =AS55/'Weighting Factors'!$Q$5 -> 111.6 | AU55: =IF(ISNA(VLOOKUP($CV55,'Audit Values'!$A$2:$BU$326,2,FALSE)),'Preliminary SO66'!X54,VLOOKUP($CV55,'Audit Values'!$A$2:$BU$326,47,FALSE)) -> 0 | AV55: 859.6 | AW55: 748 | AX55: =IF(ISNA(VLOOKUP($CV55,'Audit Values'!$A$2:$BU$326,2,FALSE)),'Preliminary SO66'!AA54,VLOOKUP($CV55,'Audit Values'!$A$2:$BU$326,41,FALSE)) -> 0 | AY55: =IF(ISNA(VLOOKUP($CV55,'Audit Values'!$A$2:$BU$326,2,FALSE)),'Preliminary SO66'!AB54,VLOOKUP($CV55,'Audit Values'!$A$2:$BU$326,42,FALSE)) -> 0 | AZ55: 0 | BA55: =SUM(AX55*'Weighting Factors'!$T$10)+('2018 Legal Max'!AY55*'Weighting Factors'!$T$11)+('2018 Legal Max'!AZ55*'Weighting Factors'!$T$12) -> 0 | BB55: 126310 | BC55: =IF(ISNA(VLOOKUP($CV55,'Audit Values'!$A$2:$BU$326,2,FALSE)),"",IF(AND('Weighting Factors'!H55>0,VLOOKUP($CV55,'Audit Values'!$A$2:$BU$326,51,FALSE)<'Weighting Factors'!H55),'Weighting Factors'!H55,VLOOKUP($CV55,'Audit Values'!$A$2:$BU$326,50,FALSE))) -> 12 | BD55: =IF(ISNA(VLOOKUP($CV55,'Audit Values'!$A$2:$BV$326,2,FALSE)),"",VLOOKUP($CV55,'Audit Values'!$A$2:$BV$326,51,FALSE)) -> A | BE55: =IF('Weighting Factors'!H55="","",IF('Weighting Factors'!J55="Pending","PX","R")) ->  | BF55: =SUM((S55+T55+Y55+AA55+AE55+AH55+AJ55++AO55+AP55+AQ55+AU55+AR55)*'Weighting Factors'!$Q$5)+'2018 Legal Max'!BA55+'2018 Legal Max'!BB55 -> 3122798 | BG55: =SUM((AV55+AR55)*'Weighting Factors'!$Q$5)+BA55+'2018 Legal Max'!BB55 -> 3569868 | BH55: =IF('Weighting Factors'!H55>0,'Weighting Factors'!H55,'Preliminary SO66'!AV54) -> 3610328 | BI55: 3569868 | BK55: ='Weighting Factors'!F55 -> 0 | BL55: ='Weighting Factors'!E55 -> 0 | BM55: 0 | BN55: 3569868 | BO55: =SUM((S55+T55+Y55+AA55+AE55+AH55+AJ55++AO55+AP55+AQ55+AR55)*'Weighting Factors'!Q$12)+(MAX(AS55,'Weighting Factors'!B55)) -> 3805721 | BP55: 0.3 | BQ55: 1141716 | BR55: 1155379 | BS55: 1141716 | BT55: 0.3 | BU55: 0 | BV55: FALSE | BW55: 0 | BX55: 0 | BY55: 0 | BZ55: TRUE | CA55: 169.1663 | CB55: 0.437743 | CC55: 191.2 | CD55: 0 | CE55: 248 | CF55: 0.44 | CG55: =IF(ROUND(('Weighting Factors'!$T$5*CF55^'Weighting Factors'!$T$6*'Weighting Factors'!$T$8 ),2)<'Weighting Factors'!$T$7,'Weighting Factors'!$T$7,ROUND(('Weighting Factors'!$T$5*CF55^'Weighting Factors'!$T$6*'Weighting Factors'!$T$8 ),2)) -> 1058.93 | CH55: =ROUND(CG55/'Weighting Factors'!$Q$5,4) -> 0.2643 | CI55: 28.5 | CJ55: 0 | CK55: 0 | CL55: 0 | CM55: 0 | CN55: =SUM((AV55*'Weighting Factors'!$Q$5)+'2018 Legal Max'!BA55)*CM55 -> 0 | CO55: 0 | CP55: 0.3239 | CQ55: 0 | CR55: 0 | CS55: 859.6 | CV55: D0243
